Workbook

Sheet Instructions
A1: ='DNSP Inputs O & M'!$A$3 -> Jemena
A3: Instructions
A5: This model is to be used for the setting of Public Lighting Tariffs for the Regulatory Period 2016 to 2020 based on forecast inflation rates and Real Pre Tax WACC.
A7: Distributor data input fields are shaded | C7: and located in tabs "DNSP Inputs General" , "DNSP Inputs O & M" and "DNSP Inputs Capex"
A8: NOTE : All Distributor data input fields have been populated with AER Preliminary Decision data in this model.
A12: This model will also to be used for the annual Public Lighting Tariff Approvals in the Regulatory Period 2016 to 2020 based on actual inflation rates and Real Pre Tax WACC.
H70: =G70 -> 0 | I70: =H70 -> 0 | J70: =I70 -> 0 | K70: =J70 -> 0 | L70: =K70 -> 0

Sheet DNSP Inputs General
A1: ='DNSP Inputs O & M'!$A$3 -> Jemena
D2: 2009 | E2: 2010 | F2: 2011 | G2: 2012 | H2: 2013 | I2: 2014 | J2: 2015 | K2: 2016 | L2: 2017 | M2: 2018 | N2: 2019 | O2: 2020
A3: Capital Expenditure | D3: Nominal $ - Actual | J3: Real 2015 $ - Forecast
A4: (Net of customer contributions)
A6: Poles and Brackets | D6: 82127 | E6: 138408.8836 | F6: 240569.2298 | G6: 377.0936847 | H6: 464412.5602 | I6: 728309.1598 | J6: 446763.9946 | K6: ='Capex 2016-2020'!B23 -> 364833.9079 | L6: ='Capex 2016-2020'!C23 -> 375002.7436 | M6: ='Capex 2016-2020'!D23 -> 380156.8731 | N6: ='Capex 2016-2020'!E23 -> 366592.8001 | O6: ='Capex 2016-2020'!F23 -> 362655.3369
A8: Existing Lights
A9: Luminaires | D9: 584487 | E9: 160929.5545 | F9: 415008.1449 | G9: 203015.002 | H9: 457113.916 | I9: 459265.214 | J9: -1151949.305 | K9: ='Capex 2016-2020'!B13-'Capex 2016-2020'!B30 -> 248318.8229 | L9: ='Capex 2016-2020'!C13-'Capex 2016-2020'!C30 -> 258677.2343 | M9: ='Capex 2016-2020'!D13-'Capex 2016-2020'!D30 -> 264454.2337 | N9: ='Capex 2016-2020'!E13-'Capex 2016-2020'!E30 -> 254955.5851 | O9: ='Capex 2016-2020'!F13-'Capex 2016-2020'!F30 -> 253551.321
A11: Energy Efficient Lights
A12: Luminaires and Ballasts | D12: 0 | E12: 137050.5593 | F12: 39381.39129 | G12: 321713.6016 | H12: 1127.370805 | I12: 3240.069195 | J12: 218756.5314 | K12: ='Capex 2016-2020'!B18 -> 183079.3921 | L12: ='Capex 2016-2020'!C18 -> 192514.594 | M12: ='Capex 2016-2020'!D18 -> 199143.5132 | N12: ='Capex 2016-2020'!E18 -> 194497.8367 | O12: ='Capex 2016-2020'!F18 -> 195452.7129
A14: Total Net Capex | D14: =SUM(D6,D9,D12) -> 666614 | E14: =SUM(E6,E9,E12) -> 436388.9974 | F14: 694958.7659 | G14: 525105.6972 | H14: 922653.847 | I14: 1190814.443 | J14: -486428.7788 | K14: 796232.1229 | L14: 826194.5719 | M14: 843754.62 | N14: 816046.2219 | O14: 811659.3707
F17: 2011 | G17: 2012 | H17: 2013 | I17: 2014 | J17: 2015 | K17: 2016 | L17: 2017 | M17: 2018 | N17: 2019 | O17: 2020
A18: Operating and Maintenance Expenditure | F18: Nominal $ - Actual | J18: Real 2015 $ - Forecast
A20: Total O & M | F20: 2525965.799 | G20: 3432769.624 | H20: 2915803.923 | I20: 4304154.449 | K20: ='Cashflow Summary'!K81 -> 2984129.128 | L20: ='Cashflow Summary'!L81 -> 3057138.447 | M20: ='Cashflow Summary'!M81 -> 3112691.182 | N20: ='Cashflow Summary'!N81 -> 3084295.353 | O20: ='Cashflow Summary'!O81 -> 3099310.717
A24: WACC
A25: Regulatory Period | B25: 2016 | C25: 2017 | D25: 2018 | E25: 2019 | F25: 2020
A26: Real Pre Tax WACC | B26: 0.04126805455 | C26: 0.04126805455 | D26: 0.04126805455 | E26: 0.04126805455 | F26: 0.04126805455
A29: CPI Index | B29: CPI Index | C29: Actual CPI | D29: F'cast CPI
A30: 2014-09-30 | B30: 106.4
A31: 2015-09-30 | C31: =IF(B31="","",B31/B30-1) ->  | D31: 0.025
A32: 2016-09-30 | D32: 0.025
A33: 2017-09-30 | D33: 0.025
A34: 2018-09-30 | D34: 0.025
A35: 2019-09-30 | D35: 0.025
A38: Number Of Lights | E38: =J$2 -> 2015 | F38: =F$2 -> 2011 | G38: 2012 | H38: 2013 | I38: 2014 | J38: 2015 | K38: 2016 | L38: 2017 | M38: 2018 | N38: 2019 | O38: 2020
E39: Actual Prices | F39: Actual Volumes | J39: Forecast Volumes
A40: Existing Lights | B40: Reference Light | D40: Price Factor
A41: Mercury Vapour 80 watt | B41: =A$41 -> Mercury Vapour 80 watt | D41: 1 | E41: 48.83 | F41: 43472.6 | G41: 41124.85 | H41: 45947 | I41: 35373 | J41: 13619.0208 | K41: 13422.9069 | L41: 13229.61704 | M41: 13039.11056 | N41: 12851.34736 | O41: 12666.28796
A42: Sodium High Pressure 150 watt | B42: =$A42 -> Sodium High Pressure 150 watt | D42: 1 | E42: 91.54 | F42: 14085 | G42: 14085 | H42: 15110 | I42: 15248 | J42: 15491.35529 | K42: 15707.2076 | L42: 15920.07047 | M42: 16130.38213 | N42: 16338.51658 | O42: 16544.793
A43: Sodium High Pressure 250 watt | B43: =A$43 -> Sodium High Pressure 250 watt | D43: 1 | E43: 93.95 | F43: 4192 | G43: 4192 | H43: 4706 | I43: 4722 | J43: 4732.459821 | K43: 4742.405991 | L43: 4751.863732 | M43: 4760.857031 | N43: 4769.408695 | O43: 4777.540411
A44: 55W Ind | B44: =A$41 -> Mercury Vapour 80 watt | D44: 1.25 | E44: 61.03 | F44: 0 | G44: 0 | H44: 0 | I44: 0 | J44: 0 | K44: 0 | L44: 0 | M44: 0 | N44: 0 | O44: 0
A45: Fluorescent 20 watt | B45: Mercury Vapour 80 watt | D45: 1.25 | E45: 61.03 | F45: 3 | G45: 2 | H45: 2 | I45: 13 | J45: 0 | K45: 0 | L45: 0 | M45: 0 | N45: 0 | O45: 0
A46: Fluorescent 40 watt | B46: Mercury Vapour 80 watt | D46: 1.25 | E46: 61.03 | F46: 173 | G46: 120 | H46: 54 | I46: 34 | J46: 21.40740741 | K46: 0 | L46: 0 | M46: 0 | N46: 0 | O46: 0
A47: Fluorescent 80 watt | B47: Mercury Vapour 80 watt | D47: 1.25 | E47: 61.03 | F47: 7 | G47: 6 | H47: 0 | I47: 0 | J47: 0 | K47: 0 | L47: 0 | M47: 0 | N47: 0 | O47: 0
A48: Mercury Vapour 50 watt | B48: Mercury Vapour 80 watt | D48: 1.25 | E48: 61.03 | F48: 76 | G48: 66 | H48: 36 | I48: 17 | J48: 17 | K48: 0 | L48: 0 | M48: 0 | N48: 0 | O48: 0
A49: Mercury Vapour 125 watt | B49: Mercury Vapour 80 watt | D49: 1.47 | E49: 71.77 | F49: 407 | G49: 378 | H49: 469 | I49: 365 | J49: 359.744 | K49: 354.5636864 | L49: 349.4579693 | M49: 344.4257746 | N49: 339.4660434 | O49: 334.5777324
A50: Mercury Vapour 250 watt | B50: =A$43 -> Sodium High Pressure 250 watt | D50: 0.96 | E50: 90.19 | F50: 199 | G50: 199 | H50: 191 | I50: 163 | J50: 139.104712 | K50: 118.7123982 | L50: 101.3095336 | M50: 86.4578742 | N50: 73.78342144 | O50: 62.96700364
A51: Mercury Vapour 400 watt | B51: =A$43 -> Sodium High Pressure 250 watt | D51: 1.08 | E51: 101.47 | F51: 184 | G51: 184 | H51: 224 | I51: 213 | J51: 202.5401786 | K51: 192.5940091 | L51: 183.1362676 | M51: 174.1429687 | N51: 165.5913051 | O51: 157.4595892
A52: Sodium High Pressure 50 watt | B52: =A$42 -> Sodium High Pressure 150 watt | D52: 1.25 | E52: 112.91 | F52: 0 | G52: 0 | H52: 4 | I52: 4 | J52: 0 | K52: 0 | L52: 0 | M52: 0 | N52: 0 | O52: 0
A53: Sodium Low Pressure 90 watt | B53: =A$42 -> Sodium High Pressure 150 watt | D53: 1.06 | E53: 97.03 | F53: 10 | G53: 10 | H53: 14 | I53: 11 | J53: 0 | K53: 0 | L53: 0 | M53: 0 | N53: 0 | O53: 0
A54: Sodium High Pressure 100 watt | B54: =A$42 -> Sodium High Pressure 150 watt | D54: 1.37 | E54: 125.41 | F54: 960 | G54: 960 | H54: 1189 | I54: 1182 | J54: 1164.9792 | K54: 1148.2035 | L54: 1131.669369 | M54: 1115.37333 | N54: 1099.311954 | O54: 1083.481862
A55: Sodium High Pressure 400 watt | B55: =A$43 -> Sodium High Pressure 250 watt | D55: 1.33 | E55: 124.96 | F55: 273 | G55: 273 | H55: 296 | I55: 288 | J55: 288 | K55: 288 | L55: 288 | M55: 288 | N55: 288 | O55: 288
A56: Metal Halide 70 watt | B56: =A$41 -> Mercury Vapour 80 watt | D56: 2.57 | E56: 125.48 | F56: 13 | G56: 12 | H56: 12 | I56: 12 | J56: 12 | K56: 12 | L56: 12 | M56: 12 | N56: 12 | O56: 12
A57: Metal Halide 150 watt | B57: =A$42 -> Sodium High Pressure 150 watt | D57: 2.22 | E57: 203.22 | F57: 16 | G57: 16 | H57: 40 | I57: 33 | J57: 33 | K57: 33 | L57: 33 | M57: 33 | N57: 33 | O57: 33
A58: Metal Halide 250 watt | B58: =A$43 -> Sodium High Pressure 250 watt | D58: 2.15 | E58: 202 | F58: 29 | G58: 29 | H58: 74 | I58: 72 | J58: 72 | K58: 72 | L58: 72 | M58: 72 | N58: 72 | O58: 72
A59: Incandescent 100 watt | B59: =A$41 -> Mercury Vapour 80 watt | D59: 1.56 | E59: 76.17 | F59: 5 | G59: 4 | H59: 0 | I59: 0 | J59: 0 | K59: 0 | L59: 0 | M59: 0 | N59: 0 | O59: 0
A60: Incandescent 150 watt | B60: =A$41 -> Mercury Vapour 80 watt | D60: 1.95 | E60: 95.21 | F60: 2 | G60: 0 | H60: 3 | I60: 1 | J60: 0 | K60: 0 | L60: 0 | M60: 0 | N60: 0 | O60: 0
A61: Sodium High Pressure 250 watt (24 hrs) | B61: =A$43 -> Sodium High Pressure 250 watt | D61: =1.56 -> 1.56 | E61: 144.62 | F61: 0 | G61: 0 | H61: 0 | I61: 0 | J61: 0 | K61: 0 | L61: 0 | M61: 0 | N61: 0 | O61: 0
A62: Metal Halide 100 watt | B62: =A$42 -> Sodium High Pressure 150 watt | D62: 2.22 | E62: 200.52 | F62: 0 | G62: 0 | H62: 0 | I62: 0 | J62: 0 | K62: 0 | L62: 0 | M62: 0 | N62: 0 | O62: 0
A65: Total Existing Lights | F65: =SUM(F41:F64) -> 64106.6 | G65: 61660.85 | H65: 68371 | I65: 57751 | J65: 36152.61141 | K65: 36091.59409 | L65: 36072.12438 | M65: 36055.74966 | N65: 36042.42536 | O65: 36032.10756
A67: Energy Efficient Lights | B67: Reference Light | D67: Price Factor
A68: T5 2X14W | B68: =A68 -> T5 2X14W | D68: 1 | E68: 30.01 | F68: 585 | G68: 1177 | H68: 1535 | I68: 12536 | J68: 34586.13259 | K68: 35086.08 | L68: 35564.62 | M68: 36043.16 | N68: 36521.7 | O68: 37000.24
A69: T5 (2x24W) | B69: T5 2X14W | D69: 1.126245847 | F69: 0 | G69: 0 | H69: 22 | I69: 332 | J69: 333 | K69: 333 | L69: 333 | M69: 333 | N69: 333 | O69: 333
A70: LED 18W | B70: =A70 -> LED 18W | D70: 1 | F70: 0 | G70: 0 | H70: 0 | I70: 0 | J70: 221.256 | K70: 456.3259136 | L70: 671.2556204 | M70: 883.0903395 | N70: 1091.874639 | O70: 1297.652444
A71: Compact Fluoro 32W | B71: T5 2X14W | D71: 0.8625368732 | F71: 0 | G71: 0 | H71: 1 | I71: 8 | J71: 8 | K71: 8 | L71: 8 | M71: 8 | N71: 8 | O71: 8
A72: Compact Fluoro 42W | B72: T5 2X14W | D72: 0.9727574751 | F72: 0 | G72: 0 | H72: 101 | I72: 68 | J72: 68 | K72: 68 | L72: 68 | M72: 68 | N72: 68 | O72: 68
A73: Total Energy Efficient Lights | F73: =SUM(F68:F72) -> 585 | G73: 1177 | H73: 1659 | I73: 12944 | J73: 35216.38859 | K73: 35951.40591 | L73: 36644.87562 | M73: 37335.25034 | N73: 38022.57464 | O73: 38706.89244
A75: Total Number of Lights | F75: =SUM(F65,F73) -> 64691.6 | G75: 62837.85 | H75: 70030 | I75: 70695 | J75: 71369 | K75: 72043 | L75: 72717 | M75: 73391 | N75: 74065 | O75: 74739

Sheet DNSP Inputs O & M
A1: Public Lighting Cost Build-up Model
A3: Jemena | C3: O & M Data Inputs
C5: Real 2015 $
A7: Input parameters | C7: 2015 | D7: 2016 | E7: 2017 | F7: 2018 | G7: 2019 | H7: 2020
A9: Inputs - all lamps
A11: Material premium for rural areas | C11: 0.05 | D11: 0.05 | E11: 0.05 | F11: 0.05 | G11: 0.05 | H11: 0.05
A12: Labour rate (per hour) | C12: 89.64428472 | D12: 90.43467502 | E12: =D12+(D12*0.008) -> 91.15815242 | F12: =E12+(E12*0.0128) -> 92.32497677 | G12: =F12+(F12*0.0148) -> 93.69138642 | H12: =G12+(G12*0.0137) -> 94.97495842
A13: Labour rate for night patrols (per hour) | C13: 103.0909274 | D13: 103.9998763 | E13: =D13+(D13*0.008) -> 104.8318753 | F13: =E13+(E13*0.0128) -> 106.1737233 | G13: =F13+(F13*0.0148) -> 107.7450944 | H13: =G13+(G13*0.0137) -> 109.2212022
A14: Elevated platform vehicle (per hour) - urban MV,urban T5 | C14: 39.70489021 | D14: 40.7806629 | E14: 42.33867721 | F14: 42.94077127 | G14: 40.31593641 | H14: 39.34603927
A15: Elevated platform vehicle (per hour) - rural MV, rural T5, S-HP | C15: 51.04914455 | D15: 52.43228087 | E15: 54.43544212 | F15: 55.20956306 | G15: 51.83477538 | H15: 50.58776477
A16: Patrol vehicle (per hour) | C16: 11.34425434 | D16: 11.65161797 | E16: 12.09676492 | F16: 12.26879179 | G16: 11.51883897 | H16: 11.2417255
A17: Number of hours in a day | C17: 8 | D17: 8 | E17: 8 | F17: 8 | G17: 8 | H17: 8
A18: Indirect overheads | C18: 0.25 | D18: 0.25 | E18: 0.25 | F18: 0.25 | G18: 0.25 | H18: 0.25
A22: Inputs - MV80
A24: Depreciation period | B24: years | C24: 20 | D24: =C24 -> 20 | E24: =D24 -> 20 | F24: =E24 -> 20 | G24: =F24 -> 20 | H24: =G24 -> 20
A25: Lamps - bulk change | B25: years | C25: 4 | D25: 4 | E25: 4 | F25: 4 | G25: 4 | H25: 4
A26: PE cells - bulk change | B26: years | C26: 8 | D26: 8 | E26: 8 | F26: 8 | G26: 8 | H26: 8
A27: Proportion of lamps that fail between bulk change | C27: 0.196 | D27: 0.256 | E27: 0.256 | F27: 0.256 | G27: 0.256 | H27: 0.256
A29: Unit cost - lamp | C29: 5.543170982 | D29: 5.693358829 | E29: 5.910872079 | F29: 5.994929995 | G29: 5.6284787 | H29: 5.493072062
A30: Unit cost - PE cell | C30: 22.37888504 | D30: 22.98522328 | E30: 23.86336758 | F30: 24.20272613 | G30: 22.72328928 | H30: 22.17662572
A31: Unit cost - luminaire | C31: 192.3128576 | D31: 197.5234228 | E31: 205.0697523 | F31: 207.9860286 | G31: 195.2724941 | H31: 190.574743
A32: Unit cost - miscellaneous materials (bulk lamp) | C32: 1.212947699 | D32: 1.24581156 | E32: 1.293407457 | F32: 1.311800874 | G32: 1.231614595 | H32: 1.201985134
A33: Unit cost - miscellaneous materials (repair) | C33: 12.12947699 | D33: 12.4581156 | E33: 12.93407457 | F33: 13.11800874 | G33: 12.31614595 | H33: 12.01985134
A34: Number of men in crew | C34: 2 | D34: 2 | E34: 2 | F34: 2 | G34: 2 | H34: 2
A35: Number of bulk lamp changes in 1 day - urban | C35: 90 | D35: 85 | E35: 85 | F35: 85 | G35: 85 | H35: 85
A36: Number of bulk lamp changes in 1 day - rural | C36: 75 | D36: 70 | E36: 70 | F36: 70 | G36: 70 | H36: 70
A37: Number of repairs in 1 day - urban | C37: 30 | D37: 15 | E37: 15 | F37: 15 | G37: 15 | H37: 15
A38: Number of repairs in 1 day - rural | C38: 25 | D38: 12 | E38: 12 | F38: 12 | G38: 12 | H38: 12
A39: % of repairs - lamps | C39: 0.6 | D39: 0.6 | E39: 0.6 | F39: 0.6 | G39: 0.6 | H39: 0.6
A40: % of repairs - PE cells | C40: 0.5 | D40: 0.5 | E40: 0.5 | F40: 0.5 | G40: 0.5 | H40: 0.5
A41: % of repairs - luminaires | C41: 0.15 | D41: 0.15 | E41: 0.15 | F41: 0.15 | G41: 0.15 | H41: 0.15
A42: % of repairs - other | C42: 0.1 | D42: 0.1 | E42: 0.1 | F42: 0.1 | G42: 0.1 | H42: 0.1
A44: Other Maintenance and Repair costs
A45: Traffic control costs | C45: 3441.865179 | D45: 0 | E45: 0 | F45: 0 | G45: 0 | H45: 0
A46: Other costs : Describe……………………………………. | C46: 0 | D46: 0 | E46: 0 | F46: 0 | G46: 0 | H46: 0
C47: =SUM(C45:C46) -> 3441.865179 | D47: 0 | E47: 0 | F47: 0 | G47: 0 | H47: 0
A48: Number of Lights | C48: ='DNSP Inputs General'!J41 -> 13619.0208 | D48: ='DNSP Inputs General'!K41 -> 13422.9069 | E48: ='DNSP Inputs General'!L41 -> 13229.61704 | F48: ='DNSP Inputs General'!M41 -> 13039.11056 | G48: ='DNSP Inputs General'!N41 -> 12851.34736 | H48: ='DNSP Inputs General'!O41 -> 12666.28796
A49: Unit Cost | C49: =IF(C48=0,0,C47/C48) -> 0.252724864 | D49: 0 | E49: 0 | F49: 0 | G49: 0 | H49: 0
A51: Location of selected public lighting assets within distributors' areas (%)
A52: Urban | C52: 0.97 | D52: 0.97 | E52: 0.97 | F52: 0.97 | G52: 0.97 | H52: 0.97
A53: Rural | C53: 0.03 | D53: 0.03 | E53: 0.03 | F53: 0.03 | G53: 0.03 | H53: 0.03
A57: Inputs - S-HP150
A59: Depreciation period | B59: years | C59: 20 | D59: =C59 -> 20 | E59: =D59 -> 20 | F59: =E59 -> 20 | G59: =F59 -> 20 | H59: =G59 -> 20
A60: Number of patrols per year | C60: 3 | D60: 3 | E60: 3 | F60: 3 | G60: 3 | H60: 3
A61: Lamps - frequency of replacement | B61: years | C61: 5 | D61: 5 | E61: 5 | F61: 5 | G61: 5 | H61: 5
A62: PE cells - frequency of replacement | B62: years | C62: 10 | D62: 10 | E62: 10 | F62: 10 | G62: 10 | H62: 10
A65: Unit cost - lamp | C65: 40.08792144 | D65: 41.17407206 | E65: 42.74711646 | F65: 43.35501889 | G65: 40.70486237 | H65: 39.72560868
A66: Unit cost - PE cell | C66: 21.77241119 | D66: 22.3623175 | E66: 23.21666385 | F66: 23.54682569 | G66: 22.10748198 | H66: 21.57563315
A67: Unit cost - miscellaneous materials | C67: 2.425895397 | D67: 2.49162312 | E67: 2.586814914 | F67: 2.623601748 | G67: 2.46322919 | H67: 2.403970268
A68: Number of men in crew - road patrols | C68: 2 | D68: 2 | E68: 2 | F68: 2 | G68: 2 | H68: 2
A69: Number of men in crew - repairs | C69: 2 | D69: 2 | E69: 2 | F69: 2 | G69: 2 | H69: 2
A70: Number of lamps patrolled in 1 day - urban | C70: 2500 | D70: 3000 | E70: 3000 | F70: 3000 | G70: 3000 | H70: 3000
A71: Number of lamps patrolled in 1 day - rural | C71: 2000 | D71: 2000 | E71: 2000 | F71: 2000 | G71: 2000 | H71: 2000
A72: Number of repairs in 1 day - urban | C72: 20 | D72: 15 | E72: 15 | F72: 15 | G72: 15 | H72: 15
A73: Number of repairs in 1 day - rural | C73: 16 | D73: 12 | E73: 12 | F73: 12 | G73: 12 | H73: 12
A75: Other Maintenance and Repair costs | J75: Submission Model | M75: =C$7 -> 2015 | N75: =D$7 -> 2016 | O75: 2017 | P75: 2018 | Q75: 2019
A76: Traffic control costs | C76: 73423.27712 | D76: 88431.5788 | E76: 89629.99673 | F76: 90814.05137 | G76: 91985.84834 | H76: 93147.18457 | J76: Traffic control unit cost - urban | M76: 17.43821386 | N76: 17.72225755 | O76: 17.98602887 | P76: 18.27493572 | Q76: 18.62499705
A77: Other costs : Describe……………………………………. | C77: 0 | D77: 0 | E77: 0 | F77: 0 | G77: 0 | H77: 0 | J77: Traffic control unit cost - rural | M77: 19.92938727 | N77: 20.25400863 | O77: 20.55546157 | P77: 20.88564082 | Q77: 21.28571091
C78: =SUM(C76:C77) -> 73423.27712 | D78: 88431.5788 | E78: 89629.99673 | F78: 90814.05137 | G78: 91985.84834 | H78: 93147.18457 | J78: Traffic control unit cost - Overall | M78: =M76*D83+M77*D84 -> 17.56277253 | N78: =N76*E83+N77*E84 -> 17.8488451 | O78: 18.11450051 | P78: 18.40547097 | Q78: 18.75803274
A79: Number of Lights | C79: ='DNSP Inputs General'!J42 -> 15491.35529 | D79: ='DNSP Inputs General'!K42 -> 15707.2076 | E79: ='DNSP Inputs General'!L42 -> 15920.07047 | F79: ='DNSP Inputs General'!M42 -> 16130.38213 | G79: ='DNSP Inputs General'!N42 -> 16338.51658 | H79: ='DNSP Inputs General'!O42 -> 16544.793 | J79: Total Cost | M79: =M78*D79 -> 275862.1142 | N79: =N78*E79 -> 284154.8718 | O79: 292193.8152 | P79: 300718.0926 | Q79: 310347.7687
A80: Unit Cost | C80: =IF(C79=0,0,C78/C79) -> 4.739629022 | D80: 5.63 | E80: 5.63 | F80: 5.63 | G80: 5.63 | H80: 5.63
A82: Location of selected public lighting assets within distributors' areas (%)
A83: Urban | C83: 0.95 | D83: 0.95 | E83: 0.95 | F83: 0.95 | G83: 0.95 | H83: 0.95
A84: Rural | C84: 0.05 | D84: 0.05 | E84: 0.05 | F84: 0.05 | G84: 0.05 | H84: 0.05
A88: Inputs - S-HP250
A90: Depreciation period | B90: years | C90: =C59 -> 20 | D90: 20 | E90: 20 | F90: 20 | G90: 20 | H90: 20
A91: Number of patrols per year | C91: 3 | D91: 3 | E91: 3 | F91: 3 | G91: 3 | H91: 3
A92: Lamps - frequency of replacement | B92: years | C92: 5 | D92: 5 | E92: 5 | F92: 5 | G92: 5 | H92: 5
A93: PE cells - frequency of replacement | B93: years | C93: 10 | D93: 10 | E93: 10 | F93: 10 | G93: 10 | H93: 10
A96: Unit cost - lamp | C96: 40.28199307 | D96: 41.37340191 | E96: 42.95406165 | F96: 43.56490703 | G96: 40.90192071 | H96: 39.9179263
A97: Unit cost - PE cell | C97: 21.77241119 | D97: 22.3623175 | E97: 23.21666385 | F97: 23.54682569 | G97: 22.10748198 | H97: 21.57563315
A98: Unit cost - miscellaneous materials | C98: 2.425895397 | D98: 2.49162312 | E98: 2.586814914 | F98: 2.623601748 | G98: 2.46322919 | H98: 2.403970268
A99: Number of men in crew - road patrols | C99: =C68 -> 2 | D99: 2 | E99: 2 | F99: 2 | G99: 2 | H99: 2
A100: Number of men in crew - repairs | C100: 2 | D100: 2 | E100: 2 | F100: 2 | G100: 2 | H100: 2
A101: Number of lamps patrolled in 1 day - urban | C101: 2500 | D101: 3000 | E101: 3000 | F101: 3000 | G101: 3000 | H101: 3000
A102: Number of lamps patrolled in 1 day - rural | C102: 2000 | D102: 2000 | E102: 2000 | F102: 2000 | G102: 2000 | H102: 2000
A103: Number of repairs in 1 day - urban | C103: 20 | D103: =D72 -> 15 | E103: 15 | F103: 15 | G103: 15 | H103: 15
A104: Number of repairs in 1 day - rural | C104: 16 | D104: =D73 -> 12 | E104: 12 | F104: 12 | G104: 12 | H104: 12
A106: Other Maintenance and Repair costs | J106: Submission Model | M106: =C$7 -> 2015 | N106: =D$7 -> 2016 | O106: =E$7 -> 2017 | P106: =F$7 -> 2018 | Q106: =G$7 -> 2019
A107: Traffic control costs | C107: 23570.09753 | D107: 25988.38483 | E107: 26040.21325 | F107: 26089.49653 | G107: 26136.35965 | H107: 26180.92145 | J107: Trafffic control unit cost - urban | M107: 17.43821386 | N107: 17.72225755 | O107: 17.98602887 | P107: 18.27493572 | Q107: 18.62499705
A108: Other costs : Describe……………………………………. | C108: 0 | D108: 0 | E108: 0 | F108: 0 | G108: 0 | H108: 0 | J108: Trafffic control unit cost - rural | M108: 19.92938727 | N108: 20.25400863 | O108: 20.55546157 | P108: 20.88564082 | Q108: 21.28571091
C109: =SUM(C107:C108) -> 23570.09753 | D109: 25988.38483 | E109: 26040.21325 | F109: 26089.49653 | G109: 26136.35965 | H109: 26180.92145 | J109: Traffic control unit cost - Overall | M109: =M107*D114+M108*D115 -> 17.63750773 | N109: =N107*E114+N108*E115 -> 17.92479764 | O109: =O107*F114+O108*F115 -> 18.19158349 | P109: =P107*G114+P108*G115 -> 18.48379213 | Q109: =Q107*H114+Q108*H115 -> 18.83785416
A110: Number of Lights | C110: ='DNSP Inputs General'!J43 -> 4732.459821 | D110: ='DNSP Inputs General'!K43 -> 4742.405991 | E110: ='DNSP Inputs General'!L43 -> 4751.863732 | F110: ='DNSP Inputs General'!M43 -> 4760.857031 | G110: ='DNSP Inputs General'!N43 -> 4769.408695 | H110: ='DNSP Inputs General'!O43 -> 4777.540411 | J110: Total Cost | M110: =M109*D110 -> 83644.22233 | N110: =N109*E110 -> 85176.1958 | O110: =O109*F110 -> 86607.52816 | P110: =P109*G110 -> 88156.75888 | Q110: =Q109*H110 -> 89998.60949
A111: Unit Cost | C111: =IF(C110=0,0,C109/C110) -> 4.980517199 | D111: 5.48 | E111: 5.48 | F111: 5.48 | G111: 5.48 | H111: 5.48
A113: Location of selected public lighting assets within distributors' areas (%)
A114: Urban | C114: 0.92 | D114: 0.92 | E114: 0.92 | F114: 0.92 | G114: 0.92 | H114: 0.92
A115: Rural | C115: 0.08 | D115: 0.08 | E115: 0.08 | F115: 0.08 | G115: 0.08 | H115: 0.08
A119: Dedicated street lighting poles
A121: Period of inspection | B121: years | C121: 5 | D121: 5 | E121: 5 | F121: 5 | G121: 5 | H121: 5
A122: Pole inspection rate | B122: per day | C122: 75 | D122: 75 | E122: 75 | F122: 75 | G122: 75 | H122: 75
A123: Depreciation of dedicated street lighting pole & bracket | B123: years | C123: 35 | D123: =C123 -> 35 | E123: =D123 -> 35 | F123: =E123 -> 35 | G123: =F123 -> 35 | H123: =G123 -> 35
A124: Proportion of lights on dedicated poles | C124: 0.1908204 | D124: 0.3383266143 | E124: 0.3383266143 | F124: 0.3383266143 | G124: 0.3383266143 | H124: 0.3383266143
A128: Other direct costs
A129: Call centre
A130: Number of calls | C130: 4222 | D130: 4222 | E130: 4222 | F130: 4222 | G130: 4222 | H130: 4222
A131: Average cost per call $ | C131: 11.34425434 | D131: 11.34425434 | E131: 11.34425434 | F131: 11.34425434 | G131: 11.34425434 | H131: 11.34425434
C132: =C130*C131 -> 47895.44184 | D132: 47895.44184 | E132: 47895.44184 | F132: 47895.44184 | G132: 47895.44184 | H132: 47895.44184
A134: GIS and other | C134: 113442.5434 | D134: 113442.5434 | E134: 113442.5434 | F134: 113442.5434 | G134: 113442.5434 | H134: 113442.5434
A135: Complaints handling | C135: 34032.76303 | D135: 34032.76303 | E135: 34032.76303 | F135: 34032.76303 | G135: 34032.76303 | H135: 34032.76303
A136: Account management
A139: ENERGY EFFICIENT LIGHTS
A141: Inputs - T5 (2 X 14W)
A143: Depreciation period | B143: years | C143: 20 | D143: =C143 -> 20 | E143: =D143 -> 20 | F143: =E143 -> 20 | G143: =F143 -> 20 | H143: =G143 -> 20
A144: Lamps - bulk change | B144: years | C144: 4 | D144: 4 | E144: 4 | F144: 4 | G144: 4 | H144: 4
A145: PE cells - bulk change | B145: years | C145: 8 | D145: 8 | E145: 8 | F145: 8 | G145: 8 | H145: 8
A146: Ballast unit life | B146: years | C146: 20 | D146: =C146 -> 20 | E146: =D146 -> 20 | F146: =E146 -> 20 | G146: =F146 -> 20 | H146: =G146 -> 20
A147: Proportion of luminaires that fail between bulk change | C147: 0.114 | D147: 0.114 | E147: 0.114 | F147: 0.114 | G147: 0.114 | H147: 0.114
A149: Unit cost - lamp | C149: 9.703581588 | D149: 9.96649248 | E149: 10.34725966 | F149: 10.49440699 | G149: 9.852916761 | H149: 9.615881072
A150: Unit cost - PE cell | C150: 16.37479393 | D150: 16.81845606 | E150: 17.46100067 | F150: 17.7093118 | G150: 16.62679703 | H150: 16.22679931
A151: Unit cost - luminaire | C151: 234.0989058 | D151: 240.4416311 | E151: 249.6276392 | F151: 253.1775687 | G151: 237.7016169 | H151: 231.9831309
A152: Unit cost - miscellaneous materials (bulk lamp) | C152: 1.212947699 | D152: 1.24581156 | E152: 1.293407457 | F152: 1.311800874 | G152: 1.231614595 | H152: 1.201985134
A153: Unit cost - miscellaneous materials (repair) | C153: 12.12947699 | D153: 12.4581156 | E153: 12.93407457 | F153: 13.11800874 | G153: 12.31614595 | H153: 12.01985134
A154: Number of men in crew | C154: 2 | D154: 2 | E154: 2 | F154: 2 | G154: 2 | H154: 2
A155: Number of bulk lamp changes in 1 day - urban | C155: 77 | D155: 74 | E155: 74 | F155: 74 | G155: 74 | H155: 74
A156: Number of bulk lamp changes in 1 day - rural | C156: 64 | D156: 61 | E156: 61 | F156: 61 | G156: 61 | H156: 61
A157: Number of repairs in 1 day - urban | C157: 26 | D157: 15 | E157: 15 | F157: 15 | G157: 15 | H157: 15
A158: Number of repairs in 1 day - rural | C158: 21 | D158: 12 | E158: 12 | F158: 12 | G158: 12 | H158: 12
A159: % of repairs - lamps | C159: 0.6 | D159: 0.6 | E159: 0.6 | F159: 0.6 | G159: 0.6 | H159: 0.6
A160: % of repairs - PE cells | C160: 0.5 | D160: 0.5 | E160: 0.5 | F160: 0.5 | G160: 0.5 | H160: 0.5
A161: % of repairs - luminaires | C161: 0.15 | D161: 0.15 | E161: 0.15 | F161: 0.15 | G161: 0.15 | H161: 0.15
A162: % of repairs - other | C162: 0.1 | D162: 0.1 | E162: 0.1 | F162: 0.1 | G162: 0.1 | H162: 0.1
A164: Other Maintenance and Repair costs
A165: Traffic control costs | C165: 1663.049276 | D165: 0 | E165: 0 | F165: 0 | G165: 0 | H165: 0
A166: Other costs : Describe……………………………………. | C166: 0 | D166: 0 | E166: 0 | F166: 0 | G166: 0 | H166: 0
C167: =SUM(C165:C166) -> 1663.049276 | D167: 0 | E167: 0 | F167: 0 | G167: 0 | H167: 0
A168: Number of Lights | C168: ='DNSP Inputs General'!J68 -> 34586.13259 | D168: ='DNSP Inputs General'!K68 -> 35086.08 | E168: ='DNSP Inputs General'!L68 -> 35564.62 | F168: ='DNSP Inputs General'!M68 -> 36043.16 | G168: ='DNSP Inputs General'!N68 -> 36521.7 | H168: ='DNSP Inputs General'!O68 -> 37000.24
A169: Unit Cost | C169: =IF(C168=0,0,C167/C168) -> 0.04808427979 | D169: 0 | E169: 0 | F169: 0 | G169: 0 | H169: 0
A171: Location of selected public lighting assets within distributors' areas (%)
A172: Urban | C172: 0.97 | D172: 0.97 | E172: 0.97 | F172: 0.97 | G172: 0.97 | H172: 0.97
A173: Rural | C173: 0.03 | D173: 0.03 | E173: 0.03 | F173: 0.03 | G173: 0.03 | H173: 0.03
A177: Inputs -LED18W
A179: Depreciation period | B179: years | D179: 20 | E179: =D179 -> 20 | F179: =E179 -> 20 | G179: =F179 -> 20 | H179: =G179 -> 20
A180: PE cells - bulk change | B180: years | D180: 8 | E180: 8 | F180: 8 | G180: 8 | H180: 8
A181: Ballast unit life | B181: years | D181: 20 | E181: =D181 -> 20 | F181: =E181 -> 20 | G181: =F181 -> 20 | H181: =G181 -> 20
A182: Proportion of luminaires that fail between bulk change | D182: 0.1 | E182: 0.1 | F182: 0.1 | G182: 0.1 | H182: 0.1
A183: Unit cost - PE cell | D183: 15.90519239 | E183: 16.512846 | F183: 16.74767352 | G183: 15.72394069 | H183: 15.34566335
A184: Unit cost - luminaire | D184: 314.6194988 | E184: 326.6394526 | F184: 331.2845593 | G184: 311.0341717 | H184: 303.5514942
A185: Unit cost - miscellaneous materials (repair) | D185: 12.4581156 | E185: 12.93407457 | F185: 13.11800874 | G185: 12.31614595 | H185: 12.01985134
A186: Number of men in crew | D186: 2 | E186: 2 | F186: 2 | G186: 2 | H186: 2
A187: Number of bulk PE cells changes in 1 day - urban | D187: 77 | E187: 77 | F187: 77 | G187: 77 | H187: 77
A188: Number of bulk PE cells changes in 1 day - rural | D188: 64 | E188: 64 | F188: 64 | G188: 64 | H188: 64
A189: Number of repairs in 1 day - urban | D189: 26 | E189: 26 | F189: 26 | G189: 26 | H189: 26
A190: Number of repairs in 1 day - rural | D190: 21 | E190: 21 | F190: 21 | G190: 21 | H190: 21
A191: % of repairs - PE cells | D191: 0.5 | E191: 0.5 | F191: 0.5 | G191: 0.5 | H191: 0.5
A192: % of repairs - luminaires | D192: 0.15 | E192: 0.15 | F192: 0.15 | G192: 0.15 | H192: 0.15
A193: % of repairs - other | D193: 0.1 | E193: 0.1 | F193: 0.1 | G193: 0.1 | H193: 0.1
A195: Other Maintenance and Repair costs
A196: Traffic control costs | D196: 0 | E196: 0 | F196: 0 | G196: 0 | H196: 0
A197: Other costs : Describe……………………………………. | D197: 0 | E197: 0 | F197: 0 | G197: 0 | H197: 0
C198: =SUM(C196:C197) -> 0 | D198: 0 | E198: 0 | F198: 0 | G198: 0 | H198: 0
A199: Number of Lights | C199: ='DNSP Inputs General'!J70 -> 221.256 | D199: ='DNSP Inputs General'!K70 -> 456.3259136 | E199: ='DNSP Inputs General'!L70 -> 671.2556204 | F199: ='DNSP Inputs General'!M70 -> 883.0903395 | G199: ='DNSP Inputs General'!N70 -> 1091.874639 | H199: ='DNSP Inputs General'!O70 -> 1297.652444
A200: Unit Cost | C200: =IF(C199=0,0,C198/C199) -> 0 | D200: 0 | E200: 0 | F200: 0 | G200: 0 | H200: 0
A202: Location of selected public lighting assets within distributors' areas (%)
A203: Urban | D203: 1 | E203: 1 | F203: 1 | G203: 1 | H203: 1
A204: Rural | D204: 0 | E204: 0 | F204: 0 | G204: 0 | H204: 0

Sheet DNSP Inputs Capex
A1: Public Lighting Cost Build-up Model
A3: ='DNSP Inputs O & M'!$A$3 -> Jemena | C3: Capex Data Inputs
C5: Real 2015 $
A7: Input parameters | C7: 2015 | D7: 2016 | E7: 2017 | F7: 2018 | G7: 2019 | H7: 2020
A9: Inputs - all lamps
A11: Material premium for rural areas | C11: ='DNSP Inputs O & M'!C11 -> 0.05 | D11: ='DNSP Inputs O & M'!D11 -> 0.05 | E11: ='DNSP Inputs O & M'!E11 -> 0.05 | F11: ='DNSP Inputs O & M'!F11 -> 0.05 | G11: ='DNSP Inputs O & M'!G11 -> 0.05 | H11: ='DNSP Inputs O & M'!H11 -> 0.05
A12: Labour rate (per hour) | C12: ='DNSP Inputs O & M'!C12 -> 89.64428472 | D12: ='DNSP Inputs O & M'!D12 -> 90.43467502 | E12: ='DNSP Inputs O & M'!E12 -> 91.15815242 | F12: ='DNSP Inputs O & M'!F12 -> 92.32497677 | G12: ='DNSP Inputs O & M'!G12 -> 93.69138642 | H12: ='DNSP Inputs O & M'!H12 -> 94.97495842
A13: Elevated platform vehicle (per hour) - urban MV,urban T5 | C13: ='DNSP Inputs O & M'!C14 -> 39.70489021 | D13: ='DNSP Inputs O & M'!D14 -> 40.7806629 | E13: ='DNSP Inputs O & M'!E14 -> 42.33867721 | F13: ='DNSP Inputs O & M'!F14 -> 42.94077127 | G13: ='DNSP Inputs O & M'!G14 -> 40.31593641 | H13: ='DNSP Inputs O & M'!H14 -> 39.34603927
A14: Elevated platform vehicle (per hour) - rural MV, rural T5, S-HP | C14: ='DNSP Inputs O & M'!C15 -> 51.04914455 | D14: ='DNSP Inputs O & M'!D15 -> 52.43228087 | E14: ='DNSP Inputs O & M'!E15 -> 54.43544212 | F14: ='DNSP Inputs O & M'!F15 -> 55.20956306 | G14: ='DNSP Inputs O & M'!G15 -> 51.83477538 | H14: ='DNSP Inputs O & M'!H15 -> 50.58776477
A15: Number of hours in a day | C15: ='DNSP Inputs O & M'!C17 -> 8 | D15: ='DNSP Inputs O & M'!D17 -> 8 | E15: ='DNSP Inputs O & M'!E17 -> 8 | F15: ='DNSP Inputs O & M'!F17 -> 8 | G15: ='DNSP Inputs O & M'!G17 -> 8 | H15: ='DNSP Inputs O & M'!H17 -> 8
A16: Indirect overheads
A19: Inputs - MV80
A21: Unit cost - luminaire | C21: ='DNSP Inputs O & M'!C31 -> 192.3128576 | D21: ='DNSP Inputs O & M'!D31 -> 197.5234228 | E21: ='DNSP Inputs O & M'!E31 -> 205.0697523 | F21: ='DNSP Inputs O & M'!F31 -> 207.9860286 | G21: ='DNSP Inputs O & M'!G31 -> 195.2724941 | H21: ='DNSP Inputs O & M'!H31 -> 190.574743
A22: Unit cost - miscellaneous materials (bulk lamp) | C22: ='DNSP Inputs O & M'!C32 -> 1.212947699 | D22: ='DNSP Inputs O & M'!D32 -> 1.24581156 | E22: ='DNSP Inputs O & M'!E32 -> 1.293407457 | F22: ='DNSP Inputs O & M'!F32 -> 1.311800874 | G22: ='DNSP Inputs O & M'!G32 -> 1.231614595 | H22: ='DNSP Inputs O & M'!H32 -> 1.201985134
A23: Number of men in crew | C23: ='DNSP Inputs O & M'!C34 -> 2 | D23: ='DNSP Inputs O & M'!D34 -> 2 | E23: ='DNSP Inputs O & M'!E34 -> 2 | F23: ='DNSP Inputs O & M'!F34 -> 2 | G23: ='DNSP Inputs O & M'!G34 -> 2 | H23: ='DNSP Inputs O & M'!H34 -> 2
A24: Number of luminaires replaced per day - urban | C24: 16 | D24: 16 | E24: 16 | F24: 16 | G24: 16 | H24: 16
A25: Number of luminaires replaced per day - rural | C25: 13 | D25: 13 | E25: 13 | F25: 13 | G25: 13 | H25: 13
A27: Other Capex unit costs Describe :……………………… | C27: 0 | D27: 0 | E27: 0 | F27: 0 | G27: 0 | H27: 0
A29: Forecast Quantities to be replaced
A30: Number of luminaires replaced per year - urban | D30: 189 | E30: 186 | F30: 183 | G30: 180 | H30: 178
A31: Number of luminaires replaced per year - rural | D31: 6 | E31: 6 | F31: 6 | G31: 6 | H31: 6
A33: MV80 Lights replaced with T5 Energy Efficient Lights
A34: Number of Lights MV80 replaced with T5 per year | D34: 196.1138995 | E34: 193.2898594 | F34: 190.5064854 | G34: 187.763192 | H34: 185.059402
A38: Inputs - S-HP150
A40: Unit cost - luminaire | C40: 227.5975062 | D40: 233.7640811 | E40: 242.6949752 | F40: 246.146316 | G40: 231.1001626 | H40: 225.5404905
A41: Unit cost - miscellaneous materials | C41: ='DNSP Inputs O & M'!C67 -> 2.425895397 | D41: ='DNSP Inputs O & M'!D67 -> 2.49162312 | E41: ='DNSP Inputs O & M'!E67 -> 2.586814914 | F41: ='DNSP Inputs O & M'!F67 -> 2.623601748 | G41: ='DNSP Inputs O & M'!G67 -> 2.46322919 | H41: ='DNSP Inputs O & M'!H67 -> 2.403970268
A42: Number of men in crew | C42: ='DNSP Inputs O & M'!C69 -> 2 | D42: ='DNSP Inputs O & M'!D69 -> 2 | E42: ='DNSP Inputs O & M'!E69 -> 2 | F42: ='DNSP Inputs O & M'!F69 -> 2 | G42: ='DNSP Inputs O & M'!G69 -> 2 | H42: ='DNSP Inputs O & M'!H69 -> 2
A43: Number of luminaires replaced per day - urban | C43: 16 | D43: 16 | E43: 16 | F43: 16 | G43: 16 | H43: 16
A44: Number of luminaires replaced per day - rural | C44: 13 | D44: 13 | E44: 13 | F44: 13 | G44: 13 | H44: 13
A46: Other Capex unit costs Describe :……………………… | C46: 0 | D46: 0 | E46: 0 | F46: 0 | G46: 0 | H46: 0
A48: Forecast Quantities to be replaced
A49: Number of luminaires replaced per year - urban | D49: 413 | E49: 419 | F49: 425 | G49: 430 | H49: 436
A50: Number of luminaires replaced per year - rural | D50: 22 | E50: 22 | F50: 22 | G50: 23 | H50: 23
A54: Inputs - S-HP250
A56: Unit cost - luminaire | C56: 230.9937597 | D56: 237.2523535 | E56: 246.3165161 | F56: 249.8193585 | G56: 234.5486835 | H56: 228.9060489
A57: Unit cost - miscellaneous materials | C57: ='DNSP Inputs O & M'!C98 -> 2.425895397 | D57: ='DNSP Inputs O & M'!D98 -> 2.49162312 | E57: ='DNSP Inputs O & M'!E98 -> 2.586814914 | F57: ='DNSP Inputs O & M'!F98 -> 2.623601748 | G57: ='DNSP Inputs O & M'!G98 -> 2.46322919 | H57: ='DNSP Inputs O & M'!H98 -> 2.403970268
A58: Number of men in crew | C58: ='DNSP Inputs O & M'!C100 -> 2 | D58: ='DNSP Inputs O & M'!D100 -> 2 | E58: ='DNSP Inputs O & M'!E100 -> 2 | F58: ='DNSP Inputs O & M'!F100 -> 2 | G58: ='DNSP Inputs O & M'!G100 -> 2 | H58: ='DNSP Inputs O & M'!H100 -> 2
A59: Number of luminaires replaced per day - urban | C59: 16 | D59: 16 | E59: 16 | F59: 16 | G59: 16 | H59: 16
A60: Number of luminaires replaced per day - rural | C60: 13 | D60: 13 | E60: 13 | F60: 13 | G60: 13 | H60: 13
A62: Other Capex unit costs Describe :……………………… | C62: 0 | D62: 0 | E62: 0 | F62: 0 | G62: 0 | H62: 0
A64: Forecast Quantities to be replaced
A65: Number of luminaires replaced per year - urban | D65: 121 | E65: 121 | F65: 121 | G65: 121 | H65: 121
A66: Number of luminaires replaced per year - rural | D66: 10 | E66: 11 | F66: 11 | G66: 11 | H66: 11
A70: Dedicated street lighting poles
A72: Cost of pole & bracket | C72: 598.1859349 | D72: 619.0488601 | E72: 642.6994561 | F72: 651.8392203 | G72: 611.9943303 | H72: 597.2713298
A73: Number of poles & brackets replaced per day | C73: 4 | D73: 4 | E73: 4 | F73: 4 | G73: 4 | H73: 4
A74: Cost of bracket on non-dedicated poles | C74: 47.85487479 | D74: 49.15146489 | E74: 51.02928344 | F74: 51.75496574 | G74: 48.59134678 | H74: 47.42236467
A75: Number of brackets replaced per day | C75: 20 | D75: 20 | E75: 20 | F75: 20 | G75: 20 | H75: 20
A77: Other poles & brackets Capex unit costs Describe :………………… | C77: 0 | D77: 0 | E77: 0 | F77: 0 | G77: 0 | H77: 0
A80: Forecast Quantities to be replaced
A81: Number of poles & brackets replaced per year - urban | D81: 321 | E81: 321 | F81: 321 | G81: 321 | H81: 321
A82: Number of poles & brackets replaced per year - rural | D82: 17 | E82: 17 | F82: 17 | G82: 17 | H82: 17
A84: Brackets on non-dedicated poles :
A85: Number of brackets replaced per year - urban | D85: 33 | E85: 33 | F85: 33 | G85: 33 | H85: 33
A86: Number of brackets replaced per year - rural | D86: 2 | E86: 2 | F86: 2 | G86: 2 | H86: 2
A90: Luminaire Replacements - Other Light types (excluding T5s)
A91: Number of luminaires replaced per year | D91: 0 | E91: 0 | F91: 0 | G91: 0 | H91: 0
A92: Forecast Capex | D92: 0 | E92: 0 | F92: 0 | G92: 0 | H92: 0
A95: ENERGY EFFICIENT LIGHTS
A97: Inputs - T5 (2 X 14W)
A99: Unit cost - luminaire | C99: ='DNSP Inputs O & M'!C151 -> 234.0989058 | D99: ='DNSP Inputs O & M'!D151 -> 240.4416311 | E99: ='DNSP Inputs O & M'!E151 -> 249.6276392 | F99: ='DNSP Inputs O & M'!F151 -> 253.1775687 | G99: ='DNSP Inputs O & M'!G151 -> 237.7016169 | H99: ='DNSP Inputs O & M'!H151 -> 231.9831309
A100: Unit cost - miscellaneous materials (bulk lamp) | C100: ='DNSP Inputs O & M'!C152 -> 1.212947699 | D100: ='DNSP Inputs O & M'!D152 -> 1.24581156 | E100: ='DNSP Inputs O & M'!E152 -> 1.293407457 | F100: ='DNSP Inputs O & M'!F152 -> 1.311800874 | G100: ='DNSP Inputs O & M'!G152 -> 1.231614595 | H100: ='DNSP Inputs O & M'!H152 -> 1.201985134
A101: Number of men in crew | C101: ='DNSP Inputs O & M'!C154 -> 2 | D101: ='DNSP Inputs O & M'!D154 -> 2 | E101: ='DNSP Inputs O & M'!E154 -> 2 | F101: ='DNSP Inputs O & M'!F154 -> 2 | G101: ='DNSP Inputs O & M'!G154 -> 2 | H101: ='DNSP Inputs O & M'!H154 -> 2
A102: Number of luminaires replaced per day - urban | D102: 16 | E102: 16 | F102: 16 | G102: 16 | H102: 16
A103: Number of luminaires replaced per day - rural | D103: 13 | E103: 13 | F103: 13 | G103: 13 | H103: 13
A105: Other Capex unit costs Describe :……………………… | D105: 0 | E105: 0 | F105: 0 | G105: 0 | H105: 0
A107: Forecast Quantities to be replaced
A108: Number of luminaires replaced per year - urban | D108: 494 | E108: 501 | F108: 507 | G108: 514 | H108: 521
A109: Number of luminaires replaced per year - rural | D109: 15 | E109: 15 | F109: 16 | G109: 16 | H109: 16
A113: Inputs -LED18W
A115: Unit cost - luminaire | D115: ='DNSP Inputs O & M'!D184 -> 314.6194988 | E115: ='DNSP Inputs O & M'!E184 -> 326.6394526 | F115: ='DNSP Inputs O & M'!F184 -> 331.2845593 | G115: ='DNSP Inputs O & M'!G184 -> 311.0341717 | H115: ='DNSP Inputs O & M'!H184 -> 303.5514942
A116: Number of men in crew | D116: ='DNSP Inputs O & M'!D186 -> 2 | E116: ='DNSP Inputs O & M'!E186 -> 2 | F116: ='DNSP Inputs O & M'!F186 -> 2 | G116: ='DNSP Inputs O & M'!G186 -> 2 | H116: ='DNSP Inputs O & M'!H186 -> 2
A117: Number of luminaires replaced per day - urban | D117: 16 | E117: 16 | F117: 16 | G117: 16 | H117: 16
A118: Number of luminaires replaced per day - rural | D118: 13 | E118: 13 | F118: 13 | G118: 13 | H118: 13
A120: Other Capex unit costs Describe :……………………… | D120: 0 | E120: 0 | F120: 0 | G120: 0 | H120: 0
A122: Forecast Quantities to be replaced
A123: Number of luminaires replaced per year - urban | D123: 7 | E123: 10 | F123: 13 | G123: 16 | H123: 19
A124: Number of luminaires replaced per year - rural | D124: 0 | E124: 0 | F124: 0 | G124: 0 | H124: 0

Sheet PL Tariffs
A1: ='DNSP Inputs O & M'!$A$3 -> Jemena | E1: Global Check | F1: =IF(SUM('Total RAB'!F1,'Depn & WACC Post 2004'!F1,'Cashflow Summary'!F1,'PL Tariff Components'!W1)<1,"Ok","Error") -> Ok
A3: Public Lighting Tariffs | C3: Nominal Prices | J3: Nominal Price Movement | P3: Real Price Movement (Implied X Factor)
C4: Actual
A5: ='DNSP Inputs General'!A$40 -> Existing Lights | C5: ='DNSP Inputs General'!J$2 -> 2015 | D5: ='DNSP Inputs General'!K$2 -> 2016 | E5: ='DNSP Inputs General'!L$2 -> 2017 | F5: ='DNSP Inputs General'!M$2 -> 2018 | G5: ='DNSP Inputs General'!N$2 -> 2019 | H5: ='DNSP Inputs General'!O$2 -> 2020 | J5: =D5 -> 2016 | K5: =E5 -> 2017 | L5: 2018 | M5: 2019 | N5: 2020 | P5: =J5 -> 2016 | Q5: =K5 -> 2017 | R5: 2018 | S5: 2019 | T5: 2020
A6: ='DNSP Inputs General'!A41 -> Mercury Vapour 80 watt | C6: ='DNSP Inputs General'!E41 -> 48.83 | D6: ='Charges Summary'!D$31 -> 48.20739021 | E6: ='Charges Summary'!E$31 -> 50.12377942 | F6: ='Charges Summary'!F$31 -> 51.88383645 | G6: ='Charges Summary'!G$31 -> 52.6219567 | H6: ='Charges Summary'!H$31 -> 53.8629185 | J6: =IF(C6=0,"",D6/C6-1) -> -0.01275055882 | K6: =IF(D6=0,"",E6/D6-1) -> 0.03975301714 | L6: =IF(E6=0,"",F6/E6-1) -> 0.03511421218 | M6: =IF(F6=0,"",G6/F6-1) -> 0.01422640078 | N6: =IF(G6=0,"",H6/G6-1) -> 0.0235825856 | P6: =IF(C6=0,"",(D6/'Charges Summary'!D$4)/C6-1) -> -0.03682981348 | Q6: =IF(D6=0,"",(E6/'Charges Summary'!E$4)/(D6/'Charges Summary'!D$4)-1) -> 0.01439318745 | R6: =IF(E6=0,"",(F6/'Charges Summary'!F$4)/(E6/'Charges Summary'!E$4)-1) -> 0.009867524083 | S6: =IF(F6=0,"",(G6/'Charges Summary'!G$4)/(F6/'Charges Summary'!F$4)-1) -> -0.01051082851 | T6: =IF(G6=0,"",(H6/'Charges Summary'!H$4)/(G6/'Charges Summary'!G$4)-1) -> -0.00138284332
A7: ='DNSP Inputs General'!A42 -> Sodium High Pressure 150 watt | C7: ='DNSP Inputs General'!E42 -> 91.54 | D7: ='Charges Summary'!D$55 -> 95.32887187 | E7: ='Charges Summary'!E$55 -> 99.10313134 | F7: ='Charges Summary'!F$55 -> 102.6080236 | G7: ='Charges Summary'!G$55 -> 104.1354896 | H7: ='Charges Summary'!H$55 -> 106.7061629 | J7: 0.04139034161 | K7: 0.03959198712 | L7: 0.0353661099 | M7: 0.01488641922 | N7: 0.02468585181 | P7: =IF(C7=0,"",(D7/'Charges Summary'!D$4)/C7-1) -> 0.01599057718 | Q7: =IF(D7=0,"",(E7/'Charges Summary'!E$4)/(D7/'Charges Summary'!D$4)-1) -> 0.014236085 | R7: =IF(E7=0,"",(F7/'Charges Summary'!F$4)/(E7/'Charges Summary'!E$4)-1) -> 0.01011327795 | S7: =IF(F7=0,"",(G7/'Charges Summary'!G$4)/(F7/'Charges Summary'!F$4)-1) -> -0.00986690808 | T7: =IF(G7=0,"",(H7/'Charges Summary'!H$4)/(G7/'Charges Summary'!G$4)-1) -> -0.0003064860365
A8: ='DNSP Inputs General'!A43 -> Sodium High Pressure 250 watt | C8: ='DNSP Inputs General'!E43 -> 93.95 | D8: ='Charges Summary'!D$71 -> 96.51137969 | E8: ='Charges Summary'!E$71 -> 100.3162669 | F8: ='Charges Summary'!F$71 -> 103.8516056 | G8: ='Charges Summary'!G$71 -> 105.396835 | H8: ='Charges Summary'!H$71 -> 107.9902589 | J8: 0.02726322177 | K8: 0.03942423411 | L8: 0.03524192829 | M8: 0.0148792061 | N8: 0.02460627822 | P8: =IF(C8=0,"",(D8/'Charges Summary'!D$4)/C8-1) -> 0.002208021241 | Q8: =IF(D8=0,"",(E8/'Charges Summary'!E$4)/(D8/'Charges Summary'!D$4)-1) -> 0.01407242352 | R8: =IF(E8=0,"",(F8/'Charges Summary'!F$4)/(E8/'Charges Summary'!E$4)-1) -> 0.00999212516 | S8: =IF(F8=0,"",(G8/'Charges Summary'!G$4)/(F8/'Charges Summary'!F$4)-1) -> -0.009873945271 | T8: =IF(G8=0,"",(H8/'Charges Summary'!H$4)/(G8/'Charges Summary'!G$4)-1) -> -0.0003841188136
A9: ='DNSP Inputs General'!A44 -> 55W Ind | C9: ='DNSP Inputs General'!E44 -> 61.03 | D9: =IF('DNSP Inputs General'!$B44='DNSP Inputs General'!$A$41,D$6,IF('DNSP Inputs General'!$B44='DNSP Inputs General'!$A$42,D$7,D$8))*'DNSP Inputs General'!$D44 -> 60.25923777 | E9: =IF('DNSP Inputs General'!$B44='DNSP Inputs General'!$A$41,E$6,IF('DNSP Inputs General'!$B44='DNSP Inputs General'!$A$42,E$7,E$8))*'DNSP Inputs General'!$D44 -> 62.65472428 | F9: =IF('DNSP Inputs General'!$B44='DNSP Inputs General'!$A$41,F$6,IF('DNSP Inputs General'!$B44='DNSP Inputs General'!$A$42,F$7,F$8))*'DNSP Inputs General'!$D44 -> 64.85479556 | G9: =IF('DNSP Inputs General'!$B44='DNSP Inputs General'!$A$41,G$6,IF('DNSP Inputs General'!$B44='DNSP Inputs General'!$A$42,G$7,G$8))*'DNSP Inputs General'!$D44 -> 65.77744587 | H9: =IF('DNSP Inputs General'!$B44='DNSP Inputs General'!$A$41,H$6,IF('DNSP Inputs General'!$B44='DNSP Inputs General'!$A$42,H$7,H$8))*'DNSP Inputs General'!$D44 -> 67.32864812 | J9: -0.01262923536 | K9: 0.03975301714 | L9: 0.03511421218 | M9: 0.01422640078 | N9: 0.0235825856 | P9: =IF(C9=0,"",(D9/'Charges Summary'!D$4)/C9-1) -> -0.03671144913 | Q9: =IF(D9=0,"",(E9/'Charges Summary'!E$4)/(D9/'Charges Summary'!D$4)-1) -> 0.01439318745 | R9: =IF(E9=0,"",(F9/'Charges Summary'!F$4)/(E9/'Charges Summary'!E$4)-1) -> 0.009867524083 | S9: =IF(F9=0,"",(G9/'Charges Summary'!G$4)/(F9/'Charges Summary'!F$4)-1) -> -0.01051082851 | T9: =IF(G9=0,"",(H9/'Charges Summary'!H$4)/(G9/'Charges Summary'!G$4)-1) -> -0.00138284332
A10: ='DNSP Inputs General'!A45 -> Fluorescent 20 watt | C10: ='DNSP Inputs General'!E45 -> 61.03 | D10: =IF('DNSP Inputs General'!$B45='DNSP Inputs General'!$A$41,D$6,IF('DNSP Inputs General'!$B45='DNSP Inputs General'!$A$42,D$7,D$8))*'DNSP Inputs General'!$D45 -> 60.25923777 | E10: =IF('DNSP Inputs General'!$B45='DNSP Inputs General'!$A$41,E$6,IF('DNSP Inputs General'!$B45='DNSP Inputs General'!$A$42,E$7,E$8))*'DNSP Inputs General'!$D45 -> 62.65472428 | F10: =IF('DNSP Inputs General'!$B45='DNSP Inputs General'!$A$41,F$6,IF('DNSP Inputs General'!$B45='DNSP Inputs General'!$A$42,F$7,F$8))*'DNSP Inputs General'!$D45 -> 64.85479556 | G10: =IF('DNSP Inputs General'!$B45='DNSP Inputs General'!$A$41,G$6,IF('DNSP Inputs General'!$B45='DNSP Inputs General'!$A$42,G$7,G$8))*'DNSP Inputs General'!$D45 -> 65.77744587 | H10: =IF('DNSP Inputs General'!$B45='DNSP Inputs General'!$A$41,H$6,IF('DNSP Inputs General'!$B45='DNSP Inputs General'!$A$42,H$7,H$8))*'DNSP Inputs General'!$D45 -> 67.32864812 | J10: -0.01262923536 | K10: 0.03975301714 | L10: 0.03511421218 | M10: 0.01422640078 | N10: 0.0235825856 | P10: =IF(C10=0,"",(D10/'Charges Summary'!D$4)/C10-1) -> -0.03671144913 | Q10: =IF(D10=0,"",(E10/'Charges Summary'!E$4)/(D10/'Charges Summary'!D$4)-1) -> 0.01439318745 | R10: =IF(E10=0,"",(F10/'Charges Summary'!F$4)/(E10/'Charges Summary'!E$4)-1) -> 0.009867524083 | S10: =IF(F10=0,"",(G10/'Charges Summary'!G$4)/(F10/'Charges Summary'!F$4)-1) -> -0.01051082851 | T10: =IF(G10=0,"",(H10/'Charges Summary'!H$4)/(G10/'Charges Summary'!G$4)-1) -> -0.00138284332
A11: ='DNSP Inputs General'!A46 -> Fluorescent 40 watt | C11: ='DNSP Inputs General'!E46 -> 61.03 | D11: =IF('DNSP Inputs General'!$B46='DNSP Inputs General'!$A$41,D$6,IF('DNSP Inputs General'!$B46='DNSP Inputs General'!$A$42,D$7,D$8))*'DNSP Inputs General'!$D46 -> 60.25923777 | E11: =IF('DNSP Inputs General'!$B46='DNSP Inputs General'!$A$41,E$6,IF('DNSP Inputs General'!$B46='DNSP Inputs General'!$A$42,E$7,E$8))*'DNSP Inputs General'!$D46 -> 62.65472428 | F11: =IF('DNSP Inputs General'!$B46='DNSP Inputs General'!$A$41,F$6,IF('DNSP Inputs General'!$B46='DNSP Inputs General'!$A$42,F$7,F$8))*'DNSP Inputs General'!$D46 -> 64.85479556 | G11: =IF('DNSP Inputs General'!$B46='DNSP Inputs General'!$A$41,G$6,IF('DNSP Inputs General'!$B46='DNSP Inputs General'!$A$42,G$7,G$8))*'DNSP Inputs General'!$D46 -> 65.77744587 | H11: =IF('DNSP Inputs General'!$B46='DNSP Inputs General'!$A$41,H$6,IF('DNSP Inputs General'!$B46='DNSP Inputs General'!$A$42,H$7,H$8))*'DNSP Inputs General'!$D46 -> 67.32864812 | J11: -0.01262923536 | K11: 0.03975301714 | L11: 0.03511421218 | M11: 0.01422640078 | N11: 0.0235825856 | P11: =IF(C11=0,"",(D11/'Charges Summary'!D$4)/C11-1) -> -0.03671144913 | Q11: =IF(D11=0,"",(E11/'Charges Summary'!E$4)/(D11/'Charges Summary'!D$4)-1) -> 0.01439318745 | R11: =IF(E11=0,"",(F11/'Charges Summary'!F$4)/(E11/'Charges Summary'!E$4)-1) -> 0.009867524083 | S11: =IF(F11=0,"",(G11/'Charges Summary'!G$4)/(F11/'Charges Summary'!F$4)-1) -> -0.01051082851 | T11: =IF(G11=0,"",(H11/'Charges Summary'!H$4)/(G11/'Charges Summary'!G$4)-1) -> -0.00138284332
A12: ='DNSP Inputs General'!A47 -> Fluorescent 80 watt | C12: ='DNSP Inputs General'!E47 -> 61.03 | D12: =IF('DNSP Inputs General'!$B47='DNSP Inputs General'!$A$41,D$6,IF('DNSP Inputs General'!$B47='DNSP Inputs General'!$A$42,D$7,D$8))*'DNSP Inputs General'!$D47 -> 60.25923777 | E12: =IF('DNSP Inputs General'!$B47='DNSP Inputs General'!$A$41,E$6,IF('DNSP Inputs General'!$B47='DNSP Inputs General'!$A$42,E$7,E$8))*'DNSP Inputs General'!$D47 -> 62.65472428 | F12: =IF('DNSP Inputs General'!$B47='DNSP Inputs General'!$A$41,F$6,IF('DNSP Inputs General'!$B47='DNSP Inputs General'!$A$42,F$7,F$8))*'DNSP Inputs General'!$D47 -> 64.85479556 | G12: =IF('DNSP Inputs General'!$B47='DNSP Inputs General'!$A$41,G$6,IF('DNSP Inputs General'!$B47='DNSP Inputs General'!$A$42,G$7,G$8))*'DNSP Inputs General'!$D47 -> 65.77744587 | H12: =IF('DNSP Inputs General'!$B47='DNSP Inputs General'!$A$41,H$6,IF('DNSP Inputs General'!$B47='DNSP Inputs General'!$A$42,H$7,H$8))*'DNSP Inputs General'!$D47 -> 67.32864812 | J12: -0.01262923536 | K12: 0.03975301714 | L12: 0.03511421218 | M12: 0.01422640078 | N12: 0.0235825856 | P12: =IF(C12=0,"",(D12/'Charges Summary'!D$4)/C12-1) -> -0.03671144913 | Q12: =IF(D12=0,"",(E12/'Charges Summary'!E$4)/(D12/'Charges Summary'!D$4)-1) -> 0.01439318745 | R12: =IF(E12=0,"",(F12/'Charges Summary'!F$4)/(E12/'Charges Summary'!E$4)-1) -> 0.009867524083 | S12: =IF(F12=0,"",(G12/'Charges Summary'!G$4)/(F12/'Charges Summary'!F$4)-1) -> -0.01051082851 | T12: =IF(G12=0,"",(H12/'Charges Summary'!H$4)/(G12/'Charges Summary'!G$4)-1) -> -0.00138284332
A13: ='DNSP Inputs General'!A48 -> Mercury Vapour 50 watt | C13: ='DNSP Inputs General'!E48 -> 61.03 | D13: =IF('DNSP Inputs General'!$B48='DNSP Inputs General'!$A$41,D$6,IF('DNSP Inputs General'!$B48='DNSP Inputs General'!$A$42,D$7,D$8))*'DNSP Inputs General'!$D48 -> 60.25923777 | E13: =IF('DNSP Inputs General'!$B48='DNSP Inputs General'!$A$41,E$6,IF('DNSP Inputs General'!$B48='DNSP Inputs General'!$A$42,E$7,E$8))*'DNSP Inputs General'!$D48 -> 62.65472428 | F13: =IF('DNSP Inputs General'!$B48='DNSP Inputs General'!$A$41,F$6,IF('DNSP Inputs General'!$B48='DNSP Inputs General'!$A$42,F$7,F$8))*'DNSP Inputs General'!$D48 -> 64.85479556 | G13: =IF('DNSP Inputs General'!$B48='DNSP Inputs General'!$A$41,G$6,IF('DNSP Inputs General'!$B48='DNSP Inputs General'!$A$42,G$7,G$8))*'DNSP Inputs General'!$D48 -> 65.77744587 | H13: =IF('DNSP Inputs General'!$B48='DNSP Inputs General'!$A$41,H$6,IF('DNSP Inputs General'!$B48='DNSP Inputs General'!$A$42,H$7,H$8))*'DNSP Inputs General'!$D48 -> 67.32864812 | J13: -0.01262923536 | K13: 0.03975301714 | L13: 0.03511421218 | M13: 0.01422640078 | N13: 0.0235825856 | P13: =IF(C13=0,"",(D13/'Charges Summary'!D$4)/C13-1) -> -0.03671144913 | Q13: =IF(D13=0,"",(E13/'Charges Summary'!E$4)/(D13/'Charges Summary'!D$4)-1) -> 0.01439318745 | R13: =IF(E13=0,"",(F13/'Charges Summary'!F$4)/(E13/'Charges Summary'!E$4)-1) -> 0.009867524083 | S13: =IF(F13=0,"",(G13/'Charges Summary'!G$4)/(F13/'Charges Summary'!F$4)-1) -> -0.01051082851 | T13: =IF(G13=0,"",(H13/'Charges Summary'!H$4)/(G13/'Charges Summary'!G$4)-1) -> -0.00138284332
A14: ='DNSP Inputs General'!A49 -> Mercury Vapour 125 watt | C14: ='DNSP Inputs General'!E49 -> 71.77 | D14: =IF('DNSP Inputs General'!$B49='DNSP Inputs General'!$A$41,D$6,IF('DNSP Inputs General'!$B49='DNSP Inputs General'!$A$42,D$7,D$8))*'DNSP Inputs General'!$D49 -> 70.86486361 | E14: =IF('DNSP Inputs General'!$B49='DNSP Inputs General'!$A$41,E$6,IF('DNSP Inputs General'!$B49='DNSP Inputs General'!$A$42,E$7,E$8))*'DNSP Inputs General'!$D49 -> 73.68195575 | F14: =IF('DNSP Inputs General'!$B49='DNSP Inputs General'!$A$41,F$6,IF('DNSP Inputs General'!$B49='DNSP Inputs General'!$A$42,F$7,F$8))*'DNSP Inputs General'!$D49 -> 76.26923958 | G14: =IF('DNSP Inputs General'!$B49='DNSP Inputs General'!$A$41,G$6,IF('DNSP Inputs General'!$B49='DNSP Inputs General'!$A$42,G$7,G$8))*'DNSP Inputs General'!$D49 -> 77.35427635 | H14: =IF('DNSP Inputs General'!$B49='DNSP Inputs General'!$A$41,H$6,IF('DNSP Inputs General'!$B49='DNSP Inputs General'!$A$42,H$7,H$8))*'DNSP Inputs General'!$D49 -> 79.17849019 | J14: -0.01261162585 | K14: 0.03975301714 | L14: 0.03511421218 | M14: 0.01422640078 | N14: 0.0235825856 | P14: =IF(C14=0,"",(D14/'Charges Summary'!D$4)/C14-1) -> -0.03669426912 | Q14: =IF(D14=0,"",(E14/'Charges Summary'!E$4)/(D14/'Charges Summary'!D$4)-1) -> 0.01439318745 | R14: =IF(E14=0,"",(F14/'Charges Summary'!F$4)/(E14/'Charges Summary'!E$4)-1) -> 0.009867524083 | S14: =IF(F14=0,"",(G14/'Charges Summary'!G$4)/(F14/'Charges Summary'!F$4)-1) -> -0.01051082851 | T14: =IF(G14=0,"",(H14/'Charges Summary'!H$4)/(G14/'Charges Summary'!G$4)-1) -> -0.00138284332
A15: ='DNSP Inputs General'!A50 -> Mercury Vapour 250 watt | C15: ='DNSP Inputs General'!E50 -> 90.19 | D15: =IF('DNSP Inputs General'!$B50='DNSP Inputs General'!$A$41,D$6,IF('DNSP Inputs General'!$B50='DNSP Inputs General'!$A$42,D$7,D$8))*'DNSP Inputs General'!$D50 -> 92.6509245 | E15: =IF('DNSP Inputs General'!$B50='DNSP Inputs General'!$A$41,E$6,IF('DNSP Inputs General'!$B50='DNSP Inputs General'!$A$42,E$7,E$8))*'DNSP Inputs General'!$D50 -> 96.30361624 | F15: =IF('DNSP Inputs General'!$B50='DNSP Inputs General'!$A$41,F$6,IF('DNSP Inputs General'!$B50='DNSP Inputs General'!$A$42,F$7,F$8))*'DNSP Inputs General'!$D50 -> 99.69754137 | G15: =IF('DNSP Inputs General'!$B50='DNSP Inputs General'!$A$41,G$6,IF('DNSP Inputs General'!$B50='DNSP Inputs General'!$A$42,G$7,G$8))*'DNSP Inputs General'!$D50 -> 101.1809616 | H15: =IF('DNSP Inputs General'!$B50='DNSP Inputs General'!$A$41,H$6,IF('DNSP Inputs General'!$B50='DNSP Inputs General'!$A$42,H$7,H$8))*'DNSP Inputs General'!$D50 -> 103.6706485 | J15: 0.02728600175 | K15: 0.03942423411 | L15: 0.03524192829 | M15: 0.0148792061 | N15: 0.02460627822 | P15: =IF(C15=0,"",(D15/'Charges Summary'!D$4)/C15-1) -> 0.002230245613 | Q15: =IF(D15=0,"",(E15/'Charges Summary'!E$4)/(D15/'Charges Summary'!D$4)-1) -> 0.01407242352 | R15: =IF(E15=0,"",(F15/'Charges Summary'!F$4)/(E15/'Charges Summary'!E$4)-1) -> 0.00999212516 | S15: =IF(F15=0,"",(G15/'Charges Summary'!G$4)/(F15/'Charges Summary'!F$4)-1) -> -0.009873945271 | T15: =IF(G15=0,"",(H15/'Charges Summary'!H$4)/(G15/'Charges Summary'!G$4)-1) -> -0.0003841188136
A16: ='DNSP Inputs General'!A51 -> Mercury Vapour 400 watt | C16: ='DNSP Inputs General'!E51 -> 101.47 | D16: =IF('DNSP Inputs General'!$B51='DNSP Inputs General'!$A$41,D$6,IF('DNSP Inputs General'!$B51='DNSP Inputs General'!$A$42,D$7,D$8))*'DNSP Inputs General'!$D51 -> 104.2322901 | E16: =IF('DNSP Inputs General'!$B51='DNSP Inputs General'!$A$41,E$6,IF('DNSP Inputs General'!$B51='DNSP Inputs General'!$A$42,E$7,E$8))*'DNSP Inputs General'!$D51 -> 108.3415683 | F16: =IF('DNSP Inputs General'!$B51='DNSP Inputs General'!$A$41,F$6,IF('DNSP Inputs General'!$B51='DNSP Inputs General'!$A$42,F$7,F$8))*'DNSP Inputs General'!$D51 -> 112.159734 | G16: =IF('DNSP Inputs General'!$B51='DNSP Inputs General'!$A$41,G$6,IF('DNSP Inputs General'!$B51='DNSP Inputs General'!$A$42,G$7,G$8))*'DNSP Inputs General'!$D51 -> 113.8285818 | H16: =IF('DNSP Inputs General'!$B51='DNSP Inputs General'!$A$41,H$6,IF('DNSP Inputs General'!$B51='DNSP Inputs General'!$A$42,H$7,H$8))*'DNSP Inputs General'!$D51 -> 116.6294796 | J16: 0.02722272652 | K16: 0.03942423411 | L16: 0.03524192829 | M16: 0.0148792061 | N16: 0.02460627822 | P16: =IF(C16=0,"",(D16/'Charges Summary'!D$4)/C16-1) -> 0.002168513682 | Q16: =IF(D16=0,"",(E16/'Charges Summary'!E$4)/(D16/'Charges Summary'!D$4)-1) -> 0.01407242352 | R16: =IF(E16=0,"",(F16/'Charges Summary'!F$4)/(E16/'Charges Summary'!E$4)-1) -> 0.00999212516 | S16: =IF(F16=0,"",(G16/'Charges Summary'!G$4)/(F16/'Charges Summary'!F$4)-1) -> -0.009873945271 | T16: =IF(G16=0,"",(H16/'Charges Summary'!H$4)/(G16/'Charges Summary'!G$4)-1) -> -0.0003841188136
A17: ='DNSP Inputs General'!A52 -> Sodium High Pressure 50 watt | C17: ='DNSP Inputs General'!E52 -> 112.91 | D17: =IF('DNSP Inputs General'!$B52='DNSP Inputs General'!$A$41,D$6,IF('DNSP Inputs General'!$B52='DNSP Inputs General'!$A$42,D$7,D$8))*'DNSP Inputs General'!$D52 -> 119.1610898 | E17: =IF('DNSP Inputs General'!$B52='DNSP Inputs General'!$A$41,E$6,IF('DNSP Inputs General'!$B52='DNSP Inputs General'!$A$42,E$7,E$8))*'DNSP Inputs General'!$D52 -> 123.8789142 | F17: =IF('DNSP Inputs General'!$B52='DNSP Inputs General'!$A$41,F$6,IF('DNSP Inputs General'!$B52='DNSP Inputs General'!$A$42,F$7,F$8))*'DNSP Inputs General'!$D52 -> 128.2600295 | G17: =IF('DNSP Inputs General'!$B52='DNSP Inputs General'!$A$41,G$6,IF('DNSP Inputs General'!$B52='DNSP Inputs General'!$A$42,G$7,G$8))*'DNSP Inputs General'!$D52 -> 130.169362 | H17: =IF('DNSP Inputs General'!$B52='DNSP Inputs General'!$A$41,H$6,IF('DNSP Inputs General'!$B52='DNSP Inputs General'!$A$42,H$7,H$8))*'DNSP Inputs General'!$D52 -> 133.3827036 | J17: 0.0553634739 | K17: 0.03959198712 | L17: 0.0353661099 | M17: 0.01488641922 | N17: 0.02468585181 | P17: =IF(C17=0,"",(D17/'Charges Summary'!D$4)/C17-1) -> 0.02962290137 | Q17: =IF(D17=0,"",(E17/'Charges Summary'!E$4)/(D17/'Charges Summary'!D$4)-1) -> 0.014236085 | R17: =IF(E17=0,"",(F17/'Charges Summary'!F$4)/(E17/'Charges Summary'!E$4)-1) -> 0.01011327795 | S17: =IF(F17=0,"",(G17/'Charges Summary'!G$4)/(F17/'Charges Summary'!F$4)-1) -> -0.00986690808 | T17: =IF(G17=0,"",(H17/'Charges Summary'!H$4)/(G17/'Charges Summary'!G$4)-1) -> -0.0003064860365
A18: ='DNSP Inputs General'!A53 -> Sodium Low Pressure 90 watt | C18: ='DNSP Inputs General'!E53 -> 97.03 | D18: =IF('DNSP Inputs General'!$B53='DNSP Inputs General'!$A$41,D$6,IF('DNSP Inputs General'!$B53='DNSP Inputs General'!$A$42,D$7,D$8))*'DNSP Inputs General'!$D53 -> 101.0486042 | E18: =IF('DNSP Inputs General'!$B53='DNSP Inputs General'!$A$41,E$6,IF('DNSP Inputs General'!$B53='DNSP Inputs General'!$A$42,E$7,E$8))*'DNSP Inputs General'!$D53 -> 105.0493192 | F18: =IF('DNSP Inputs General'!$B53='DNSP Inputs General'!$A$41,F$6,IF('DNSP Inputs General'!$B53='DNSP Inputs General'!$A$42,F$7,F$8))*'DNSP Inputs General'!$D53 -> 108.764505 | G18: =IF('DNSP Inputs General'!$B53='DNSP Inputs General'!$A$41,G$6,IF('DNSP Inputs General'!$B53='DNSP Inputs General'!$A$42,G$7,G$8))*'DNSP Inputs General'!$D53 -> 110.383619 | H18: =IF('DNSP Inputs General'!$B53='DNSP Inputs General'!$A$41,H$6,IF('DNSP Inputs General'!$B53='DNSP Inputs General'!$A$42,H$7,H$8))*'DNSP Inputs General'!$D53 -> 113.1085327 | J18: 0.0414161 | K18: 0.03959198712 | L18: 0.0353661099 | M18: 0.01488641922 | N18: 0.02468585181 | P18: =IF(C18=0,"",(D18/'Charges Summary'!D$4)/C18-1) -> 0.01601570732 | Q18: =IF(D18=0,"",(E18/'Charges Summary'!E$4)/(D18/'Charges Summary'!D$4)-1) -> 0.014236085 | R18: =IF(E18=0,"",(F18/'Charges Summary'!F$4)/(E18/'Charges Summary'!E$4)-1) -> 0.01011327795 | S18: =IF(F18=0,"",(G18/'Charges Summary'!G$4)/(F18/'Charges Summary'!F$4)-1) -> -0.00986690808 | T18: =IF(G18=0,"",(H18/'Charges Summary'!H$4)/(G18/'Charges Summary'!G$4)-1) -> -0.0003064860365
A19: ='DNSP Inputs General'!A54 -> Sodium High Pressure 100 watt | C19: ='DNSP Inputs General'!E54 -> 125.41 | D19: =IF('DNSP Inputs General'!$B54='DNSP Inputs General'!$A$41,D$6,IF('DNSP Inputs General'!$B54='DNSP Inputs General'!$A$42,D$7,D$8))*'DNSP Inputs General'!$D54 -> 130.6005545 | E19: =IF('DNSP Inputs General'!$B54='DNSP Inputs General'!$A$41,E$6,IF('DNSP Inputs General'!$B54='DNSP Inputs General'!$A$42,E$7,E$8))*'DNSP Inputs General'!$D54 -> 135.7712899 | F19: =IF('DNSP Inputs General'!$B54='DNSP Inputs General'!$A$41,F$6,IF('DNSP Inputs General'!$B54='DNSP Inputs General'!$A$42,F$7,F$8))*'DNSP Inputs General'!$D54 -> 140.5729923 | G19: =IF('DNSP Inputs General'!$B54='DNSP Inputs General'!$A$41,G$6,IF('DNSP Inputs General'!$B54='DNSP Inputs General'!$A$42,G$7,G$8))*'DNSP Inputs General'!$D54 -> 142.6656208 | H19: =IF('DNSP Inputs General'!$B54='DNSP Inputs General'!$A$41,H$6,IF('DNSP Inputs General'!$B54='DNSP Inputs General'!$A$42,H$7,H$8))*'DNSP Inputs General'!$D54 -> 146.1874432 | J19: 0.04138868083 | K19: 0.03959198712 | L19: 0.0353661099 | M19: 0.01488641922 | N19: 0.02468585181 | P19: =IF(C19=0,"",(D19/'Charges Summary'!D$4)/C19-1) -> 0.01598895691 | Q19: =IF(D19=0,"",(E19/'Charges Summary'!E$4)/(D19/'Charges Summary'!D$4)-1) -> 0.014236085 | R19: =IF(E19=0,"",(F19/'Charges Summary'!F$4)/(E19/'Charges Summary'!E$4)-1) -> 0.01011327795 | S19: =IF(F19=0,"",(G19/'Charges Summary'!G$4)/(F19/'Charges Summary'!F$4)-1) -> -0.00986690808 | T19: =IF(G19=0,"",(H19/'Charges Summary'!H$4)/(G19/'Charges Summary'!G$4)-1) -> -0.0003064860365
A20: ='DNSP Inputs General'!A55 -> Sodium High Pressure 400 watt | C20: ='DNSP Inputs General'!E55 -> 124.96 | D20: =IF('DNSP Inputs General'!$B55='DNSP Inputs General'!$A$41,D$6,IF('DNSP Inputs General'!$B55='DNSP Inputs General'!$A$42,D$7,D$8))*'DNSP Inputs General'!$D55 -> 128.360135 | E20: =IF('DNSP Inputs General'!$B55='DNSP Inputs General'!$A$41,E$6,IF('DNSP Inputs General'!$B55='DNSP Inputs General'!$A$42,E$7,E$8))*'DNSP Inputs General'!$D55 -> 133.420635 | F20: =IF('DNSP Inputs General'!$B55='DNSP Inputs General'!$A$41,F$6,IF('DNSP Inputs General'!$B55='DNSP Inputs General'!$A$42,F$7,F$8))*'DNSP Inputs General'!$D55 -> 138.1226354 | G20: =IF('DNSP Inputs General'!$B55='DNSP Inputs General'!$A$41,G$6,IF('DNSP Inputs General'!$B55='DNSP Inputs General'!$A$42,G$7,G$8))*'DNSP Inputs General'!$D55 -> 140.1777906 | H20: =IF('DNSP Inputs General'!$B55='DNSP Inputs General'!$A$41,H$6,IF('DNSP Inputs General'!$B55='DNSP Inputs General'!$A$42,H$7,H$8))*'DNSP Inputs General'!$D55 -> 143.6270443 | J20: 0.02720978699 | K20: 0.03942423411 | L20: 0.03524192829 | M20: 0.0148792061 | N20: 0.02460627822 | P20: =IF(C20=0,"",(D20/'Charges Summary'!D$4)/C20-1) -> 0.002155889742 | Q20: =IF(D20=0,"",(E20/'Charges Summary'!E$4)/(D20/'Charges Summary'!D$4)-1) -> 0.01407242352 | R20: =IF(E20=0,"",(F20/'Charges Summary'!F$4)/(E20/'Charges Summary'!E$4)-1) -> 0.00999212516 | S20: =IF(F20=0,"",(G20/'Charges Summary'!G$4)/(F20/'Charges Summary'!F$4)-1) -> -0.009873945271 | T20: =IF(G20=0,"",(H20/'Charges Summary'!H$4)/(G20/'Charges Summary'!G$4)-1) -> -0.0003841188136
A21: ='DNSP Inputs General'!A56 -> Metal Halide 70 watt | C21: ='DNSP Inputs General'!E56 -> 125.48 | D21: =IF('DNSP Inputs General'!$B56='DNSP Inputs General'!$A$41,D$6,IF('DNSP Inputs General'!$B56='DNSP Inputs General'!$A$42,D$7,D$8))*'DNSP Inputs General'!$D56 -> 123.8929928 | E21: =IF('DNSP Inputs General'!$B56='DNSP Inputs General'!$A$41,E$6,IF('DNSP Inputs General'!$B56='DNSP Inputs General'!$A$42,E$7,E$8))*'DNSP Inputs General'!$D56 -> 128.8181131 | F21: =IF('DNSP Inputs General'!$B56='DNSP Inputs General'!$A$41,F$6,IF('DNSP Inputs General'!$B56='DNSP Inputs General'!$A$42,F$7,F$8))*'DNSP Inputs General'!$D56 -> 133.3414597 | G21: =IF('DNSP Inputs General'!$B56='DNSP Inputs General'!$A$41,G$6,IF('DNSP Inputs General'!$B56='DNSP Inputs General'!$A$42,G$7,G$8))*'DNSP Inputs General'!$D56 -> 135.2384287 | H21: =IF('DNSP Inputs General'!$B56='DNSP Inputs General'!$A$41,H$6,IF('DNSP Inputs General'!$B56='DNSP Inputs General'!$A$42,H$7,H$8))*'DNSP Inputs General'!$D56 -> 138.4277005 | J21: -0.01264749086 | K21: 0.03975301714 | L21: 0.03511421218 | M21: 0.01422640078 | N21: 0.0235825856 | P21: =IF(C21=0,"",(D21/'Charges Summary'!D$4)/C21-1) -> -0.03672925938 | Q21: =IF(D21=0,"",(E21/'Charges Summary'!E$4)/(D21/'Charges Summary'!D$4)-1) -> 0.01439318745 | R21: =IF(E21=0,"",(F21/'Charges Summary'!F$4)/(E21/'Charges Summary'!E$4)-1) -> 0.009867524083 | S21: =IF(F21=0,"",(G21/'Charges Summary'!G$4)/(F21/'Charges Summary'!F$4)-1) -> -0.01051082851 | T21: =IF(G21=0,"",(H21/'Charges Summary'!H$4)/(G21/'Charges Summary'!G$4)-1) -> -0.00138284332
A22: ='DNSP Inputs General'!A57 -> Metal Halide 150 watt | C22: ='DNSP Inputs General'!E57 -> 203.22 | D22: =IF('DNSP Inputs General'!$B57='DNSP Inputs General'!$A$41,D$6,IF('DNSP Inputs General'!$B57='DNSP Inputs General'!$A$42,D$7,D$8))*'DNSP Inputs General'!$D57 -> 211.6300956 | E22: =IF('DNSP Inputs General'!$B57='DNSP Inputs General'!$A$41,E$6,IF('DNSP Inputs General'!$B57='DNSP Inputs General'!$A$42,E$7,E$8))*'DNSP Inputs General'!$D57 -> 220.0089516 | F22: =IF('DNSP Inputs General'!$B57='DNSP Inputs General'!$A$41,F$6,IF('DNSP Inputs General'!$B57='DNSP Inputs General'!$A$42,F$7,F$8))*'DNSP Inputs General'!$D57 -> 227.7898123 | G22: =IF('DNSP Inputs General'!$B57='DNSP Inputs General'!$A$41,G$6,IF('DNSP Inputs General'!$B57='DNSP Inputs General'!$A$42,G$7,G$8))*'DNSP Inputs General'!$D57 -> 231.180787 | H22: =IF('DNSP Inputs General'!$B57='DNSP Inputs General'!$A$41,H$6,IF('DNSP Inputs General'!$B57='DNSP Inputs General'!$A$42,H$7,H$8))*'DNSP Inputs General'!$D57 -> 236.8876816 | J22: 0.04138419227 | K22: 0.03959198712 | L22: 0.0353661099 | M22: 0.01488641922 | N22: 0.02468585181 | P22: =IF(C22=0,"",(D22/'Charges Summary'!D$4)/C22-1) -> 0.01598457783 | Q22: =IF(D22=0,"",(E22/'Charges Summary'!E$4)/(D22/'Charges Summary'!D$4)-1) -> 0.014236085 | R22: =IF(E22=0,"",(F22/'Charges Summary'!F$4)/(E22/'Charges Summary'!E$4)-1) -> 0.01011327795 | S22: =IF(F22=0,"",(G22/'Charges Summary'!G$4)/(F22/'Charges Summary'!F$4)-1) -> -0.00986690808 | T22: =IF(G22=0,"",(H22/'Charges Summary'!H$4)/(G22/'Charges Summary'!G$4)-1) -> -0.0003064860365
A23: ='DNSP Inputs General'!A58 -> Metal Halide 250 watt | C23: ='DNSP Inputs General'!E58 -> 202 | D23: =IF('DNSP Inputs General'!$B58='DNSP Inputs General'!$A$41,D$6,IF('DNSP Inputs General'!$B58='DNSP Inputs General'!$A$42,D$7,D$8))*'DNSP Inputs General'!$D58 -> 207.4994663 | E23: =IF('DNSP Inputs General'!$B58='DNSP Inputs General'!$A$41,E$6,IF('DNSP Inputs General'!$B58='DNSP Inputs General'!$A$42,E$7,E$8))*'DNSP Inputs General'!$D58 -> 215.6799739 | F23: =IF('DNSP Inputs General'!$B58='DNSP Inputs General'!$A$41,F$6,IF('DNSP Inputs General'!$B58='DNSP Inputs General'!$A$42,F$7,F$8))*'DNSP Inputs General'!$D58 -> 223.280952 | G23: =IF('DNSP Inputs General'!$B58='DNSP Inputs General'!$A$41,G$6,IF('DNSP Inputs General'!$B58='DNSP Inputs General'!$A$42,G$7,G$8))*'DNSP Inputs General'!$D58 -> 226.6031953 | H23: =IF('DNSP Inputs General'!$B58='DNSP Inputs General'!$A$41,H$6,IF('DNSP Inputs General'!$B58='DNSP Inputs General'!$A$42,H$7,H$8))*'DNSP Inputs General'!$D58 -> 232.1790566 | J23: 0.02722508081 | K23: 0.03942423411 | L23: 0.03524192829 | M23: 0.0148792061 | N23: 0.02460627822 | P23: =IF(C23=0,"",(D23/'Charges Summary'!D$4)/C23-1) -> 0.002170810548 | Q23: =IF(D23=0,"",(E23/'Charges Summary'!E$4)/(D23/'Charges Summary'!D$4)-1) -> 0.01407242352 | R23: =IF(E23=0,"",(F23/'Charges Summary'!F$4)/(E23/'Charges Summary'!E$4)-1) -> 0.00999212516 | S23: =IF(F23=0,"",(G23/'Charges Summary'!G$4)/(F23/'Charges Summary'!F$4)-1) -> -0.009873945271 | T23: =IF(G23=0,"",(H23/'Charges Summary'!H$4)/(G23/'Charges Summary'!G$4)-1) -> -0.0003841188136
A24: ='DNSP Inputs General'!A59 -> Incandescent 100 watt | C24: ='DNSP Inputs General'!E59 -> 76.17 | D24: =IF('DNSP Inputs General'!$B59='DNSP Inputs General'!$A$41,D$6,IF('DNSP Inputs General'!$B59='DNSP Inputs General'!$A$42,D$7,D$8))*'DNSP Inputs General'!$D59 -> 75.20352873 | E24: =IF('DNSP Inputs General'!$B59='DNSP Inputs General'!$A$41,E$6,IF('DNSP Inputs General'!$B59='DNSP Inputs General'!$A$42,E$7,E$8))*'DNSP Inputs General'!$D59 -> 78.1930959 | F24: =IF('DNSP Inputs General'!$B59='DNSP Inputs General'!$A$41,F$6,IF('DNSP Inputs General'!$B59='DNSP Inputs General'!$A$42,F$7,F$8))*'DNSP Inputs General'!$D59 -> 80.93878486 | G24: =IF('DNSP Inputs General'!$B59='DNSP Inputs General'!$A$41,G$6,IF('DNSP Inputs General'!$B59='DNSP Inputs General'!$A$42,G$7,G$8))*'DNSP Inputs General'!$D59 -> 82.09025245 | H24: =IF('DNSP Inputs General'!$B59='DNSP Inputs General'!$A$41,H$6,IF('DNSP Inputs General'!$B59='DNSP Inputs General'!$A$42,H$7,H$8))*'DNSP Inputs General'!$D59 -> 84.02615286 | J24: -0.01268834539 | K24: 0.03975301714 | L24: 0.03511421218 | M24: 0.01422640078 | N24: 0.0235825856 | P24: =IF(C24=0,"",(D24/'Charges Summary'!D$4)/C24-1) -> -0.03676911745 | Q24: =IF(D24=0,"",(E24/'Charges Summary'!E$4)/(D24/'Charges Summary'!D$4)-1) -> 0.01439318745 | R24: =IF(E24=0,"",(F24/'Charges Summary'!F$4)/(E24/'Charges Summary'!E$4)-1) -> 0.009867524083 | S24: =IF(F24=0,"",(G24/'Charges Summary'!G$4)/(F24/'Charges Summary'!F$4)-1) -> -0.01051082851 | T24: =IF(G24=0,"",(H24/'Charges Summary'!H$4)/(G24/'Charges Summary'!G$4)-1) -> -0.00138284332
A25: ='DNSP Inputs General'!A60 -> Incandescent 150 watt | C25: ='DNSP Inputs General'!E60 -> 95.21 | D25: =IF('DNSP Inputs General'!$B60='DNSP Inputs General'!$A$41,D$6,IF('DNSP Inputs General'!$B60='DNSP Inputs General'!$A$42,D$7,D$8))*'DNSP Inputs General'!$D60 -> 94.00441091 | E25: =IF('DNSP Inputs General'!$B60='DNSP Inputs General'!$A$41,E$6,IF('DNSP Inputs General'!$B60='DNSP Inputs General'!$A$42,E$7,E$8))*'DNSP Inputs General'!$D60 -> 97.74136987 | F25: =IF('DNSP Inputs General'!$B60='DNSP Inputs General'!$A$41,F$6,IF('DNSP Inputs General'!$B60='DNSP Inputs General'!$A$42,F$7,F$8))*'DNSP Inputs General'!$D60 -> 101.1734811 | G25: =IF('DNSP Inputs General'!$B60='DNSP Inputs General'!$A$41,G$6,IF('DNSP Inputs General'!$B60='DNSP Inputs General'!$A$42,G$7,G$8))*'DNSP Inputs General'!$D60 -> 102.6128156 | H25: =IF('DNSP Inputs General'!$B60='DNSP Inputs General'!$A$41,H$6,IF('DNSP Inputs General'!$B60='DNSP Inputs General'!$A$42,H$7,H$8))*'DNSP Inputs General'!$D60 -> 105.0326911 | J25: -0.01266242081 | K25: 0.03975301714 | L25: 0.03511421218 | M25: 0.01422640078 | N25: 0.0235825856 | P25: =IF(C25=0,"",(D25/'Charges Summary'!D$4)/C25-1) -> -0.03674382518 | Q25: =IF(D25=0,"",(E25/'Charges Summary'!E$4)/(D25/'Charges Summary'!D$4)-1) -> 0.01439318745 | R25: =IF(E25=0,"",(F25/'Charges Summary'!F$4)/(E25/'Charges Summary'!E$4)-1) -> 0.009867524083 | S25: =IF(F25=0,"",(G25/'Charges Summary'!G$4)/(F25/'Charges Summary'!F$4)-1) -> -0.01051082851 | T25: =IF(G25=0,"",(H25/'Charges Summary'!H$4)/(G25/'Charges Summary'!G$4)-1) -> -0.00138284332
A26: ='DNSP Inputs General'!A61 -> Sodium High Pressure 250 watt (24 hrs) | C26: ='DNSP Inputs General'!E61 -> 144.62 | D26: =IF('DNSP Inputs General'!$B61='DNSP Inputs General'!$A$41,D$6,IF('DNSP Inputs General'!$B61='DNSP Inputs General'!$A$42,D$7,D$8))*'DNSP Inputs General'!$D61 -> 150.5577523 | E26: =IF('DNSP Inputs General'!$B61='DNSP Inputs General'!$A$41,E$6,IF('DNSP Inputs General'!$B61='DNSP Inputs General'!$A$42,E$7,E$8))*'DNSP Inputs General'!$D61 -> 156.4933764 | F26: =IF('DNSP Inputs General'!$B61='DNSP Inputs General'!$A$41,F$6,IF('DNSP Inputs General'!$B61='DNSP Inputs General'!$A$42,F$7,F$8))*'DNSP Inputs General'!$D61 -> 162.0085047 | G26: =IF('DNSP Inputs General'!$B61='DNSP Inputs General'!$A$41,G$6,IF('DNSP Inputs General'!$B61='DNSP Inputs General'!$A$42,G$7,G$8))*'DNSP Inputs General'!$D61 -> 164.4190627 | H26: =IF('DNSP Inputs General'!$B61='DNSP Inputs General'!$A$41,H$6,IF('DNSP Inputs General'!$B61='DNSP Inputs General'!$A$42,H$7,H$8))*'DNSP Inputs General'!$D61 -> 168.4648039 | J26: 0.04105761519 | K26: 0.03942423411 | L26: 0.03524192829 | M26: 0.0148792061 | N26: 0.02460627822 | P26: =IF(C26=0,"",(D26/'Charges Summary'!D$4)/C26-1) -> 0.01566596604 | Q26: =IF(D26=0,"",(E26/'Charges Summary'!E$4)/(D26/'Charges Summary'!D$4)-1) -> 0.01407242352 | R26: =IF(E26=0,"",(F26/'Charges Summary'!F$4)/(E26/'Charges Summary'!E$4)-1) -> 0.00999212516 | S26: =IF(F26=0,"",(G26/'Charges Summary'!G$4)/(F26/'Charges Summary'!F$4)-1) -> -0.009873945271 | T26: =IF(G26=0,"",(H26/'Charges Summary'!H$4)/(G26/'Charges Summary'!G$4)-1) -> -0.0003841188136
A27: ='DNSP Inputs General'!A62 -> Metal Halide 100 watt | C27: ='DNSP Inputs General'!E62 -> 200.52 | D27: =IF('DNSP Inputs General'!$B62='DNSP Inputs General'!$A$41,D$6,IF('DNSP Inputs General'!$B62='DNSP Inputs General'!$A$42,D$7,D$8))*'DNSP Inputs General'!$D62 -> 211.6300956 | E27: =IF('DNSP Inputs General'!$B62='DNSP Inputs General'!$A$41,E$6,IF('DNSP Inputs General'!$B62='DNSP Inputs General'!$A$42,E$7,E$8))*'DNSP Inputs General'!$D62 -> 220.0089516 | F27: =IF('DNSP Inputs General'!$B62='DNSP Inputs General'!$A$41,F$6,IF('DNSP Inputs General'!$B62='DNSP Inputs General'!$A$42,F$7,F$8))*'DNSP Inputs General'!$D62 -> 227.7898123 | G27: =IF('DNSP Inputs General'!$B62='DNSP Inputs General'!$A$41,G$6,IF('DNSP Inputs General'!$B62='DNSP Inputs General'!$A$42,G$7,G$8))*'DNSP Inputs General'!$D62 -> 231.180787 | H27: =IF('DNSP Inputs General'!$B62='DNSP Inputs General'!$A$41,H$6,IF('DNSP Inputs General'!$B62='DNSP Inputs General'!$A$42,H$7,H$8))*'DNSP Inputs General'!$D62 -> 236.8876816 | J27: 0.05540642107 | K27: 0.03959198712 | L27: 0.0353661099 | M27: 0.01488641922 | N27: 0.02468585181 | P27: =IF(C27=0,"",(D27/'Charges Summary'!D$4)/C27-1) -> 0.02966480105 | Q27: =IF(D27=0,"",(E27/'Charges Summary'!E$4)/(D27/'Charges Summary'!D$4)-1) -> 0.014236085 | R27: =IF(E27=0,"",(F27/'Charges Summary'!F$4)/(E27/'Charges Summary'!E$4)-1) -> 0.01011327795 | S27: =IF(F27=0,"",(G27/'Charges Summary'!G$4)/(F27/'Charges Summary'!F$4)-1) -> -0.00986690808 | T27: =IF(G27=0,"",(H27/'Charges Summary'!H$4)/(G27/'Charges Summary'!G$4)-1) -> -0.0003064860365
A30: ='DNSP Inputs General'!A$67 -> Energy Efficient Lights
A31: ='DNSP Inputs General'!A68 -> T5 2X14W | C31: ='DNSP Inputs General'!E68 -> 30.01 | D31: ='Charges Summary'!D$89 -> 32.02757431 | E31: ='Charges Summary'!E$89 -> 33.94288231 | F31: ='Charges Summary'!F$89 -> 35.72128383 | G31: ='Charges Summary'!G$89 -> 36.67007205 | H31: ='Charges Summary'!H$89 -> 38.0080582 | J31: =IF(C31=0,"",D31/C31-1) -> 0.06723006689 | K31: =IF(D31=0,"",E31/D31-1) -> 0.05980184411 | L31: =IF(E31=0,"",F31/E31-1) -> 0.05239394528 | M31: =IF(F31=0,"",G31/F31-1) -> 0.02656086552 | N31: =IF(G31=0,"",H31/G31-1) -> 0.03648714283 | P31: =IF(C31=0,"",(D31/'Charges Summary'!D$4)/C31-1) -> 0.04120006526 | Q31: =IF(D31=0,"",(E31/'Charges Summary'!E$4)/(D31/'Charges Summary'!D$4)-1) -> 0.03395301865 | R31: =IF(E31=0,"",(F31/'Charges Summary'!F$4)/(E31/'Charges Summary'!E$4)-1) -> 0.02672580027 | S31: =IF(F31=0,"",(G31/'Charges Summary'!G$4)/(F31/'Charges Summary'!F$4)-1) -> 0.001522795632 | T31: =IF(G31=0,"",(H31/'Charges Summary'!H$4)/(G31/'Charges Summary'!G$4)-1) -> 0.01120696862
A32: ='DNSP Inputs General'!A69 -> T5 (2x24W) | D32: =D$31*'DNSP Inputs General'!$D69 -> 36.07092256 | E32: =E$31*'DNSP Inputs General'!$D69 -> 38.22803025 | F32: =F$31*'DNSP Inputs General'!$D69 -> 40.23094757 | G32: =G$31*'DNSP Inputs General'!$D69 -> 41.29951636 | H32: =H$31*'DNSP Inputs General'!$D69 -> 42.80641771 | J32: =IF(C32=0,"",D32/C32-1) ->  | K32: =IF(D32=0,"",E32/D32-1) -> 0.05980184411 | L32: =IF(E32=0,"",F32/E32-1) -> 0.05239394528 | M32: =IF(F32=0,"",G32/F32-1) -> 0.02656086552 | N32: =IF(G32=0,"",H32/G32-1) -> 0.03648714283 | P32: =IF(C32=0,"",(D32/'Charges Summary'!D$4)/C32-1) ->  | Q32: =IF(D32=0,"",(E32/'Charges Summary'!E$4)/(D32/'Charges Summary'!D$4)-1) -> 0.03395301865 | R32: =IF(E32=0,"",(F32/'Charges Summary'!F$4)/(E32/'Charges Summary'!E$4)-1) -> 0.02672580027 | S32: =IF(F32=0,"",(G32/'Charges Summary'!G$4)/(F32/'Charges Summary'!F$4)-1) -> 0.001522795632 | T32: =IF(G32=0,"",(H32/'Charges Summary'!H$4)/(G32/'Charges Summary'!G$4)-1) -> 0.01120696862
A33: ='DNSP Inputs General'!A70 -> LED 18W | D33: ='Charges Summary'!D$107 -> 18.69312275 | E33: ='Charges Summary'!E$107 -> 20.0953859 | F33: ='Charges Summary'!F$107 -> 21.45373128 | G33: ='Charges Summary'!G$107 -> 22.47837489 | H33: ='Charges Summary'!H$107 -> 23.61444907 | K33: 0.07501492231 | L33: 0.06759488914 | M33: 0.04776062453 | N33: 0.05054076136 | P33: =IF(C33=0,"",(D33/'Charges Summary'!D$4)/C33-1) ->  | Q33: =IF(D33=0,"",(E33/'Charges Summary'!E$4)/(D33/'Charges Summary'!D$4)-1) -> 0.04879504616 | R33: =IF(E33=0,"",(F33/'Charges Summary'!F$4)/(E33/'Charges Summary'!E$4)-1) -> 0.0415559894 | S33: =IF(F33=0,"",(G33/'Charges Summary'!G$4)/(F33/'Charges Summary'!F$4)-1) -> 0.02220548735 | T33: =IF(G33=0,"",(H33/'Charges Summary'!H$4)/(G33/'Charges Summary'!G$4)-1) -> 0.02491781596
A34: ='DNSP Inputs General'!A71 -> Compact Fluoro 32W | D34: =D$31*'DNSP Inputs General'!$D71 -> 27.6249638 | E34: =E$31*'DNSP Inputs General'!$D71 -> 29.27698758 | F34: =F$31*'DNSP Inputs General'!$D71 -> 30.81092446 | G34: =G$31*'DNSP Inputs General'!$D71 -> 31.62928928 | H34: =H$31*'DNSP Inputs General'!$D71 -> 32.78335168 | K34: 0.05980184411 | L34: 0.05239394528 | M34: 0.02656086552 | N34: 0.03648714283 | P34: =IF(C34=0,"",(D34/'Charges Summary'!D$4)/C34-1) ->  | Q34: =IF(D34=0,"",(E34/'Charges Summary'!E$4)/(D34/'Charges Summary'!D$4)-1) -> 0.03395301865 | R34: =IF(E34=0,"",(F34/'Charges Summary'!F$4)/(E34/'Charges Summary'!E$4)-1) -> 0.02672580027 | S34: =IF(F34=0,"",(G34/'Charges Summary'!G$4)/(F34/'Charges Summary'!F$4)-1) -> 0.001522795632 | T34: =IF(G34=0,"",(H34/'Charges Summary'!H$4)/(G34/'Charges Summary'!G$4)-1) -> 0.01120696862
A35: ='DNSP Inputs General'!A72 -> Compact Fluoro 42W | D35: =D$31*'DNSP Inputs General'!$D72 -> 31.15506232 | E35: =E$31*'DNSP Inputs General'!$D72 -> 33.0181925 | F35: =F$31*'DNSP Inputs General'!$D72 -> 34.74814587 | G35: =G$31*'DNSP Inputs General'!$D72 -> 35.6710867 | H35: =H$31*'DNSP Inputs General'!$D72 -> 36.97262273 | K35: 0.05980184411 | L35: 0.05239394528 | M35: 0.02656086552 | N35: 0.03648714283 | P35: =IF(C35=0,"",(D35/'Charges Summary'!D$4)/C35-1) ->  | Q35: =IF(D35=0,"",(E35/'Charges Summary'!E$4)/(D35/'Charges Summary'!D$4)-1) -> 0.03395301865 | R35: =IF(E35=0,"",(F35/'Charges Summary'!F$4)/(E35/'Charges Summary'!E$4)-1) -> 0.02672580027 | S35: =IF(F35=0,"",(G35/'Charges Summary'!G$4)/(F35/'Charges Summary'!F$4)-1) -> 0.001522795632 | T35: =IF(G35=0,"",(H35/'Charges Summary'!H$4)/(G35/'Charges Summary'!G$4)-1) -> 0.01120696862

Sheet PL Tariff Components
A1: ='DNSP Inputs O & M'!$A$3 -> Jemena | E1: Global Check | F1: =IF(SUM('Total RAB'!F1,'Depn & WACC Post 2004'!F1,'Cashflow Summary'!F1,W1)<1,"Ok","Error") -> Ok | V1: Check | W1: =SUM(V6:Z35) -> 9.743317264e-13
A3: Public Lighting Tariffs | C3: Total Tariff | J3: Operations, maintenance and repair Tariff | P3: Replacement Tariff | V3: Check
C4: Actual
A5: ='DNSP Inputs General'!A$40 -> Existing Lights | C5: ='DNSP Inputs General'!J$2 -> 2015 | D5: ='DNSP Inputs General'!K$2 -> 2016 | E5: ='DNSP Inputs General'!L$2 -> 2017 | F5: ='DNSP Inputs General'!M$2 -> 2018 | G5: ='DNSP Inputs General'!N$2 -> 2019 | H5: ='DNSP Inputs General'!O$2 -> 2020 | J5: =D5 -> 2016 | K5: =E5 -> 2017 | L5: 2018 | M5: 2019 | N5: 2020 | P5: =J5 -> 2016 | Q5: =K5 -> 2017 | R5: 2018 | S5: 2019 | T5: 2020 | V5: =P5 -> 2016 | W5: =Q5 -> 2017 | X5: 2018 | Y5: 2019 | Z5: 2020
A6: ='DNSP Inputs General'!A41 -> Mercury Vapour 80 watt | C6: ='DNSP Inputs General'!E41 -> 48.83 | D6: ='Charges Summary'!D$31 -> 48.20739021 | E6: ='Charges Summary'!E$31 -> 50.12377942 | F6: ='Charges Summary'!F$31 -> 51.88383645 | G6: ='Charges Summary'!G$31 -> 52.6219567 | H6: ='Charges Summary'!H$31 -> 53.8629185 | J6: =SUM('Charges Summary'!D25,'Charges Summary'!D8) -> 30.82184593 | K6: =SUM('Charges Summary'!E25,'Charges Summary'!E8) -> 32.18761089 | L6: =SUM('Charges Summary'!F25,'Charges Summary'!F8) -> 33.37060472 | M6: =SUM('Charges Summary'!G25,'Charges Summary'!G8) -> 33.55165154 | N6: =SUM('Charges Summary'!H25,'Charges Summary'!H8) -> 34.27253131 | P6: =SUM('Charges Summary'!D27,'Charges Summary'!D11) -> 17.38554428 | Q6: =SUM('Charges Summary'!E27,'Charges Summary'!E11) -> 17.93616853 | R6: =SUM('Charges Summary'!F27,'Charges Summary'!F11) -> 18.51323173 | S6: =SUM('Charges Summary'!G27,'Charges Summary'!G11) -> 19.07030516 | T6: =SUM('Charges Summary'!H27,'Charges Summary'!H11) -> 19.59038718 | V6: =ABS(D6-J6-P6) -> 3.552713679e-15 | W6: =ABS(E6-K6-Q6) -> 0 | X6: 0 | Y6: 3.552713679e-15 | Z6: 7.105427358e-15
A7: ='DNSP Inputs General'!A42 -> Sodium High Pressure 150 watt | C7: ='DNSP Inputs General'!E42 -> 91.54 | D7: ='Charges Summary'!D$55 -> 95.32887187 | E7: ='Charges Summary'!E$55 -> 99.10313134 | F7: ='Charges Summary'!F$55 -> 102.6080236 | G7: ='Charges Summary'!G$55 -> 104.1354896 | H7: ='Charges Summary'!H$55 -> 106.7061629 | J7: =SUM('Charges Summary'!D49,'Charges Summary'!D8) -> 75.75917427 | K7: =SUM('Charges Summary'!E49,'Charges Summary'!E8) -> 78.94630159 | L7: =SUM('Charges Summary'!F49,'Charges Summary'!F8) -> 81.83418357 | M7: =SUM('Charges Summary'!G49,'Charges Summary'!G8) -> 82.76640972 | N7: =SUM('Charges Summary'!H49,'Charges Summary'!H8) -> 84.78252335 | P7: =SUM('Charges Summary'!D51,'Charges Summary'!D11) -> 19.5696976 | Q7: =SUM('Charges Summary'!E51,'Charges Summary'!E11) -> 20.15682975 | R7: =SUM('Charges Summary'!F51,'Charges Summary'!F11) -> 20.77384001 | S7: =SUM('Charges Summary'!G51,'Charges Summary'!G11) -> 21.36907991 | T7: =SUM('Charges Summary'!H51,'Charges Summary'!H11) -> 21.92363954 | V7: =ABS(D7-J7-P7) -> 7.105427358e-15 | W7: 3.552713679e-15 | X7: 1.421085472e-14 | Y7: 7.105427358e-15 | Z7: 3.552713679e-15
A8: ='DNSP Inputs General'!A43 -> Sodium High Pressure 250 watt | C8: ='DNSP Inputs General'!E43 -> 93.95 | D8: ='Charges Summary'!D$71 -> 96.51137969 | E8: ='Charges Summary'!E$71 -> 100.3162669 | F8: ='Charges Summary'!F$71 -> 103.8516056 | G8: ='Charges Summary'!G$71 -> 105.396835 | H8: ='Charges Summary'!H$71 -> 107.9902589 | J8: =SUM('Charges Summary'!D65,'Charges Summary'!D8) -> 76.03182377 | K8: =SUM('Charges Summary'!E65,'Charges Summary'!E8) -> 79.23437066 | L8: =SUM('Charges Summary'!F65,'Charges Summary'!F8) -> 82.13605824 | M8: =SUM('Charges Summary'!G65,'Charges Summary'!G8) -> 83.07014868 | N8: =SUM('Charges Summary'!H65,'Charges Summary'!H8) -> 85.09465046 | P8: =SUM('Charges Summary'!D67,'Charges Summary'!D11) -> 20.47955591 | Q8: =SUM('Charges Summary'!E67,'Charges Summary'!E11) -> 21.08189625 | R8: =SUM('Charges Summary'!F67,'Charges Summary'!F11) -> 21.71554735 | S8: =SUM('Charges Summary'!G67,'Charges Summary'!G11) -> 22.32668636 | T8: =SUM('Charges Summary'!H67,'Charges Summary'!H11) -> 22.89560842 | V8: 3.552713679e-15 | W8: 7.105427358e-15 | X8: 0 | Y8: 7.105427358e-15 | Z8: 7.105427358e-15
A9: ='DNSP Inputs General'!A44 -> 55W Ind | C9: ='DNSP Inputs General'!E44 -> 61.03 | D9: =IF('DNSP Inputs General'!$B44='DNSP Inputs General'!$A$41,D$6,IF('DNSP Inputs General'!$B44='DNSP Inputs General'!$A$42,D$7,D$8))*'DNSP Inputs General'!$D44 -> 60.25923777 | E9: =IF('DNSP Inputs General'!$B44='DNSP Inputs General'!$A$41,E$6,IF('DNSP Inputs General'!$B44='DNSP Inputs General'!$A$42,E$7,E$8))*'DNSP Inputs General'!$D44 -> 62.65472428 | F9: =IF('DNSP Inputs General'!$B44='DNSP Inputs General'!$A$41,F$6,IF('DNSP Inputs General'!$B44='DNSP Inputs General'!$A$42,F$7,F$8))*'DNSP Inputs General'!$D44 -> 64.85479556 | G9: =IF('DNSP Inputs General'!$B44='DNSP Inputs General'!$A$41,G$6,IF('DNSP Inputs General'!$B44='DNSP Inputs General'!$A$42,G$7,G$8))*'DNSP Inputs General'!$D44 -> 65.77744587 | H9: =IF('DNSP Inputs General'!$B44='DNSP Inputs General'!$A$41,H$6,IF('DNSP Inputs General'!$B44='DNSP Inputs General'!$A$42,H$7,H$8))*'DNSP Inputs General'!$D44 -> 67.32864812 | J9: =IF('DNSP Inputs General'!$B44='DNSP Inputs General'!$A$41,J$6,IF('DNSP Inputs General'!$B44='DNSP Inputs General'!$A$42,J$7,J$8))*'DNSP Inputs General'!$D44 -> 38.52730741 | K9: =IF('DNSP Inputs General'!$B44='DNSP Inputs General'!$A$41,K$6,IF('DNSP Inputs General'!$B44='DNSP Inputs General'!$A$42,K$7,K$8))*'DNSP Inputs General'!$D44 -> 40.23451361 | L9: =IF('DNSP Inputs General'!$B44='DNSP Inputs General'!$A$41,L$6,IF('DNSP Inputs General'!$B44='DNSP Inputs General'!$A$42,L$7,L$8))*'DNSP Inputs General'!$D44 -> 41.7132559 | M9: =IF('DNSP Inputs General'!$B44='DNSP Inputs General'!$A$41,M$6,IF('DNSP Inputs General'!$B44='DNSP Inputs General'!$A$42,M$7,M$8))*'DNSP Inputs General'!$D44 -> 41.93956443 | N9: =IF('DNSP Inputs General'!$B44='DNSP Inputs General'!$A$41,N$6,IF('DNSP Inputs General'!$B44='DNSP Inputs General'!$A$42,N$7,N$8))*'DNSP Inputs General'!$D44 -> 42.84066414 | P9: =IF('DNSP Inputs General'!$B44='DNSP Inputs General'!$A$41,P$6,IF('DNSP Inputs General'!$B44='DNSP Inputs General'!$A$42,P$7,P$8))*'DNSP Inputs General'!$D44 -> 21.73193035 | Q9: =IF('DNSP Inputs General'!$B44='DNSP Inputs General'!$A$41,Q$6,IF('DNSP Inputs General'!$B44='DNSP Inputs General'!$A$42,Q$7,Q$8))*'DNSP Inputs General'!$D44 -> 22.42021066 | R9: =IF('DNSP Inputs General'!$B44='DNSP Inputs General'!$A$41,R$6,IF('DNSP Inputs General'!$B44='DNSP Inputs General'!$A$42,R$7,R$8))*'DNSP Inputs General'!$D44 -> 23.14153966 | S9: =IF('DNSP Inputs General'!$B44='DNSP Inputs General'!$A$41,S$6,IF('DNSP Inputs General'!$B44='DNSP Inputs General'!$A$42,S$7,S$8))*'DNSP Inputs General'!$D44 -> 23.83788145 | T9: =IF('DNSP Inputs General'!$B44='DNSP Inputs General'!$A$41,T$6,IF('DNSP Inputs General'!$B44='DNSP Inputs General'!$A$42,T$7,T$8))*'DNSP Inputs General'!$D44 -> 24.48798398 | V9: 3.552713679e-15 | W9: 7.105427358e-15 | X9: 3.552713679e-15 | Y9: 3.552713679e-15 | Z9: 0
A10: ='DNSP Inputs General'!A45 -> Fluorescent 20 watt | C10: ='DNSP Inputs General'!E45 -> 61.03 | D10: =IF('DNSP Inputs General'!$B45='DNSP Inputs General'!$A$41,D$6,IF('DNSP Inputs General'!$B45='DNSP Inputs General'!$A$42,D$7,D$8))*'DNSP Inputs General'!$D45 -> 60.25923777 | E10: =IF('DNSP Inputs General'!$B45='DNSP Inputs General'!$A$41,E$6,IF('DNSP Inputs General'!$B45='DNSP Inputs General'!$A$42,E$7,E$8))*'DNSP Inputs General'!$D45 -> 62.65472428 | F10: =IF('DNSP Inputs General'!$B45='DNSP Inputs General'!$A$41,F$6,IF('DNSP Inputs General'!$B45='DNSP Inputs General'!$A$42,F$7,F$8))*'DNSP Inputs General'!$D45 -> 64.85479556 | G10: =IF('DNSP Inputs General'!$B45='DNSP Inputs General'!$A$41,G$6,IF('DNSP Inputs General'!$B45='DNSP Inputs General'!$A$42,G$7,G$8))*'DNSP Inputs General'!$D45 -> 65.77744587 | H10: =IF('DNSP Inputs General'!$B45='DNSP Inputs General'!$A$41,H$6,IF('DNSP Inputs General'!$B45='DNSP Inputs General'!$A$42,H$7,H$8))*'DNSP Inputs General'!$D45 -> 67.32864812 | J10: =IF('DNSP Inputs General'!$B45='DNSP Inputs General'!$A$41,J$6,IF('DNSP Inputs General'!$B45='DNSP Inputs General'!$A$42,J$7,J$8))*'DNSP Inputs General'!$D45 -> 38.52730741 | K10: =IF('DNSP Inputs General'!$B45='DNSP Inputs General'!$A$41,K$6,IF('DNSP Inputs General'!$B45='DNSP Inputs General'!$A$42,K$7,K$8))*'DNSP Inputs General'!$D45 -> 40.23451361 | L10: =IF('DNSP Inputs General'!$B45='DNSP Inputs General'!$A$41,L$6,IF('DNSP Inputs General'!$B45='DNSP Inputs General'!$A$42,L$7,L$8))*'DNSP Inputs General'!$D45 -> 41.7132559 | M10: =IF('DNSP Inputs General'!$B45='DNSP Inputs General'!$A$41,M$6,IF('DNSP Inputs General'!$B45='DNSP Inputs General'!$A$42,M$7,M$8))*'DNSP Inputs General'!$D45 -> 41.93956443 | N10: =IF('DNSP Inputs General'!$B45='DNSP Inputs General'!$A$41,N$6,IF('DNSP Inputs General'!$B45='DNSP Inputs General'!$A$42,N$7,N$8))*'DNSP Inputs General'!$D45 -> 42.84066414 | P10: =IF('DNSP Inputs General'!$B45='DNSP Inputs General'!$A$41,P$6,IF('DNSP Inputs General'!$B45='DNSP Inputs General'!$A$42,P$7,P$8))*'DNSP Inputs General'!$D45 -> 21.73193035 | Q10: =IF('DNSP Inputs General'!$B45='DNSP Inputs General'!$A$41,Q$6,IF('DNSP Inputs General'!$B45='DNSP Inputs General'!$A$42,Q$7,Q$8))*'DNSP Inputs General'!$D45 -> 22.42021066 | R10: =IF('DNSP Inputs General'!$B45='DNSP Inputs General'!$A$41,R$6,IF('DNSP Inputs General'!$B45='DNSP Inputs General'!$A$42,R$7,R$8))*'DNSP Inputs General'!$D45 -> 23.14153966 | S10: =IF('DNSP Inputs General'!$B45='DNSP Inputs General'!$A$41,S$6,IF('DNSP Inputs General'!$B45='DNSP Inputs General'!$A$42,S$7,S$8))*'DNSP Inputs General'!$D45 -> 23.83788145 | T10: =IF('DNSP Inputs General'!$B45='DNSP Inputs General'!$A$41,T$6,IF('DNSP Inputs General'!$B45='DNSP Inputs General'!$A$42,T$7,T$8))*'DNSP Inputs General'!$D45 -> 24.48798398 | V10: 3.552713679e-15 | W10: 7.105427358e-15 | X10: 3.552713679e-15 | Y10: 3.552713679e-15 | Z10: 0
A11: ='DNSP Inputs General'!A46 -> Fluorescent 40 watt | C11: ='DNSP Inputs General'!E46 -> 61.03 | D11: =IF('DNSP Inputs General'!$B46='DNSP Inputs General'!$A$41,D$6,IF('DNSP Inputs General'!$B46='DNSP Inputs General'!$A$42,D$7,D$8))*'DNSP Inputs General'!$D46 -> 60.25923777 | E11: =IF('DNSP Inputs General'!$B46='DNSP Inputs General'!$A$41,E$6,IF('DNSP Inputs General'!$B46='DNSP Inputs General'!$A$42,E$7,E$8))*'DNSP Inputs General'!$D46 -> 62.65472428 | F11: =IF('DNSP Inputs General'!$B46='DNSP Inputs General'!$A$41,F$6,IF('DNSP Inputs General'!$B46='DNSP Inputs General'!$A$42,F$7,F$8))*'DNSP Inputs General'!$D46 -> 64.85479556 | G11: =IF('DNSP Inputs General'!$B46='DNSP Inputs General'!$A$41,G$6,IF('DNSP Inputs General'!$B46='DNSP Inputs General'!$A$42,G$7,G$8))*'DNSP Inputs General'!$D46 -> 65.77744587 | H11: =IF('DNSP Inputs General'!$B46='DNSP Inputs General'!$A$41,H$6,IF('DNSP Inputs General'!$B46='DNSP Inputs General'!$A$42,H$7,H$8))*'DNSP Inputs General'!$D46 -> 67.32864812 | J11: =IF('DNSP Inputs General'!$B46='DNSP Inputs General'!$A$41,J$6,IF('DNSP Inputs General'!$B46='DNSP Inputs General'!$A$42,J$7,J$8))*'DNSP Inputs General'!$D46 -> 38.52730741 | K11: =IF('DNSP Inputs General'!$B46='DNSP Inputs General'!$A$41,K$6,IF('DNSP Inputs General'!$B46='DNSP Inputs General'!$A$42,K$7,K$8))*'DNSP Inputs General'!$D46 -> 40.23451361 | L11: =IF('DNSP Inputs General'!$B46='DNSP Inputs General'!$A$41,L$6,IF('DNSP Inputs General'!$B46='DNSP Inputs General'!$A$42,L$7,L$8))*'DNSP Inputs General'!$D46 -> 41.7132559 | M11: =IF('DNSP Inputs General'!$B46='DNSP Inputs General'!$A$41,M$6,IF('DNSP Inputs General'!$B46='DNSP Inputs General'!$A$42,M$7,M$8))*'DNSP Inputs General'!$D46 -> 41.93956443 | N11: =IF('DNSP Inputs General'!$B46='DNSP Inputs General'!$A$41,N$6,IF('DNSP Inputs General'!$B46='DNSP Inputs General'!$A$42,N$7,N$8))*'DNSP Inputs General'!$D46 -> 42.84066414 | P11: =IF('DNSP Inputs General'!$B46='DNSP Inputs General'!$A$41,P$6,IF('DNSP Inputs General'!$B46='DNSP Inputs General'!$A$42,P$7,P$8))*'DNSP Inputs General'!$D46 -> 21.73193035 | Q11: =IF('DNSP Inputs General'!$B46='DNSP Inputs General'!$A$41,Q$6,IF('DNSP Inputs General'!$B46='DNSP Inputs General'!$A$42,Q$7,Q$8))*'DNSP Inputs General'!$D46 -> 22.42021066 | R11: =IF('DNSP Inputs General'!$B46='DNSP Inputs General'!$A$41,R$6,IF('DNSP Inputs General'!$B46='DNSP Inputs General'!$A$42,R$7,R$8))*'DNSP Inputs General'!$D46 -> 23.14153966 | S11: =IF('DNSP Inputs General'!$B46='DNSP Inputs General'!$A$41,S$6,IF('DNSP Inputs General'!$B46='DNSP Inputs General'!$A$42,S$7,S$8))*'DNSP Inputs General'!$D46 -> 23.83788145 | T11: =IF('DNSP Inputs General'!$B46='DNSP Inputs General'!$A$41,T$6,IF('DNSP Inputs General'!$B46='DNSP Inputs General'!$A$42,T$7,T$8))*'DNSP Inputs General'!$D46 -> 24.48798398 | V11: 3.552713679e-15 | W11: 7.105427358e-15 | X11: 3.552713679e-15 | Y11: 3.552713679e-15 | Z11: 0
A12: ='DNSP Inputs General'!A47 -> Fluorescent 80 watt | C12: ='DNSP Inputs General'!E47 -> 61.03 | D12: =IF('DNSP Inputs General'!$B47='DNSP Inputs General'!$A$41,D$6,IF('DNSP Inputs General'!$B47='DNSP Inputs General'!$A$42,D$7,D$8))*'DNSP Inputs General'!$D47 -> 60.25923777 | E12: =IF('DNSP Inputs General'!$B47='DNSP Inputs General'!$A$41,E$6,IF('DNSP Inputs General'!$B47='DNSP Inputs General'!$A$42,E$7,E$8))*'DNSP Inputs General'!$D47 -> 62.65472428 | F12: =IF('DNSP Inputs General'!$B47='DNSP Inputs General'!$A$41,F$6,IF('DNSP Inputs General'!$B47='DNSP Inputs General'!$A$42,F$7,F$8))*'DNSP Inputs General'!$D47 -> 64.85479556 | G12: =IF('DNSP Inputs General'!$B47='DNSP Inputs General'!$A$41,G$6,IF('DNSP Inputs General'!$B47='DNSP Inputs General'!$A$42,G$7,G$8))*'DNSP Inputs General'!$D47 -> 65.77744587 | H12: =IF('DNSP Inputs General'!$B47='DNSP Inputs General'!$A$41,H$6,IF('DNSP Inputs General'!$B47='DNSP Inputs General'!$A$42,H$7,H$8))*'DNSP Inputs General'!$D47 -> 67.32864812 | J12: =IF('DNSP Inputs General'!$B47='DNSP Inputs General'!$A$41,J$6,IF('DNSP Inputs General'!$B47='DNSP Inputs General'!$A$42,J$7,J$8))*'DNSP Inputs General'!$D47 -> 38.52730741 | K12: =IF('DNSP Inputs General'!$B47='DNSP Inputs General'!$A$41,K$6,IF('DNSP Inputs General'!$B47='DNSP Inputs General'!$A$42,K$7,K$8))*'DNSP Inputs General'!$D47 -> 40.23451361 | L12: =IF('DNSP Inputs General'!$B47='DNSP Inputs General'!$A$41,L$6,IF('DNSP Inputs General'!$B47='DNSP Inputs General'!$A$42,L$7,L$8))*'DNSP Inputs General'!$D47 -> 41.7132559 | M12: =IF('DNSP Inputs General'!$B47='DNSP Inputs General'!$A$41,M$6,IF('DNSP Inputs General'!$B47='DNSP Inputs General'!$A$42,M$7,M$8))*'DNSP Inputs General'!$D47 -> 41.93956443 | N12: =IF('DNSP Inputs General'!$B47='DNSP Inputs General'!$A$41,N$6,IF('DNSP Inputs General'!$B47='DNSP Inputs General'!$A$42,N$7,N$8))*'DNSP Inputs General'!$D47 -> 42.84066414 | P12: =IF('DNSP Inputs General'!$B47='DNSP Inputs General'!$A$41,P$6,IF('DNSP Inputs General'!$B47='DNSP Inputs General'!$A$42,P$7,P$8))*'DNSP Inputs General'!$D47 -> 21.73193035 | Q12: =IF('DNSP Inputs General'!$B47='DNSP Inputs General'!$A$41,Q$6,IF('DNSP Inputs General'!$B47='DNSP Inputs General'!$A$42,Q$7,Q$8))*'DNSP Inputs General'!$D47 -> 22.42021066 | R12: =IF('DNSP Inputs General'!$B47='DNSP Inputs General'!$A$41,R$6,IF('DNSP Inputs General'!$B47='DNSP Inputs General'!$A$42,R$7,R$8))*'DNSP Inputs General'!$D47 -> 23.14153966 | S12: =IF('DNSP Inputs General'!$B47='DNSP Inputs General'!$A$41,S$6,IF('DNSP Inputs General'!$B47='DNSP Inputs General'!$A$42,S$7,S$8))*'DNSP Inputs General'!$D47 -> 23.83788145 | T12: =IF('DNSP Inputs General'!$B47='DNSP Inputs General'!$A$41,T$6,IF('DNSP Inputs General'!$B47='DNSP Inputs General'!$A$42,T$7,T$8))*'DNSP Inputs General'!$D47 -> 24.48798398 | V12: 3.552713679e-15 | W12: 7.105427358e-15 | X12: 3.552713679e-15 | Y12: 3.552713679e-15 | Z12: 0
A13: ='DNSP Inputs General'!A48 -> Mercury Vapour 50 watt | C13: ='DNSP Inputs General'!E48 -> 61.03 | D13: =IF('DNSP Inputs General'!$B48='DNSP Inputs General'!$A$41,D$6,IF('DNSP Inputs General'!$B48='DNSP Inputs General'!$A$42,D$7,D$8))*'DNSP Inputs General'!$D48 -> 60.25923777 | E13: =IF('DNSP Inputs General'!$B48='DNSP Inputs General'!$A$41,E$6,IF('DNSP Inputs General'!$B48='DNSP Inputs General'!$A$42,E$7,E$8))*'DNSP Inputs General'!$D48 -> 62.65472428 | F13: =IF('DNSP Inputs General'!$B48='DNSP Inputs General'!$A$41,F$6,IF('DNSP Inputs General'!$B48='DNSP Inputs General'!$A$42,F$7,F$8))*'DNSP Inputs General'!$D48 -> 64.85479556 | G13: =IF('DNSP Inputs General'!$B48='DNSP Inputs General'!$A$41,G$6,IF('DNSP Inputs General'!$B48='DNSP Inputs General'!$A$42,G$7,G$8))*'DNSP Inputs General'!$D48 -> 65.77744587 | H13: =IF('DNSP Inputs General'!$B48='DNSP Inputs General'!$A$41,H$6,IF('DNSP Inputs General'!$B48='DNSP Inputs General'!$A$42,H$7,H$8))*'DNSP Inputs General'!$D48 -> 67.32864812 | J13: =IF('DNSP Inputs General'!$B48='DNSP Inputs General'!$A$41,J$6,IF('DNSP Inputs General'!$B48='DNSP Inputs General'!$A$42,J$7,J$8))*'DNSP Inputs General'!$D48 -> 38.52730741 | K13: =IF('DNSP Inputs General'!$B48='DNSP Inputs General'!$A$41,K$6,IF('DNSP Inputs General'!$B48='DNSP Inputs General'!$A$42,K$7,K$8))*'DNSP Inputs General'!$D48 -> 40.23451361 | L13: =IF('DNSP Inputs General'!$B48='DNSP Inputs General'!$A$41,L$6,IF('DNSP Inputs General'!$B48='DNSP Inputs General'!$A$42,L$7,L$8))*'DNSP Inputs General'!$D48 -> 41.7132559 | M13: =IF('DNSP Inputs General'!$B48='DNSP Inputs General'!$A$41,M$6,IF('DNSP Inputs General'!$B48='DNSP Inputs General'!$A$42,M$7,M$8))*'DNSP Inputs General'!$D48 -> 41.93956443 | N13: =IF('DNSP Inputs General'!$B48='DNSP Inputs General'!$A$41,N$6,IF('DNSP Inputs General'!$B48='DNSP Inputs General'!$A$42,N$7,N$8))*'DNSP Inputs General'!$D48 -> 42.84066414 | P13: =IF('DNSP Inputs General'!$B48='DNSP Inputs General'!$A$41,P$6,IF('DNSP Inputs General'!$B48='DNSP Inputs General'!$A$42,P$7,P$8))*'DNSP Inputs General'!$D48 -> 21.73193035 | Q13: =IF('DNSP Inputs General'!$B48='DNSP Inputs General'!$A$41,Q$6,IF('DNSP Inputs General'!$B48='DNSP Inputs General'!$A$42,Q$7,Q$8))*'DNSP Inputs General'!$D48 -> 22.42021066 | R13: =IF('DNSP Inputs General'!$B48='DNSP Inputs General'!$A$41,R$6,IF('DNSP Inputs General'!$B48='DNSP Inputs General'!$A$42,R$7,R$8))*'DNSP Inputs General'!$D48 -> 23.14153966 | S13: =IF('DNSP Inputs General'!$B48='DNSP Inputs General'!$A$41,S$6,IF('DNSP Inputs General'!$B48='DNSP Inputs General'!$A$42,S$7,S$8))*'DNSP Inputs General'!$D48 -> 23.83788145 | T13: =IF('DNSP Inputs General'!$B48='DNSP Inputs General'!$A$41,T$6,IF('DNSP Inputs General'!$B48='DNSP Inputs General'!$A$42,T$7,T$8))*'DNSP Inputs General'!$D48 -> 24.48798398 | V13: 3.552713679e-15 | W13: 7.105427358e-15 | X13: 3.552713679e-15 | Y13: 3.552713679e-15 | Z13: 0
A14: ='DNSP Inputs General'!A49 -> Mercury Vapour 125 watt | C14: ='DNSP Inputs General'!E49 -> 71.77 | D14: =IF('DNSP Inputs General'!$B49='DNSP Inputs General'!$A$41,D$6,IF('DNSP Inputs General'!$B49='DNSP Inputs General'!$A$42,D$7,D$8))*'DNSP Inputs General'!$D49 -> 70.86486361 | E14: =IF('DNSP Inputs General'!$B49='DNSP Inputs General'!$A$41,E$6,IF('DNSP Inputs General'!$B49='DNSP Inputs General'!$A$42,E$7,E$8))*'DNSP Inputs General'!$D49 -> 73.68195575 | F14: =IF('DNSP Inputs General'!$B49='DNSP Inputs General'!$A$41,F$6,IF('DNSP Inputs General'!$B49='DNSP Inputs General'!$A$42,F$7,F$8))*'DNSP Inputs General'!$D49 -> 76.26923958 | G14: =IF('DNSP Inputs General'!$B49='DNSP Inputs General'!$A$41,G$6,IF('DNSP Inputs General'!$B49='DNSP Inputs General'!$A$42,G$7,G$8))*'DNSP Inputs General'!$D49 -> 77.35427635 | H14: =IF('DNSP Inputs General'!$B49='DNSP Inputs General'!$A$41,H$6,IF('DNSP Inputs General'!$B49='DNSP Inputs General'!$A$42,H$7,H$8))*'DNSP Inputs General'!$D49 -> 79.17849019 | J14: =IF('DNSP Inputs General'!$B49='DNSP Inputs General'!$A$41,J$6,IF('DNSP Inputs General'!$B49='DNSP Inputs General'!$A$42,J$7,J$8))*'DNSP Inputs General'!$D49 -> 45.30811352 | K14: =IF('DNSP Inputs General'!$B49='DNSP Inputs General'!$A$41,K$6,IF('DNSP Inputs General'!$B49='DNSP Inputs General'!$A$42,K$7,K$8))*'DNSP Inputs General'!$D49 -> 47.31578801 | L14: =IF('DNSP Inputs General'!$B49='DNSP Inputs General'!$A$41,L$6,IF('DNSP Inputs General'!$B49='DNSP Inputs General'!$A$42,L$7,L$8))*'DNSP Inputs General'!$D49 -> 49.05478893 | M14: =IF('DNSP Inputs General'!$B49='DNSP Inputs General'!$A$41,M$6,IF('DNSP Inputs General'!$B49='DNSP Inputs General'!$A$42,M$7,M$8))*'DNSP Inputs General'!$D49 -> 49.32092777 | N14: =IF('DNSP Inputs General'!$B49='DNSP Inputs General'!$A$41,N$6,IF('DNSP Inputs General'!$B49='DNSP Inputs General'!$A$42,N$7,N$8))*'DNSP Inputs General'!$D49 -> 50.38062103 | P14: =IF('DNSP Inputs General'!$B49='DNSP Inputs General'!$A$41,P$6,IF('DNSP Inputs General'!$B49='DNSP Inputs General'!$A$42,P$7,P$8))*'DNSP Inputs General'!$D49 -> 25.5567501 | Q14: =IF('DNSP Inputs General'!$B49='DNSP Inputs General'!$A$41,Q$6,IF('DNSP Inputs General'!$B49='DNSP Inputs General'!$A$42,Q$7,Q$8))*'DNSP Inputs General'!$D49 -> 26.36616774 | R14: =IF('DNSP Inputs General'!$B49='DNSP Inputs General'!$A$41,R$6,IF('DNSP Inputs General'!$B49='DNSP Inputs General'!$A$42,R$7,R$8))*'DNSP Inputs General'!$D49 -> 27.21445065 | S14: =IF('DNSP Inputs General'!$B49='DNSP Inputs General'!$A$41,S$6,IF('DNSP Inputs General'!$B49='DNSP Inputs General'!$A$42,S$7,S$8))*'DNSP Inputs General'!$D49 -> 28.03334858 | T14: =IF('DNSP Inputs General'!$B49='DNSP Inputs General'!$A$41,T$6,IF('DNSP Inputs General'!$B49='DNSP Inputs General'!$A$42,T$7,T$8))*'DNSP Inputs General'!$D49 -> 28.79786916 | V14: 3.552713679e-15 | W14: 3.552713679e-15 | X14: 3.552713679e-15 | Y14: 1.065814104e-14 | Z14: 1.421085472e-14
A15: ='DNSP Inputs General'!A50 -> Mercury Vapour 250 watt | C15: ='DNSP Inputs General'!E50 -> 90.19 | D15: =IF('DNSP Inputs General'!$B50='DNSP Inputs General'!$A$41,D$6,IF('DNSP Inputs General'!$B50='DNSP Inputs General'!$A$42,D$7,D$8))*'DNSP Inputs General'!$D50 -> 92.6509245 | E15: =IF('DNSP Inputs General'!$B50='DNSP Inputs General'!$A$41,E$6,IF('DNSP Inputs General'!$B50='DNSP Inputs General'!$A$42,E$7,E$8))*'DNSP Inputs General'!$D50 -> 96.30361624 | F15: =IF('DNSP Inputs General'!$B50='DNSP Inputs General'!$A$41,F$6,IF('DNSP Inputs General'!$B50='DNSP Inputs General'!$A$42,F$7,F$8))*'DNSP Inputs General'!$D50 -> 99.69754137 | G15: =IF('DNSP Inputs General'!$B50='DNSP Inputs General'!$A$41,G$6,IF('DNSP Inputs General'!$B50='DNSP Inputs General'!$A$42,G$7,G$8))*'DNSP Inputs General'!$D50 -> 101.1809616 | H15: =IF('DNSP Inputs General'!$B50='DNSP Inputs General'!$A$41,H$6,IF('DNSP Inputs General'!$B50='DNSP Inputs General'!$A$42,H$7,H$8))*'DNSP Inputs General'!$D50 -> 103.6706485 | J15: =IF('DNSP Inputs General'!$B50='DNSP Inputs General'!$A$41,J$6,IF('DNSP Inputs General'!$B50='DNSP Inputs General'!$A$42,J$7,J$8))*'DNSP Inputs General'!$D50 -> 72.99055082 | K15: =IF('DNSP Inputs General'!$B50='DNSP Inputs General'!$A$41,K$6,IF('DNSP Inputs General'!$B50='DNSP Inputs General'!$A$42,K$7,K$8))*'DNSP Inputs General'!$D50 -> 76.06499584 | L15: =IF('DNSP Inputs General'!$B50='DNSP Inputs General'!$A$41,L$6,IF('DNSP Inputs General'!$B50='DNSP Inputs General'!$A$42,L$7,L$8))*'DNSP Inputs General'!$D50 -> 78.85061591 | M15: =IF('DNSP Inputs General'!$B50='DNSP Inputs General'!$A$41,M$6,IF('DNSP Inputs General'!$B50='DNSP Inputs General'!$A$42,M$7,M$8))*'DNSP Inputs General'!$D50 -> 79.74734273 | N15: =IF('DNSP Inputs General'!$B50='DNSP Inputs General'!$A$41,N$6,IF('DNSP Inputs General'!$B50='DNSP Inputs General'!$A$42,N$7,N$8))*'DNSP Inputs General'!$D50 -> 81.69086444 | P15: =IF('DNSP Inputs General'!$B50='DNSP Inputs General'!$A$41,P$6,IF('DNSP Inputs General'!$B50='DNSP Inputs General'!$A$42,P$7,P$8))*'DNSP Inputs General'!$D50 -> 19.66037368 | Q15: =IF('DNSP Inputs General'!$B50='DNSP Inputs General'!$A$41,Q$6,IF('DNSP Inputs General'!$B50='DNSP Inputs General'!$A$42,Q$7,Q$8))*'DNSP Inputs General'!$D50 -> 20.2386204 | R15: =IF('DNSP Inputs General'!$B50='DNSP Inputs General'!$A$41,R$6,IF('DNSP Inputs General'!$B50='DNSP Inputs General'!$A$42,R$7,R$8))*'DNSP Inputs General'!$D50 -> 20.84692546 | S15: =IF('DNSP Inputs General'!$B50='DNSP Inputs General'!$A$41,S$6,IF('DNSP Inputs General'!$B50='DNSP Inputs General'!$A$42,S$7,S$8))*'DNSP Inputs General'!$D50 -> 21.43361891 | T15: =IF('DNSP Inputs General'!$B50='DNSP Inputs General'!$A$41,T$6,IF('DNSP Inputs General'!$B50='DNSP Inputs General'!$A$42,T$7,T$8))*'DNSP Inputs General'!$D50 -> 21.97978409 | V15: 3.552713679e-15 | W15: 3.552713679e-15 | X15: 0 | Y15: 1.065814104e-14 | Z15: 7.105427358e-15
A16: ='DNSP Inputs General'!A51 -> Mercury Vapour 400 watt | C16: ='DNSP Inputs General'!E51 -> 101.47 | D16: =IF('DNSP Inputs General'!$B51='DNSP Inputs General'!$A$41,D$6,IF('DNSP Inputs General'!$B51='DNSP Inputs General'!$A$42,D$7,D$8))*'DNSP Inputs General'!$D51 -> 104.2322901 | E16: =IF('DNSP Inputs General'!$B51='DNSP Inputs General'!$A$41,E$6,IF('DNSP Inputs General'!$B51='DNSP Inputs General'!$A$42,E$7,E$8))*'DNSP Inputs General'!$D51 -> 108.3415683 | F16: =IF('DNSP Inputs General'!$B51='DNSP Inputs General'!$A$41,F$6,IF('DNSP Inputs General'!$B51='DNSP Inputs General'!$A$42,F$7,F$8))*'DNSP Inputs General'!$D51 -> 112.159734 | G16: =IF('DNSP Inputs General'!$B51='DNSP Inputs General'!$A$41,G$6,IF('DNSP Inputs General'!$B51='DNSP Inputs General'!$A$42,G$7,G$8))*'DNSP Inputs General'!$D51 -> 113.8285818 | H16: =IF('DNSP Inputs General'!$B51='DNSP Inputs General'!$A$41,H$6,IF('DNSP Inputs General'!$B51='DNSP Inputs General'!$A$42,H$7,H$8))*'DNSP Inputs General'!$D51 -> 116.6294796 | J16: =IF('DNSP Inputs General'!$B51='DNSP Inputs General'!$A$41,J$6,IF('DNSP Inputs General'!$B51='DNSP Inputs General'!$A$42,J$7,J$8))*'DNSP Inputs General'!$D51 -> 82.11436967 | K16: =IF('DNSP Inputs General'!$B51='DNSP Inputs General'!$A$41,K$6,IF('DNSP Inputs General'!$B51='DNSP Inputs General'!$A$42,K$7,K$8))*'DNSP Inputs General'!$D51 -> 85.57312032 | L16: =IF('DNSP Inputs General'!$B51='DNSP Inputs General'!$A$41,L$6,IF('DNSP Inputs General'!$B51='DNSP Inputs General'!$A$42,L$7,L$8))*'DNSP Inputs General'!$D51 -> 88.7069429 | M16: =IF('DNSP Inputs General'!$B51='DNSP Inputs General'!$A$41,M$6,IF('DNSP Inputs General'!$B51='DNSP Inputs General'!$A$42,M$7,M$8))*'DNSP Inputs General'!$D51 -> 89.71576057 | N16: =IF('DNSP Inputs General'!$B51='DNSP Inputs General'!$A$41,N$6,IF('DNSP Inputs General'!$B51='DNSP Inputs General'!$A$42,N$7,N$8))*'DNSP Inputs General'!$D51 -> 91.9022225 | P16: =IF('DNSP Inputs General'!$B51='DNSP Inputs General'!$A$41,P$6,IF('DNSP Inputs General'!$B51='DNSP Inputs General'!$A$42,P$7,P$8))*'DNSP Inputs General'!$D51 -> 22.11792039 | Q16: =IF('DNSP Inputs General'!$B51='DNSP Inputs General'!$A$41,Q$6,IF('DNSP Inputs General'!$B51='DNSP Inputs General'!$A$42,Q$7,Q$8))*'DNSP Inputs General'!$D51 -> 22.76844795 | R16: =IF('DNSP Inputs General'!$B51='DNSP Inputs General'!$A$41,R$6,IF('DNSP Inputs General'!$B51='DNSP Inputs General'!$A$42,R$7,R$8))*'DNSP Inputs General'!$D51 -> 23.45279114 | S16: =IF('DNSP Inputs General'!$B51='DNSP Inputs General'!$A$41,S$6,IF('DNSP Inputs General'!$B51='DNSP Inputs General'!$A$42,S$7,S$8))*'DNSP Inputs General'!$D51 -> 24.11282127 | T16: =IF('DNSP Inputs General'!$B51='DNSP Inputs General'!$A$41,T$6,IF('DNSP Inputs General'!$B51='DNSP Inputs General'!$A$42,T$7,T$8))*'DNSP Inputs General'!$D51 -> 24.7272571 | V16: 3.552713679e-15 | W16: 1.065814104e-14 | X16: 0 | Y16: 1.421085472e-14 | Z16: 1.065814104e-14
A17: ='DNSP Inputs General'!A52 -> Sodium High Pressure 50 watt | C17: ='DNSP Inputs General'!E52 -> 112.91 | D17: =IF('DNSP Inputs General'!$B52='DNSP Inputs General'!$A$41,D$6,IF('DNSP Inputs General'!$B52='DNSP Inputs General'!$A$42,D$7,D$8))*'DNSP Inputs General'!$D52 -> 119.1610898 | E17: =IF('DNSP Inputs General'!$B52='DNSP Inputs General'!$A$41,E$6,IF('DNSP Inputs General'!$B52='DNSP Inputs General'!$A$42,E$7,E$8))*'DNSP Inputs General'!$D52 -> 123.8789142 | F17: =IF('DNSP Inputs General'!$B52='DNSP Inputs General'!$A$41,F$6,IF('DNSP Inputs General'!$B52='DNSP Inputs General'!$A$42,F$7,F$8))*'DNSP Inputs General'!$D52 -> 128.2600295 | G17: =IF('DNSP Inputs General'!$B52='DNSP Inputs General'!$A$41,G$6,IF('DNSP Inputs General'!$B52='DNSP Inputs General'!$A$42,G$7,G$8))*'DNSP Inputs General'!$D52 -> 130.169362 | H17: =IF('DNSP Inputs General'!$B52='DNSP Inputs General'!$A$41,H$6,IF('DNSP Inputs General'!$B52='DNSP Inputs General'!$A$42,H$7,H$8))*'DNSP Inputs General'!$D52 -> 133.3827036 | J17: =IF('DNSP Inputs General'!$B52='DNSP Inputs General'!$A$41,J$6,IF('DNSP Inputs General'!$B52='DNSP Inputs General'!$A$42,J$7,J$8))*'DNSP Inputs General'!$D52 -> 94.69896784 | K17: =IF('DNSP Inputs General'!$B52='DNSP Inputs General'!$A$41,K$6,IF('DNSP Inputs General'!$B52='DNSP Inputs General'!$A$42,K$7,K$8))*'DNSP Inputs General'!$D52 -> 98.68287699 | L17: =IF('DNSP Inputs General'!$B52='DNSP Inputs General'!$A$41,L$6,IF('DNSP Inputs General'!$B52='DNSP Inputs General'!$A$42,L$7,L$8))*'DNSP Inputs General'!$D52 -> 102.2927295 | M17: =IF('DNSP Inputs General'!$B52='DNSP Inputs General'!$A$41,M$6,IF('DNSP Inputs General'!$B52='DNSP Inputs General'!$A$42,M$7,M$8))*'DNSP Inputs General'!$D52 -> 103.4580121 | N17: =IF('DNSP Inputs General'!$B52='DNSP Inputs General'!$A$41,N$6,IF('DNSP Inputs General'!$B52='DNSP Inputs General'!$A$42,N$7,N$8))*'DNSP Inputs General'!$D52 -> 105.9781542 | P17: =IF('DNSP Inputs General'!$B52='DNSP Inputs General'!$A$41,P$6,IF('DNSP Inputs General'!$B52='DNSP Inputs General'!$A$42,P$7,P$8))*'DNSP Inputs General'!$D52 -> 24.462122 | Q17: =IF('DNSP Inputs General'!$B52='DNSP Inputs General'!$A$41,Q$6,IF('DNSP Inputs General'!$B52='DNSP Inputs General'!$A$42,Q$7,Q$8))*'DNSP Inputs General'!$D52 -> 25.19603719 | R17: =IF('DNSP Inputs General'!$B52='DNSP Inputs General'!$A$41,R$6,IF('DNSP Inputs General'!$B52='DNSP Inputs General'!$A$42,R$7,R$8))*'DNSP Inputs General'!$D52 -> 25.96730001 | S17: =IF('DNSP Inputs General'!$B52='DNSP Inputs General'!$A$41,S$6,IF('DNSP Inputs General'!$B52='DNSP Inputs General'!$A$42,S$7,S$8))*'DNSP Inputs General'!$D52 -> 26.71134988 | T17: =IF('DNSP Inputs General'!$B52='DNSP Inputs General'!$A$41,T$6,IF('DNSP Inputs General'!$B52='DNSP Inputs General'!$A$42,T$7,T$8))*'DNSP Inputs General'!$D52 -> 27.40454943 | V17: 1.421085472e-14 | W17: 3.552713679e-15 | X17: 0 | Y17: 0 | Z17: 2.131628207e-14
A18: ='DNSP Inputs General'!A53 -> Sodium Low Pressure 90 watt | C18: ='DNSP Inputs General'!E53 -> 97.03 | D18: =IF('DNSP Inputs General'!$B53='DNSP Inputs General'!$A$41,D$6,IF('DNSP Inputs General'!$B53='DNSP Inputs General'!$A$42,D$7,D$8))*'DNSP Inputs General'!$D53 -> 101.0486042 | E18: =IF('DNSP Inputs General'!$B53='DNSP Inputs General'!$A$41,E$6,IF('DNSP Inputs General'!$B53='DNSP Inputs General'!$A$42,E$7,E$8))*'DNSP Inputs General'!$D53 -> 105.0493192 | F18: =IF('DNSP Inputs General'!$B53='DNSP Inputs General'!$A$41,F$6,IF('DNSP Inputs General'!$B53='DNSP Inputs General'!$A$42,F$7,F$8))*'DNSP Inputs General'!$D53 -> 108.764505 | G18: =IF('DNSP Inputs General'!$B53='DNSP Inputs General'!$A$41,G$6,IF('DNSP Inputs General'!$B53='DNSP Inputs General'!$A$42,G$7,G$8))*'DNSP Inputs General'!$D53 -> 110.383619 | H18: =IF('DNSP Inputs General'!$B53='DNSP Inputs General'!$A$41,H$6,IF('DNSP Inputs General'!$B53='DNSP Inputs General'!$A$42,H$7,H$8))*'DNSP Inputs General'!$D53 -> 113.1085327 | J18: =IF('DNSP Inputs General'!$B53='DNSP Inputs General'!$A$41,J$6,IF('DNSP Inputs General'!$B53='DNSP Inputs General'!$A$42,J$7,J$8))*'DNSP Inputs General'!$D53 -> 80.30472473 | K18: =IF('DNSP Inputs General'!$B53='DNSP Inputs General'!$A$41,K$6,IF('DNSP Inputs General'!$B53='DNSP Inputs General'!$A$42,K$7,K$8))*'DNSP Inputs General'!$D53 -> 83.68307969 | L18: =IF('DNSP Inputs General'!$B53='DNSP Inputs General'!$A$41,L$6,IF('DNSP Inputs General'!$B53='DNSP Inputs General'!$A$42,L$7,L$8))*'DNSP Inputs General'!$D53 -> 86.74423458 | M18: =IF('DNSP Inputs General'!$B53='DNSP Inputs General'!$A$41,M$6,IF('DNSP Inputs General'!$B53='DNSP Inputs General'!$A$42,M$7,M$8))*'DNSP Inputs General'!$D53 -> 87.7323943 | N18: =IF('DNSP Inputs General'!$B53='DNSP Inputs General'!$A$41,N$6,IF('DNSP Inputs General'!$B53='DNSP Inputs General'!$A$42,N$7,N$8))*'DNSP Inputs General'!$D53 -> 89.86947475 | P18: =IF('DNSP Inputs General'!$B53='DNSP Inputs General'!$A$41,P$6,IF('DNSP Inputs General'!$B53='DNSP Inputs General'!$A$42,P$7,P$8))*'DNSP Inputs General'!$D53 -> 20.74387946 | Q18: =IF('DNSP Inputs General'!$B53='DNSP Inputs General'!$A$41,Q$6,IF('DNSP Inputs General'!$B53='DNSP Inputs General'!$A$42,Q$7,Q$8))*'DNSP Inputs General'!$D53 -> 21.36623953 | R18: =IF('DNSP Inputs General'!$B53='DNSP Inputs General'!$A$41,R$6,IF('DNSP Inputs General'!$B53='DNSP Inputs General'!$A$42,R$7,R$8))*'DNSP Inputs General'!$D53 -> 22.02027041 | S18: =IF('DNSP Inputs General'!$B53='DNSP Inputs General'!$A$41,S$6,IF('DNSP Inputs General'!$B53='DNSP Inputs General'!$A$42,S$7,S$8))*'DNSP Inputs General'!$D53 -> 22.6512247 | T18: =IF('DNSP Inputs General'!$B53='DNSP Inputs General'!$A$41,T$6,IF('DNSP Inputs General'!$B53='DNSP Inputs General'!$A$42,T$7,T$8))*'DNSP Inputs General'!$D53 -> 23.23905792 | V18: 3.552713679e-15 | W18: 3.552713679e-15 | X18: 1.421085472e-14 | Y18: 1.065814104e-14 | Z18: 0
A19: ='DNSP Inputs General'!A54 -> Sodium High Pressure 100 watt | C19: ='DNSP Inputs General'!E54 -> 125.41 | D19: =IF('DNSP Inputs General'!$B54='DNSP Inputs General'!$A$41,D$6,IF('DNSP Inputs General'!$B54='DNSP Inputs General'!$A$42,D$7,D$8))*'DNSP Inputs General'!$D54 -> 130.6005545 | E19: =IF('DNSP Inputs General'!$B54='DNSP Inputs General'!$A$41,E$6,IF('DNSP Inputs General'!$B54='DNSP Inputs General'!$A$42,E$7,E$8))*'DNSP Inputs General'!$D54 -> 135.7712899 | F19: =IF('DNSP Inputs General'!$B54='DNSP Inputs General'!$A$41,F$6,IF('DNSP Inputs General'!$B54='DNSP Inputs General'!$A$42,F$7,F$8))*'DNSP Inputs General'!$D54 -> 140.5729923 | G19: =IF('DNSP Inputs General'!$B54='DNSP Inputs General'!$A$41,G$6,IF('DNSP Inputs General'!$B54='DNSP Inputs General'!$A$42,G$7,G$8))*'DNSP Inputs General'!$D54 -> 142.6656208 | H19: =IF('DNSP Inputs General'!$B54='DNSP Inputs General'!$A$41,H$6,IF('DNSP Inputs General'!$B54='DNSP Inputs General'!$A$42,H$7,H$8))*'DNSP Inputs General'!$D54 -> 146.1874432 | J19: =IF('DNSP Inputs General'!$B54='DNSP Inputs General'!$A$41,J$6,IF('DNSP Inputs General'!$B54='DNSP Inputs General'!$A$42,J$7,J$8))*'DNSP Inputs General'!$D54 -> 103.7900687 | K19: =IF('DNSP Inputs General'!$B54='DNSP Inputs General'!$A$41,K$6,IF('DNSP Inputs General'!$B54='DNSP Inputs General'!$A$42,K$7,K$8))*'DNSP Inputs General'!$D54 -> 108.1564332 | L19: =IF('DNSP Inputs General'!$B54='DNSP Inputs General'!$A$41,L$6,IF('DNSP Inputs General'!$B54='DNSP Inputs General'!$A$42,L$7,L$8))*'DNSP Inputs General'!$D54 -> 112.1128315 | M19: =IF('DNSP Inputs General'!$B54='DNSP Inputs General'!$A$41,M$6,IF('DNSP Inputs General'!$B54='DNSP Inputs General'!$A$42,M$7,M$8))*'DNSP Inputs General'!$D54 -> 113.3899813 | N19: =IF('DNSP Inputs General'!$B54='DNSP Inputs General'!$A$41,N$6,IF('DNSP Inputs General'!$B54='DNSP Inputs General'!$A$42,N$7,N$8))*'DNSP Inputs General'!$D54 -> 116.152057 | P19: =IF('DNSP Inputs General'!$B54='DNSP Inputs General'!$A$41,P$6,IF('DNSP Inputs General'!$B54='DNSP Inputs General'!$A$42,P$7,P$8))*'DNSP Inputs General'!$D54 -> 26.81048571 | Q19: =IF('DNSP Inputs General'!$B54='DNSP Inputs General'!$A$41,Q$6,IF('DNSP Inputs General'!$B54='DNSP Inputs General'!$A$42,Q$7,Q$8))*'DNSP Inputs General'!$D54 -> 27.61485676 | R19: =IF('DNSP Inputs General'!$B54='DNSP Inputs General'!$A$41,R$6,IF('DNSP Inputs General'!$B54='DNSP Inputs General'!$A$42,R$7,R$8))*'DNSP Inputs General'!$D54 -> 28.46016081 | S19: =IF('DNSP Inputs General'!$B54='DNSP Inputs General'!$A$41,S$6,IF('DNSP Inputs General'!$B54='DNSP Inputs General'!$A$42,S$7,S$8))*'DNSP Inputs General'!$D54 -> 29.27563947 | T19: =IF('DNSP Inputs General'!$B54='DNSP Inputs General'!$A$41,T$6,IF('DNSP Inputs General'!$B54='DNSP Inputs General'!$A$42,T$7,T$8))*'DNSP Inputs General'!$D54 -> 30.03538618 | V19: 7.105427358e-15 | W19: 1.776356839e-14 | X19: 2.842170943e-14 | Y19: 7.105427358e-15 | Z19: 3.552713679e-15
A20: ='DNSP Inputs General'!A55 -> Sodium High Pressure 400 watt | C20: ='DNSP Inputs General'!E55 -> 124.96 | D20: =IF('DNSP Inputs General'!$B55='DNSP Inputs General'!$A$41,D$6,IF('DNSP Inputs General'!$B55='DNSP Inputs General'!$A$42,D$7,D$8))*'DNSP Inputs General'!$D55 -> 128.360135 | E20: =IF('DNSP Inputs General'!$B55='DNSP Inputs General'!$A$41,E$6,IF('DNSP Inputs General'!$B55='DNSP Inputs General'!$A$42,E$7,E$8))*'DNSP Inputs General'!$D55 -> 133.420635 | F20: =IF('DNSP Inputs General'!$B55='DNSP Inputs General'!$A$41,F$6,IF('DNSP Inputs General'!$B55='DNSP Inputs General'!$A$42,F$7,F$8))*'DNSP Inputs General'!$D55 -> 138.1226354 | G20: =IF('DNSP Inputs General'!$B55='DNSP Inputs General'!$A$41,G$6,IF('DNSP Inputs General'!$B55='DNSP Inputs General'!$A$42,G$7,G$8))*'DNSP Inputs General'!$D55 -> 140.1777906 | H20: =IF('DNSP Inputs General'!$B55='DNSP Inputs General'!$A$41,H$6,IF('DNSP Inputs General'!$B55='DNSP Inputs General'!$A$42,H$7,H$8))*'DNSP Inputs General'!$D55 -> 143.6270443 | J20: =IF('DNSP Inputs General'!$B55='DNSP Inputs General'!$A$41,J$6,IF('DNSP Inputs General'!$B55='DNSP Inputs General'!$A$42,J$7,J$8))*'DNSP Inputs General'!$D55 -> 101.1223256 | K20: =IF('DNSP Inputs General'!$B55='DNSP Inputs General'!$A$41,K$6,IF('DNSP Inputs General'!$B55='DNSP Inputs General'!$A$42,K$7,K$8))*'DNSP Inputs General'!$D55 -> 105.381713 | L20: =IF('DNSP Inputs General'!$B55='DNSP Inputs General'!$A$41,L$6,IF('DNSP Inputs General'!$B55='DNSP Inputs General'!$A$42,L$7,L$8))*'DNSP Inputs General'!$D55 -> 109.2409575 | M20: =IF('DNSP Inputs General'!$B55='DNSP Inputs General'!$A$41,M$6,IF('DNSP Inputs General'!$B55='DNSP Inputs General'!$A$42,M$7,M$8))*'DNSP Inputs General'!$D55 -> 110.4832977 | N20: =IF('DNSP Inputs General'!$B55='DNSP Inputs General'!$A$41,N$6,IF('DNSP Inputs General'!$B55='DNSP Inputs General'!$A$42,N$7,N$8))*'DNSP Inputs General'!$D55 -> 113.1758851 | P20: =IF('DNSP Inputs General'!$B55='DNSP Inputs General'!$A$41,P$6,IF('DNSP Inputs General'!$B55='DNSP Inputs General'!$A$42,P$7,P$8))*'DNSP Inputs General'!$D55 -> 27.23780937 | Q20: =IF('DNSP Inputs General'!$B55='DNSP Inputs General'!$A$41,Q$6,IF('DNSP Inputs General'!$B55='DNSP Inputs General'!$A$42,Q$7,Q$8))*'DNSP Inputs General'!$D55 -> 28.03892201 | R20: =IF('DNSP Inputs General'!$B55='DNSP Inputs General'!$A$41,R$6,IF('DNSP Inputs General'!$B55='DNSP Inputs General'!$A$42,R$7,R$8))*'DNSP Inputs General'!$D55 -> 28.88167798 | S20: =IF('DNSP Inputs General'!$B55='DNSP Inputs General'!$A$41,S$6,IF('DNSP Inputs General'!$B55='DNSP Inputs General'!$A$42,S$7,S$8))*'DNSP Inputs General'!$D55 -> 29.69449286 | T20: =IF('DNSP Inputs General'!$B55='DNSP Inputs General'!$A$41,T$6,IF('DNSP Inputs General'!$B55='DNSP Inputs General'!$A$42,T$7,T$8))*'DNSP Inputs General'!$D55 -> 30.4511592 | V20: 1.776356839e-14 | W20: 7.105427358e-15 | X20: 7.105427358e-15 | Y20: 1.776356839e-14 | Z20: 0
A21: ='DNSP Inputs General'!A56 -> Metal Halide 70 watt | C21: ='DNSP Inputs General'!E56 -> 125.48 | D21: =IF('DNSP Inputs General'!$B56='DNSP Inputs General'!$A$41,D$6,IF('DNSP Inputs General'!$B56='DNSP Inputs General'!$A$42,D$7,D$8))*'DNSP Inputs General'!$D56 -> 123.8929928 | E21: =IF('DNSP Inputs General'!$B56='DNSP Inputs General'!$A$41,E$6,IF('DNSP Inputs General'!$B56='DNSP Inputs General'!$A$42,E$7,E$8))*'DNSP Inputs General'!$D56 -> 128.8181131 | F21: =IF('DNSP Inputs General'!$B56='DNSP Inputs General'!$A$41,F$6,IF('DNSP Inputs General'!$B56='DNSP Inputs General'!$A$42,F$7,F$8))*'DNSP Inputs General'!$D56 -> 133.3414597 | G21: =IF('DNSP Inputs General'!$B56='DNSP Inputs General'!$A$41,G$6,IF('DNSP Inputs General'!$B56='DNSP Inputs General'!$A$42,G$7,G$8))*'DNSP Inputs General'!$D56 -> 135.2384287 | H21: =IF('DNSP Inputs General'!$B56='DNSP Inputs General'!$A$41,H$6,IF('DNSP Inputs General'!$B56='DNSP Inputs General'!$A$42,H$7,H$8))*'DNSP Inputs General'!$D56 -> 138.4277005 | J21: =IF('DNSP Inputs General'!$B56='DNSP Inputs General'!$A$41,J$6,IF('DNSP Inputs General'!$B56='DNSP Inputs General'!$A$42,J$7,J$8))*'DNSP Inputs General'!$D56 -> 79.21214404 | K21: =IF('DNSP Inputs General'!$B56='DNSP Inputs General'!$A$41,K$6,IF('DNSP Inputs General'!$B56='DNSP Inputs General'!$A$42,K$7,K$8))*'DNSP Inputs General'!$D56 -> 82.72215999 | L21: =IF('DNSP Inputs General'!$B56='DNSP Inputs General'!$A$41,L$6,IF('DNSP Inputs General'!$B56='DNSP Inputs General'!$A$42,L$7,L$8))*'DNSP Inputs General'!$D56 -> 85.76245412 | M21: =IF('DNSP Inputs General'!$B56='DNSP Inputs General'!$A$41,M$6,IF('DNSP Inputs General'!$B56='DNSP Inputs General'!$A$42,M$7,M$8))*'DNSP Inputs General'!$D56 -> 86.22774446 | N21: =IF('DNSP Inputs General'!$B56='DNSP Inputs General'!$A$41,N$6,IF('DNSP Inputs General'!$B56='DNSP Inputs General'!$A$42,N$7,N$8))*'DNSP Inputs General'!$D56 -> 88.08040547 | P21: =IF('DNSP Inputs General'!$B56='DNSP Inputs General'!$A$41,P$6,IF('DNSP Inputs General'!$B56='DNSP Inputs General'!$A$42,P$7,P$8))*'DNSP Inputs General'!$D56 -> 44.68084881 | Q21: =IF('DNSP Inputs General'!$B56='DNSP Inputs General'!$A$41,Q$6,IF('DNSP Inputs General'!$B56='DNSP Inputs General'!$A$42,Q$7,Q$8))*'DNSP Inputs General'!$D56 -> 46.09595312 | R21: =IF('DNSP Inputs General'!$B56='DNSP Inputs General'!$A$41,R$6,IF('DNSP Inputs General'!$B56='DNSP Inputs General'!$A$42,R$7,R$8))*'DNSP Inputs General'!$D56 -> 47.57900555 | S21: =IF('DNSP Inputs General'!$B56='DNSP Inputs General'!$A$41,S$6,IF('DNSP Inputs General'!$B56='DNSP Inputs General'!$A$42,S$7,S$8))*'DNSP Inputs General'!$D56 -> 49.01068425 | T21: =IF('DNSP Inputs General'!$B56='DNSP Inputs General'!$A$41,T$6,IF('DNSP Inputs General'!$B56='DNSP Inputs General'!$A$42,T$7,T$8))*'DNSP Inputs General'!$D56 -> 50.34729507 | V21: 7.105427358e-15 | W21: 0 | X21: 0 | Y21: 7.105427358e-15 | Z21: 1.421085472e-14
A22: ='DNSP Inputs General'!A57 -> Metal Halide 150 watt | C22: ='DNSP Inputs General'!E57 -> 203.22 | D22: =IF('DNSP Inputs General'!$B57='DNSP Inputs General'!$A$41,D$6,IF('DNSP Inputs General'!$B57='DNSP Inputs General'!$A$42,D$7,D$8))*'DNSP Inputs General'!$D57 -> 211.6300956 | E22: =IF('DNSP Inputs General'!$B57='DNSP Inputs General'!$A$41,E$6,IF('DNSP Inputs General'!$B57='DNSP Inputs General'!$A$42,E$7,E$8))*'DNSP Inputs General'!$D57 -> 220.0089516 | F22: =IF('DNSP Inputs General'!$B57='DNSP Inputs General'!$A$41,F$6,IF('DNSP Inputs General'!$B57='DNSP Inputs General'!$A$42,F$7,F$8))*'DNSP Inputs General'!$D57 -> 227.7898123 | G22: =IF('DNSP Inputs General'!$B57='DNSP Inputs General'!$A$41,G$6,IF('DNSP Inputs General'!$B57='DNSP Inputs General'!$A$42,G$7,G$8))*'DNSP Inputs General'!$D57 -> 231.180787 | H22: =IF('DNSP Inputs General'!$B57='DNSP Inputs General'!$A$41,H$6,IF('DNSP Inputs General'!$B57='DNSP Inputs General'!$A$42,H$7,H$8))*'DNSP Inputs General'!$D57 -> 236.8876816 | J22: =IF('DNSP Inputs General'!$B57='DNSP Inputs General'!$A$41,J$6,IF('DNSP Inputs General'!$B57='DNSP Inputs General'!$A$42,J$7,J$8))*'DNSP Inputs General'!$D57 -> 168.1853669 | K22: =IF('DNSP Inputs General'!$B57='DNSP Inputs General'!$A$41,K$6,IF('DNSP Inputs General'!$B57='DNSP Inputs General'!$A$42,K$7,K$8))*'DNSP Inputs General'!$D57 -> 175.2607895 | L22: =IF('DNSP Inputs General'!$B57='DNSP Inputs General'!$A$41,L$6,IF('DNSP Inputs General'!$B57='DNSP Inputs General'!$A$42,L$7,L$8))*'DNSP Inputs General'!$D57 -> 181.6718875 | M22: =IF('DNSP Inputs General'!$B57='DNSP Inputs General'!$A$41,M$6,IF('DNSP Inputs General'!$B57='DNSP Inputs General'!$A$42,M$7,M$8))*'DNSP Inputs General'!$D57 -> 183.7414296 | N22: =IF('DNSP Inputs General'!$B57='DNSP Inputs General'!$A$41,N$6,IF('DNSP Inputs General'!$B57='DNSP Inputs General'!$A$42,N$7,N$8))*'DNSP Inputs General'!$D57 -> 188.2172018 | P22: =IF('DNSP Inputs General'!$B57='DNSP Inputs General'!$A$41,P$6,IF('DNSP Inputs General'!$B57='DNSP Inputs General'!$A$42,P$7,P$8))*'DNSP Inputs General'!$D57 -> 43.44472867 | Q22: =IF('DNSP Inputs General'!$B57='DNSP Inputs General'!$A$41,Q$6,IF('DNSP Inputs General'!$B57='DNSP Inputs General'!$A$42,Q$7,Q$8))*'DNSP Inputs General'!$D57 -> 44.74816204 | R22: =IF('DNSP Inputs General'!$B57='DNSP Inputs General'!$A$41,R$6,IF('DNSP Inputs General'!$B57='DNSP Inputs General'!$A$42,R$7,R$8))*'DNSP Inputs General'!$D57 -> 46.11792481 | S22: =IF('DNSP Inputs General'!$B57='DNSP Inputs General'!$A$41,S$6,IF('DNSP Inputs General'!$B57='DNSP Inputs General'!$A$42,S$7,S$8))*'DNSP Inputs General'!$D57 -> 47.43935739 | T22: =IF('DNSP Inputs General'!$B57='DNSP Inputs General'!$A$41,T$6,IF('DNSP Inputs General'!$B57='DNSP Inputs General'!$A$42,T$7,T$8))*'DNSP Inputs General'!$D57 -> 48.67047979 | V22: 1.421085472e-14 | W22: 2.842170943e-14 | X22: 4.263256415e-14 | Y22: 2.131628207e-14 | Z22: 7.105427358e-15
A23: ='DNSP Inputs General'!A58 -> Metal Halide 250 watt | C23: ='DNSP Inputs General'!E58 -> 202 | D23: =IF('DNSP Inputs General'!$B58='DNSP Inputs General'!$A$41,D$6,IF('DNSP Inputs General'!$B58='DNSP Inputs General'!$A$42,D$7,D$8))*'DNSP Inputs General'!$D58 -> 207.4994663 | E23: =IF('DNSP Inputs General'!$B58='DNSP Inputs General'!$A$41,E$6,IF('DNSP Inputs General'!$B58='DNSP Inputs General'!$A$42,E$7,E$8))*'DNSP Inputs General'!$D58 -> 215.6799739 | F23: =IF('DNSP Inputs General'!$B58='DNSP Inputs General'!$A$41,F$6,IF('DNSP Inputs General'!$B58='DNSP Inputs General'!$A$42,F$7,F$8))*'DNSP Inputs General'!$D58 -> 223.280952 | G23: =IF('DNSP Inputs General'!$B58='DNSP Inputs General'!$A$41,G$6,IF('DNSP Inputs General'!$B58='DNSP Inputs General'!$A$42,G$7,G$8))*'DNSP Inputs General'!$D58 -> 226.6031953 | H23: =IF('DNSP Inputs General'!$B58='DNSP Inputs General'!$A$41,H$6,IF('DNSP Inputs General'!$B58='DNSP Inputs General'!$A$42,H$7,H$8))*'DNSP Inputs General'!$D58 -> 232.1790566 | J23: =IF('DNSP Inputs General'!$B58='DNSP Inputs General'!$A$41,J$6,IF('DNSP Inputs General'!$B58='DNSP Inputs General'!$A$42,J$7,J$8))*'DNSP Inputs General'!$D58 -> 163.4684211 | K23: =IF('DNSP Inputs General'!$B58='DNSP Inputs General'!$A$41,K$6,IF('DNSP Inputs General'!$B58='DNSP Inputs General'!$A$42,K$7,K$8))*'DNSP Inputs General'!$D58 -> 170.3538969 | L23: =IF('DNSP Inputs General'!$B58='DNSP Inputs General'!$A$41,L$6,IF('DNSP Inputs General'!$B58='DNSP Inputs General'!$A$42,L$7,L$8))*'DNSP Inputs General'!$D58 -> 176.5925252 | M23: =IF('DNSP Inputs General'!$B58='DNSP Inputs General'!$A$41,M$6,IF('DNSP Inputs General'!$B58='DNSP Inputs General'!$A$42,M$7,M$8))*'DNSP Inputs General'!$D58 -> 178.6008197 | N23: =IF('DNSP Inputs General'!$B58='DNSP Inputs General'!$A$41,N$6,IF('DNSP Inputs General'!$B58='DNSP Inputs General'!$A$42,N$7,N$8))*'DNSP Inputs General'!$D58 -> 182.9534985 | P23: =IF('DNSP Inputs General'!$B58='DNSP Inputs General'!$A$41,P$6,IF('DNSP Inputs General'!$B58='DNSP Inputs General'!$A$42,P$7,P$8))*'DNSP Inputs General'!$D58 -> 44.03104521 | Q23: =IF('DNSP Inputs General'!$B58='DNSP Inputs General'!$A$41,Q$6,IF('DNSP Inputs General'!$B58='DNSP Inputs General'!$A$42,Q$7,Q$8))*'DNSP Inputs General'!$D58 -> 45.32607694 | R23: =IF('DNSP Inputs General'!$B58='DNSP Inputs General'!$A$41,R$6,IF('DNSP Inputs General'!$B58='DNSP Inputs General'!$A$42,R$7,R$8))*'DNSP Inputs General'!$D58 -> 46.68842681 | S23: =IF('DNSP Inputs General'!$B58='DNSP Inputs General'!$A$41,S$6,IF('DNSP Inputs General'!$B58='DNSP Inputs General'!$A$42,S$7,S$8))*'DNSP Inputs General'!$D58 -> 48.00237568 | T23: =IF('DNSP Inputs General'!$B58='DNSP Inputs General'!$A$41,T$6,IF('DNSP Inputs General'!$B58='DNSP Inputs General'!$A$42,T$7,T$8))*'DNSP Inputs General'!$D58 -> 49.22555811 | V23: 1.421085472e-14 | W23: 2.131628207e-14 | X23: 0 | Y23: 2.842170943e-14 | Z23: 2.842170943e-14
A24: ='DNSP Inputs General'!A59 -> Incandescent 100 watt | C24: ='DNSP Inputs General'!E59 -> 76.17 | D24: =IF('DNSP Inputs General'!$B59='DNSP Inputs General'!$A$41,D$6,IF('DNSP Inputs General'!$B59='DNSP Inputs General'!$A$42,D$7,D$8))*'DNSP Inputs General'!$D59 -> 75.20352873 | E24: =IF('DNSP Inputs General'!$B59='DNSP Inputs General'!$A$41,E$6,IF('DNSP Inputs General'!$B59='DNSP Inputs General'!$A$42,E$7,E$8))*'DNSP Inputs General'!$D59 -> 78.1930959 | F24: =IF('DNSP Inputs General'!$B59='DNSP Inputs General'!$A$41,F$6,IF('DNSP Inputs General'!$B59='DNSP Inputs General'!$A$42,F$7,F$8))*'DNSP Inputs General'!$D59 -> 80.93878486 | G24: =IF('DNSP Inputs General'!$B59='DNSP Inputs General'!$A$41,G$6,IF('DNSP Inputs General'!$B59='DNSP Inputs General'!$A$42,G$7,G$8))*'DNSP Inputs General'!$D59 -> 82.09025245 | H24: =IF('DNSP Inputs General'!$B59='DNSP Inputs General'!$A$41,H$6,IF('DNSP Inputs General'!$B59='DNSP Inputs General'!$A$42,H$7,H$8))*'DNSP Inputs General'!$D59 -> 84.02615286 | J24: =IF('DNSP Inputs General'!$B59='DNSP Inputs General'!$A$41,J$6,IF('DNSP Inputs General'!$B59='DNSP Inputs General'!$A$42,J$7,J$8))*'DNSP Inputs General'!$D59 -> 48.08207965 | K24: =IF('DNSP Inputs General'!$B59='DNSP Inputs General'!$A$41,K$6,IF('DNSP Inputs General'!$B59='DNSP Inputs General'!$A$42,K$7,K$8))*'DNSP Inputs General'!$D59 -> 50.21267299 | L24: =IF('DNSP Inputs General'!$B59='DNSP Inputs General'!$A$41,L$6,IF('DNSP Inputs General'!$B59='DNSP Inputs General'!$A$42,L$7,L$8))*'DNSP Inputs General'!$D59 -> 52.05814336 | M24: =IF('DNSP Inputs General'!$B59='DNSP Inputs General'!$A$41,M$6,IF('DNSP Inputs General'!$B59='DNSP Inputs General'!$A$42,M$7,M$8))*'DNSP Inputs General'!$D59 -> 52.34057641 | N24: =IF('DNSP Inputs General'!$B59='DNSP Inputs General'!$A$41,N$6,IF('DNSP Inputs General'!$B59='DNSP Inputs General'!$A$42,N$7,N$8))*'DNSP Inputs General'!$D59 -> 53.46514885 | P24: =IF('DNSP Inputs General'!$B59='DNSP Inputs General'!$A$41,P$6,IF('DNSP Inputs General'!$B59='DNSP Inputs General'!$A$42,P$7,P$8))*'DNSP Inputs General'!$D59 -> 27.12144908 | Q24: =IF('DNSP Inputs General'!$B59='DNSP Inputs General'!$A$41,Q$6,IF('DNSP Inputs General'!$B59='DNSP Inputs General'!$A$42,Q$7,Q$8))*'DNSP Inputs General'!$D59 -> 27.98042291 | R24: =IF('DNSP Inputs General'!$B59='DNSP Inputs General'!$A$41,R$6,IF('DNSP Inputs General'!$B59='DNSP Inputs General'!$A$42,R$7,R$8))*'DNSP Inputs General'!$D59 -> 28.8806415 | S24: =IF('DNSP Inputs General'!$B59='DNSP Inputs General'!$A$41,S$6,IF('DNSP Inputs General'!$B59='DNSP Inputs General'!$A$42,S$7,S$8))*'DNSP Inputs General'!$D59 -> 29.74967605 | T24: =IF('DNSP Inputs General'!$B59='DNSP Inputs General'!$A$41,T$6,IF('DNSP Inputs General'!$B59='DNSP Inputs General'!$A$42,T$7,T$8))*'DNSP Inputs General'!$D59 -> 30.56100401 | V24: =ABS(D24-J24-P24) -> 3.552713679e-15 | W24: =ABS(E24-K24-Q24) -> 0 | X24: =ABS(F24-L24-R24) -> 7.105427358e-15 | Y24: =ABS(G24-M24-S24) -> 7.105427358e-15 | Z24: =ABS(H24-N24-T24) -> 7.105427358e-15
A25: ='DNSP Inputs General'!A60 -> Incandescent 150 watt | C25: ='DNSP Inputs General'!E60 -> 95.21 | D25: =IF('DNSP Inputs General'!$B60='DNSP Inputs General'!$A$41,D$6,IF('DNSP Inputs General'!$B60='DNSP Inputs General'!$A$42,D$7,D$8))*'DNSP Inputs General'!$D60 -> 94.00441091 | E25: =IF('DNSP Inputs General'!$B60='DNSP Inputs General'!$A$41,E$6,IF('DNSP Inputs General'!$B60='DNSP Inputs General'!$A$42,E$7,E$8))*'DNSP Inputs General'!$D60 -> 97.74136987 | F25: =IF('DNSP Inputs General'!$B60='DNSP Inputs General'!$A$41,F$6,IF('DNSP Inputs General'!$B60='DNSP Inputs General'!$A$42,F$7,F$8))*'DNSP Inputs General'!$D60 -> 101.1734811 | G25: =IF('DNSP Inputs General'!$B60='DNSP Inputs General'!$A$41,G$6,IF('DNSP Inputs General'!$B60='DNSP Inputs General'!$A$42,G$7,G$8))*'DNSP Inputs General'!$D60 -> 102.6128156 | H25: =IF('DNSP Inputs General'!$B60='DNSP Inputs General'!$A$41,H$6,IF('DNSP Inputs General'!$B60='DNSP Inputs General'!$A$42,H$7,H$8))*'DNSP Inputs General'!$D60 -> 105.0326911 | J25: =IF('DNSP Inputs General'!$B60='DNSP Inputs General'!$A$41,J$6,IF('DNSP Inputs General'!$B60='DNSP Inputs General'!$A$42,J$7,J$8))*'DNSP Inputs General'!$D60 -> 60.10259956 | K25: =IF('DNSP Inputs General'!$B60='DNSP Inputs General'!$A$41,K$6,IF('DNSP Inputs General'!$B60='DNSP Inputs General'!$A$42,K$7,K$8))*'DNSP Inputs General'!$D60 -> 62.76584124 | L25: =IF('DNSP Inputs General'!$B60='DNSP Inputs General'!$A$41,L$6,IF('DNSP Inputs General'!$B60='DNSP Inputs General'!$A$42,L$7,L$8))*'DNSP Inputs General'!$D60 -> 65.0726792 | M25: =IF('DNSP Inputs General'!$B60='DNSP Inputs General'!$A$41,M$6,IF('DNSP Inputs General'!$B60='DNSP Inputs General'!$A$42,M$7,M$8))*'DNSP Inputs General'!$D60 -> 65.42572051 | N25: =IF('DNSP Inputs General'!$B60='DNSP Inputs General'!$A$41,N$6,IF('DNSP Inputs General'!$B60='DNSP Inputs General'!$A$42,N$7,N$8))*'DNSP Inputs General'!$D60 -> 66.83143606 | P25: =IF('DNSP Inputs General'!$B60='DNSP Inputs General'!$A$41,P$6,IF('DNSP Inputs General'!$B60='DNSP Inputs General'!$A$42,P$7,P$8))*'DNSP Inputs General'!$D60 -> 33.90181135 | Q25: =IF('DNSP Inputs General'!$B60='DNSP Inputs General'!$A$41,Q$6,IF('DNSP Inputs General'!$B60='DNSP Inputs General'!$A$42,Q$7,Q$8))*'DNSP Inputs General'!$D60 -> 34.97552863 | R25: =IF('DNSP Inputs General'!$B60='DNSP Inputs General'!$A$41,R$6,IF('DNSP Inputs General'!$B60='DNSP Inputs General'!$A$42,R$7,R$8))*'DNSP Inputs General'!$D60 -> 36.10080188 | S25: =IF('DNSP Inputs General'!$B60='DNSP Inputs General'!$A$41,S$6,IF('DNSP Inputs General'!$B60='DNSP Inputs General'!$A$42,S$7,S$8))*'DNSP Inputs General'!$D60 -> 37.18709506 | T25: =IF('DNSP Inputs General'!$B60='DNSP Inputs General'!$A$41,T$6,IF('DNSP Inputs General'!$B60='DNSP Inputs General'!$A$42,T$7,T$8))*'DNSP Inputs General'!$D60 -> 38.20125501 | V25: 7.105427358e-15 | W25: 7.105427358e-15 | X25: 7.105427358e-15 | Y25: 7.105427358e-15 | Z25: 7.105427358e-15
A26: ='DNSP Inputs General'!A61 -> Sodium High Pressure 250 watt (24 hrs) | C26: ='DNSP Inputs General'!E61 -> 144.62 | D26: =IF('DNSP Inputs General'!$B61='DNSP Inputs General'!$A$41,D$6,IF('DNSP Inputs General'!$B61='DNSP Inputs General'!$A$42,D$7,D$8))*'DNSP Inputs General'!$D61 -> 150.5577523 | E26: =IF('DNSP Inputs General'!$B61='DNSP Inputs General'!$A$41,E$6,IF('DNSP Inputs General'!$B61='DNSP Inputs General'!$A$42,E$7,E$8))*'DNSP Inputs General'!$D61 -> 156.4933764 | F26: =IF('DNSP Inputs General'!$B61='DNSP Inputs General'!$A$41,F$6,IF('DNSP Inputs General'!$B61='DNSP Inputs General'!$A$42,F$7,F$8))*'DNSP Inputs General'!$D61 -> 162.0085047 | G26: =IF('DNSP Inputs General'!$B61='DNSP Inputs General'!$A$41,G$6,IF('DNSP Inputs General'!$B61='DNSP Inputs General'!$A$42,G$7,G$8))*'DNSP Inputs General'!$D61 -> 164.4190627 | H26: =IF('DNSP Inputs General'!$B61='DNSP Inputs General'!$A$41,H$6,IF('DNSP Inputs General'!$B61='DNSP Inputs General'!$A$42,H$7,H$8))*'DNSP Inputs General'!$D61 -> 168.4648039 | J26: =IF('DNSP Inputs General'!$B61='DNSP Inputs General'!$A$41,J$6,IF('DNSP Inputs General'!$B61='DNSP Inputs General'!$A$42,J$7,J$8))*'DNSP Inputs General'!$D61 -> 118.6096451 | K26: =IF('DNSP Inputs General'!$B61='DNSP Inputs General'!$A$41,K$6,IF('DNSP Inputs General'!$B61='DNSP Inputs General'!$A$42,K$7,K$8))*'DNSP Inputs General'!$D61 -> 123.6056182 | L26: =IF('DNSP Inputs General'!$B61='DNSP Inputs General'!$A$41,L$6,IF('DNSP Inputs General'!$B61='DNSP Inputs General'!$A$42,L$7,L$8))*'DNSP Inputs General'!$D61 -> 128.1322509 | M26: =IF('DNSP Inputs General'!$B61='DNSP Inputs General'!$A$41,M$6,IF('DNSP Inputs General'!$B61='DNSP Inputs General'!$A$42,M$7,M$8))*'DNSP Inputs General'!$D61 -> 129.5894319 | N26: =IF('DNSP Inputs General'!$B61='DNSP Inputs General'!$A$41,N$6,IF('DNSP Inputs General'!$B61='DNSP Inputs General'!$A$42,N$7,N$8))*'DNSP Inputs General'!$D61 -> 132.7476547 | P26: =IF('DNSP Inputs General'!$B61='DNSP Inputs General'!$A$41,P$6,IF('DNSP Inputs General'!$B61='DNSP Inputs General'!$A$42,P$7,P$8))*'DNSP Inputs General'!$D61 -> 31.94810723 | Q26: =IF('DNSP Inputs General'!$B61='DNSP Inputs General'!$A$41,Q$6,IF('DNSP Inputs General'!$B61='DNSP Inputs General'!$A$42,Q$7,Q$8))*'DNSP Inputs General'!$D61 -> 32.88775815 | R26: =IF('DNSP Inputs General'!$B61='DNSP Inputs General'!$A$41,R$6,IF('DNSP Inputs General'!$B61='DNSP Inputs General'!$A$42,R$7,R$8))*'DNSP Inputs General'!$D61 -> 33.87625387 | S26: =IF('DNSP Inputs General'!$B61='DNSP Inputs General'!$A$41,S$6,IF('DNSP Inputs General'!$B61='DNSP Inputs General'!$A$42,S$7,S$8))*'DNSP Inputs General'!$D61 -> 34.82963072 | T26: =IF('DNSP Inputs General'!$B61='DNSP Inputs General'!$A$41,T$6,IF('DNSP Inputs General'!$B61='DNSP Inputs General'!$A$42,T$7,T$8))*'DNSP Inputs General'!$D61 -> 35.71714914 | V26: 7.105427358e-15 | W26: 1.421085472e-14 | X26: 7.105427358e-15 | Y26: 0 | Z26: 2.131628207e-14
A27: ='DNSP Inputs General'!A62 -> Metal Halide 100 watt | C27: ='DNSP Inputs General'!E62 -> 200.52 | D27: =IF('DNSP Inputs General'!$B62='DNSP Inputs General'!$A$41,D$6,IF('DNSP Inputs General'!$B62='DNSP Inputs General'!$A$42,D$7,D$8))*'DNSP Inputs General'!$D62 -> 211.6300956 | E27: =IF('DNSP Inputs General'!$B62='DNSP Inputs General'!$A$41,E$6,IF('DNSP Inputs General'!$B62='DNSP Inputs General'!$A$42,E$7,E$8))*'DNSP Inputs General'!$D62 -> 220.0089516 | F27: =IF('DNSP Inputs General'!$B62='DNSP Inputs General'!$A$41,F$6,IF('DNSP Inputs General'!$B62='DNSP Inputs General'!$A$42,F$7,F$8))*'DNSP Inputs General'!$D62 -> 227.7898123 | G27: =IF('DNSP Inputs General'!$B62='DNSP Inputs General'!$A$41,G$6,IF('DNSP Inputs General'!$B62='DNSP Inputs General'!$A$42,G$7,G$8))*'DNSP Inputs General'!$D62 -> 231.180787 | H27: =IF('DNSP Inputs General'!$B62='DNSP Inputs General'!$A$41,H$6,IF('DNSP Inputs General'!$B62='DNSP Inputs General'!$A$42,H$7,H$8))*'DNSP Inputs General'!$D62 -> 236.8876816 | J27: =IF('DNSP Inputs General'!$B62='DNSP Inputs General'!$A$41,J$6,IF('DNSP Inputs General'!$B62='DNSP Inputs General'!$A$42,J$7,J$8))*'DNSP Inputs General'!$D62 -> 168.1853669 | K27: =IF('DNSP Inputs General'!$B62='DNSP Inputs General'!$A$41,K$6,IF('DNSP Inputs General'!$B62='DNSP Inputs General'!$A$42,K$7,K$8))*'DNSP Inputs General'!$D62 -> 175.2607895 | L27: =IF('DNSP Inputs General'!$B62='DNSP Inputs General'!$A$41,L$6,IF('DNSP Inputs General'!$B62='DNSP Inputs General'!$A$42,L$7,L$8))*'DNSP Inputs General'!$D62 -> 181.6718875 | M27: =IF('DNSP Inputs General'!$B62='DNSP Inputs General'!$A$41,M$6,IF('DNSP Inputs General'!$B62='DNSP Inputs General'!$A$42,M$7,M$8))*'DNSP Inputs General'!$D62 -> 183.7414296 | N27: =IF('DNSP Inputs General'!$B62='DNSP Inputs General'!$A$41,N$6,IF('DNSP Inputs General'!$B62='DNSP Inputs General'!$A$42,N$7,N$8))*'DNSP Inputs General'!$D62 -> 188.2172018 | P27: =IF('DNSP Inputs General'!$B62='DNSP Inputs General'!$A$41,P$6,IF('DNSP Inputs General'!$B62='DNSP Inputs General'!$A$42,P$7,P$8))*'DNSP Inputs General'!$D62 -> 43.44472867 | Q27: =IF('DNSP Inputs General'!$B62='DNSP Inputs General'!$A$41,Q$6,IF('DNSP Inputs General'!$B62='DNSP Inputs General'!$A$42,Q$7,Q$8))*'DNSP Inputs General'!$D62 -> 44.74816204 | R27: =IF('DNSP Inputs General'!$B62='DNSP Inputs General'!$A$41,R$6,IF('DNSP Inputs General'!$B62='DNSP Inputs General'!$A$42,R$7,R$8))*'DNSP Inputs General'!$D62 -> 46.11792481 | S27: =IF('DNSP Inputs General'!$B62='DNSP Inputs General'!$A$41,S$6,IF('DNSP Inputs General'!$B62='DNSP Inputs General'!$A$42,S$7,S$8))*'DNSP Inputs General'!$D62 -> 47.43935739 | T27: =IF('DNSP Inputs General'!$B62='DNSP Inputs General'!$A$41,T$6,IF('DNSP Inputs General'!$B62='DNSP Inputs General'!$A$42,T$7,T$8))*'DNSP Inputs General'!$D62 -> 48.67047979 | V27: 1.421085472e-14 | W27: 2.842170943e-14 | X27: 4.263256415e-14 | Y27: 2.131628207e-14 | Z27: 7.105427358e-15
A30: ='DNSP Inputs General'!A$67 -> Energy Efficient Lights
A31: ='DNSP Inputs General'!A68 -> T5 2X14W | C31: ='DNSP Inputs General'!E68 -> 30.01 | D31: ='Charges Summary'!D$89 -> 32.02757431 | E31: ='Charges Summary'!E$89 -> 33.94288231 | F31: ='Charges Summary'!F$89 -> 35.72128383 | G31: ='Charges Summary'!G$89 -> 36.67007205 | H31: ='Charges Summary'!H$89 -> 38.0080582 | J31: =SUM('Charges Summary'!D83,'Charges Summary'!D8) -> 24.83401072 | K31: =SUM('Charges Summary'!E83,'Charges Summary'!E8) -> 25.92215677 | L31: =SUM('Charges Summary'!F83,'Charges Summary'!F8) -> 26.86236558 | M31: =SUM('Charges Summary'!G83,'Charges Summary'!G8) -> 27.00117393 | N31: =SUM('Charges Summary'!H83,'Charges Summary'!H8) -> 27.5712061 | P31: =SUM('Charges Summary'!D85,'Charges Summary'!D11) -> 7.193563583 | Q31: =SUM('Charges Summary'!E85,'Charges Summary'!E11) -> 8.020725543 | R31: =SUM('Charges Summary'!F85,'Charges Summary'!F11) -> 8.858918256 | S31: =SUM('Charges Summary'!G85,'Charges Summary'!G11) -> 9.668898121 | T31: =SUM('Charges Summary'!H85,'Charges Summary'!H11) -> 10.4368521 | V31: =ABS(D31-J31-P31) -> 1.776356839e-15 | W31: 0 | X31: 1.776356839e-15 | Y31: 3.552713679e-15 | Z31: 5.329070518e-15
A32: ='DNSP Inputs General'!A69 -> T5 (2x24W) | D32: =D$31*'DNSP Inputs General'!$D69 -> 36.07092256 | E32: =E$31*'DNSP Inputs General'!$D69 -> 38.22803025 | F32: =F$31*'DNSP Inputs General'!$D69 -> 40.23094757 | G32: =G$31*'DNSP Inputs General'!$D69 -> 41.29951636 | H32: =H$31*'DNSP Inputs General'!$D69 -> 42.80641771 | J32: =J$31*'DNSP Inputs General'!$D69 -> 27.96920145 | K32: =K$31*'DNSP Inputs General'!$D69 -> 29.19472141 | L32: =L$31*'DNSP Inputs General'!$D69 -> 30.25362767 | M32: =M$31*'DNSP Inputs General'!$D69 -> 30.40996 | N32: =N$31*'DNSP Inputs General'!$D69 -> 31.05195637 | P32: =P$31*'DNSP Inputs General'!$D69 -> 8.101721111 | Q32: =Q$31*'DNSP Inputs General'!$D69 -> 9.033308834 | R32: =R$31*'DNSP Inputs General'!$D69 -> 9.977319896 | S32: =S$31*'DNSP Inputs General'!$D69 -> 10.88955636 | T32: =T$31*'DNSP Inputs General'!$D69 -> 11.75446134 | V32: 1.776356839e-15 | W32: 1.776356839e-15 | X32: 0 | Y32: 7.105427358e-15 | Z32: 5.329070518e-15
A33: ='DNSP Inputs General'!A70 -> LED 18W | D33: ='Charges Summary'!D$107 -> 18.69312275 | E33: ='Charges Summary'!E$107 -> 20.0953859 | F33: ='Charges Summary'!F$107 -> 21.45373128 | G33: ='Charges Summary'!G$107 -> 22.47837489 | H33: ='Charges Summary'!H$107 -> 23.61444907 | J33: =SUM('Charges Summary'!D101,'Charges Summary'!D8) -> 10.75736129 | K33: =SUM('Charges Summary'!E101,'Charges Summary'!E8) -> 11.18218639 | L33: =SUM('Charges Summary'!F101,'Charges Summary'!F8) -> 11.55069686 | M33: =SUM('Charges Summary'!G101,'Charges Summary'!G8) -> 11.61942365 | N33: =SUM('Charges Summary'!H101,'Charges Summary'!H8) -> 11.84972405 | P33: =SUM('Charges Summary'!D103,'Charges Summary'!D11) -> 7.935761463 | Q33: =SUM('Charges Summary'!E103,'Charges Summary'!E11) -> 8.913199509 | R33: =SUM('Charges Summary'!F103,'Charges Summary'!F11) -> 9.903034422 | S33: =SUM('Charges Summary'!G103,'Charges Summary'!G11) -> 10.85895124 | T33: =SUM('Charges Summary'!H103,'Charges Summary'!H11) -> 11.76472502 | V33: 0 | W33: 1.776356839e-15 | X33: 1.776356839e-15 | Y33: 1.776356839e-15 | Z33: 1.776356839e-15
A34: ='DNSP Inputs General'!A71 -> Compact Fluoro 32W | D34: =D$31*'DNSP Inputs General'!$D71 -> 27.6249638 | E34: =E$31*'DNSP Inputs General'!$D71 -> 29.27698758 | F34: =F$31*'DNSP Inputs General'!$D71 -> 30.81092446 | G34: =G$31*'DNSP Inputs General'!$D71 -> 31.62928928 | H34: =H$31*'DNSP Inputs General'!$D71 -> 32.78335168 | J34: =J$31*'DNSP Inputs General'!$D71 -> 21.42024996 | K34: =K$31*'DNSP Inputs General'!$D71 -> 22.35881605 | L34: =L$31*'DNSP Inputs General'!$D71 -> 23.16978081 | M34: =M$31*'DNSP Inputs General'!$D71 -> 23.28950813 | N34: =N$31*'DNSP Inputs General'!$D71 -> 23.7811819 | P34: =P$31*'DNSP Inputs General'!$D71 -> 6.20471384 | Q34: =Q$31*'DNSP Inputs General'!$D71 -> 6.91817153 | R34: =R$31*'DNSP Inputs General'!$D71 -> 7.641143652 | S34: =S$31*'DNSP Inputs General'!$D71 -> 8.339781152 | T34: =T$31*'DNSP Inputs General'!$D71 -> 9.00216978 | V34: 0 | W34: 1.776356839e-15 | X34: 2.664535259e-15 | Y34: 3.552713679e-15 | Z34: 1.776356839e-15
A35: ='DNSP Inputs General'!A72 -> Compact Fluoro 42W | D35: =D$31*'DNSP Inputs General'!$D72 -> 31.15506232 | E35: =E$31*'DNSP Inputs General'!$D72 -> 33.0181925 | F35: =F$31*'DNSP Inputs General'!$D72 -> 34.74814587 | G35: =G$31*'DNSP Inputs General'!$D72 -> 35.6710867 | H35: =H$31*'DNSP Inputs General'!$D72 -> 36.97262273 | J35: =J$31*'DNSP Inputs General'!$D72 -> 24.15746957 | K35: =K$31*'DNSP Inputs General'!$D72 -> 25.21597177 | L35: =L$31*'DNSP Inputs General'!$D72 -> 26.13056691 | M35: =M$31*'DNSP Inputs General'!$D72 -> 26.26559377 | N35: =N$31*'DNSP Inputs General'!$D72 -> 26.82009683 | P35: =P$31*'DNSP Inputs General'!$D72 -> 6.997592748 | Q35: =Q$31*'DNSP Inputs General'!$D72 -> 7.802220728 | R35: =R$31*'DNSP Inputs General'!$D72 -> 8.617578955 | S35: =S$31*'DNSP Inputs General'!$D72 -> 9.405492923 | T35: =T$31*'DNSP Inputs General'!$D72 -> 10.1525259 | V35: =ABS(D35-J35-P35) -> 4.440892099e-15 | W35: =ABS(E35-K35-Q35) -> 2.664535259e-15 | X35: =ABS(F35-L35-R35) -> 3.552713679e-15 | Y35: =ABS(G35-M35-S35) -> 3.552713679e-15 | Z35: =ABS(H35-N35-T35) -> 8.881784197e-15

Sheet Cashflow Summary
A1: ='DNSP Inputs O & M'!$A$3 -> Jemena | E1: Check | F1: =SUM(C126,C132,C155) -> 8.381903172e-09
C2: ='DNSP Inputs General'!J$2 -> 2015 | D2: ='DNSP Inputs General'!K$2 -> 2016 | E2: ='DNSP Inputs General'!L$2 -> 2017 | F2: ='DNSP Inputs General'!M$2 -> 2018 | G2: ='DNSP Inputs General'!N$2 -> 2019 | H2: ='DNSP Inputs General'!O$2 -> 2020 | J2: =C2 -> 2015 | K2: =D2 -> 2016 | L2: 2017 | M2: 2018 | N2: 2019 | O2: 2020
A4: Public Lighting - Revenue | C4: Revenue - Nominal | J4: Revenue - Real 2015 $
C5: =C$2 -> 2015 | D5: =D$2 -> 2016 | E5: 2017 | F5: 2018 | G5: 2019 | H5: 2020 | J5: =J$2 -> 2015 | K5: 2016 | L5: 2017 | M5: 2018 | N5: 2019 | O5: 2020
A6: ='DNSP Inputs General'!A$40 -> Existing Lights
A7: ='DNSP Inputs General'!A$41 -> Mercury Vapour 80 watt | C7: =IF('PL Tariffs'!C6=0,"",'DNSP Inputs General'!J41*'PL Tariffs'!C6) -> 665016.7857 | D7: ='DNSP Inputs General'!K41*'PL Tariffs'!D6 -> 647083.3107 | E7: ='DNSP Inputs General'!L41*'PL Tariffs'!E6 -> 663118.4064 | F7: ='DNSP Inputs General'!M41*'PL Tariffs'!F6 -> 676519.0795 | G7: ='DNSP Inputs General'!N41*'PL Tariffs'!G6 -> 676263.0445 | H7: ='DNSP Inputs General'!O41*'PL Tariffs'!H6 -> 682243.2361 | J7: =C7 -> 665016.7857 | K7: =D7/'Charges Summary'!D$4 -> 631300.791 | L7: =E7/'Charges Summary'!E$4 -> 631165.6456 | M7: =F7/'Charges Summary'!F$4 -> 628215.2187 | N7: =G7/'Charges Summary'!G$4 -> 612660.9412 | O7: =H7/'Charges Summary'!H$4 -> 603003.6095
A8: ='DNSP Inputs General'!A$42 -> Sodium High Pressure 150 watt | C8: =IF('PL Tariffs'!C7=0,"",'DNSP Inputs General'!J42*'PL Tariffs'!C7) -> 1418078.663 | D8: ='DNSP Inputs General'!K42*'PL Tariffs'!D7 -> 1497350.381 | E8: ='DNSP Inputs General'!L42*'PL Tariffs'!E7 -> 1577728.834 | F8: ='DNSP Inputs General'!M42*'PL Tariffs'!F7 -> 1655106.629 | G8: ='DNSP Inputs General'!N42*'PL Tariffs'!G7 -> 1701419.424 | H8: ='DNSP Inputs General'!O42*'PL Tariffs'!H7 -> 1765431.376 | J8: 1418078.663 | K8: =D8/'Charges Summary'!D$4 -> 1460829.64 | L8: =E8/'Charges Summary'!E$4 -> 1501705.018 | M8: =F8/'Charges Summary'!F$4 -> 1536931.041 | N8: =G8/'Charges Summary'!G$4 -> 1541402.024 | O8: =H8/'Charges Summary'!H$4 -> 1560384.092
A9: ='DNSP Inputs General'!A$43 -> Sodium High Pressure 250 watt | C9: =IF('PL Tariffs'!C8=0,"",'DNSP Inputs General'!J43*'PL Tariffs'!C8) -> 444614.6002 | D9: ='DNSP Inputs General'!K43*'PL Tariffs'!D8 -> 457696.1452 | E9: ='DNSP Inputs General'!L43*'PL Tariffs'!E8 -> 476689.2305 | F9: ='DNSP Inputs General'!M43*'PL Tariffs'!F8 -> 494422.6467 | G9: ='DNSP Inputs General'!N43*'PL Tariffs'!G8 -> 502680.5815 | H9: ='DNSP Inputs General'!O43*'PL Tariffs'!H8 -> 515927.8258 | J9: 444614.6002 | K9: =D9/'Charges Summary'!D$4 -> 446532.8246 | L9: =E9/'Charges Summary'!E$4 -> 453719.6721 | M9: =F9/'Charges Summary'!F$4 -> 459120.5785 | N9: =G9/'Charges Summary'!G$4 -> 455403.7969 | O9: =H9/'Charges Summary'!H$4 -> 456005.0209
A10: ='DNSP Inputs General'!A$44 -> 55W Ind | C10: =IF('PL Tariffs'!C9=0,"",'DNSP Inputs General'!J44*'PL Tariffs'!C9) -> 0 | D10: ='DNSP Inputs General'!K44*'PL Tariffs'!D9 -> 0 | E10: ='DNSP Inputs General'!L44*'PL Tariffs'!E9 -> 0 | F10: ='DNSP Inputs General'!M44*'PL Tariffs'!F9 -> 0 | G10: ='DNSP Inputs General'!N44*'PL Tariffs'!G9 -> 0 | H10: ='DNSP Inputs General'!O44*'PL Tariffs'!H9 -> 0 | J10: 0 | K10: =D10/'Charges Summary'!D$4 -> 0 | L10: =E10/'Charges Summary'!E$4 -> 0 | M10: =F10/'Charges Summary'!F$4 -> 0 | N10: =G10/'Charges Summary'!G$4 -> 0 | O10: =H10/'Charges Summary'!H$4 -> 0
A11: ='DNSP Inputs General'!A$45 -> Fluorescent 20 watt | C11: =IF('PL Tariffs'!C10=0,"",'DNSP Inputs General'!J45*'PL Tariffs'!C10) -> 0 | D11: ='DNSP Inputs General'!K45*'PL Tariffs'!D10 -> 0 | E11: ='DNSP Inputs General'!L45*'PL Tariffs'!E10 -> 0 | F11: ='DNSP Inputs General'!M45*'PL Tariffs'!F10 -> 0 | G11: ='DNSP Inputs General'!N45*'PL Tariffs'!G10 -> 0 | H11: ='DNSP Inputs General'!O45*'PL Tariffs'!H10 -> 0 | J11: 0 | K11: =D11/'Charges Summary'!D$4 -> 0 | L11: =E11/'Charges Summary'!E$4 -> 0 | M11: =F11/'Charges Summary'!F$4 -> 0 | N11: =G11/'Charges Summary'!G$4 -> 0 | O11: =H11/'Charges Summary'!H$4 -> 0
A12: ='DNSP Inputs General'!A$46 -> Fluorescent 40 watt | C12: =IF('PL Tariffs'!C11=0,"",'DNSP Inputs General'!J46*'PL Tariffs'!C11) -> 1306.494074 | D12: ='DNSP Inputs General'!K46*'PL Tariffs'!D11 -> 0 | E12: ='DNSP Inputs General'!L46*'PL Tariffs'!E11 -> 0 | F12: ='DNSP Inputs General'!M46*'PL Tariffs'!F11 -> 0 | G12: ='DNSP Inputs General'!N46*'PL Tariffs'!G11 -> 0 | H12: ='DNSP Inputs General'!O46*'PL Tariffs'!H11 -> 0 | J12: 1306.494074 | K12: =D12/'Charges Summary'!D$4 -> 0 | L12: =E12/'Charges Summary'!E$4 -> 0 | M12: =F12/'Charges Summary'!F$4 -> 0 | N12: =G12/'Charges Summary'!G$4 -> 0 | O12: =H12/'Charges Summary'!H$4 -> 0
A13: ='DNSP Inputs General'!A$47 -> Fluorescent 80 watt | C13: =IF('PL Tariffs'!C12=0,"",'DNSP Inputs General'!J47*'PL Tariffs'!C12) -> 0 | D13: ='DNSP Inputs General'!K47*'PL Tariffs'!D12 -> 0 | E13: ='DNSP Inputs General'!L47*'PL Tariffs'!E12 -> 0 | F13: ='DNSP Inputs General'!M47*'PL Tariffs'!F12 -> 0 | G13: ='DNSP Inputs General'!N47*'PL Tariffs'!G12 -> 0 | H13: ='DNSP Inputs General'!O47*'PL Tariffs'!H12 -> 0 | J13: 0 | K13: =D13/'Charges Summary'!D$4 -> 0 | L13: =E13/'Charges Summary'!E$4 -> 0 | M13: =F13/'Charges Summary'!F$4 -> 0 | N13: =G13/'Charges Summary'!G$4 -> 0 | O13: =H13/'Charges Summary'!H$4 -> 0
A14: ='DNSP Inputs General'!A$48 -> Mercury Vapour 50 watt | C14: =IF('PL Tariffs'!C13=0,"",'DNSP Inputs General'!J48*'PL Tariffs'!C13) -> 1037.51 | D14: ='DNSP Inputs General'!K48*'PL Tariffs'!D13 -> 0 | E14: ='DNSP Inputs General'!L48*'PL Tariffs'!E13 -> 0 | F14: ='DNSP Inputs General'!M48*'PL Tariffs'!F13 -> 0 | G14: ='DNSP Inputs General'!N48*'PL Tariffs'!G13 -> 0 | H14: ='DNSP Inputs General'!O48*'PL Tariffs'!H13 -> 0 | J14: 1037.51 | K14: =D14/'Charges Summary'!D$4 -> 0 | L14: =E14/'Charges Summary'!E$4 -> 0 | M14: =F14/'Charges Summary'!F$4 -> 0 | N14: =G14/'Charges Summary'!G$4 -> 0 | O14: =H14/'Charges Summary'!H$4 -> 0
A15: ='DNSP Inputs General'!A$49 -> Mercury Vapour 125 watt | C15: =IF('PL Tariffs'!C14=0,"",'DNSP Inputs General'!J49*'PL Tariffs'!C14) -> 25818.82688 | D15: ='DNSP Inputs General'!K49*'PL Tariffs'!D14 -> 25126.10728 | E15: ='DNSP Inputs General'!L49*'PL Tariffs'!E14 -> 25748.74663 | F15: ='DNSP Inputs General'!M49*'PL Tariffs'!F14 -> 26269.09192 | G15: ='DNSP Inputs General'!N49*'PL Tariffs'!G14 -> 26259.15013 | H15: ='DNSP Inputs General'!O49*'PL Tariffs'!H14 -> 26491.3597 | J15: 25818.82688 | K15: =D15/'Charges Summary'!D$4 -> 24513.27539 | L15: =E15/'Charges Summary'!E$4 -> 24508.02773 | M15: =F15/'Charges Summary'!F$4 -> 24393.46328 | N15: =G15/'Charges Summary'!G$4 -> 23789.49399 | O15: =H15/'Charges Summary'!H$4 -> 23414.50186
A16: ='DNSP Inputs General'!A$50 -> Mercury Vapour 250 watt | C16: =IF('PL Tariffs'!C15=0,"",'DNSP Inputs General'!J50*'PL Tariffs'!C15) -> 12545.85398 | D16: ='DNSP Inputs General'!K50*'PL Tariffs'!D15 -> 10998.81345 | E16: ='DNSP Inputs General'!L50*'PL Tariffs'!E15 -> 9756.474442 | F16: ='DNSP Inputs General'!M50*'PL Tariffs'!F15 -> 8619.63749 | G16: ='DNSP Inputs General'!N50*'PL Tariffs'!G15 -> 7465.477534 | H16: ='DNSP Inputs General'!O50*'PL Tariffs'!H15 -> 6527.830103 | J16: 12545.85398 | K16: =D16/'Charges Summary'!D$4 -> 10730.5497 | L16: =E16/'Charges Summary'!E$4 -> 9286.35283 | M16: =F16/'Charges Summary'!F$4 -> 8004.190296 | N16: =G16/'Charges Summary'!G$4 -> 6763.354186 | O16: =H16/'Charges Summary'!H$4 -> 5769.650625
A17: ='DNSP Inputs General'!A$51 -> Mercury Vapour 400 watt | C17: =IF('PL Tariffs'!C16=0,"",'DNSP Inputs General'!J51*'PL Tariffs'!C16) -> 20551.75192 | D17: ='DNSP Inputs General'!K51*'PL Tariffs'!D16 -> 20074.51462 | E17: ='DNSP Inputs General'!L51*'PL Tariffs'!E16 -> 19841.27043 | F17: ='DNSP Inputs General'!M51*'PL Tariffs'!F16 -> 19531.82906 | G17: ='DNSP Inputs General'!N51*'PL Tariffs'!G16 -> 18849.02342 | H17: ='DNSP Inputs General'!O51*'PL Tariffs'!H16 -> 18364.42995 | J17: 20551.75192 | K17: =D17/'Charges Summary'!D$4 -> 19584.89231 | L17: =E17/'Charges Summary'!E$4 -> 18885.20684 | M17: =F17/'Charges Summary'!F$4 -> 18137.24496 | N17: =G17/'Charges Summary'!G$4 -> 17076.28492 | O17: =H17/'Charges Summary'!H$4 -> 16231.48015
A18: ='DNSP Inputs General'!A$52 -> Sodium High Pressure 50 watt | C18: =IF('PL Tariffs'!C17=0,"",'DNSP Inputs General'!J52*'PL Tariffs'!C17) -> 0 | D18: ='DNSP Inputs General'!K52*'PL Tariffs'!D17 -> 0 | E18: ='DNSP Inputs General'!L52*'PL Tariffs'!E17 -> 0 | F18: ='DNSP Inputs General'!M52*'PL Tariffs'!F17 -> 0 | G18: ='DNSP Inputs General'!N52*'PL Tariffs'!G17 -> 0 | H18: ='DNSP Inputs General'!O52*'PL Tariffs'!H17 -> 0 | J18: 0 | K18: =D18/'Charges Summary'!D$4 -> 0 | L18: =E18/'Charges Summary'!E$4 -> 0 | M18: =F18/'Charges Summary'!F$4 -> 0 | N18: =G18/'Charges Summary'!G$4 -> 0 | O18: =H18/'Charges Summary'!H$4 -> 0
A19: ='DNSP Inputs General'!A$53 -> Sodium Low Pressure 90 watt | C19: =IF('PL Tariffs'!C18=0,"",'DNSP Inputs General'!J53*'PL Tariffs'!C18) -> 0 | D19: ='DNSP Inputs General'!K53*'PL Tariffs'!D18 -> 0 | E19: ='DNSP Inputs General'!L53*'PL Tariffs'!E18 -> 0 | F19: ='DNSP Inputs General'!M53*'PL Tariffs'!F18 -> 0 | G19: ='DNSP Inputs General'!N53*'PL Tariffs'!G18 -> 0 | H19: ='DNSP Inputs General'!O53*'PL Tariffs'!H18 -> 0 | J19: 0 | K19: =D19/'Charges Summary'!D$4 -> 0 | L19: =E19/'Charges Summary'!E$4 -> 0 | M19: =F19/'Charges Summary'!F$4 -> 0 | N19: =G19/'Charges Summary'!G$4 -> 0 | O19: =H19/'Charges Summary'!H$4 -> 0
A20: ='DNSP Inputs General'!A$54 -> Sodium High Pressure 100 watt | C20: =IF('PL Tariffs'!C19=0,"",'DNSP Inputs General'!J54*'PL Tariffs'!C19) -> 146100.0415 | D20: ='DNSP Inputs General'!K54*'PL Tariffs'!D19 -> 149956.0137 | E20: ='DNSP Inputs General'!L54*'PL Tariffs'!E19 -> 153648.21 | F20: ='DNSP Inputs General'!M54*'PL Tariffs'!F19 -> 156791.3666 | G20: ='DNSP Inputs General'!N54*'PL Tariffs'!G19 -> 156834.0224 | H20: ='DNSP Inputs General'!O54*'PL Tariffs'!H19 -> 158391.4431 | J20: 146100.0415 | K20: =D20/'Charges Summary'!D$4 -> 146298.5499 | L20: =E20/'Charges Summary'!E$4 -> 146244.5783 | M20: =F20/'Charges Summary'!F$4 -> 145596.3706 | N20: =G20/'Charges Summary'!G$4 -> 142083.8837 | O20: =H20/'Charges Summary'!H$4 -> 139994.9561
A21: ='DNSP Inputs General'!A$55 -> Sodium High Pressure 400 watt | C21: =IF('PL Tariffs'!C20=0,"",'DNSP Inputs General'!J55*'PL Tariffs'!C20) -> 35988.48 | D21: ='DNSP Inputs General'!K55*'PL Tariffs'!D20 -> 36967.71887 | E21: ='DNSP Inputs General'!L55*'PL Tariffs'!E20 -> 38425.14288 | F21: ='DNSP Inputs General'!M55*'PL Tariffs'!F20 -> 39779.31901 | G21: ='DNSP Inputs General'!N55*'PL Tariffs'!G20 -> 40371.20369 | H21: ='DNSP Inputs General'!O55*'PL Tariffs'!H20 -> 41364.58876 | J21: 35988.48 | K21: =D21/'Charges Summary'!D$4 -> 36066.06719 | L21: =E21/'Charges Summary'!E$4 -> 36573.60417 | M21: =F21/'Charges Summary'!F$4 -> 36939.0522 | N21: =G21/'Charges Summary'!G$4 -> 36574.31802 | O21: =H21/'Charges Summary'!H$4 -> 36560.26913
A22: ='DNSP Inputs General'!A$56 -> Metal Halide 70 watt | C22: =IF('PL Tariffs'!C21=0,"",'DNSP Inputs General'!J56*'PL Tariffs'!C21) -> 1505.76 | D22: ='DNSP Inputs General'!K56*'PL Tariffs'!D21 -> 1486.715914 | E22: ='DNSP Inputs General'!L56*'PL Tariffs'!E21 -> 1545.817357 | F22: ='DNSP Inputs General'!M56*'PL Tariffs'!F21 -> 1600.097516 | G22: ='DNSP Inputs General'!N56*'PL Tariffs'!G21 -> 1622.861145 | H22: ='DNSP Inputs General'!O56*'PL Tariffs'!H21 -> 1661.132406 | J22: 1505.76 | K22: =D22/'Charges Summary'!D$4 -> 1450.45455 | L22: =E22/'Charges Summary'!E$4 -> 1471.331215 | M22: =F22/'Charges Summary'!F$4 -> 1485.849611 | N22: =G22/'Charges Summary'!G$4 -> 1470.2321 | O22: =H22/'Charges Summary'!H$4 -> 1468.199
A23: ='DNSP Inputs General'!A$57 -> Metal Halide 150 watt | C23: =IF('PL Tariffs'!C22=0,"",'DNSP Inputs General'!J57*'PL Tariffs'!C22) -> 6706.26 | D23: ='DNSP Inputs General'!K57*'PL Tariffs'!D22 -> 6983.793153 | E23: ='DNSP Inputs General'!L57*'PL Tariffs'!E22 -> 7260.295402 | F23: ='DNSP Inputs General'!M57*'PL Tariffs'!F22 -> 7517.063807 | G23: ='DNSP Inputs General'!N57*'PL Tariffs'!G22 -> 7628.96597 | H23: ='DNSP Inputs General'!O57*'PL Tariffs'!H22 -> 7817.293493 | J23: 6706.26 | K23: =D23/'Charges Summary'!D$4 -> 6813.456735 | L23: =E23/'Charges Summary'!E$4 -> 6910.453684 | M23: =F23/'Charges Summary'!F$4 -> 6980.341023 | N23: =G23/'Charges Summary'!G$4 -> 6911.46664 | O23: =H23/'Charges Summary'!H$4 -> 6909.348372
A24: ='DNSP Inputs General'!A$58 -> Metal Halide 250 watt | C24: =IF('PL Tariffs'!C23=0,"",'DNSP Inputs General'!J58*'PL Tariffs'!C23) -> 14544 | D24: ='DNSP Inputs General'!K58*'PL Tariffs'!D23 -> 14939.96158 | E24: ='DNSP Inputs General'!L58*'PL Tariffs'!E23 -> 15528.95812 | F24: ='DNSP Inputs General'!M58*'PL Tariffs'!F23 -> 16076.22855 | G24: ='DNSP Inputs General'!N58*'PL Tariffs'!G23 -> 16315.43006 | H24: ='DNSP Inputs General'!O58*'PL Tariffs'!H23 -> 16716.89208 | J24: 14544 | K24: =D24/'Charges Summary'!D$4 -> 14575.57227 | L24: =E24/'Charges Summary'!E$4 -> 14780.68589 | M24: =F24/'Charges Summary'!F$4 -> 14928.37636 | N24: =G24/'Charges Summary'!G$4 -> 14780.97439 | O24: =H24/'Charges Summary'!H$4 -> 14775.29674
A25: ='DNSP Inputs General'!A$59 -> Incandescent 100 watt | C25: =IF('PL Tariffs'!C24=0,"",'DNSP Inputs General'!J59*'PL Tariffs'!C24) -> 0 | D25: ='DNSP Inputs General'!K59*'PL Tariffs'!D24 -> 0 | E25: ='DNSP Inputs General'!L59*'PL Tariffs'!E24 -> 0 | F25: ='DNSP Inputs General'!M59*'PL Tariffs'!F24 -> 0 | G25: ='DNSP Inputs General'!N59*'PL Tariffs'!G24 -> 0 | H25: ='DNSP Inputs General'!O59*'PL Tariffs'!H24 -> 0 | J25: 0 | K25: =D25/'Charges Summary'!D$4 -> 0 | L25: =E25/'Charges Summary'!E$4 -> 0 | M25: =F25/'Charges Summary'!F$4 -> 0 | N25: =G25/'Charges Summary'!G$4 -> 0 | O25: =H25/'Charges Summary'!H$4 -> 0
A26: ='DNSP Inputs General'!A$60 -> Incandescent 150 watt | C26: =IF('PL Tariffs'!C25=0,"",'DNSP Inputs General'!J60*'PL Tariffs'!C25) -> 0 | D26: ='DNSP Inputs General'!K60*'PL Tariffs'!D25 -> 0 | E26: ='DNSP Inputs General'!L60*'PL Tariffs'!E25 -> 0 | F26: ='DNSP Inputs General'!M60*'PL Tariffs'!F25 -> 0 | G26: ='DNSP Inputs General'!N60*'PL Tariffs'!G25 -> 0 | H26: ='DNSP Inputs General'!O60*'PL Tariffs'!H25 -> 0 | J26: 0 | K26: =D26/'Charges Summary'!D$4 -> 0 | L26: =E26/'Charges Summary'!E$4 -> 0 | M26: =F26/'Charges Summary'!F$4 -> 0 | N26: =G26/'Charges Summary'!G$4 -> 0 | O26: =H26/'Charges Summary'!H$4 -> 0
A27: ='DNSP Inputs General'!A$61 -> Sodium High Pressure 250 watt (24 hrs) | C27: =IF('PL Tariffs'!C26=0,"",'DNSP Inputs General'!J61*'PL Tariffs'!C26) -> 0 | D27: ='DNSP Inputs General'!K61*'PL Tariffs'!D26 -> 0 | E27: ='DNSP Inputs General'!L61*'PL Tariffs'!E26 -> 0 | F27: ='DNSP Inputs General'!M61*'PL Tariffs'!F26 -> 0 | G27: ='DNSP Inputs General'!N61*'PL Tariffs'!G26 -> 0 | H27: ='DNSP Inputs General'!O61*'PL Tariffs'!H26 -> 0 | J27: 0 | K27: =D27/'Charges Summary'!D$4 -> 0 | L27: =E27/'Charges Summary'!E$4 -> 0 | M27: =F27/'Charges Summary'!F$4 -> 0 | N27: =G27/'Charges Summary'!G$4 -> 0 | O27: =H27/'Charges Summary'!H$4 -> 0
A28: ='DNSP Inputs General'!A$62 -> Metal Halide 100 watt | C28: =IF('PL Tariffs'!C27=0,"",'DNSP Inputs General'!J62*'PL Tariffs'!C27) -> 0 | D28: ='DNSP Inputs General'!K62*'PL Tariffs'!D27 -> 0 | E28: ='DNSP Inputs General'!L62*'PL Tariffs'!E27 -> 0 | F28: ='DNSP Inputs General'!M62*'PL Tariffs'!F27 -> 0 | G28: ='DNSP Inputs General'!N62*'PL Tariffs'!G27 -> 0 | H28: ='DNSP Inputs General'!O62*'PL Tariffs'!H27 -> 0 | J28: 0 | K28: =D28/'Charges Summary'!D$4 -> 0 | L28: =E28/'Charges Summary'!E$4 -> 0 | M28: =F28/'Charges Summary'!F$4 -> 0 | N28: =G28/'Charges Summary'!G$4 -> 0 | O28: =H28/'Charges Summary'!H$4 -> 0
A31: ='DNSP Inputs General'!A$67 -> Energy Efficient Lights
A32: ='DNSP Inputs General'!A$68 -> T5 2X14W | C32: =IF('PL Tariffs'!C31=0,"",'DNSP Inputs General'!J68*'PL Tariffs'!C31) -> 1037929.839 | D32: ='DNSP Inputs General'!K68*'PL Tariffs'!D31 -> 1123722.034 | E32: ='DNSP Inputs General'!L68*'PL Tariffs'!E31 -> 1207165.711 | F32: ='DNSP Inputs General'!M68*'PL Tariffs'!F31 -> 1287507.949 | G32: ='DNSP Inputs General'!N68*'PL Tariffs'!G31 -> 1339253.37 | H32: ='DNSP Inputs General'!O68*'PL Tariffs'!H31 -> 1406307.275 | J32: =C32 -> 1037929.839 | K32: =D32/'Charges Summary'!D$4 -> 1096314.18 | L32: =E32/'Charges Summary'!E$4 -> 1148997.702 | M32: =F32/'Charges Summary'!F$4 -> 1195579.123 | N32: =G32/'Charges Summary'!G$4 -> 1213297.454 | O32: =H32/'Charges Summary'!H$4 -> 1242970.715
A33: ='DNSP Inputs General'!A$69 -> T5 (2x24W) | C33: =IF('PL Tariffs'!C32=0,"",'DNSP Inputs General'!J69*'PL Tariffs'!C32) ->  | D33: ='DNSP Inputs General'!K69*'PL Tariffs'!D32 -> 12011.61721 | E33: ='DNSP Inputs General'!L69*'PL Tariffs'!E32 -> 12729.93407 | F33: ='DNSP Inputs General'!M69*'PL Tariffs'!F32 -> 13396.90554 | G33: ='DNSP Inputs General'!N69*'PL Tariffs'!G32 -> 13752.73895 | H33: ='DNSP Inputs General'!O69*'PL Tariffs'!H32 -> 14254.5371 | J33: =C33 ->  | K33: =D33/'Charges Summary'!D$4 -> 11718.65094 | L33: =E33/'Charges Summary'!E$4 -> 12116.53451 | M33: =F33/'Charges Summary'!F$4 -> 12440.35859 | N33: =G33/'Charges Summary'!G$4 -> 12459.30272 | O33: =H33/'Charges Summary'!H$4 -> 12598.93373
A34: ='DNSP Inputs General'!A$70 -> LED 18W | C34: =IF('PL Tariffs'!C33=0,"",'DNSP Inputs General'!J70*'PL Tariffs'!C33) ->  | D34: ='DNSP Inputs General'!K70*'PL Tariffs'!D33 -> 8530.156317 | E34: ='DNSP Inputs General'!L70*'PL Tariffs'!E33 -> 13489.14073 | F34: ='DNSP Inputs General'!M70*'PL Tariffs'!F33 -> 18945.58284 | G34: ='DNSP Inputs General'!N70*'PL Tariffs'!G33 -> 24543.56746 | H34: ='DNSP Inputs General'!O70*'PL Tariffs'!H33 -> 30643.34754 | K34: =D34/'Charges Summary'!D$4 -> 8322.103724 | L34: =E34/'Charges Summary'!E$4 -> 12839.15834 | M34: =F34/'Charges Summary'!F$4 -> 17592.85707 | N34: =G34/'Charges Summary'!G$4 -> 22235.26076 | O34: =H34/'Charges Summary'!H$4 -> 27084.25411
A35: ='DNSP Inputs General'!A$71 -> Compact Fluoro 32W | C35: =IF('PL Tariffs'!C34=0,"",'DNSP Inputs General'!J71*'PL Tariffs'!C34) ->  | D35: ='DNSP Inputs General'!K71*'PL Tariffs'!D34 -> 220.9997104 | E35: ='DNSP Inputs General'!L71*'PL Tariffs'!E34 -> 234.2159006 | F35: ='DNSP Inputs General'!M71*'PL Tariffs'!F34 -> 246.4873957 | G35: ='DNSP Inputs General'!N71*'PL Tariffs'!G34 -> 253.0343143 | H35: ='DNSP Inputs General'!O71*'PL Tariffs'!H34 -> 262.2668134 | K35: =D35/'Charges Summary'!D$4 -> 215.6094735 | L35: =E35/'Charges Summary'!E$4 -> 222.930066 | M35: =F35/'Charges Summary'!F$4 -> 228.8880504 | N35: =G35/'Charges Summary'!G$4 -> 229.2366002 | O35: =H35/'Charges Summary'!H$4 -> 231.8056475
A36: ='DNSP Inputs General'!A$72 -> Compact Fluoro 42W | C36: =IF('PL Tariffs'!C35=0,"",'DNSP Inputs General'!J72*'PL Tariffs'!C35) ->  | D36: ='DNSP Inputs General'!K72*'PL Tariffs'!D35 -> 2118.544238 | E36: ='DNSP Inputs General'!L72*'PL Tariffs'!E35 -> 2245.23709 | F36: ='DNSP Inputs General'!M72*'PL Tariffs'!F35 -> 2362.873919 | G36: ='DNSP Inputs General'!N72*'PL Tariffs'!G35 -> 2425.633895 | H36: ='DNSP Inputs General'!O72*'PL Tariffs'!H35 -> 2514.138346 | J36: =C36 ->  | K36: =D36/'Charges Summary'!D$4 -> 2066.872427 | L36: =E36/'Charges Summary'!E$4 -> 2137.048985 | M36: =F36/'Charges Summary'!F$4 -> 2194.163329 | N36: =G36/'Charges Summary'!G$4 -> 2197.504592 | O36: =H36/'Charges Summary'!H$4 -> 2222.131957
A38: Total Revenue | C38: =IF(SUM(C7:C36)=0,"",SUM(C7:C36)) -> 3831744.866 | D38: =SUM(D7:D36) -> 4015266.827 | E38: =SUM(E7:E36) -> 4225155.626 | F38: =SUM(F7:F36) -> 4424692.788 | G38: =SUM(G7:G36) -> 4535937.529 | H38: =SUM(H7:H36) -> 4694918.973 | J38: =IF(SUM(J7:J36)=0,"",SUM(J7:J36)) -> 3831744.866 | K38: =SUM(K7:K36) -> 3917333.49 | L38: =SUM(L7:L36) -> 4021563.951 | M38: =SUM(M7:M36) -> 4108767.116 | N38: =SUM(N7:N36) -> 4109335.529 | O38: =SUM(O7:O36) -> 4149624.265
A41: Public Lighting - O & M | D41: Forecast O & M - Nominal | K41: Forecast O & M - Real 2015 $
D42: =D$2 -> 2016 | E42: 2017 | F42: 2018 | G42: 2019 | H42: 2020 | K42: =K$2 -> 2016 | L42: 2017 | M42: 2018 | N42: 2019 | O42: 2020
A44: Unit cost
A45: ='DNSP Inputs General'!A$41 -> Mercury Vapour 80 watt | D45: =SUM('Charges Summary'!D25,'Charges Summary'!D8) -> 30.82184593 | E45: =SUM('Charges Summary'!E25,'Charges Summary'!E8) -> 32.18761089 | F45: =SUM('Charges Summary'!F25,'Charges Summary'!F8) -> 33.37060472 | G45: =SUM('Charges Summary'!G25,'Charges Summary'!G8) -> 33.55165154 | H45: =SUM('Charges Summary'!H25,'Charges Summary'!H8) -> 34.27253131
A46: ='DNSP Inputs General'!A$42 -> Sodium High Pressure 150 watt | D46: =SUM('Charges Summary'!D49,'Charges Summary'!D8) -> 75.75917427 | E46: =SUM('Charges Summary'!E49,'Charges Summary'!E8) -> 78.94630159 | F46: =SUM('Charges Summary'!F49,'Charges Summary'!F8) -> 81.83418357 | G46: =SUM('Charges Summary'!G49,'Charges Summary'!G8) -> 82.76640972 | H46: =SUM('Charges Summary'!H49,'Charges Summary'!H8) -> 84.78252335
A47: ='DNSP Inputs General'!A$43 -> Sodium High Pressure 250 watt | D47: =SUM('Charges Summary'!D65,'Charges Summary'!D8) -> 76.03182377 | E47: =SUM('Charges Summary'!E65,'Charges Summary'!E8) -> 79.23437066 | F47: =SUM('Charges Summary'!F65,'Charges Summary'!F8) -> 82.13605824 | G47: =SUM('Charges Summary'!G65,'Charges Summary'!G8) -> 83.07014868 | H47: =SUM('Charges Summary'!H65,'Charges Summary'!H8) -> 85.09465046
A49: ='DNSP Inputs General'!A$40 -> Existing Lights
A50: ='DNSP Inputs General'!A$41 -> Mercury Vapour 80 watt | D50: =D45*'DNSP Inputs General'!K41 -> 413718.7684 | E50: =E45*'DNSP Inputs General'!L41 -> 425829.7656 | F50: =F45*'DNSP Inputs General'!M41 -> 435123.0042 | G50: =G45*'DNSP Inputs General'!N41 -> 431183.9286 | H50: =H45*'DNSP Inputs General'!O41 -> 434105.7508 | K50: =D50/'Charges Summary'!D$4 -> 403628.0667 | L50: =E50/'Charges Summary'!E$4 -> 405310.9012 | M50: =F50/'Charges Summary'!F$4 -> 404054.9654 | N50: =G50/'Charges Summary'!G$4 -> 390631.3581 | O50: =H50/'Charges Summary'!H$4 -> 383686.2291
A51: ='DNSP Inputs General'!A$42 -> Sodium High Pressure 150 watt | D51: =D46*'DNSP Inputs General'!K42 -> 1189965.078 | E51: =E46*'DNSP Inputs General'!L42 -> 1256830.684 | F51: =F46*'DNSP Inputs General'!M42 -> 1320016.652 | G51: =G46*'DNSP Inputs General'!N42 -> 1352280.357 | H51: =H46*'DNSP Inputs General'!O42 -> 1402709.298 | K51: =D51/'Charges Summary'!D$4 -> 1160941.54 | L51: =E51/'Charges Summary'!E$4 -> 1196269.539 | M51: =F51/'Charges Summary'!F$4 -> 1225766.685 | N51: =G51/'Charges Summary'!G$4 -> 1225099.262 | O51: =H51/'Charges Summary'!H$4 -> 1239790.628
A52: ='DNSP Inputs General'!A$43 -> Sodium High Pressure 250 watt | D52: =D47*'DNSP Inputs General'!K43 -> 360573.7766 | E52: =E47*'DNSP Inputs General'!L43 -> 376510.9323 | F52: =F47*'DNSP Inputs General'!M43 -> 391038.0304 | G52: =G47*'DNSP Inputs General'!N43 -> 396195.4894 | H52: =H47*'DNSP Inputs General'!O43 -> 406543.1313 | K52: =D52/'Charges Summary'!D$4 -> 351779.2942 | L52: =E52/'Charges Summary'!E$4 -> 358368.5257 | M52: =F52/'Charges Summary'!F$4 -> 363117.6847 | N52: =G52/'Charges Summary'!G$4 -> 358933.5591 | O52: =H52/'Charges Summary'!H$4 -> 359324.8897
A53: ='DNSP Inputs General'!A$44 -> 55W Ind | D53: =IF('DNSP Inputs General'!$B44='DNSP Inputs General'!$A$41,D$45,IF('DNSP Inputs General'!$B44='DNSP Inputs General'!$A$42,D$46,D$47))*'DNSP Inputs General'!$D44*'DNSP Inputs General'!K44 -> 0 | E53: =IF('DNSP Inputs General'!$B44='DNSP Inputs General'!$A$41,E$45,IF('DNSP Inputs General'!$B44='DNSP Inputs General'!$A$42,E$46,E$47))*'DNSP Inputs General'!$D44*'DNSP Inputs General'!L44 -> 0 | F53: =IF('DNSP Inputs General'!$B44='DNSP Inputs General'!$A$41,F$45,IF('DNSP Inputs General'!$B44='DNSP Inputs General'!$A$42,F$46,F$47))*'DNSP Inputs General'!$D44*'DNSP Inputs General'!M44 -> 0 | G53: =IF('DNSP Inputs General'!$B44='DNSP Inputs General'!$A$41,G$45,IF('DNSP Inputs General'!$B44='DNSP Inputs General'!$A$42,G$46,G$47))*'DNSP Inputs General'!$D44*'DNSP Inputs General'!N44 -> 0 | H53: =IF('DNSP Inputs General'!$B44='DNSP Inputs General'!$A$41,H$45,IF('DNSP Inputs General'!$B44='DNSP Inputs General'!$A$42,H$46,H$47))*'DNSP Inputs General'!$D44*'DNSP Inputs General'!O44 -> 0 | K53: =D53/'Charges Summary'!D$4 -> 0 | L53: =E53/'Charges Summary'!E$4 -> 0 | M53: =F53/'Charges Summary'!F$4 -> 0 | N53: =G53/'Charges Summary'!G$4 -> 0 | O53: =H53/'Charges Summary'!H$4 -> 0
A54: ='DNSP Inputs General'!A$45 -> Fluorescent 20 watt | D54: =IF('DNSP Inputs General'!$B45='DNSP Inputs General'!$A$41,D$45,IF('DNSP Inputs General'!$B45='DNSP Inputs General'!$A$42,D$46,D$47))*'DNSP Inputs General'!$D45*'DNSP Inputs General'!K45 -> 0 | E54: =IF('DNSP Inputs General'!$B45='DNSP Inputs General'!$A$41,E$45,IF('DNSP Inputs General'!$B45='DNSP Inputs General'!$A$42,E$46,E$47))*'DNSP Inputs General'!$D45*'DNSP Inputs General'!L45 -> 0 | F54: =IF('DNSP Inputs General'!$B45='DNSP Inputs General'!$A$41,F$45,IF('DNSP Inputs General'!$B45='DNSP Inputs General'!$A$42,F$46,F$47))*'DNSP Inputs General'!$D45*'DNSP Inputs General'!M45 -> 0 | G54: =IF('DNSP Inputs General'!$B45='DNSP Inputs General'!$A$41,G$45,IF('DNSP Inputs General'!$B45='DNSP Inputs General'!$A$42,G$46,G$47))*'DNSP Inputs General'!$D45*'DNSP Inputs General'!N45 -> 0 | H54: =IF('DNSP Inputs General'!$B45='DNSP Inputs General'!$A$41,H$45,IF('DNSP Inputs General'!$B45='DNSP Inputs General'!$A$42,H$46,H$47))*'DNSP Inputs General'!$D45*'DNSP Inputs General'!O45 -> 0 | K54: =D54/'Charges Summary'!D$4 -> 0 | L54: =E54/'Charges Summary'!E$4 -> 0 | M54: =F54/'Charges Summary'!F$4 -> 0 | N54: =G54/'Charges Summary'!G$4 -> 0 | O54: =H54/'Charges Summary'!H$4 -> 0
A55: ='DNSP Inputs General'!A$46 -> Fluorescent 40 watt | D55: =IF('DNSP Inputs General'!$B46='DNSP Inputs General'!$A$41,D$45,IF('DNSP Inputs General'!$B46='DNSP Inputs General'!$A$42,D$46,D$47))*'DNSP Inputs General'!$D46*'DNSP Inputs General'!K46 -> 0 | E55: =IF('DNSP Inputs General'!$B46='DNSP Inputs General'!$A$41,E$45,IF('DNSP Inputs General'!$B46='DNSP Inputs General'!$A$42,E$46,E$47))*'DNSP Inputs General'!$D46*'DNSP Inputs General'!L46 -> 0 | F55: =IF('DNSP Inputs General'!$B46='DNSP Inputs General'!$A$41,F$45,IF('DNSP Inputs General'!$B46='DNSP Inputs General'!$A$42,F$46,F$47))*'DNSP Inputs General'!$D46*'DNSP Inputs General'!M46 -> 0 | G55: =IF('DNSP Inputs General'!$B46='DNSP Inputs General'!$A$41,G$45,IF('DNSP Inputs General'!$B46='DNSP Inputs General'!$A$42,G$46,G$47))*'DNSP Inputs General'!$D46*'DNSP Inputs General'!N46 -> 0 | H55: =IF('DNSP Inputs General'!$B46='DNSP Inputs General'!$A$41,H$45,IF('DNSP Inputs General'!$B46='DNSP Inputs General'!$A$42,H$46,H$47))*'DNSP Inputs General'!$D46*'DNSP Inputs General'!O46 -> 0 | K55: =D55/'Charges Summary'!D$4 -> 0 | L55: =E55/'Charges Summary'!E$4 -> 0 | M55: =F55/'Charges Summary'!F$4 -> 0 | N55: =G55/'Charges Summary'!G$4 -> 0 | O55: =H55/'Charges Summary'!H$4 -> 0
A56: ='DNSP Inputs General'!A$47 -> Fluorescent 80 watt | D56: =IF('DNSP Inputs General'!$B47='DNSP Inputs General'!$A$41,D$45,IF('DNSP Inputs General'!$B47='DNSP Inputs General'!$A$42,D$46,D$47))*'DNSP Inputs General'!$D47*'DNSP Inputs General'!K47 -> 0 | E56: =IF('DNSP Inputs General'!$B47='DNSP Inputs General'!$A$41,E$45,IF('DNSP Inputs General'!$B47='DNSP Inputs General'!$A$42,E$46,E$47))*'DNSP Inputs General'!$D47*'DNSP Inputs General'!L47 -> 0 | F56: =IF('DNSP Inputs General'!$B47='DNSP Inputs General'!$A$41,F$45,IF('DNSP Inputs General'!$B47='DNSP Inputs General'!$A$42,F$46,F$47))*'DNSP Inputs General'!$D47*'DNSP Inputs General'!M47 -> 0 | G56: =IF('DNSP Inputs General'!$B47='DNSP Inputs General'!$A$41,G$45,IF('DNSP Inputs General'!$B47='DNSP Inputs General'!$A$42,G$46,G$47))*'DNSP Inputs General'!$D47*'DNSP Inputs General'!N47 -> 0 | H56: =IF('DNSP Inputs General'!$B47='DNSP Inputs General'!$A$41,H$45,IF('DNSP Inputs General'!$B47='DNSP Inputs General'!$A$42,H$46,H$47))*'DNSP Inputs General'!$D47*'DNSP Inputs General'!O47 -> 0 | K56: =D56/'Charges Summary'!D$4 -> 0 | L56: =E56/'Charges Summary'!E$4 -> 0 | M56: =F56/'Charges Summary'!F$4 -> 0 | N56: =G56/'Charges Summary'!G$4 -> 0 | O56: =H56/'Charges Summary'!H$4 -> 0
A57: ='DNSP Inputs General'!A$48 -> Mercury Vapour 50 watt | D57: =IF('DNSP Inputs General'!$B48='DNSP Inputs General'!$A$41,D$45,IF('DNSP Inputs General'!$B48='DNSP Inputs General'!$A$42,D$46,D$47))*'DNSP Inputs General'!$D48*'DNSP Inputs General'!K48 -> 0 | E57: =IF('DNSP Inputs General'!$B48='DNSP Inputs General'!$A$41,E$45,IF('DNSP Inputs General'!$B48='DNSP Inputs General'!$A$42,E$46,E$47))*'DNSP Inputs General'!$D48*'DNSP Inputs General'!L48 -> 0 | F57: =IF('DNSP Inputs General'!$B48='DNSP Inputs General'!$A$41,F$45,IF('DNSP Inputs General'!$B48='DNSP Inputs General'!$A$42,F$46,F$47))*'DNSP Inputs General'!$D48*'DNSP Inputs General'!M48 -> 0 | G57: =IF('DNSP Inputs General'!$B48='DNSP Inputs General'!$A$41,G$45,IF('DNSP Inputs General'!$B48='DNSP Inputs General'!$A$42,G$46,G$47))*'DNSP Inputs General'!$D48*'DNSP Inputs General'!N48 -> 0 | H57: =IF('DNSP Inputs General'!$B48='DNSP Inputs General'!$A$41,H$45,IF('DNSP Inputs General'!$B48='DNSP Inputs General'!$A$42,H$46,H$47))*'DNSP Inputs General'!$D48*'DNSP Inputs General'!O48 -> 0 | K57: =D57/'Charges Summary'!D$4 -> 0 | L57: =E57/'Charges Summary'!E$4 -> 0 | M57: =F57/'Charges Summary'!F$4 -> 0 | N57: =G57/'Charges Summary'!G$4 -> 0 | O57: =H57/'Charges Summary'!H$4 -> 0
A58: ='DNSP Inputs General'!A$49 -> Mercury Vapour 125 watt | D58: =IF('DNSP Inputs General'!$B49='DNSP Inputs General'!$A$41,D$45,IF('DNSP Inputs General'!$B49='DNSP Inputs General'!$A$42,D$46,D$47))*'DNSP Inputs General'!$D49*'DNSP Inputs General'!K49 -> 16064.61175 | E58: =IF('DNSP Inputs General'!$B49='DNSP Inputs General'!$A$41,E$45,IF('DNSP Inputs General'!$B49='DNSP Inputs General'!$A$42,E$46,E$47))*'DNSP Inputs General'!$D49*'DNSP Inputs General'!L49 -> 16534.87919 | F58: =IF('DNSP Inputs General'!$B49='DNSP Inputs General'!$A$41,F$45,IF('DNSP Inputs General'!$B49='DNSP Inputs General'!$A$42,F$46,F$47))*'DNSP Inputs General'!$D49*'DNSP Inputs General'!M49 -> 16895.73367 | G58: =IF('DNSP Inputs General'!$B49='DNSP Inputs General'!$A$41,G$45,IF('DNSP Inputs General'!$B49='DNSP Inputs General'!$A$42,G$46,G$47))*'DNSP Inputs General'!$D49*'DNSP Inputs General'!N49 -> 16742.78021 | H58: =IF('DNSP Inputs General'!$B49='DNSP Inputs General'!$A$41,H$45,IF('DNSP Inputs General'!$B49='DNSP Inputs General'!$A$42,H$46,H$47))*'DNSP Inputs General'!$D49*'DNSP Inputs General'!O49 -> 16856.23394 | K58: =D58/'Charges Summary'!D$4 -> 15672.79195 | L58: =E58/'Charges Summary'!E$4 -> 15738.13606 | M58: =F58/'Charges Summary'!F$4 -> 15689.36834 | N58: =G58/'Charges Summary'!G$4 -> 15168.13252 | O58: =H58/'Charges Summary'!H$4 -> 14898.45464
A59: ='DNSP Inputs General'!A$50 -> Mercury Vapour 250 watt | D59: =IF('DNSP Inputs General'!$B50='DNSP Inputs General'!$A$41,D$45,IF('DNSP Inputs General'!$B50='DNSP Inputs General'!$A$42,D$46,D$47))*'DNSP Inputs General'!$D50*'DNSP Inputs General'!K50 -> 8664.883336 | E59: =IF('DNSP Inputs General'!$B50='DNSP Inputs General'!$A$41,E$45,IF('DNSP Inputs General'!$B50='DNSP Inputs General'!$A$42,E$46,E$47))*'DNSP Inputs General'!$D50*'DNSP Inputs General'!L50 -> 7706.109249 | F59: =IF('DNSP Inputs General'!$B50='DNSP Inputs General'!$A$41,F$45,IF('DNSP Inputs General'!$B50='DNSP Inputs General'!$A$42,F$46,F$47))*'DNSP Inputs General'!$D50*'DNSP Inputs General'!M50 -> 6817.256631 | G59: =IF('DNSP Inputs General'!$B50='DNSP Inputs General'!$A$41,G$45,IF('DNSP Inputs General'!$B50='DNSP Inputs General'!$A$42,G$46,G$47))*'DNSP Inputs General'!$D50*'DNSP Inputs General'!N50 -> 5884.031797 | H59: =IF('DNSP Inputs General'!$B50='DNSP Inputs General'!$A$41,H$45,IF('DNSP Inputs General'!$B50='DNSP Inputs General'!$A$42,H$46,H$47))*'DNSP Inputs General'!$D50*'DNSP Inputs General'!O50 -> 5143.828958 | K59: =D59/'Charges Summary'!D$4 -> 8453.544718 | L59: =E59/'Charges Summary'!E$4 -> 7334.785722 | M59: =F59/'Charges Summary'!F$4 -> 6330.500492 | N59: =G59/'Charges Summary'!G$4 -> 5330.642401 | O59: =H59/'Charges Summary'!H$4 -> 4546.39528
A60: ='DNSP Inputs General'!A$51 -> Mercury Vapour 400 watt | D60: =IF('DNSP Inputs General'!$B51='DNSP Inputs General'!$A$41,D$45,IF('DNSP Inputs General'!$B51='DNSP Inputs General'!$A$42,D$46,D$47))*'DNSP Inputs General'!$D51*'DNSP Inputs General'!K51 -> 15814.73566 | E60: =IF('DNSP Inputs General'!$B51='DNSP Inputs General'!$A$41,E$45,IF('DNSP Inputs General'!$B51='DNSP Inputs General'!$A$42,E$46,E$47))*'DNSP Inputs General'!$D51*'DNSP Inputs General'!L51 -> 15671.54186 | F60: =IF('DNSP Inputs General'!$B51='DNSP Inputs General'!$A$41,F$45,IF('DNSP Inputs General'!$B51='DNSP Inputs General'!$A$42,F$46,F$47))*'DNSP Inputs General'!$D51*'DNSP Inputs General'!M51 -> 15447.69038 | G60: =IF('DNSP Inputs General'!$B51='DNSP Inputs General'!$A$41,G$45,IF('DNSP Inputs General'!$B51='DNSP Inputs General'!$A$42,G$46,G$47))*'DNSP Inputs General'!$D51*'DNSP Inputs General'!N51 -> 14856.14988 | H60: =IF('DNSP Inputs General'!$B51='DNSP Inputs General'!$A$41,H$45,IF('DNSP Inputs General'!$B51='DNSP Inputs General'!$A$42,H$46,H$47))*'DNSP Inputs General'!$D51*'DNSP Inputs General'!O51 -> 14470.8862 | K60: =D60/'Charges Summary'!D$4 -> 15429.0104 | L60: =E60/'Charges Summary'!E$4 -> 14916.39915 | M60: =F60/'Charges Summary'!F$4 -> 14344.71619 | N60: =G60/'Charges Summary'!G$4 -> 13458.93856 | O60: =H60/'Charges Summary'!H$4 -> 12790.15481
A61: ='DNSP Inputs General'!A$52 -> Sodium High Pressure 50 watt | D61: =IF('DNSP Inputs General'!$B52='DNSP Inputs General'!$A$41,D$45,IF('DNSP Inputs General'!$B52='DNSP Inputs General'!$A$42,D$46,D$47))*'DNSP Inputs General'!$D52*'DNSP Inputs General'!K52 -> 0 | E61: =IF('DNSP Inputs General'!$B52='DNSP Inputs General'!$A$41,E$45,IF('DNSP Inputs General'!$B52='DNSP Inputs General'!$A$42,E$46,E$47))*'DNSP Inputs General'!$D52*'DNSP Inputs General'!L52 -> 0 | F61: =IF('DNSP Inputs General'!$B52='DNSP Inputs General'!$A$41,F$45,IF('DNSP Inputs General'!$B52='DNSP Inputs General'!$A$42,F$46,F$47))*'DNSP Inputs General'!$D52*'DNSP Inputs General'!M52 -> 0 | G61: =IF('DNSP Inputs General'!$B52='DNSP Inputs General'!$A$41,G$45,IF('DNSP Inputs General'!$B52='DNSP Inputs General'!$A$42,G$46,G$47))*'DNSP Inputs General'!$D52*'DNSP Inputs General'!N52 -> 0 | H61: =IF('DNSP Inputs General'!$B52='DNSP Inputs General'!$A$41,H$45,IF('DNSP Inputs General'!$B52='DNSP Inputs General'!$A$42,H$46,H$47))*'DNSP Inputs General'!$D52*'DNSP Inputs General'!O52 -> 0 | K61: =D61/'Charges Summary'!D$4 -> 0 | L61: =E61/'Charges Summary'!E$4 -> 0 | M61: =F61/'Charges Summary'!F$4 -> 0 | N61: =G61/'Charges Summary'!G$4 -> 0 | O61: =H61/'Charges Summary'!H$4 -> 0
A62: ='DNSP Inputs General'!A$53 -> Sodium Low Pressure 90 watt | D62: =IF('DNSP Inputs General'!$B53='DNSP Inputs General'!$A$41,D$45,IF('DNSP Inputs General'!$B53='DNSP Inputs General'!$A$42,D$46,D$47))*'DNSP Inputs General'!$D53*'DNSP Inputs General'!K53 -> 0 | E62: =IF('DNSP Inputs General'!$B53='DNSP Inputs General'!$A$41,E$45,IF('DNSP Inputs General'!$B53='DNSP Inputs General'!$A$42,E$46,E$47))*'DNSP Inputs General'!$D53*'DNSP Inputs General'!L53 -> 0 | F62: =IF('DNSP Inputs General'!$B53='DNSP Inputs General'!$A$41,F$45,IF('DNSP Inputs General'!$B53='DNSP Inputs General'!$A$42,F$46,F$47))*'DNSP Inputs General'!$D53*'DNSP Inputs General'!M53 -> 0 | G62: =IF('DNSP Inputs General'!$B53='DNSP Inputs General'!$A$41,G$45,IF('DNSP Inputs General'!$B53='DNSP Inputs General'!$A$42,G$46,G$47))*'DNSP Inputs General'!$D53*'DNSP Inputs General'!N53 -> 0 | H62: =IF('DNSP Inputs General'!$B53='DNSP Inputs General'!$A$41,H$45,IF('DNSP Inputs General'!$B53='DNSP Inputs General'!$A$42,H$46,H$47))*'DNSP Inputs General'!$D53*'DNSP Inputs General'!O53 -> 0 | K62: =D62/'Charges Summary'!D$4 -> 0 | L62: =E62/'Charges Summary'!E$4 -> 0 | M62: =F62/'Charges Summary'!F$4 -> 0 | N62: =G62/'Charges Summary'!G$4 -> 0 | O62: =H62/'Charges Summary'!H$4 -> 0
A63: ='DNSP Inputs General'!A$54 -> Sodium High Pressure 100 watt | D63: =IF('DNSP Inputs General'!$B54='DNSP Inputs General'!$A$41,D$45,IF('DNSP Inputs General'!$B54='DNSP Inputs General'!$A$42,D$46,D$47))*'DNSP Inputs General'!$D54*'DNSP Inputs General'!K54 -> 119172.1202 | E63: =IF('DNSP Inputs General'!$B54='DNSP Inputs General'!$A$41,E$45,IF('DNSP Inputs General'!$B54='DNSP Inputs General'!$A$42,E$46,E$47))*'DNSP Inputs General'!$D54*'DNSP Inputs General'!L54 -> 122397.3225 | F63: =IF('DNSP Inputs General'!$B54='DNSP Inputs General'!$A$41,F$45,IF('DNSP Inputs General'!$B54='DNSP Inputs General'!$A$42,F$46,F$47))*'DNSP Inputs General'!$D54*'DNSP Inputs General'!M54 -> 125047.6622 | G63: =IF('DNSP Inputs General'!$B54='DNSP Inputs General'!$A$41,G$45,IF('DNSP Inputs General'!$B54='DNSP Inputs General'!$A$42,G$46,G$47))*'DNSP Inputs General'!$D54*'DNSP Inputs General'!N54 -> 124650.962 | H63: =IF('DNSP Inputs General'!$B54='DNSP Inputs General'!$A$41,H$45,IF('DNSP Inputs General'!$B54='DNSP Inputs General'!$A$42,H$46,H$47))*'DNSP Inputs General'!$D54*'DNSP Inputs General'!O54 -> 125848.647 | K63: =D63/'Charges Summary'!D$4 -> 116265.4831 | L63: =E63/'Charges Summary'!E$4 -> 116499.5336 | M63: =F63/'Charges Summary'!F$4 -> 116119.1855 | N63: =G63/'Charges Summary'!G$4 -> 112927.6194 | O63: =H63/'Charges Summary'!H$4 -> 111231.8662
A64: ='DNSP Inputs General'!A$55 -> Sodium High Pressure 400 watt | D64: =IF('DNSP Inputs General'!$B55='DNSP Inputs General'!$A$41,D$45,IF('DNSP Inputs General'!$B55='DNSP Inputs General'!$A$42,D$46,D$47))*'DNSP Inputs General'!$D55*'DNSP Inputs General'!K55 -> 29123.22978 | E64: =IF('DNSP Inputs General'!$B55='DNSP Inputs General'!$A$41,E$45,IF('DNSP Inputs General'!$B55='DNSP Inputs General'!$A$42,E$46,E$47))*'DNSP Inputs General'!$D55*'DNSP Inputs General'!L55 -> 30349.93334 | F64: =IF('DNSP Inputs General'!$B55='DNSP Inputs General'!$A$41,F$45,IF('DNSP Inputs General'!$B55='DNSP Inputs General'!$A$42,F$46,F$47))*'DNSP Inputs General'!$D55*'DNSP Inputs General'!M55 -> 31461.39575 | G64: =IF('DNSP Inputs General'!$B55='DNSP Inputs General'!$A$41,G$45,IF('DNSP Inputs General'!$B55='DNSP Inputs General'!$A$42,G$46,G$47))*'DNSP Inputs General'!$D55*'DNSP Inputs General'!N55 -> 31819.18975 | H64: =IF('DNSP Inputs General'!$B55='DNSP Inputs General'!$A$41,H$45,IF('DNSP Inputs General'!$B55='DNSP Inputs General'!$A$42,H$46,H$47))*'DNSP Inputs General'!$D55*'DNSP Inputs General'!O55 -> 32594.65491 | K64: =D64/'Charges Summary'!D$4 -> 28412.9071 | L64: =E64/'Charges Summary'!E$4 -> 28887.50347 | M64: =F64/'Charges Summary'!F$4 -> 29215.03356 | N64: =G64/'Charges Summary'!G$4 -> 28826.61547 | O64: =H64/'Charges Summary'!H$4 -> 28808.9255
A65: ='DNSP Inputs General'!A$56 -> Metal Halide 70 watt | D65: =IF('DNSP Inputs General'!$B56='DNSP Inputs General'!$A$41,D$45,IF('DNSP Inputs General'!$B56='DNSP Inputs General'!$A$42,D$46,D$47))*'DNSP Inputs General'!$D56*'DNSP Inputs General'!K56 -> 950.5457284 | E65: =IF('DNSP Inputs General'!$B56='DNSP Inputs General'!$A$41,E$45,IF('DNSP Inputs General'!$B56='DNSP Inputs General'!$A$42,E$46,E$47))*'DNSP Inputs General'!$D56*'DNSP Inputs General'!L56 -> 992.6659199 | F65: =IF('DNSP Inputs General'!$B56='DNSP Inputs General'!$A$41,F$45,IF('DNSP Inputs General'!$B56='DNSP Inputs General'!$A$42,F$46,F$47))*'DNSP Inputs General'!$D56*'DNSP Inputs General'!M56 -> 1029.149449 | G65: =IF('DNSP Inputs General'!$B56='DNSP Inputs General'!$A$41,G$45,IF('DNSP Inputs General'!$B56='DNSP Inputs General'!$A$42,G$46,G$47))*'DNSP Inputs General'!$D56*'DNSP Inputs General'!N56 -> 1034.732934 | H65: =IF('DNSP Inputs General'!$B56='DNSP Inputs General'!$A$41,H$45,IF('DNSP Inputs General'!$B56='DNSP Inputs General'!$A$42,H$46,H$47))*'DNSP Inputs General'!$D56*'DNSP Inputs General'!O56 -> 1056.964866 | K65: =D65/'Charges Summary'!D$4 -> 927.3616863 | L65: =E65/'Charges Summary'!E$4 -> 944.8337132 | M65: =F65/'Charges Summary'!F$4 -> 955.6675725 | N65: =G65/'Charges Summary'!G$4 -> 937.4169684 | O65: =H65/'Charges Summary'!H$4 -> 934.2029284
A66: ='DNSP Inputs General'!A$57 -> Metal Halide 150 watt | D66: =IF('DNSP Inputs General'!$B57='DNSP Inputs General'!$A$41,D$45,IF('DNSP Inputs General'!$B57='DNSP Inputs General'!$A$42,D$46,D$47))*'DNSP Inputs General'!$D57*'DNSP Inputs General'!K57 -> 5550.117107 | E66: =IF('DNSP Inputs General'!$B57='DNSP Inputs General'!$A$41,E$45,IF('DNSP Inputs General'!$B57='DNSP Inputs General'!$A$42,E$46,E$47))*'DNSP Inputs General'!$D57*'DNSP Inputs General'!L57 -> 5783.606054 | F66: =IF('DNSP Inputs General'!$B57='DNSP Inputs General'!$A$41,F$45,IF('DNSP Inputs General'!$B57='DNSP Inputs General'!$A$42,F$46,F$47))*'DNSP Inputs General'!$D57*'DNSP Inputs General'!M57 -> 5995.172288 | G66: =IF('DNSP Inputs General'!$B57='DNSP Inputs General'!$A$41,G$45,IF('DNSP Inputs General'!$B57='DNSP Inputs General'!$A$42,G$46,G$47))*'DNSP Inputs General'!$D57*'DNSP Inputs General'!N57 -> 6063.467176 | H66: =IF('DNSP Inputs General'!$B57='DNSP Inputs General'!$A$41,H$45,IF('DNSP Inputs General'!$B57='DNSP Inputs General'!$A$42,H$46,H$47))*'DNSP Inputs General'!$D57*'DNSP Inputs General'!O57 -> 6211.16766 | K66: =D66/'Charges Summary'!D$4 -> 5414.748397 | L66: =E66/'Charges Summary'!E$4 -> 5504.919505 | M66: =F66/'Charges Summary'!F$4 -> 5567.113455 | N66: =G66/'Charges Summary'!G$4 -> 5493.201998 | O66: =H66/'Charges Summary'!H$4 -> 5489.767168
A67: ='DNSP Inputs General'!A$58 -> Metal Halide 250 watt | D67: =IF('DNSP Inputs General'!$B58='DNSP Inputs General'!$A$41,D$45,IF('DNSP Inputs General'!$B58='DNSP Inputs General'!$A$42,D$46,D$47))*'DNSP Inputs General'!$D58*'DNSP Inputs General'!K58 -> 11769.72632 | E67: =IF('DNSP Inputs General'!$B58='DNSP Inputs General'!$A$41,E$45,IF('DNSP Inputs General'!$B58='DNSP Inputs General'!$A$42,E$46,E$47))*'DNSP Inputs General'!$D58*'DNSP Inputs General'!L58 -> 12265.48058 | F67: =IF('DNSP Inputs General'!$B58='DNSP Inputs General'!$A$41,F$45,IF('DNSP Inputs General'!$B58='DNSP Inputs General'!$A$42,F$46,F$47))*'DNSP Inputs General'!$D58*'DNSP Inputs General'!M58 -> 12714.66182 | G67: =IF('DNSP Inputs General'!$B58='DNSP Inputs General'!$A$41,G$45,IF('DNSP Inputs General'!$B58='DNSP Inputs General'!$A$42,G$46,G$47))*'DNSP Inputs General'!$D58*'DNSP Inputs General'!N58 -> 12859.25902 | H67: =IF('DNSP Inputs General'!$B58='DNSP Inputs General'!$A$41,H$45,IF('DNSP Inputs General'!$B58='DNSP Inputs General'!$A$42,H$46,H$47))*'DNSP Inputs General'!$D58*'DNSP Inputs General'!O58 -> 13172.65189 | K67: =D67/'Charges Summary'!D$4 -> 11482.65982 | L67: =E67/'Charges Summary'!E$4 -> 11674.46099 | M67: =F67/'Charges Summary'!F$4 -> 11806.82747 | N67: =G67/'Charges Summary'!G$4 -> 11649.854 | O67: =H67/'Charges Summary'!H$4 -> 11642.70485
A68: ='DNSP Inputs General'!A$59 -> Incandescent 100 watt | D68: =IF('DNSP Inputs General'!$B59='DNSP Inputs General'!$A$41,D$45,IF('DNSP Inputs General'!$B59='DNSP Inputs General'!$A$42,D$46,D$47))*'DNSP Inputs General'!$D59*'DNSP Inputs General'!K59 -> 0 | E68: =IF('DNSP Inputs General'!$B59='DNSP Inputs General'!$A$41,E$45,IF('DNSP Inputs General'!$B59='DNSP Inputs General'!$A$42,E$46,E$47))*'DNSP Inputs General'!$D59*'DNSP Inputs General'!L59 -> 0 | F68: =IF('DNSP Inputs General'!$B59='DNSP Inputs General'!$A$41,F$45,IF('DNSP Inputs General'!$B59='DNSP Inputs General'!$A$42,F$46,F$47))*'DNSP Inputs General'!$D59*'DNSP Inputs General'!M59 -> 0 | G68: =IF('DNSP Inputs General'!$B59='DNSP Inputs General'!$A$41,G$45,IF('DNSP Inputs General'!$B59='DNSP Inputs General'!$A$42,G$46,G$47))*'DNSP Inputs General'!$D59*'DNSP Inputs General'!N59 -> 0 | H68: =IF('DNSP Inputs General'!$B59='DNSP Inputs General'!$A$41,H$45,IF('DNSP Inputs General'!$B59='DNSP Inputs General'!$A$42,H$46,H$47))*'DNSP Inputs General'!$D59*'DNSP Inputs General'!O59 -> 0 | K68: =D68/'Charges Summary'!D$4 -> 0 | L68: =E68/'Charges Summary'!E$4 -> 0 | M68: =F68/'Charges Summary'!F$4 -> 0 | N68: =G68/'Charges Summary'!G$4 -> 0 | O68: =H68/'Charges Summary'!H$4 -> 0
A69: ='DNSP Inputs General'!A$60 -> Incandescent 150 watt | D69: =IF('DNSP Inputs General'!$B60='DNSP Inputs General'!$A$41,D$45,IF('DNSP Inputs General'!$B60='DNSP Inputs General'!$A$42,D$46,D$47))*'DNSP Inputs General'!$D60*'DNSP Inputs General'!K60 -> 0 | E69: =IF('DNSP Inputs General'!$B60='DNSP Inputs General'!$A$41,E$45,IF('DNSP Inputs General'!$B60='DNSP Inputs General'!$A$42,E$46,E$47))*'DNSP Inputs General'!$D60*'DNSP Inputs General'!L60 -> 0 | F69: =IF('DNSP Inputs General'!$B60='DNSP Inputs General'!$A$41,F$45,IF('DNSP Inputs General'!$B60='DNSP Inputs General'!$A$42,F$46,F$47))*'DNSP Inputs General'!$D60*'DNSP Inputs General'!M60 -> 0 | G69: =IF('DNSP Inputs General'!$B60='DNSP Inputs General'!$A$41,G$45,IF('DNSP Inputs General'!$B60='DNSP Inputs General'!$A$42,G$46,G$47))*'DNSP Inputs General'!$D60*'DNSP Inputs General'!N60 -> 0 | H69: =IF('DNSP Inputs General'!$B60='DNSP Inputs General'!$A$41,H$45,IF('DNSP Inputs General'!$B60='DNSP Inputs General'!$A$42,H$46,H$47))*'DNSP Inputs General'!$D60*'DNSP Inputs General'!O60 -> 0 | K69: =D69/'Charges Summary'!D$4 -> 0 | L69: =E69/'Charges Summary'!E$4 -> 0 | M69: =F69/'Charges Summary'!F$4 -> 0 | N69: =G69/'Charges Summary'!G$4 -> 0 | O69: =H69/'Charges Summary'!H$4 -> 0
A70: ='DNSP Inputs General'!A$61 -> Sodium High Pressure 250 watt (24 hrs) | D70: =IF('DNSP Inputs General'!$B61='DNSP Inputs General'!$A$41,D$45,IF('DNSP Inputs General'!$B61='DNSP Inputs General'!$A$42,D$46,D$47))*'DNSP Inputs General'!$D61*'DNSP Inputs General'!K61 -> 0 | E70: =IF('DNSP Inputs General'!$B61='DNSP Inputs General'!$A$41,E$45,IF('DNSP Inputs General'!$B61='DNSP Inputs General'!$A$42,E$46,E$47))*'DNSP Inputs General'!$D61*'DNSP Inputs General'!L61 -> 0 | F70: =IF('DNSP Inputs General'!$B61='DNSP Inputs General'!$A$41,F$45,IF('DNSP Inputs General'!$B61='DNSP Inputs General'!$A$42,F$46,F$47))*'DNSP Inputs General'!$D61*'DNSP Inputs General'!M61 -> 0 | G70: =IF('DNSP Inputs General'!$B61='DNSP Inputs General'!$A$41,G$45,IF('DNSP Inputs General'!$B61='DNSP Inputs General'!$A$42,G$46,G$47))*'DNSP Inputs General'!$D61*'DNSP Inputs General'!N61 -> 0 | H70: =IF('DNSP Inputs General'!$B61='DNSP Inputs General'!$A$41,H$45,IF('DNSP Inputs General'!$B61='DNSP Inputs General'!$A$42,H$46,H$47))*'DNSP Inputs General'!$D61*'DNSP Inputs General'!O61 -> 0 | K70: =D70/'Charges Summary'!D$4 -> 0 | L70: =E70/'Charges Summary'!E$4 -> 0 | M70: =F70/'Charges Summary'!F$4 -> 0 | N70: =G70/'Charges Summary'!G$4 -> 0 | O70: =H70/'Charges Summary'!H$4 -> 0
A71: ='DNSP Inputs General'!A$62 -> Metal Halide 100 watt | D71: =IF('DNSP Inputs General'!$B62='DNSP Inputs General'!$A$41,D$45,IF('DNSP Inputs General'!$B62='DNSP Inputs General'!$A$42,D$46,D$47))*'DNSP Inputs General'!$D62*'DNSP Inputs General'!K62 -> 0 | E71: =IF('DNSP Inputs General'!$B62='DNSP Inputs General'!$A$41,E$45,IF('DNSP Inputs General'!$B62='DNSP Inputs General'!$A$42,E$46,E$47))*'DNSP Inputs General'!$D62*'DNSP Inputs General'!L62 -> 0 | F71: =IF('DNSP Inputs General'!$B62='DNSP Inputs General'!$A$41,F$45,IF('DNSP Inputs General'!$B62='DNSP Inputs General'!$A$42,F$46,F$47))*'DNSP Inputs General'!$D62*'DNSP Inputs General'!M62 -> 0 | G71: =IF('DNSP Inputs General'!$B62='DNSP Inputs General'!$A$41,G$45,IF('DNSP Inputs General'!$B62='DNSP Inputs General'!$A$42,G$46,G$47))*'DNSP Inputs General'!$D62*'DNSP Inputs General'!N62 -> 0 | H71: =IF('DNSP Inputs General'!$B62='DNSP Inputs General'!$A$41,H$45,IF('DNSP Inputs General'!$B62='DNSP Inputs General'!$A$42,H$46,H$47))*'DNSP Inputs General'!$D62*'DNSP Inputs General'!O62 -> 0 | K71: =D71/'Charges Summary'!D$4 -> 0 | L71: =E71/'Charges Summary'!E$4 -> 0 | M71: =F71/'Charges Summary'!F$4 -> 0 | N71: =G71/'Charges Summary'!G$4 -> 0 | O71: =H71/'Charges Summary'!H$4 -> 0
A74: ='DNSP Inputs General'!A$67 -> Energy Efficient Lights
A75: ='DNSP Inputs General'!A$68 -> T5 2X14W | D75: =SUM('Charges Summary'!D83,'Charges Summary'!D8)*'DNSP Inputs General'!$D68*'DNSP Inputs General'!K68 -> 871328.087 | E75: =SUM('Charges Summary'!E83,'Charges Summary'!E8)*'DNSP Inputs General'!$D68*'DNSP Inputs General'!L68 -> 921911.6551 | F75: =SUM('Charges Summary'!F83,'Charges Summary'!F8)*'DNSP Inputs General'!$D68*'DNSP Inputs General'!M68 -> 968204.5404 | G75: =SUM('Charges Summary'!G83,'Charges Summary'!G8)*'DNSP Inputs General'!$D68*'DNSP Inputs General'!N68 -> 986128.7738 | H75: =SUM('Charges Summary'!H83,'Charges Summary'!H8)*'DNSP Inputs General'!$D68*'DNSP Inputs General'!O68 -> 1020141.243 | K75: =D75/'Charges Summary'!D$4 -> 850076.1824 | L75: =E75/'Charges Summary'!E$4 -> 877488.7854 | M75: =F75/'Charges Summary'!F$4 -> 899074.1659 | N75: =G75/'Charges Summary'!G$4 -> 893383.9985 | O75: =H75/'Charges Summary'!H$4 -> 901656.2114
A76: ='DNSP Inputs General'!A$69 -> T5 (2x24W) | D76: =SUM('Charges Summary'!D$83,'Charges Summary'!D$8)*'DNSP Inputs General'!$D69*'DNSP Inputs General'!K69 -> 9313.744082 | E76: =SUM('Charges Summary'!E$83,'Charges Summary'!E$8)*'DNSP Inputs General'!$D69*'DNSP Inputs General'!L69 -> 9721.84223 | F76: =SUM('Charges Summary'!F$83,'Charges Summary'!F$8)*'DNSP Inputs General'!$D69*'DNSP Inputs General'!M69 -> 10074.45802 | G76: =SUM('Charges Summary'!G$83,'Charges Summary'!G$8)*'DNSP Inputs General'!$D69*'DNSP Inputs General'!N69 -> 10126.51668 | H76: =SUM('Charges Summary'!H$83,'Charges Summary'!H$8)*'DNSP Inputs General'!$D69*'DNSP Inputs General'!O69 -> 10340.30147 | K76: =D76/'Charges Summary'!D$4 -> 9086.579592 | L76: =E76/'Charges Summary'!E$4 -> 9253.389392 | M76: =F76/'Charges Summary'!F$4 -> 9355.135779 | N76: =G76/'Charges Summary'!G$4 -> 9174.124317 | O76: =H76/'Charges Summary'!H$4 -> 9139.319791
A77: ='DNSP Inputs General'!A$70 -> LED 18W | D77: =SUM('Charges Summary'!D$101,'Charges Summary'!D$8)*'DNSP Inputs General'!$D70*'DNSP Inputs General'!K70 -> 4908.862717 | E77: =SUM('Charges Summary'!E$101,'Charges Summary'!E$8)*'DNSP Inputs General'!$D70*'DNSP Inputs General'!L70 -> 7506.105464 | F77: =SUM('Charges Summary'!F$101,'Charges Summary'!F$8)*'DNSP Inputs General'!$D70*'DNSP Inputs General'!M70 -> 10200.30881 | G77: =SUM('Charges Summary'!G$101,'Charges Summary'!G$8)*'DNSP Inputs General'!$D70*'DNSP Inputs General'!N70 -> 12686.954 | H77: =SUM('Charges Summary'!H$101,'Charges Summary'!H$8)*'DNSP Inputs General'!$D70*'DNSP Inputs General'!O70 -> 15376.82337 | K77: =D77/'Charges Summary'!D$4 -> 4789.134358 | L77: =E77/'Charges Summary'!E$4 -> 7144.41924 | M77: =F77/'Charges Summary'!F$4 -> 9472.000754 | N77: =G77/'Charges Summary'!G$4 -> 11493.75415 | O77: =H77/'Charges Summary'!H$4 -> 13590.87127
A78: ='DNSP Inputs General'!A$71 -> Compact Fluoro 32W | D78: =SUM('Charges Summary'!D$83,'Charges Summary'!D$8)*'DNSP Inputs General'!$D71*'DNSP Inputs General'!K71 -> 171.3619997 | E78: =SUM('Charges Summary'!E$83,'Charges Summary'!E$8)*'DNSP Inputs General'!$D71*'DNSP Inputs General'!L71 -> 178.8705284 | F78: =SUM('Charges Summary'!F$83,'Charges Summary'!F$8)*'DNSP Inputs General'!$D71*'DNSP Inputs General'!M71 -> 185.3582465 | G78: =SUM('Charges Summary'!G$83,'Charges Summary'!G$8)*'DNSP Inputs General'!$D71*'DNSP Inputs General'!N71 -> 186.316065 | H78: =SUM('Charges Summary'!H$83,'Charges Summary'!H$8)*'DNSP Inputs General'!$D71*'DNSP Inputs General'!O71 -> 190.2494552 | K78: =D78/'Charges Summary'!D$4 -> 167.1824387 | L78: =E78/'Charges Summary'!E$4 -> 170.251544 | M78: =F78/'Charges Summary'!F$4 -> 172.1235585 | N78: =G78/'Charges Summary'!G$4 -> 168.7931593 | O78: =H78/'Charges Summary'!H$4 -> 168.1527967
A79: ='DNSP Inputs General'!A$72 -> Compact Fluoro 42W | D79: =SUM('Charges Summary'!D$83,'Charges Summary'!D$8)*'DNSP Inputs General'!$D72*'DNSP Inputs General'!K72 -> 1642.707931 | E79: =SUM('Charges Summary'!E$83,'Charges Summary'!E$8)*'DNSP Inputs General'!$D72*'DNSP Inputs General'!L72 -> 1714.68608 | F79: =SUM('Charges Summary'!F$83,'Charges Summary'!F$8)*'DNSP Inputs General'!$D72*'DNSP Inputs General'!M72 -> 1776.87855 | G79: =SUM('Charges Summary'!G$83,'Charges Summary'!G$8)*'DNSP Inputs General'!$D72*'DNSP Inputs General'!N72 -> 1786.060377 | H79: =SUM('Charges Summary'!H$83,'Charges Summary'!H$8)*'DNSP Inputs General'!$D72*'DNSP Inputs General'!O72 -> 1823.766584 | K79: =D79/'Charges Summary'!D$4 -> 1602.641884 | L79: =E79/'Charges Summary'!E$4 -> 1632.062896 | M79: =F79/'Charges Summary'!F$4 -> 1650.008375 | N79: =G79/'Charges Summary'!G$4 -> 1618.08255 | O79: =H79/'Charges Summary'!H$4 -> 1611.943915
A81: Total O & M | D81: =SUM(D50:D79) -> 3058732.357 | E81: =SUM(E50:E79) -> 3211906.08 | F81: =SUM(F50:F79) -> 3352027.953 | G81: =SUM(G50:G79) -> 3404484.969 | H81: =SUM(H50:H79) -> 3506585.6 | K81: =SUM(K50:K79) -> 2984129.128 | L81: =SUM(L50:L79) -> 3057138.447 | M81: =SUM(M50:M79) -> 3112691.182 | N81: =SUM(N50:N79) -> 3084295.353 | O81: =SUM(O50:O79) -> 3099310.717
A84: Public Lighting - Capital Charge | D84: Capital Charge - Nominal | K84: Capital Charge - Real 2015 $
D85: =D$2 -> 2016 | E85: 2017 | F85: 2018 | G85: 2019 | H85: 2020 | K85: =K$2 -> 2016 | L85: 2017 | M85: 2018 | N85: 2019 | O85: 2020
A87: Unit cost
A88: ='DNSP Inputs General'!A$41 -> Mercury Vapour 80 watt | D88: =SUM('Charges Summary'!D27,'Charges Summary'!D11) -> 17.38554428 | E88: =SUM('Charges Summary'!E27,'Charges Summary'!E11) -> 17.93616853 | F88: =SUM('Charges Summary'!F27,'Charges Summary'!F11) -> 18.51323173 | G88: =SUM('Charges Summary'!G27,'Charges Summary'!G11) -> 19.07030516 | H88: =SUM('Charges Summary'!H27,'Charges Summary'!H11) -> 19.59038718
A89: ='DNSP Inputs General'!A$42 -> Sodium High Pressure 150 watt | D89: =SUM('Charges Summary'!D51,'Charges Summary'!D11) -> 19.5696976 | E89: =SUM('Charges Summary'!E51,'Charges Summary'!E11) -> 20.15682975 | F89: =SUM('Charges Summary'!F51,'Charges Summary'!F11) -> 20.77384001 | G89: =SUM('Charges Summary'!G51,'Charges Summary'!G11) -> 21.36907991 | H89: =SUM('Charges Summary'!H51,'Charges Summary'!H11) -> 21.92363954
A90: ='DNSP Inputs General'!A$43 -> Sodium High Pressure 250 watt | D90: =SUM('Charges Summary'!D67,'Charges Summary'!D11) -> 20.47955591 | E90: =SUM('Charges Summary'!E67,'Charges Summary'!E11) -> 21.08189625 | F90: =SUM('Charges Summary'!F67,'Charges Summary'!F11) -> 21.71554735 | G90: =SUM('Charges Summary'!G67,'Charges Summary'!G11) -> 22.32668636 | H90: =SUM('Charges Summary'!H67,'Charges Summary'!H11) -> 22.89560842
A92: ='DNSP Inputs General'!A$40 -> Existing Lights
A93: ='DNSP Inputs General'!A$41 -> Mercury Vapour 80 watt | D93: =D88*'DNSP Inputs General'!K41 -> 233364.5423 | E93: =E88*'DNSP Inputs General'!L41 -> 237288.6408 | F93: =F88*'DNSP Inputs General'!M41 -> 241396.0753 | G93: =G88*'DNSP Inputs General'!N41 -> 245079.1159 | H93: =H88*'DNSP Inputs General'!O41 -> 248137.4854 | K93: =D93/'Charges Summary'!D$4 -> 227672.7242 | L93: =E93/'Charges Summary'!E$4 -> 225854.7444 | M93: =F93/'Charges Summary'!F$4 -> 224160.2533 | N93: =G93/'Charges Summary'!G$4 -> 222029.5831 | O93: =H93/'Charges Summary'!H$4 -> 219317.3804
A94: ='DNSP Inputs General'!A$42 -> Sodium High Pressure 150 watt | D94: =D89*'DNSP Inputs General'!K42 -> 307385.3029 | E94: =E89*'DNSP Inputs General'!L42 -> 320898.15 | F94: =F89*'DNSP Inputs General'!M42 -> 335089.9775 | G94: =G89*'DNSP Inputs General'!N42 -> 349139.0663 | H94: =H89*'DNSP Inputs General'!O42 -> 362722.078 | K94: =D94/'Charges Summary'!D$4 -> 299888.1004 | L94: =E94/'Charges Summary'!E$4 -> 305435.4789 | M94: =F94/'Charges Summary'!F$4 -> 311164.3557 | N94: =G94/'Charges Summary'!G$4 -> 316302.7623 | O94: =H94/'Charges Summary'!H$4 -> 320593.4638
A95: ='DNSP Inputs General'!A$43 -> Sodium High Pressure 250 watt | D95: =D90*'DNSP Inputs General'!K43 -> 97122.36866 | E95: =E90*'DNSP Inputs General'!L43 -> 100178.2982 | F95: =F90*'DNSP Inputs General'!M43 -> 103384.6163 | G95: =G90*'DNSP Inputs General'!N43 -> 106485.0921 | H95: =H90*'DNSP Inputs General'!O43 -> 109384.6945 | K95: =D95/'Charges Summary'!D$4 -> 94753.5304 | L95: =E95/'Charges Summary'!E$4 -> 95351.14642 | M95: =F95/'Charges Summary'!F$4 -> 96002.8938 | N95: =G95/'Charges Summary'!G$4 -> 96470.23782 | O95: =H95/'Charges Summary'!H$4 -> 96680.13121
A96: ='DNSP Inputs General'!A$44 -> 55W Ind | D96: =IF('DNSP Inputs General'!$B44='DNSP Inputs General'!$A$41,D$88,IF('DNSP Inputs General'!$B44='DNSP Inputs General'!$A$42,D$89,D$90))*'DNSP Inputs General'!$D44*'DNSP Inputs General'!K44 -> 0 | E96: =IF('DNSP Inputs General'!$B44='DNSP Inputs General'!$A$41,E$88,IF('DNSP Inputs General'!$B44='DNSP Inputs General'!$A$42,E$89,E$90))*'DNSP Inputs General'!$D44*'DNSP Inputs General'!L44 -> 0 | F96: =IF('DNSP Inputs General'!$B44='DNSP Inputs General'!$A$41,F$88,IF('DNSP Inputs General'!$B44='DNSP Inputs General'!$A$42,F$89,F$90))*'DNSP Inputs General'!$D44*'DNSP Inputs General'!M44 -> 0 | G96: =IF('DNSP Inputs General'!$B44='DNSP Inputs General'!$A$41,G$88,IF('DNSP Inputs General'!$B44='DNSP Inputs General'!$A$42,G$89,G$90))*'DNSP Inputs General'!$D44*'DNSP Inputs General'!N44 -> 0 | H96: =IF('DNSP Inputs General'!$B44='DNSP Inputs General'!$A$41,H$88,IF('DNSP Inputs General'!$B44='DNSP Inputs General'!$A$42,H$89,H$90))*'DNSP Inputs General'!$D44*'DNSP Inputs General'!O44 -> 0 | K96: =D96/'Charges Summary'!D$4 -> 0 | L96: =E96/'Charges Summary'!E$4 -> 0 | M96: =F96/'Charges Summary'!F$4 -> 0 | N96: =G96/'Charges Summary'!G$4 -> 0 | O96: =H96/'Charges Summary'!H$4 -> 0
A97: ='DNSP Inputs General'!A$45 -> Fluorescent 20 watt | D97: =IF('DNSP Inputs General'!$B45='DNSP Inputs General'!$A$41,D$88,IF('DNSP Inputs General'!$B45='DNSP Inputs General'!$A$42,D$89,D$90))*'DNSP Inputs General'!$D45*'DNSP Inputs General'!K45 -> 0 | E97: =IF('DNSP Inputs General'!$B45='DNSP Inputs General'!$A$41,E$88,IF('DNSP Inputs General'!$B45='DNSP Inputs General'!$A$42,E$89,E$90))*'DNSP Inputs General'!$D45*'DNSP Inputs General'!L45 -> 0 | F97: =IF('DNSP Inputs General'!$B45='DNSP Inputs General'!$A$41,F$88,IF('DNSP Inputs General'!$B45='DNSP Inputs General'!$A$42,F$89,F$90))*'DNSP Inputs General'!$D45*'DNSP Inputs General'!M45 -> 0 | G97: =IF('DNSP Inputs General'!$B45='DNSP Inputs General'!$A$41,G$88,IF('DNSP Inputs General'!$B45='DNSP Inputs General'!$A$42,G$89,G$90))*'DNSP Inputs General'!$D45*'DNSP Inputs General'!N45 -> 0 | H97: =IF('DNSP Inputs General'!$B45='DNSP Inputs General'!$A$41,H$88,IF('DNSP Inputs General'!$B45='DNSP Inputs General'!$A$42,H$89,H$90))*'DNSP Inputs General'!$D45*'DNSP Inputs General'!O45 -> 0 | K97: =D97/'Charges Summary'!D$4 -> 0 | L97: =E97/'Charges Summary'!E$4 -> 0 | M97: =F97/'Charges Summary'!F$4 -> 0 | N97: =G97/'Charges Summary'!G$4 -> 0 | O97: =H97/'Charges Summary'!H$4 -> 0
A98: ='DNSP Inputs General'!A$46 -> Fluorescent 40 watt | D98: =IF('DNSP Inputs General'!$B46='DNSP Inputs General'!$A$41,D$88,IF('DNSP Inputs General'!$B46='DNSP Inputs General'!$A$42,D$89,D$90))*'DNSP Inputs General'!$D46*'DNSP Inputs General'!K46 -> 0 | E98: =IF('DNSP Inputs General'!$B46='DNSP Inputs General'!$A$41,E$88,IF('DNSP Inputs General'!$B46='DNSP Inputs General'!$A$42,E$89,E$90))*'DNSP Inputs General'!$D46*'DNSP Inputs General'!L46 -> 0 | F98: =IF('DNSP Inputs General'!$B46='DNSP Inputs General'!$A$41,F$88,IF('DNSP Inputs General'!$B46='DNSP Inputs General'!$A$42,F$89,F$90))*'DNSP Inputs General'!$D46*'DNSP Inputs General'!M46 -> 0 | G98: =IF('DNSP Inputs General'!$B46='DNSP Inputs General'!$A$41,G$88,IF('DNSP Inputs General'!$B46='DNSP Inputs General'!$A$42,G$89,G$90))*'DNSP Inputs General'!$D46*'DNSP Inputs General'!N46 -> 0 | H98: =IF('DNSP Inputs General'!$B46='DNSP Inputs General'!$A$41,H$88,IF('DNSP Inputs General'!$B46='DNSP Inputs General'!$A$42,H$89,H$90))*'DNSP Inputs General'!$D46*'DNSP Inputs General'!O46 -> 0 | K98: =D98/'Charges Summary'!D$4 -> 0 | L98: =E98/'Charges Summary'!E$4 -> 0 | M98: =F98/'Charges Summary'!F$4 -> 0 | N98: =G98/'Charges Summary'!G$4 -> 0 | O98: =H98/'Charges Summary'!H$4 -> 0
A99: ='DNSP Inputs General'!A$47 -> Fluorescent 80 watt | D99: =IF('DNSP Inputs General'!$B47='DNSP Inputs General'!$A$41,D$88,IF('DNSP Inputs General'!$B47='DNSP Inputs General'!$A$42,D$89,D$90))*'DNSP Inputs General'!$D47*'DNSP Inputs General'!K47 -> 0 | E99: =IF('DNSP Inputs General'!$B47='DNSP Inputs General'!$A$41,E$88,IF('DNSP Inputs General'!$B47='DNSP Inputs General'!$A$42,E$89,E$90))*'DNSP Inputs General'!$D47*'DNSP Inputs General'!L47 -> 0 | F99: =IF('DNSP Inputs General'!$B47='DNSP Inputs General'!$A$41,F$88,IF('DNSP Inputs General'!$B47='DNSP Inputs General'!$A$42,F$89,F$90))*'DNSP Inputs General'!$D47*'DNSP Inputs General'!M47 -> 0 | G99: =IF('DNSP Inputs General'!$B47='DNSP Inputs General'!$A$41,G$88,IF('DNSP Inputs General'!$B47='DNSP Inputs General'!$A$42,G$89,G$90))*'DNSP Inputs General'!$D47*'DNSP Inputs General'!N47 -> 0 | H99: =IF('DNSP Inputs General'!$B47='DNSP Inputs General'!$A$41,H$88,IF('DNSP Inputs General'!$B47='DNSP Inputs General'!$A$42,H$89,H$90))*'DNSP Inputs General'!$D47*'DNSP Inputs General'!O47 -> 0 | K99: =D99/'Charges Summary'!D$4 -> 0 | L99: =E99/'Charges Summary'!E$4 -> 0 | M99: =F99/'Charges Summary'!F$4 -> 0 | N99: =G99/'Charges Summary'!G$4 -> 0 | O99: =H99/'Charges Summary'!H$4 -> 0
A100: ='DNSP Inputs General'!A$48 -> Mercury Vapour 50 watt | D100: =IF('DNSP Inputs General'!$B48='DNSP Inputs General'!$A$41,D$88,IF('DNSP Inputs General'!$B48='DNSP Inputs General'!$A$42,D$89,D$90))*'DNSP Inputs General'!$D48*'DNSP Inputs General'!K48 -> 0 | E100: =IF('DNSP Inputs General'!$B48='DNSP Inputs General'!$A$41,E$88,IF('DNSP Inputs General'!$B48='DNSP Inputs General'!$A$42,E$89,E$90))*'DNSP Inputs General'!$D48*'DNSP Inputs General'!L48 -> 0 | F100: =IF('DNSP Inputs General'!$B48='DNSP Inputs General'!$A$41,F$88,IF('DNSP Inputs General'!$B48='DNSP Inputs General'!$A$42,F$89,F$90))*'DNSP Inputs General'!$D48*'DNSP Inputs General'!M48 -> 0 | G100: =IF('DNSP Inputs General'!$B48='DNSP Inputs General'!$A$41,G$88,IF('DNSP Inputs General'!$B48='DNSP Inputs General'!$A$42,G$89,G$90))*'DNSP Inputs General'!$D48*'DNSP Inputs General'!N48 -> 0 | H100: =IF('DNSP Inputs General'!$B48='DNSP Inputs General'!$A$41,H$88,IF('DNSP Inputs General'!$B48='DNSP Inputs General'!$A$42,H$89,H$90))*'DNSP Inputs General'!$D48*'DNSP Inputs General'!O48 -> 0 | K100: =D100/'Charges Summary'!D$4 -> 0 | L100: =E100/'Charges Summary'!E$4 -> 0 | M100: =F100/'Charges Summary'!F$4 -> 0 | N100: =G100/'Charges Summary'!G$4 -> 0 | O100: =H100/'Charges Summary'!H$4 -> 0
A101: ='DNSP Inputs General'!A$49 -> Mercury Vapour 125 watt | D101: =IF('DNSP Inputs General'!$B49='DNSP Inputs General'!$A$41,D$88,IF('DNSP Inputs General'!$B49='DNSP Inputs General'!$A$42,D$89,D$90))*'DNSP Inputs General'!$D49*'DNSP Inputs General'!K49 -> 9061.495527 | E101: =IF('DNSP Inputs General'!$B49='DNSP Inputs General'!$A$41,E$88,IF('DNSP Inputs General'!$B49='DNSP Inputs General'!$A$42,E$89,E$90))*'DNSP Inputs General'!$D49*'DNSP Inputs General'!L49 -> 9213.867437 | F101: =IF('DNSP Inputs General'!$B49='DNSP Inputs General'!$A$41,F$88,IF('DNSP Inputs General'!$B49='DNSP Inputs General'!$A$42,F$89,F$90))*'DNSP Inputs General'!$D49*'DNSP Inputs General'!M49 -> 9373.358243 | G101: =IF('DNSP Inputs General'!$B49='DNSP Inputs General'!$A$41,G$88,IF('DNSP Inputs General'!$B49='DNSP Inputs General'!$A$42,G$89,G$90))*'DNSP Inputs General'!$D49*'DNSP Inputs General'!N49 -> 9516.369926 | H101: =IF('DNSP Inputs General'!$B49='DNSP Inputs General'!$A$41,H$88,IF('DNSP Inputs General'!$B49='DNSP Inputs General'!$A$42,H$89,H$90))*'DNSP Inputs General'!$D49*'DNSP Inputs General'!O49 -> 9635.125762 | K101: =D101/'Charges Summary'!D$4 -> 8840.483441 | L101: =E101/'Charges Summary'!E$4 -> 8769.891671 | M101: =F101/'Charges Summary'!F$4 -> 8704.094943 | N101: =G101/'Charges Summary'!G$4 -> 8621.361471 | O101: =H101/'Charges Summary'!H$4 -> 8516.047216
A102: ='DNSP Inputs General'!A$50 -> Mercury Vapour 250 watt | D102: =IF('DNSP Inputs General'!$B50='DNSP Inputs General'!$A$41,D$88,IF('DNSP Inputs General'!$B50='DNSP Inputs General'!$A$42,D$89,D$90))*'DNSP Inputs General'!$D50*'DNSP Inputs General'!K50 -> 2333.930109 | E102: =IF('DNSP Inputs General'!$B50='DNSP Inputs General'!$A$41,E$88,IF('DNSP Inputs General'!$B50='DNSP Inputs General'!$A$42,E$89,E$90))*'DNSP Inputs General'!$D50*'DNSP Inputs General'!L50 -> 2050.365193 | F102: =IF('DNSP Inputs General'!$B50='DNSP Inputs General'!$A$41,F$88,IF('DNSP Inputs General'!$B50='DNSP Inputs General'!$A$42,F$89,F$90))*'DNSP Inputs General'!$D50*'DNSP Inputs General'!M50 -> 1802.380859 | G102: =IF('DNSP Inputs General'!$B50='DNSP Inputs General'!$A$41,G$88,IF('DNSP Inputs General'!$B50='DNSP Inputs General'!$A$42,G$89,G$90))*'DNSP Inputs General'!$D50*'DNSP Inputs General'!N50 -> 1581.445737 | H102: =IF('DNSP Inputs General'!$B50='DNSP Inputs General'!$A$41,H$88,IF('DNSP Inputs General'!$B50='DNSP Inputs General'!$A$42,H$89,H$90))*'DNSP Inputs General'!$D50*'DNSP Inputs General'!O50 -> 1384.001145 | K102: =D102/'Charges Summary'!D$4 -> 2277.004985 | L102: =E102/'Charges Summary'!E$4 -> 1951.567108 | M102: =F102/'Charges Summary'!F$4 -> 1673.689804 | N102: =G102/'Charges Summary'!G$4 -> 1432.711785 | O102: =H102/'Charges Summary'!H$4 -> 1223.255346
A103: ='DNSP Inputs General'!A$51 -> Mercury Vapour 400 watt | D103: =IF('DNSP Inputs General'!$B51='DNSP Inputs General'!$A$41,D$88,IF('DNSP Inputs General'!$B51='DNSP Inputs General'!$A$42,D$89,D$90))*'DNSP Inputs General'!$D51*'DNSP Inputs General'!K51 -> 4259.77896 | E103: =IF('DNSP Inputs General'!$B51='DNSP Inputs General'!$A$41,E$88,IF('DNSP Inputs General'!$B51='DNSP Inputs General'!$A$42,E$89,E$90))*'DNSP Inputs General'!$D51*'DNSP Inputs General'!L51 -> 4169.728576 | F103: =IF('DNSP Inputs General'!$B51='DNSP Inputs General'!$A$41,F$88,IF('DNSP Inputs General'!$B51='DNSP Inputs General'!$A$42,F$89,F$90))*'DNSP Inputs General'!$D51*'DNSP Inputs General'!M51 -> 4084.138674 | G103: =IF('DNSP Inputs General'!$B51='DNSP Inputs General'!$A$41,G$88,IF('DNSP Inputs General'!$B51='DNSP Inputs General'!$A$42,G$89,G$90))*'DNSP Inputs General'!$D51*'DNSP Inputs General'!N51 -> 3992.873543 | H103: =IF('DNSP Inputs General'!$B51='DNSP Inputs General'!$A$41,H$88,IF('DNSP Inputs General'!$B51='DNSP Inputs General'!$A$42,H$89,H$90))*'DNSP Inputs General'!$D51*'DNSP Inputs General'!O51 -> 3893.543745 | K103: =D103/'Charges Summary'!D$4 -> 4155.881912 | L103: =E103/'Charges Summary'!E$4 -> 3968.807687 | M103: =F103/'Charges Summary'!F$4 -> 3792.528767 | N103: =G103/'Charges Summary'!G$4 -> 3617.346361 | O103: =H103/'Charges Summary'!H$4 -> 3441.325333
A104: ='DNSP Inputs General'!A$52 -> Sodium High Pressure 50 watt | D104: =IF('DNSP Inputs General'!$B52='DNSP Inputs General'!$A$41,D$88,IF('DNSP Inputs General'!$B52='DNSP Inputs General'!$A$42,D$89,D$90))*'DNSP Inputs General'!$D52*'DNSP Inputs General'!K52 -> 0 | E104: =IF('DNSP Inputs General'!$B52='DNSP Inputs General'!$A$41,E$88,IF('DNSP Inputs General'!$B52='DNSP Inputs General'!$A$42,E$89,E$90))*'DNSP Inputs General'!$D52*'DNSP Inputs General'!L52 -> 0 | F104: =IF('DNSP Inputs General'!$B52='DNSP Inputs General'!$A$41,F$88,IF('DNSP Inputs General'!$B52='DNSP Inputs General'!$A$42,F$89,F$90))*'DNSP Inputs General'!$D52*'DNSP Inputs General'!M52 -> 0 | G104: =IF('DNSP Inputs General'!$B52='DNSP Inputs General'!$A$41,G$88,IF('DNSP Inputs General'!$B52='DNSP Inputs General'!$A$42,G$89,G$90))*'DNSP Inputs General'!$D52*'DNSP Inputs General'!N52 -> 0 | H104: =IF('DNSP Inputs General'!$B52='DNSP Inputs General'!$A$41,H$88,IF('DNSP Inputs General'!$B52='DNSP Inputs General'!$A$42,H$89,H$90))*'DNSP Inputs General'!$D52*'DNSP Inputs General'!O52 -> 0 | K104: =D104/'Charges Summary'!D$4 -> 0 | L104: =E104/'Charges Summary'!E$4 -> 0 | M104: =F104/'Charges Summary'!F$4 -> 0 | N104: =G104/'Charges Summary'!G$4 -> 0 | O104: =H104/'Charges Summary'!H$4 -> 0
A105: ='DNSP Inputs General'!A$53 -> Sodium Low Pressure 90 watt | D105: =IF('DNSP Inputs General'!$B53='DNSP Inputs General'!$A$41,D$88,IF('DNSP Inputs General'!$B53='DNSP Inputs General'!$A$42,D$89,D$90))*'DNSP Inputs General'!$D53*'DNSP Inputs General'!K53 -> 0 | E105: =IF('DNSP Inputs General'!$B53='DNSP Inputs General'!$A$41,E$88,IF('DNSP Inputs General'!$B53='DNSP Inputs General'!$A$42,E$89,E$90))*'DNSP Inputs General'!$D53*'DNSP Inputs General'!L53 -> 0 | F105: =IF('DNSP Inputs General'!$B53='DNSP Inputs General'!$A$41,F$88,IF('DNSP Inputs General'!$B53='DNSP Inputs General'!$A$42,F$89,F$90))*'DNSP Inputs General'!$D53*'DNSP Inputs General'!M53 -> 0 | G105: =IF('DNSP Inputs General'!$B53='DNSP Inputs General'!$A$41,G$88,IF('DNSP Inputs General'!$B53='DNSP Inputs General'!$A$42,G$89,G$90))*'DNSP Inputs General'!$D53*'DNSP Inputs General'!N53 -> 0 | H105: =IF('DNSP Inputs General'!$B53='DNSP Inputs General'!$A$41,H$88,IF('DNSP Inputs General'!$B53='DNSP Inputs General'!$A$42,H$89,H$90))*'DNSP Inputs General'!$D53*'DNSP Inputs General'!O53 -> 0 | K105: =D105/'Charges Summary'!D$4 -> 0 | L105: =E105/'Charges Summary'!E$4 -> 0 | M105: =F105/'Charges Summary'!F$4 -> 0 | N105: =G105/'Charges Summary'!G$4 -> 0 | O105: =H105/'Charges Summary'!H$4 -> 0
A106: ='DNSP Inputs General'!A$54 -> Sodium High Pressure 100 watt | D106: =IF('DNSP Inputs General'!$B54='DNSP Inputs General'!$A$41,D$88,IF('DNSP Inputs General'!$B54='DNSP Inputs General'!$A$42,D$89,D$90))*'DNSP Inputs General'!$D54*'DNSP Inputs General'!K54 -> 30783.89352 | E106: =IF('DNSP Inputs General'!$B54='DNSP Inputs General'!$A$41,E$88,IF('DNSP Inputs General'!$B54='DNSP Inputs General'!$A$42,E$89,E$90))*'DNSP Inputs General'!$D54*'DNSP Inputs General'!L54 -> 31250.88752 | F106: =IF('DNSP Inputs General'!$B54='DNSP Inputs General'!$A$41,F$88,IF('DNSP Inputs General'!$B54='DNSP Inputs General'!$A$42,F$89,F$90))*'DNSP Inputs General'!$D54*'DNSP Inputs General'!M54 -> 31743.70434 | G106: =IF('DNSP Inputs General'!$B54='DNSP Inputs General'!$A$41,G$88,IF('DNSP Inputs General'!$B54='DNSP Inputs General'!$A$42,G$89,G$90))*'DNSP Inputs General'!$D54*'DNSP Inputs General'!N54 -> 32183.06044 | H106: =IF('DNSP Inputs General'!$B54='DNSP Inputs General'!$A$41,H$88,IF('DNSP Inputs General'!$B54='DNSP Inputs General'!$A$42,H$89,H$90))*'DNSP Inputs General'!$D54*'DNSP Inputs General'!O54 -> 32542.79614 | K106: =D106/'Charges Summary'!D$4 -> 30033.06685 | L106: =E106/'Charges Summary'!E$4 -> 29745.04464 | M106: =F106/'Charges Summary'!F$4 -> 29477.18515 | N106: =G106/'Charges Summary'!G$4 -> 29156.26436 | O106: =H106/'Charges Summary'!H$4 -> 28763.0899
A107: ='DNSP Inputs General'!A$55 -> Sodium High Pressure 400 watt | D107: =IF('DNSP Inputs General'!$B55='DNSP Inputs General'!$A$41,D$88,IF('DNSP Inputs General'!$B55='DNSP Inputs General'!$A$42,D$89,D$90))*'DNSP Inputs General'!$D55*'DNSP Inputs General'!K55 -> 7844.489097 | E107: =IF('DNSP Inputs General'!$B55='DNSP Inputs General'!$A$41,E$88,IF('DNSP Inputs General'!$B55='DNSP Inputs General'!$A$42,E$89,E$90))*'DNSP Inputs General'!$D55*'DNSP Inputs General'!L55 -> 8075.20954 | F107: =IF('DNSP Inputs General'!$B55='DNSP Inputs General'!$A$41,F$88,IF('DNSP Inputs General'!$B55='DNSP Inputs General'!$A$42,F$89,F$90))*'DNSP Inputs General'!$D55*'DNSP Inputs General'!M55 -> 8317.923259 | G107: =IF('DNSP Inputs General'!$B55='DNSP Inputs General'!$A$41,G$88,IF('DNSP Inputs General'!$B55='DNSP Inputs General'!$A$42,G$89,G$90))*'DNSP Inputs General'!$D55*'DNSP Inputs General'!N55 -> 8552.013944 | H107: =IF('DNSP Inputs General'!$B55='DNSP Inputs General'!$A$41,H$88,IF('DNSP Inputs General'!$B55='DNSP Inputs General'!$A$42,H$89,H$90))*'DNSP Inputs General'!$D55*'DNSP Inputs General'!O55 -> 8769.933851 | K107: =D107/'Charges Summary'!D$4 -> 7653.160095 | L107: =E107/'Charges Summary'!E$4 -> 7686.100692 | M107: =F107/'Charges Summary'!F$4 -> 7724.018638 | N107: =G107/'Charges Summary'!G$4 -> 7747.702547 | O107: =H107/'Charges Summary'!H$4 -> 7751.343636
A108: ='DNSP Inputs General'!A$56 -> Metal Halide 70 watt | D108: =IF('DNSP Inputs General'!$B56='DNSP Inputs General'!$A$41,D$88,IF('DNSP Inputs General'!$B56='DNSP Inputs General'!$A$42,D$89,D$90))*'DNSP Inputs General'!$D56*'DNSP Inputs General'!K56 -> 536.1701857 | E108: =IF('DNSP Inputs General'!$B56='DNSP Inputs General'!$A$41,E$88,IF('DNSP Inputs General'!$B56='DNSP Inputs General'!$A$42,E$89,E$90))*'DNSP Inputs General'!$D56*'DNSP Inputs General'!L56 -> 553.1514375 | F108: =IF('DNSP Inputs General'!$B56='DNSP Inputs General'!$A$41,F$88,IF('DNSP Inputs General'!$B56='DNSP Inputs General'!$A$42,F$89,F$90))*'DNSP Inputs General'!$D56*'DNSP Inputs General'!M56 -> 570.9480666 | G108: =IF('DNSP Inputs General'!$B56='DNSP Inputs General'!$A$41,G$88,IF('DNSP Inputs General'!$B56='DNSP Inputs General'!$A$42,G$89,G$90))*'DNSP Inputs General'!$D56*'DNSP Inputs General'!N56 -> 588.1282111 | H108: =IF('DNSP Inputs General'!$B56='DNSP Inputs General'!$A$41,H$88,IF('DNSP Inputs General'!$B56='DNSP Inputs General'!$A$42,H$89,H$90))*'DNSP Inputs General'!$D56*'DNSP Inputs General'!O56 -> 604.1675408 | K108: =D108/'Charges Summary'!D$4 -> 523.0928641 | L108: =E108/'Charges Summary'!E$4 -> 526.4975015 | M108: =F108/'Charges Summary'!F$4 -> 530.1820383 | N108: =G108/'Charges Summary'!G$4 -> 532.815132 | O108: =H108/'Charges Summary'!H$4 -> 533.9960714
A109: ='DNSP Inputs General'!A$57 -> Metal Halide 150 watt | D109: =IF('DNSP Inputs General'!$B57='DNSP Inputs General'!$A$41,D$88,IF('DNSP Inputs General'!$B57='DNSP Inputs General'!$A$42,D$89,D$90))*'DNSP Inputs General'!$D57*'DNSP Inputs General'!K57 -> 1433.676046 | E109: =IF('DNSP Inputs General'!$B57='DNSP Inputs General'!$A$41,E$88,IF('DNSP Inputs General'!$B57='DNSP Inputs General'!$A$42,E$89,E$90))*'DNSP Inputs General'!$D57*'DNSP Inputs General'!L57 -> 1476.689347 | F109: =IF('DNSP Inputs General'!$B57='DNSP Inputs General'!$A$41,F$88,IF('DNSP Inputs General'!$B57='DNSP Inputs General'!$A$42,F$89,F$90))*'DNSP Inputs General'!$D57*'DNSP Inputs General'!M57 -> 1521.891519 | G109: =IF('DNSP Inputs General'!$B57='DNSP Inputs General'!$A$41,G$88,IF('DNSP Inputs General'!$B57='DNSP Inputs General'!$A$42,G$89,G$90))*'DNSP Inputs General'!$D57*'DNSP Inputs General'!N57 -> 1565.498794 | H109: =IF('DNSP Inputs General'!$B57='DNSP Inputs General'!$A$41,H$88,IF('DNSP Inputs General'!$B57='DNSP Inputs General'!$A$42,H$89,H$90))*'DNSP Inputs General'!$D57*'DNSP Inputs General'!O57 -> 1606.125833 | K109: =D109/'Charges Summary'!D$4 -> 1398.708338 | L109: =E109/'Charges Summary'!E$4 -> 1405.53418 | M109: =F109/'Charges Summary'!F$4 -> 1413.227568 | N109: =G109/'Charges Summary'!G$4 -> 1418.264642 | O109: =H109/'Charges Summary'!H$4 -> 1419.581204
A110: ='DNSP Inputs General'!A$58 -> Metal Halide 250 watt | D110: =IF('DNSP Inputs General'!$B58='DNSP Inputs General'!$A$41,D$88,IF('DNSP Inputs General'!$B58='DNSP Inputs General'!$A$42,D$89,D$90))*'DNSP Inputs General'!$D58*'DNSP Inputs General'!K58 -> 3170.235255 | E110: =IF('DNSP Inputs General'!$B58='DNSP Inputs General'!$A$41,E$88,IF('DNSP Inputs General'!$B58='DNSP Inputs General'!$A$42,E$89,E$90))*'DNSP Inputs General'!$D58*'DNSP Inputs General'!L58 -> 3263.47754 | F110: =IF('DNSP Inputs General'!$B58='DNSP Inputs General'!$A$41,F$88,IF('DNSP Inputs General'!$B58='DNSP Inputs General'!$A$42,F$89,F$90))*'DNSP Inputs General'!$D58*'DNSP Inputs General'!M58 -> 3361.56673 | G110: =IF('DNSP Inputs General'!$B58='DNSP Inputs General'!$A$41,G$88,IF('DNSP Inputs General'!$B58='DNSP Inputs General'!$A$42,G$89,G$90))*'DNSP Inputs General'!$D58*'DNSP Inputs General'!N58 -> 3456.171049 | H110: =IF('DNSP Inputs General'!$B58='DNSP Inputs General'!$A$41,H$88,IF('DNSP Inputs General'!$B58='DNSP Inputs General'!$A$42,H$89,H$90))*'DNSP Inputs General'!$D58*'DNSP Inputs General'!O58 -> 3544.240184 | K110: =D110/'Charges Summary'!D$4 -> 3092.912444 | L110: =E110/'Charges Summary'!E$4 -> 3106.224904 | M110: =F110/'Charges Summary'!F$4 -> 3121.548886 | N110: =G110/'Charges Summary'!G$4 -> 3131.12039 | O110: =H110/'Charges Summary'!H$4 -> 3132.591883
A111: ='DNSP Inputs General'!A$59 -> Incandescent 100 watt | D111: =IF('DNSP Inputs General'!$B59='DNSP Inputs General'!$A$41,D$88,IF('DNSP Inputs General'!$B59='DNSP Inputs General'!$A$42,D$89,D$90))*'DNSP Inputs General'!$D59*'DNSP Inputs General'!K59 -> 0 | E111: =IF('DNSP Inputs General'!$B59='DNSP Inputs General'!$A$41,E$88,IF('DNSP Inputs General'!$B59='DNSP Inputs General'!$A$42,E$89,E$90))*'DNSP Inputs General'!$D59*'DNSP Inputs General'!L59 -> 0 | F111: =IF('DNSP Inputs General'!$B59='DNSP Inputs General'!$A$41,F$88,IF('DNSP Inputs General'!$B59='DNSP Inputs General'!$A$42,F$89,F$90))*'DNSP Inputs General'!$D59*'DNSP Inputs General'!M59 -> 0 | G111: =IF('DNSP Inputs General'!$B59='DNSP Inputs General'!$A$41,G$88,IF('DNSP Inputs General'!$B59='DNSP Inputs General'!$A$42,G$89,G$90))*'DNSP Inputs General'!$D59*'DNSP Inputs General'!N59 -> 0 | H111: =IF('DNSP Inputs General'!$B59='DNSP Inputs General'!$A$41,H$88,IF('DNSP Inputs General'!$B59='DNSP Inputs General'!$A$42,H$89,H$90))*'DNSP Inputs General'!$D59*'DNSP Inputs General'!O59 -> 0 | K111: =D111/'Charges Summary'!D$4 -> 0 | L111: =E111/'Charges Summary'!E$4 -> 0 | M111: =F111/'Charges Summary'!F$4 -> 0 | N111: =G111/'Charges Summary'!G$4 -> 0 | O111: =H111/'Charges Summary'!H$4 -> 0
A112: ='DNSP Inputs General'!A$60 -> Incandescent 150 watt | D112: =IF('DNSP Inputs General'!$B60='DNSP Inputs General'!$A$41,D$88,IF('DNSP Inputs General'!$B60='DNSP Inputs General'!$A$42,D$89,D$90))*'DNSP Inputs General'!$D60*'DNSP Inputs General'!K60 -> 0 | E112: =IF('DNSP Inputs General'!$B60='DNSP Inputs General'!$A$41,E$88,IF('DNSP Inputs General'!$B60='DNSP Inputs General'!$A$42,E$89,E$90))*'DNSP Inputs General'!$D60*'DNSP Inputs General'!L60 -> 0 | F112: =IF('DNSP Inputs General'!$B60='DNSP Inputs General'!$A$41,F$88,IF('DNSP Inputs General'!$B60='DNSP Inputs General'!$A$42,F$89,F$90))*'DNSP Inputs General'!$D60*'DNSP Inputs General'!M60 -> 0 | G112: =IF('DNSP Inputs General'!$B60='DNSP Inputs General'!$A$41,G$88,IF('DNSP Inputs General'!$B60='DNSP Inputs General'!$A$42,G$89,G$90))*'DNSP Inputs General'!$D60*'DNSP Inputs General'!N60 -> 0 | H112: =IF('DNSP Inputs General'!$B60='DNSP Inputs General'!$A$41,H$88,IF('DNSP Inputs General'!$B60='DNSP Inputs General'!$A$42,H$89,H$90))*'DNSP Inputs General'!$D60*'DNSP Inputs General'!O60 -> 0 | K112: =D112/'Charges Summary'!D$4 -> 0 | L112: =E112/'Charges Summary'!E$4 -> 0 | M112: =F112/'Charges Summary'!F$4 -> 0 | N112: =G112/'Charges Summary'!G$4 -> 0 | O112: =H112/'Charges Summary'!H$4 -> 0
A113: ='DNSP Inputs General'!A$61 -> Sodium High Pressure 250 watt (24 hrs) | D113: =IF('DNSP Inputs General'!$B61='DNSP Inputs General'!$A$41,D$88,IF('DNSP Inputs General'!$B61='DNSP Inputs General'!$A$42,D$89,D$90))*'DNSP Inputs General'!$D61*'DNSP Inputs General'!K61 -> 0 | E113: =IF('DNSP Inputs General'!$B61='DNSP Inputs General'!$A$41,E$88,IF('DNSP Inputs General'!$B61='DNSP Inputs General'!$A$42,E$89,E$90))*'DNSP Inputs General'!$D61*'DNSP Inputs General'!L61 -> 0 | F113: =IF('DNSP Inputs General'!$B61='DNSP Inputs General'!$A$41,F$88,IF('DNSP Inputs General'!$B61='DNSP Inputs General'!$A$42,F$89,F$90))*'DNSP Inputs General'!$D61*'DNSP Inputs General'!M61 -> 0 | G113: =IF('DNSP Inputs General'!$B61='DNSP Inputs General'!$A$41,G$88,IF('DNSP Inputs General'!$B61='DNSP Inputs General'!$A$42,G$89,G$90))*'DNSP Inputs General'!$D61*'DNSP Inputs General'!N61 -> 0 | H113: =IF('DNSP Inputs General'!$B61='DNSP Inputs General'!$A$41,H$88,IF('DNSP Inputs General'!$B61='DNSP Inputs General'!$A$42,H$89,H$90))*'DNSP Inputs General'!$D61*'DNSP Inputs General'!O61 -> 0 | K113: =D113/'Charges Summary'!D$4 -> 0 | L113: =E113/'Charges Summary'!E$4 -> 0 | M113: =F113/'Charges Summary'!F$4 -> 0 | N113: =G113/'Charges Summary'!G$4 -> 0 | O113: =H113/'Charges Summary'!H$4 -> 0
A114: ='DNSP Inputs General'!A$62 -> Metal Halide 100 watt | D114: =IF('DNSP Inputs General'!$B62='DNSP Inputs General'!$A$41,D$88,IF('DNSP Inputs General'!$B62='DNSP Inputs General'!$A$42,D$89,D$90))*'DNSP Inputs General'!$D62*'DNSP Inputs General'!K62 -> 0 | E114: =IF('DNSP Inputs General'!$B62='DNSP Inputs General'!$A$41,E$88,IF('DNSP Inputs General'!$B62='DNSP Inputs General'!$A$42,E$89,E$90))*'DNSP Inputs General'!$D62*'DNSP Inputs General'!L62 -> 0 | F114: =IF('DNSP Inputs General'!$B62='DNSP Inputs General'!$A$41,F$88,IF('DNSP Inputs General'!$B62='DNSP Inputs General'!$A$42,F$89,F$90))*'DNSP Inputs General'!$D62*'DNSP Inputs General'!M62 -> 0 | G114: =IF('DNSP Inputs General'!$B62='DNSP Inputs General'!$A$41,G$88,IF('DNSP Inputs General'!$B62='DNSP Inputs General'!$A$42,G$89,G$90))*'DNSP Inputs General'!$D62*'DNSP Inputs General'!N62 -> 0 | H114: =IF('DNSP Inputs General'!$B62='DNSP Inputs General'!$A$41,H$88,IF('DNSP Inputs General'!$B62='DNSP Inputs General'!$A$42,H$89,H$90))*'DNSP Inputs General'!$D62*'DNSP Inputs General'!O62 -> 0 | K114: =D114/'Charges Summary'!D$4 -> 0 | L114: =E114/'Charges Summary'!E$4 -> 0 | M114: =F114/'Charges Summary'!F$4 -> 0 | N114: =G114/'Charges Summary'!G$4 -> 0 | O114: =H114/'Charges Summary'!H$4 -> 0
A117: ='DNSP Inputs General'!A$67 -> Energy Efficient Lights
A118: ='DNSP Inputs General'!A$68 -> T5 2X14W | D118: =SUM('Charges Summary'!D85,'Charges Summary'!D11)*'DNSP Inputs General'!$D68*'DNSP Inputs General'!K68 -> 252393.9474 | E118: =SUM('Charges Summary'!E85,'Charges Summary'!E11)*'DNSP Inputs General'!$D68*'DNSP Inputs General'!L68 -> 285254.0561 | F118: =SUM('Charges Summary'!F85,'Charges Summary'!F11)*'DNSP Inputs General'!$D68*'DNSP Inputs General'!M68 -> 319303.4081 | G118: =SUM('Charges Summary'!G85,'Charges Summary'!G11)*'DNSP Inputs General'!$D68*'DNSP Inputs General'!N68 -> 353124.5965 | H118: =SUM('Charges Summary'!H85,'Charges Summary'!H11)*'DNSP Inputs General'!$D68*'DNSP Inputs General'!O68 -> 386166.0327 | K118: =D118/'Charges Summary'!D$4 -> 246237.9974 | L118: =E118/'Charges Summary'!E$4 -> 271508.9171 | M118: =F118/'Charges Summary'!F$4 -> 296504.9567 | N118: =G118/'Charges Summary'!G$4 -> 319913.4559 | O118: =H118/'Charges Summary'!H$4 -> 341314.5037
A119: ='DNSP Inputs General'!A$69 -> T5 (2x24W) | D119: =SUM('Charges Summary'!D$85,'Charges Summary'!D$11)*'DNSP Inputs General'!$D69*'DNSP Inputs General'!K69 -> 2697.87313 | E119: =SUM('Charges Summary'!E$85,'Charges Summary'!E$11)*'DNSP Inputs General'!$D69*'DNSP Inputs General'!L69 -> 3008.091842 | F119: =SUM('Charges Summary'!F$85,'Charges Summary'!F$11)*'DNSP Inputs General'!$D69*'DNSP Inputs General'!M69 -> 3322.447525 | G119: =SUM('Charges Summary'!G$85,'Charges Summary'!G$11)*'DNSP Inputs General'!$D69*'DNSP Inputs General'!N69 -> 3626.222266 | H119: =SUM('Charges Summary'!H$85,'Charges Summary'!H$11)*'DNSP Inputs General'!$D69*'DNSP Inputs General'!O69 -> 3914.235626 | K119: =D119/'Charges Summary'!D$4 -> 2632.071346 | L119: =E119/'Charges Summary'!E$4 -> 2863.14512 | M119: =F119/'Charges Summary'!F$4 -> 3085.222815 | N119: =G119/'Charges Summary'!G$4 -> 3285.1784 | O119: =H119/'Charges Summary'!H$4 -> 3459.613941
A120: ='DNSP Inputs General'!A$70 -> LED 18W | D120: =SUM('Charges Summary'!D$103,'Charges Summary'!D$11)*'DNSP Inputs General'!$D70*'DNSP Inputs General'!K70 -> 3621.2936 | E120: =SUM('Charges Summary'!E$103,'Charges Summary'!E$11)*'DNSP Inputs General'!$D70*'DNSP Inputs General'!L70 -> 5983.035267 | F120: =SUM('Charges Summary'!F$103,'Charges Summary'!F$11)*'DNSP Inputs General'!$D70*'DNSP Inputs General'!M70 -> 8745.27403 | G120: =SUM('Charges Summary'!G$103,'Charges Summary'!G$11)*'DNSP Inputs General'!$D70*'DNSP Inputs General'!N70 -> 11856.61346 | H120: =SUM('Charges Summary'!H$103,'Charges Summary'!H$11)*'DNSP Inputs General'!$D70*'DNSP Inputs General'!O70 -> 15266.52417 | K120: =D120/'Charges Summary'!D$4 -> 3532.969366 | L120: =E120/'Charges Summary'!E$4 -> 5694.7391 | M120: =F120/'Charges Summary'!F$4 -> 8120.856312 | N120: =G120/'Charges Summary'!G$4 -> 10741.50661 | O120: =H120/'Charges Summary'!H$4 -> 13493.38285
A121: ='DNSP Inputs General'!A$71 -> Compact Fluoro 32W | D121: =SUM('Charges Summary'!D$85,'Charges Summary'!D$11)*'DNSP Inputs General'!$D71*'DNSP Inputs General'!K71 -> 49.63771072 | E121: =SUM('Charges Summary'!E$85,'Charges Summary'!E$11)*'DNSP Inputs General'!$D71*'DNSP Inputs General'!L71 -> 55.34537224 | F121: =SUM('Charges Summary'!F$85,'Charges Summary'!F$11)*'DNSP Inputs General'!$D71*'DNSP Inputs General'!M71 -> 61.12914922 | G121: =SUM('Charges Summary'!G$85,'Charges Summary'!G$11)*'DNSP Inputs General'!$D71*'DNSP Inputs General'!N71 -> 66.71824921 | H121: =SUM('Charges Summary'!H$85,'Charges Summary'!H$11)*'DNSP Inputs General'!$D71*'DNSP Inputs General'!O71 -> 72.01735824 | K121: =D121/'Charges Summary'!D$4 -> 48.42703485 | L121: =E121/'Charges Summary'!E$4 -> 52.67852206 | M121: =F121/'Charges Summary'!F$4 -> 56.76449195 | N121: =G121/'Charges Summary'!G$4 -> 60.4434409 | O121: =H121/'Charges Summary'!H$4 -> 63.65285086
A122: ='DNSP Inputs General'!A$72 -> Compact Fluoro 42W | D122: =SUM('Charges Summary'!D$85,'Charges Summary'!D$11)*'DNSP Inputs General'!$D72*'DNSP Inputs General'!K72 -> 475.8363068 | E122: =SUM('Charges Summary'!E$85,'Charges Summary'!E$11)*'DNSP Inputs General'!$D72*'DNSP Inputs General'!L72 -> 530.5510095 | F122: =SUM('Charges Summary'!F$85,'Charges Summary'!F$11)*'DNSP Inputs General'!$D72*'DNSP Inputs General'!M72 -> 585.9953689 | G122: =SUM('Charges Summary'!G$85,'Charges Summary'!G$11)*'DNSP Inputs General'!$D72*'DNSP Inputs General'!N72 -> 639.5735187 | H122: =SUM('Charges Summary'!H$85,'Charges Summary'!H$11)*'DNSP Inputs General'!$D72*'DNSP Inputs General'!O72 -> 690.3717613 | K122: =D122/'Charges Summary'!D$4 -> 464.2305433 | L122: =E122/'Charges Summary'!E$4 -> 504.9860887 | M122: =F122/'Charges Summary'!F$4 -> 544.1549544 | N122: =G122/'Charges Summary'!G$4 -> 579.4220417 | O122: =H122/'Charges Summary'!H$4 -> 610.1880412
D123: =SUM('Charges Summary'!D$85,'Charges Summary'!D$11)*'DNSP Inputs General'!$D73*'DNSP Inputs General'!K73 -> 0 | E123: =SUM('Charges Summary'!E$85,'Charges Summary'!E$11)*'DNSP Inputs General'!$D73*'DNSP Inputs General'!L73 -> 0 | F123: =SUM('Charges Summary'!F$85,'Charges Summary'!F$11)*'DNSP Inputs General'!$D73*'DNSP Inputs General'!M73 -> 0 | G123: =SUM('Charges Summary'!G$85,'Charges Summary'!G$11)*'DNSP Inputs General'!$D73*'DNSP Inputs General'!N73 -> 0 | H123: =SUM('Charges Summary'!H$85,'Charges Summary'!H$11)*'DNSP Inputs General'!$D73*'DNSP Inputs General'!O73 -> 0 | K123: =D123/'Charges Summary'!D$4 -> 0 | L123: =E123/'Charges Summary'!E$4 -> 0 | M123: =F123/'Charges Summary'!F$4 -> 0 | N123: =G123/'Charges Summary'!G$4 -> 0 | O123: =H123/'Charges Summary'!H$4 -> 0
A124: Total Capital Charge | D124: =SUM(D93:D122) -> 956534.4707 | E124: =SUM(E93:E122) -> 1013249.545 | F124: =SUM(F93:F122) -> 1072664.835 | G124: =SUM(G93:G122) -> 1131452.56 | H124: =SUM(H93:H122) -> 1188333.374 | K124: =SUM(K93:K122) -> 933204.3617 | L124: =SUM(L93:L122) -> 964425.504 | M124: =SUM(M93:M122) -> 996075.9339 | N124: =SUM(N93:N122) -> 1025040.176 | O124: =SUM(O93:O122) -> 1050313.547
A126: Check | C126: =SUM(D126:O126) -> 6.053596735e-09 | D126: =ABS(D38-SUM(D81,D124)) -> 0 | E126: =ABS(E38-SUM(E81,E124)) -> 9.313225746e-10 | F126: =ABS(F38-SUM(F81,F124)) -> 9.313225746e-10 | G126: =ABS(G38-SUM(G81,G124)) -> 9.313225746e-10 | H126: =ABS(H38-SUM(H81,H124)) -> 9.313225746e-10 | K126: =ABS(K38-SUM(K81,K124)) -> 9.313225746e-10 | L126: =ABS(L38-SUM(L81,L124)) -> 0 | M126: =ABS(M38-SUM(M81,M124)) -> 4.656612873e-10 | N126: =ABS(N38-SUM(N81,N124)) -> 4.656612873e-10 | O126: =ABS(O38-SUM(O81,O124)) -> 4.656612873e-10
A128: Public Lighting - Capital Expenditure | D128: Forecast Capital Expenditure - Nominal | K128: Forecast Capital Expenditure - Real 2015 $
D129: =D$2 -> 2016 | E129: 2017 | F129: 2018 | G129: 2019 | H129: 2020 | K129: =K$2 -> 2016 | L129: 2017 | M129: 2018 | N129: 2019 | O129: 2020
A131: Total Capital Expenditure | D131: =K131*'Charges Summary'!D$4 -> 816137.926 | E131: =L131*'Charges Summary'!E$4 -> 868020.6721 | F131: =M131*'Charges Summary'!F$4 -> 908631.4401 | G131: =N131*'Charges Summary'!G$4 -> 900762.3391 | H131: =O131*'Charges Summary'!H$4 -> 918318.0781 | K131: ='DNSP Inputs General'!K14 -> 796232.1229 | L131: ='DNSP Inputs General'!L14 -> 826194.5719 | M131: ='DNSP Inputs General'!M14 -> 843754.62 | N131: ='DNSP Inputs General'!N14 -> 816046.2219 | O131: ='DNSP Inputs General'!O14 -> 811659.3707
A132: Check | C132: =SUM(D132:H132) -> 4.656612873e-10 | D132: =ABS(D131-D139) -> 1.164153218e-10 | E132: =ABS(E131-E139) -> 1.164153218e-10 | F132: =ABS(F131-F139) -> 0 | G132: =ABS(G131-G139) -> 1.164153218e-10 | H132: =ABS(H131-H139) -> 1.164153218e-10
A135: Public Lighting - RAB | D135: RAB - Historical Cost ($)
D136: =D$2 -> 2016 | E136: 2017 | F136: 2018 | G136: 2019 | H136: 2020
A138: Opening RAB | D138: ='Total RAB'!N139 -> 6829739.454 | E138: =D141 -> 7160099.276 | F138: =E141 -> 7508465.828 | G138: 7861634.431 | H138: 8170420.916
A139: Capex | D139: ='Total RAB'!N140 -> 816137.926 | E139: ='Total RAB'!O140 -> 868020.6721 | F139: ='Total RAB'!P140 -> 908631.4401 | G139: ='Total RAB'!Q140 -> 900762.3391 | H139: ='Total RAB'!R140 -> 918318.0781
A140: Depreciation | D140: ='Total RAB'!N141 -> 485778.1048 | E140: ='Total RAB'!O141 -> 519654.1196 | F140: ='Total RAB'!P141 -> 555462.8371 | G140: ='Total RAB'!Q141 -> 591975.8541 | H140: ='Total RAB'!R141 -> 628721.1387
A141: Closing RAB | D141: =D138+D139-D140 -> 7160099.276 | E141: =E138+E139-E140 -> 7508465.828 | F141: =F138+F139-F140 -> 7861634.431 | G141: =G138+G139-G140 -> 8170420.916 | H141: =H138+H139-H140 -> 8460017.856
A143: Average RAB | D143: =SUM(D138,D141)/2 -> 6994919.365 | E143: =SUM(E138,E141)/2 -> 7334282.552 | F143: =SUM(F138,F141)/2 -> 7685050.13 | G143: =SUM(G138,G141)/2 -> 8016027.674 | H143: =SUM(H138,H141)/2 -> 8315219.386
A145: =WACC!A$8 -> Nominal Pre Tax WACC | D145: =WACC!E$8 -> 0.06729975591 | E145: =WACC!F$8 -> 0.06729975591 | F145: =WACC!G$8 -> 0.06729975591 | G145: =WACC!H$8 -> 0.06729975591 | H145: =WACC!I$8 -> 0.06729975591
A147: Capital Charge | D147: Capital Charge - Nominal
D148: =D$2 -> 2016 | E148: 2017 | F148: 2018 | G148: 2019 | H148: 2020
A150: Depreciation | D150: =D140 -> 485778.1048 | E150: =E140 -> 519654.1196 | F150: =F140 -> 555462.8371 | G150: =G140 -> 591975.8541 | H150: =H140 -> 628721.1387
A151: Return | D151: =D145*D143 -> 470756.3659 | E151: =E145*E143 -> 493595.4255 | F151: =F145*F143 -> 517201.9979 | G151: =G145*G143 -> 539476.7058 | H151: =H145*H143 -> 559612.235
D153: =SUM(D150:D152) -> 956534.4707 | E153: =SUM(E150:E152) -> 1013249.545 | F153: =SUM(F150:F152) -> 1072664.835 | G153: =SUM(G150:G152) -> 1131452.56 | H153: =SUM(H150:H152) -> 1188333.374
A155: Check | C155: =SUM(D155:H155) -> 1.862645149e-09 | D155: =ABS(D124-D153)*IF('DNSP Inputs General'!K75=0,0,1) -> 3.492459655e-10 | E155: =ABS(E124-E153)*IF('DNSP Inputs General'!L75=0,0,1) -> 3.492459655e-10 | F155: =ABS(F124-F153)*IF('DNSP Inputs General'!M75=0,0,1) -> 0 | G155: =ABS(G124-G153)*IF('DNSP Inputs General'!N75=0,0,1) -> 9.313225746e-10 | H155: =ABS(H124-H153)*IF('DNSP Inputs General'!O75=0,0,1) -> 2.328306437e-10

Sheet Charges Summary
A1: ='DNSP Inputs O & M'!$A$3 -> Jemena | D1: ='DNSP Inputs General'!K$2 -> 2016 | E1: ='DNSP Inputs General'!L$2 -> 2017 | F1: ='DNSP Inputs General'!M$2 -> 2018 | G1: ='DNSP Inputs General'!N$2 -> 2019 | H1: ='DNSP Inputs General'!O$2 -> 2020
A2: Nominal $
A4: ='Total RAB'!A20 -> CPI Index | D4: =(1+WACC!E6) -> 1.025 | E4: =D4*(1+WACC!F6) -> 1.050625 | F4: =E4*(1+WACC!G6) -> 1.076890625 | G4: =F4*(1+WACC!H6) -> 1.103812891 | H4: =G4*(1+WACC!I6) -> 1.131408213
A6: ='DNSP Inputs General'!$A$6 -> Poles and Brackets | D6: ='DNSP Inputs General'!F$2 -> 2011 | E6: ='DNSP Inputs General'!G$2 -> 2012 | F6: ='DNSP Inputs General'!H$2 -> 2013 | G6: ='DNSP Inputs General'!I$2 -> 2014 | H6: ='DNSP Inputs General'!J$2 -> 2015
A7: O & M
A8: ='O & M 2016-2020'!A$10 -> Dedicated poles - inspection | D8: ='O & M 2016-2020'!$B$10*D$4 -> 0.9440526033 | E8: ='O & M 2016-2020'!$Q$10*E$4 -> 0.9787310561 | F8: ='O & M 2016-2020'!$AF$10*F$4 -> 1.016207281 | G8: ='O & M 2016-2020'!$AU$10*G$4 -> 1.047751539 | H8: ='O & M 2016-2020'!$BJ$10*H$4 -> 1.084218868
A10: Capital Charge
A11: Depreciation and Return | D11: ='Depn & WACC Post 2004'!H$79 -> 4.78778846 | E11: ='Depn & WACC Post 2004'!H$127 -> 5.127842496 | F11: ='Depn & WACC Post 2004'!H$175 -> 5.474499137 | G11: ='Depn & WACC Post 2004'!H$223 -> 5.811436028 | H11: ='Depn & WACC Post 2004'!H$271 -> 6.132658158
A13: Total Charge | D13: =SUM(D8,D11) -> 5.731841063 | E13: =SUM(E8,E11) -> 6.106573552 | F13: =SUM(F8,F11) -> 6.490706418 | G13: =SUM(G8,G11) -> 6.859187567 | H13: =SUM(H8,H11) -> 7.216877025
A18: ='DNSP Inputs General'!$A$8 -> Existing Lights
A20: ='O & M 2016-2020'!$A$8 -> MV80 | D20: =D$1 -> 2016 | E20: =E$1 -> 2017 | F20: 2018 | G20: 2019 | H20: 2020
A22: O & M Charge
A23: ='O & M 2016-2020'!A$9 -> Bulk change & repairs | D23: ='O & M 2016-2020'!$B$9*D$4 -> 27.09813372 | E23: ='O & M 2016-2020'!$Q$9*E$4 -> 28.38613698 | F23: ='O & M 2016-2020'!$AF$9*F$4 -> 29.48765727 | G23: ='O & M 2016-2020'!$AU$9*G$4 -> 29.59223119 | H23: ='O & M 2016-2020'!$BJ$9*H$4 -> 30.23076593
A24: ='O & M 2016-2020'!A$11 -> Other costs | D24: ='O & M 2016-2020'!$B$11*D$4 -> 2.779659607 | E24: ='O & M 2016-2020'!$Q$11*E$4 -> 2.822742859 | F24: ='O & M 2016-2020'!$AF$11*F$4 -> 2.866740163 | G24: ='O & M 2016-2020'!$AU$11*G$4 -> 2.911668811 | H24: ='O & M 2016-2020'!$BJ$11*H$4 -> 2.957546518
D25: =SUM(D23:D24) -> 29.87779333 | E25: =SUM(E23:E24) -> 31.20887984 | F25: =SUM(F23:F24) -> 32.35439744 | G25: =SUM(G23:G24) -> 32.5039 | H25: =SUM(H23:H24) -> 33.18831245
A26: Capital Charge
A27: Depreciation and Return | D27: ='Depn & WACC Post 2004'!H$40 -> 12.59775582 | E27: ='Depn & WACC Post 2004'!H$88 -> 12.80832603 | F27: ='Depn & WACC Post 2004'!H$136 -> 13.03873259 | G27: ='Depn & WACC Post 2004'!H$184 -> 13.25886913 | H27: ='Depn & WACC Post 2004'!H$232 -> 13.45772903
A29: Poles & Brackets Charge | D29: =D$13 -> 5.731841063 | E29: =E$13 -> 6.106573552 | F29: =F$13 -> 6.490706418 | G29: =G$13 -> 6.859187567 | H29: =H$13 -> 7.216877025
A31: Total Charge | D31: =SUM(D25,D27,D29) -> 48.20739021 | E31: =SUM(E25,E27,E29) -> 50.12377942 | F31: =SUM(F25,F27,F29) -> 51.88383645 | G31: =SUM(G25,G27,G29) -> 52.6219567 | H31: =SUM(H25,H27,H29) -> 53.8629185
A33: WDV RAB - MV 80 Luminaire
A34: RAB WDV | D34: ='Depn & WACC Post 2004'!$I$8 -> 71.87236274 | E34: ='Depn & WACC Post 2004'!I$40 -> 70.31101481 | F34: ='Depn & WACC Post 2004'!I$88 -> 68.75917601 | G34: ='Depn & WACC Post 2004'!I$136 -> 67.18014645 | H34: ='Depn & WACC Post 2004'!I$184 -> 65.17221353
A36: Avoided Costs - MV 80 O & M
A37: Materials & labour - bulk lamp change | D37: ='O & M 2016-2020'!$G$9*D$4 -> -21.68479456 | E37: ='O & M 2016-2020'!$V$9*E$4 -> -22.74988097 | F37: ='O & M 2016-2020'!$AK$9*F$4 -> -23.63438488 | G37: ='O & M 2016-2020'!$AZ$9*G$4 -> -23.62395057 | H37: ='O & M 2016-2020'!$BO$9*H$4 -> -24.08695239
A38: Materials & Labour - repair of faults | D38: ='O & M 2016-2020'!$G$10*D$4 -> -5.418054847 | E38: ='O & M 2016-2020'!$V$10*E$4 -> -5.666984548 | F38: ='O & M 2016-2020'!$AK$10*F$4 -> -5.88646669 | G38: ='O & M 2016-2020'!$AZ$10*G$4 -> -5.930904835 | H38: ='O & M 2016-2020'!$BO$10*H$4 -> -6.070568273
D39: =SUM(D37:D38) -> -27.10284941 | E39: =SUM(E37:E38) -> -28.41686552 | F39: =SUM(F37:F38) -> -29.52085157 | G39: =SUM(G37:G38) -> -29.5548554 | H39: =SUM(H37:H38) -> -30.15752066
A44: ='O & M 2016-2020'!$A$14 -> S-HP 150 | D44: =D$1 -> 2016 | E44: =E$1 -> 2017 | F44: 2018 | G44: 2019 | H44: 2020
A46: O & M Charge
A47: ='O & M 2016-2020'!A$15 -> Patrols and repairs | D47: ='O & M 2016-2020'!$B$15*D$4 -> 72.03546206 | E47: ='O & M 2016-2020'!$Q$15*E$4 -> 75.14482768 | F47: ='O & M 2016-2020'!$AF$15*F$4 -> 77.95123612 | G47: ='O & M 2016-2020'!$AU$15*G$4 -> 78.80698937 | H47: ='O & M 2016-2020'!$BJ$15*H$4 -> 80.74075796
A48: ='O & M 2016-2020'!A$17 -> Other costs | D48: ='O & M 2016-2020'!$B$17*D$4 -> 2.779659607 | E48: ='O & M 2016-2020'!$Q$17*E$4 -> 2.822742859 | F48: ='O & M 2016-2020'!$AF$17*F$4 -> 2.866740163 | G48: ='O & M 2016-2020'!$AU$17*G$4 -> 2.911668811 | H48: ='O & M 2016-2020'!$BJ$17*H$4 -> 2.957546518
D49: =SUM(D47:D48) -> 74.81512167 | E49: =SUM(E47:E48) -> 77.96757053 | F49: =SUM(F47:F48) -> 80.81797629 | G49: =SUM(G47:G48) -> 81.71865818 | H49: =SUM(H47:H48) -> 83.69830448
A50: Capital Charge
A51: Depreciation and Return | D51: ='Depn & WACC Post 2004'!H$41 -> 14.78190914 | E51: ='Depn & WACC Post 2004'!H$89 -> 15.02898725 | F51: ='Depn & WACC Post 2004'!H$137 -> 15.29934087 | G51: ='Depn & WACC Post 2004'!H$185 -> 15.55764388 | H51: ='Depn & WACC Post 2004'!H$233 -> 15.79098139
A53: Poles & Brackets Charge | D53: =D$13 -> 5.731841063 | E53: =E$13 -> 6.106573552 | F53: =F$13 -> 6.490706418 | G53: =G$13 -> 6.859187567 | H53: =H$13 -> 7.216877025
A55: Total Charge | D55: =SUM(D49,D51,D53) -> 95.32887187 | E55: =SUM(E49,E51,E53) -> 99.10313134 | F55: =SUM(F49,F51,F53) -> 102.6080236 | G55: =SUM(G49,G51,G53) -> 104.1354896 | H55: =SUM(H49,H51,H53) -> 106.7061629
A60: ='O & M 2016-2020'!$A$20 -> S-HP 250 | D60: =D$1 -> 2016 | E60: =E$1 -> 2017 | F60: 2018 | G60: 2019 | H60: 2020
A62: O & M Charge
A63: ='O & M 2016-2020'!A$21 -> Patrols and repairs | D63: ='O & M 2016-2020'!$B$21*D$4 -> 72.30811156 | E63: ='O & M 2016-2020'!$Q$21*E$4 -> 75.43289675 | F63: ='O & M 2016-2020'!$AF$21*F$4 -> 78.2531108 | G63: ='O & M 2016-2020'!$AU$21*G$4 -> 79.11072833 | H63: ='O & M 2016-2020'!$BJ$21*H$4 -> 81.05288508
A64: ='O & M 2016-2020'!A$23 -> Other costs | D64: ='O & M 2016-2020'!$B$23*D$4 -> 2.779659607 | E64: ='O & M 2016-2020'!$Q$23*E$4 -> 2.822742859 | F64: ='O & M 2016-2020'!$AF$23*F$4 -> 2.866740163 | G64: ='O & M 2016-2020'!$AU$23*G$4 -> 2.911668811 | H64: ='O & M 2016-2020'!$BJ$23*H$4 -> 2.957546518
D65: =SUM(D63:D64) -> 75.08777117 | E65: =SUM(E63:E64) -> 78.25563961 | F65: =SUM(F63:F64) -> 81.11985096 | G65: =SUM(G63:G64) -> 82.02239714 | H65: =SUM(H63:H64) -> 84.01043159
A66: Capital Charge
A67: Depreciation and Return | D67: ='Depn & WACC Post 2004'!H$42 -> 15.69176745 | E67: ='Depn & WACC Post 2004'!H$90 -> 15.95405375 | F67: ='Depn & WACC Post 2004'!H$138 -> 16.24104822 | G67: ='Depn & WACC Post 2004'!H$186 -> 16.51525033 | H67: ='Depn & WACC Post 2004'!H$234 -> 16.76295027
A69: Poles & Brackets Charge | D69: =D$13 -> 5.731841063 | E69: =E$13 -> 6.106573552 | F69: =F$13 -> 6.490706418 | G69: =G$13 -> 6.859187567 | H69: =H$13 -> 7.216877025
A71: Total Charge | D71: =SUM(D65,D67,D69) -> 96.51137969 | E71: =SUM(E65,E67,E69) -> 100.3162669 | F71: =SUM(F65,F67,F69) -> 103.8516056 | G71: =SUM(G65,G67,G69) -> 105.396835 | H71: =SUM(H65,H67,H69) -> 107.9902589
A76: ='DNSP Inputs General'!$A$11 -> Energy Efficient Lights
A78: ='O & M 2016-2020'!$A$26 -> T5 (2 X 14W) | D78: =D$1 -> 2016 | E78: =E$1 -> 2017 | F78: 2018 | G78: 2019 | H78: 2020
A80: O & M Charge
A81: ='O & M 2016-2020'!A$27 -> Bulk change & repairs | D81: ='O & M 2016-2020'!$B$27*D$4 -> 21.11029851 | E81: ='O & M 2016-2020'!$Q$27*E$4 -> 22.12068286 | F81: ='O & M 2016-2020'!$AF$27*F$4 -> 22.97941813 | G81: ='O & M 2016-2020'!$AU$27*G$4 -> 23.04175358 | H81: ='O & M 2016-2020'!$BJ$27*H$4 -> 23.52944071
A82: ='O & M 2016-2020'!A$29 -> Other costs | D82: ='O & M 2016-2020'!$B$29*D$4 -> 2.779659607 | E82: ='O & M 2016-2020'!$Q$29*E$4 -> 2.822742859 | F82: ='O & M 2016-2020'!$AF$29*F$4 -> 2.866740163 | G82: ='O & M 2016-2020'!$AU$29*G$4 -> 2.911668811 | H82: ='O & M 2016-2020'!$BJ$29*H$4 -> 2.957546518
D83: =SUM(D81:D82) -> 23.88995812 | E83: =SUM(E81:E82) -> 24.94342571 | F83: =SUM(F81:F82) -> 25.84615829 | G83: =SUM(G81:G82) -> 25.95342239 | H83: =SUM(H81:H82) -> 26.48698723
A84: Capital Charge
A85: Depreciation and Return | D85: ='Depn & WACC Post 2004'!$H$69 -> 2.405775123 | E85: ='Depn & WACC Post 2004'!$H$117 -> 2.892883047 | F85: ='Depn & WACC Post 2004'!$H$165 -> 3.384419119 | G85: ='Depn & WACC Post 2004'!$H$213 -> 3.857462093 | H85: ='Depn & WACC Post 2004'!$H$261 -> 4.304193947
A87: Poles & Brackets Charge | D87: =D$13 -> 5.731841063 | E87: =E$13 -> 6.106573552 | F87: =F$13 -> 6.490706418 | G87: =G$13 -> 6.859187567 | H87: =H$13 -> 7.216877025
A89: Total Charge | D89: =SUM(D83,D85,D87) -> 32.02757431 | E89: =SUM(E83,E85,E87) -> 33.94288231 | F89: =SUM(F83,F85,F87) -> 35.72128383 | G89: =SUM(G83,G85,G87) -> 36.67007205 | H89: =SUM(H83,H85,H87) -> 38.0080582
A94: ='DNSP Inputs General'!$A$11 -> Energy Efficient Lights
A96: ='O & M 2016-2020'!A32 -> Category P LED 18 Watt | D96: =D$1 -> 2016 | E96: =E$1 -> 2017 | F96: 2018 | G96: 2019 | H96: 2020
A98: O & M Charge
A99: ='O & M 2016-2020'!A$33 -> Bulk change & repairs | D99: ='O & M 2016-2020'!$B$33*D$4 -> 7.033649076 | E99: ='O & M 2016-2020'!$Q$33*E$4 -> 7.380712476 | F99: ='O & M 2016-2020'!$AF$33*F$4 -> 7.667749417 | G99: ='O & M 2016-2020'!$AU$33*G$4 -> 7.660003297 | H99: ='O & M 2016-2020'!$BJ$33*H$4 -> 7.807958663
A100: ='O & M 2016-2020'!A$35 -> Other costs | D100: ='O & M 2016-2020'!$B$35*D$4 -> 2.779659607 | E100: ='O & M 2016-2020'!$Q$35*E$4 -> 2.822742859 | F100: ='O & M 2016-2020'!$AF$35*F$4 -> 2.866740163 | G100: ='O & M 2016-2020'!$AU$35*G$4 -> 2.911668811 | H100: ='O & M 2016-2020'!$BJ$35*H$4 -> 2.957546518
D101: =SUM(D99:D100) -> 9.813308683 | E101: =SUM(E99:E100) -> 10.20345533 | F101: =SUM(F99:F100) -> 10.53448958 | G101: =SUM(G99:G100) -> 10.57167211 | H101: =SUM(H99:H100) -> 10.76550518
A102: Capital Charge
A103: Depreciation and Return | D103: ='Depn & WACC Post 2004'!$H$71 -> 3.147973004 | E103: ='Depn & WACC Post 2004'!$H$119 -> 3.785357013 | F103: ='Depn & WACC Post 2004'!$H$167 -> 4.428535284 | G103: ='Depn & WACC Post 2004'!$H$215 -> 5.047515212 | H103: ='Depn & WACC Post 2004'!$H$263 -> 5.632066862
A105: Poles & Brackets Charge | D105: =D$13 -> 5.731841063 | E105: =E$13 -> 6.106573552 | F105: =F$13 -> 6.490706418 | G105: =G$13 -> 6.859187567 | H105: =H$13 -> 7.216877025
A107: Total Charge | D107: =SUM(D101,D103,D105) -> 18.69312275 | E107: =SUM(E101,E103,E105) -> 20.0953859 | F107: =SUM(F101,F103,F105) -> 21.45373128 | G107: =SUM(G101,G103,G105) -> 22.47837489 | H107: =SUM(H101,H103,H105) -> 23.61444907

Sheet O & M 2016-2020
A1: ='DNSP Inputs O & M'!$A$3 -> Jemena
A3: Public Lighting O & M Costs | B3: Year | C3: 2016 | Q3: Year | R3: =C3+1 -> 2017 | AF3: Year | AG3: =R3+1 -> 2018 | AU3: Year | AV3: =AG3+1 -> 2019 | BJ3: Year | BK3: =AV3+1 -> 2020
A4: ='DNSP Inputs O & M'!C5 -> Real 2015 $
A6: Summary
A8: =$A$70 -> MV80 | D8: Avoided Costs - MV 80 O & M | S8: Avoided Costs - MV 80 O & M | AH8: Avoided Costs - MV 80 O & M | AW8: Avoided Costs - MV 80 O & M | BL8: Avoided Costs - MV 80 O & M
A9: =$A$71 -> Bulk change & repairs | B9: =G91*C40+N91*C41 -> 26.43720363 | D9: Materials & labour - bulk lamp change | G9: =-((G73+G82)*C40+(N73+N82)*C41)*2 -> -21.15589713 | Q9: =V91*R40+AC91*R41 -> 27.01833383 | S9: Materials & labour - bulk lamp change | V9: =-((V73+V82)*R40+(AC73+AC82)*R41)*2 -> -21.65366422 | AF9: =AK91*AG40+AR91*AG41 -> 27.38222117 | AH9: Materials & labour - bulk lamp change | AK9: =-((AK73+AK82)*AG40+(AR73+AR82)*AG41)*2 -> -21.94687587 | AU9: =AZ91*AV40+BG91*AV41 -> 26.80910093 | AW9: Materials & labour - bulk lamp change | AZ9: =-((AZ73+AZ82)*AV40+(BG73+BG82)*AV41)*2 -> -21.40213325 | BJ9: =BO91*BK40+BV91*BK41 -> 26.71959208 | BL9: Materials & labour - bulk lamp change | BO9: =-((BO73+BO82)*BK40+(BV73+BV82)*BK41)*2 -> -21.28935615
A10: =A93 -> Dedicated poles - inspection | B10: =(G94*C40+N94*C41)*C43 -> 0.92102693 | D10: Materials & Labour - repair of faults | G10: =-((G77+G85+G87)*C40+(N77+N85+N87)*C41)/2 -> -5.285907168 | Q10: =(V94*R40+AC94*R41)*R43 -> 0.9315703092 | S10: Materials & Labour - repair of faults | V10: =-((V77+V85+V87)*R40+(AC77+AC85+AC87)*R41)/2 -> -5.393917475 | AF10: =(AK94*AG40+AR94*AG41)*AG43 -> 0.9436494826 | AH10: Materials & Labour - repair of faults | AK10: =-((AK77+AK85+AK87)*AG40+(AR77+AR85+AR87)*AG41)/2 -> -5.466169501 | AU10: =(AZ94*AV40+BG94*AV41)*AV43 -> 0.9492111827 | AW10: Materials & Labour - repair of faults | AZ10: =-((AZ77+AZ85+AZ87)*AV40+(BG77+BG85+BG87)*AV41)/2 -> -5.37310706 | BJ10: =(BO94*BK40+BV94*BK41)*BK43 -> 0.9582914948 | BL10: Materials & Labour - repair of faults | BO10: =-((BO77+BO85+BO87)*BK40+(BV77+BV85+BV87)*BK41)/2 -> -5.365497796
A11: Other costs | B11: =IF(C52=0,0,C50/C52) -> 2.711863031 | G11: =SUM(G9:G10) -> -26.4418043 | Q11: =IF(R52=0,0,R50/R52) -> 2.68672729 | V11: =SUM(V9:V10) -> -27.0475817 | AF11: =IF(AG52=0,0,AG50/AG52) -> 2.662053226 | AK11: =SUM(AK9:AK10) -> -27.41304538 | AU11: =IF(AV52=0,0,AV50/AV52) -> 2.637828236 | AZ11: =SUM(AZ9:AZ10) -> -26.77524031 | BJ11: =IF(BK52=0,0,BK50/BK52) -> 2.614040171 | BO11: =SUM(BO9:BO10) -> -26.65485394
A14: =$A$111 -> S-HP 150
A15: =$A$112 -> Patrols and repairs | B15: =G128*E40+N128*E41 -> 70.27849957 | Q15: =V128*T40+AC128*T41 -> 71.52392878 | AF15: =AK128*AI40+AR128*AI41 -> 72.38547194 | AU15: =AZ128*AX40+BG128*AX41 -> 71.39524283 | BJ15: =BO128*BM40+BV128*BM41 -> 71.36306511
A16: =$A$10 -> Dedicated poles - inspection | B16: =B10 -> 0.92102693 | Q16: =Q10 -> 0.9315703092 | AF16: =AF10 -> 0.9436494826 | AU16: =AU10 -> 0.9492111827 | BJ16: =BJ10 -> 0.9582914948
A17: =$A$11 -> Other costs | B17: =B11 -> 2.711863031 | Q17: =Q11 -> 2.68672729 | AF17: =AF11 -> 2.662053226 | AU17: =AU11 -> 2.637828236 | BJ17: =BJ11 -> 2.614040171
A20: =$A$143 -> S-HP 250
A21: =$A$144 -> Patrols and repairs | B21: =G160*G40+N160*G41 -> 70.54449908 | Q21: =V160*V40+AC160*V41 -> 71.79811707 | AF21: =AK160*AK40+AR160*AK41 -> 72.66579259 | AU21: =AZ160*AZ40+BG160*AZ41 -> 71.67041534 | BJ21: =BO160*BO40+BV160*BO41 -> 71.63894
A22: =$A$10 -> Dedicated poles - inspection | B22: =B10 -> 0.92102693 | Q22: =Q10 -> 0.9315703092 | AF22: =AF10 -> 0.9436494826 | AU22: =AU10 -> 0.9492111827 | BJ22: =BJ10 -> 0.9582914948
A23: =$A$11 -> Other costs | B23: =B11 -> 2.711863031 | Q23: =Q11 -> 2.68672729 | AF23: =AF11 -> 2.662053226 | AU23: =AU11 -> 2.637828236 | BJ23: =BJ11 -> 2.614040171
A26: =$A$177 -> T5 (2 X 14W)
A27: =$A$178 -> Bulk change & repairs | B27: =$G$198*$I$40+$N$198*$I$41 -> 20.59541319 | Q27: =$V$198*$X$40+$AC$198*$X$41 -> 21.0547844 | AF27: =$AK$198*$AM$40+$AR$198*$AM$41 -> 21.33867414 | AU27: =$AZ$198*$BB$40+$BG$198*$BB$41 -> 20.87469151 | BJ27: =$BO$198*$BQ$40+$BV$198*$BQ$41 -> 20.79659706
A28: =$A$10 -> Dedicated poles - inspection | B28: =B10 -> 0.92102693 | Q28: =Q10 -> 0.9315703092 | AF28: =AF10 -> 0.9436494826 | AU28: =AU10 -> 0.9492111827 | BJ28: =BJ10 -> 0.9582914948
A29: =$A$11 -> Other costs | B29: =B11 -> 2.711863031 | Q29: =Q11 -> 2.68672729 | AF29: =AF11 -> 2.662053226 | AU29: =AU11 -> 2.637828236 | BJ29: =BJ11 -> 2.614040171
A32: =$A$215 -> Category P LED 18 Watt
A33: =$A$178 -> Bulk change & repairs | B33: =G233*K40+N233*K41 -> 6.86209666 | Q33: =V233*Z40+AC233*Z41 -> 7.025068389 | AF33: =AK233*AO40+AR233*AO41 -> 7.120267592 | AU33: =AZ233*BD40+BG233*BD41 -> 6.939584926 | BJ33: =BO233*BS40+BV233*BS41 -> 6.901097741
A34: =$A$10 -> Dedicated poles - inspection | B34: =B10 -> 0.92102693 | Q34: =Q10 -> 0.9315703092 | AF34: =AF10 -> 0.9436494826 | AU34: =AU10 -> 0.9492111827 | BJ34: =BJ10 -> 0.9582914948
A35: =$A$11 -> Other costs | B35: =B11 -> 2.711863031 | Q35: =Q11 -> 2.68672729 | AF35: =AF11 -> 2.662053226 | AU35: =AU11 -> 2.637828236 | BJ35: =BJ11 -> 2.614040171
A39: ='DNSP Inputs O & M'!A51 -> Location of selected public lighting assets within distributors' areas (%) | C39: =$A$70 -> MV80 | E39: =$A$111 -> S-HP 150 | G39: =$A$143 -> S-HP 250 | I39: =$A$177 -> T5 (2 X 14W) | K39: =$A$215 -> Category P LED 18 Watt | R39: =$A$70 -> MV80 | T39: =$A$111 -> S-HP 150 | V39: =$A$143 -> S-HP 250 | X39: =$A$177 -> T5 (2 X 14W) | Z39: =$A$215 -> Category P LED 18 Watt | AG39: =$A$70 -> MV80 | AI39: =$A$111 -> S-HP 150 | AK39: =$A$143 -> S-HP 250 | AM39: =$A$177 -> T5 (2 X 14W) | AO39: =$A$215 -> Category P LED 18 Watt | AV39: =$A$70 -> MV80 | AX39: =$A$111 -> S-HP 150 | AZ39: =$A$143 -> S-HP 250 | BB39: =$A$177 -> T5 (2 X 14W) | BD39: =$A$215 -> Category P LED 18 Watt | BK39: =$A$70 -> MV80 | BM39: =$A$111 -> S-HP 150 | BO39: =$A$143 -> S-HP 250 | BQ39: =$A$177 -> T5 (2 X 14W) | BS39: =$A$215 -> Category P LED 18 Watt
A40: ='DNSP Inputs O & M'!A52 -> Urban | C40: ='DNSP Inputs O & M'!$D$52 -> 0.97 | E40: ='DNSP Inputs O & M'!$D$83 -> 0.95 | G40: ='DNSP Inputs O & M'!$D$114 -> 0.92 | I40: ='DNSP Inputs O & M'!$D$172 -> 0.97 | K40: ='DNSP Inputs O & M'!$D$203 -> 1 | R40: ='DNSP Inputs O & M'!$E$52 -> 0.97 | T40: ='DNSP Inputs O & M'!$E$83 -> 0.95 | V40: ='DNSP Inputs O & M'!$E$114 -> 0.92 | X40: ='DNSP Inputs O & M'!$E$172 -> 0.97 | Z40: ='DNSP Inputs O & M'!$E$203 -> 1 | AG40: ='DNSP Inputs O & M'!$F$52 -> 0.97 | AI40: ='DNSP Inputs O & M'!$F$83 -> 0.95 | AK40: ='DNSP Inputs O & M'!$F$114 -> 0.92 | AM40: ='DNSP Inputs O & M'!$F$172 -> 0.97 | AO40: ='DNSP Inputs O & M'!$F$203 -> 1 | AV40: ='DNSP Inputs O & M'!$G$52 -> 0.97 | AX40: ='DNSP Inputs O & M'!$G$83 -> 0.95 | AZ40: ='DNSP Inputs O & M'!$G$114 -> 0.92 | BB40: ='DNSP Inputs O & M'!$G$172 -> 0.97 | BD40: ='DNSP Inputs O & M'!$G$203 -> 1 | BK40: ='DNSP Inputs O & M'!$H$52 -> 0.97 | BM40: ='DNSP Inputs O & M'!$H$83 -> 0.95 | BO40: ='DNSP Inputs O & M'!$H$114 -> 0.92 | BQ40: ='DNSP Inputs O & M'!$H$172 -> 0.97 | BS40: ='DNSP Inputs O & M'!$H$203 -> 1
A41: ='DNSP Inputs O & M'!A53 -> Rural | C41: ='DNSP Inputs O & M'!$D$53 -> 0.03 | E41: ='DNSP Inputs O & M'!$D$84 -> 0.05 | G41: ='DNSP Inputs O & M'!$D$115 -> 0.08 | I41: ='DNSP Inputs O & M'!$D$173 -> 0.03 | K41: ='DNSP Inputs O & M'!$D$204 -> 0 | R41: ='DNSP Inputs O & M'!$E$53 -> 0.03 | T41: ='DNSP Inputs O & M'!$E$84 -> 0.05 | V41: ='DNSP Inputs O & M'!$E$115 -> 0.08 | X41: ='DNSP Inputs O & M'!$E$173 -> 0.03 | Z41: ='DNSP Inputs O & M'!$E$204 -> 0 | AG41: ='DNSP Inputs O & M'!$F$53 -> 0.03 | AI41: ='DNSP Inputs O & M'!$F$84 -> 0.05 | AK41: ='DNSP Inputs O & M'!$F$115 -> 0.08 | AM41: ='DNSP Inputs O & M'!$F$173 -> 0.03 | AO41: ='DNSP Inputs O & M'!$F$204 -> 0 | AV41: ='DNSP Inputs O & M'!$G$53 -> 0.03 | AX41: ='DNSP Inputs O & M'!$G$84 -> 0.05 | AZ41: ='DNSP Inputs O & M'!$G$115 -> 0.08 | BB41: ='DNSP Inputs O & M'!$G$173 -> 0.03 | BD41: ='DNSP Inputs O & M'!$G$204 -> 0 | BK41: ='DNSP Inputs O & M'!$H$53 -> 0.03 | BM41: ='DNSP Inputs O & M'!$H$84 -> 0.05 | BO41: ='DNSP Inputs O & M'!$H$115 -> 0.08 | BQ41: ='DNSP Inputs O & M'!$H$173 -> 0.03 | BS41: ='DNSP Inputs O & M'!$H$204 -> 0
A43: ='DNSP Inputs O & M'!A124 -> Proportion of lights on dedicated poles | C43: ='DNSP Inputs O & M'!$D$124 -> 0.3383266143 | R43: ='DNSP Inputs O & M'!$E$124 -> 0.3383266143 | AG43: ='DNSP Inputs O & M'!$F$124 -> 0.3383266143 | AV43: ='DNSP Inputs O & M'!$G$124 -> 0.3383266143 | BK43: ='DNSP Inputs O & M'!$H$124 -> 0.3383266143
A45: ='DNSP Inputs O & M'!A128 -> Other direct costs
A46: ='DNSP Inputs O & M'!$A$129 -> Call centre | C46: ='DNSP Inputs O & M'!$D$132 -> 47895.44184 | R46: ='DNSP Inputs O & M'!$E$132 -> 47895.44184 | AG46: ='DNSP Inputs O & M'!$F$132 -> 47895.44184 | AV46: ='DNSP Inputs O & M'!$G$132 -> 47895.44184 | BK46: ='DNSP Inputs O & M'!$H$132 -> 47895.44184
A47: ='DNSP Inputs O & M'!$A$134 -> GIS and other | C47: ='DNSP Inputs O & M'!$D$134 -> 113442.5434 | R47: ='DNSP Inputs O & M'!$E$134 -> 113442.5434 | AG47: ='DNSP Inputs O & M'!$F$134 -> 113442.5434 | AV47: ='DNSP Inputs O & M'!$G$134 -> 113442.5434 | BK47: ='DNSP Inputs O & M'!$H$134 -> 113442.5434
A48: ='DNSP Inputs O & M'!A135 -> Complaints handling | C48: ='DNSP Inputs O & M'!$D$135 -> 34032.76303 | R48: ='DNSP Inputs O & M'!$E$135 -> 34032.76303 | AG48: ='DNSP Inputs O & M'!$F$135 -> 34032.76303 | AV48: ='DNSP Inputs O & M'!$G$135 -> 34032.76303 | BK48: ='DNSP Inputs O & M'!$H$135 -> 34032.76303
A49: Account management | C49: ='DNSP Inputs O & M'!$D$136 -> 0 | R49: ='DNSP Inputs O & M'!$E$136 -> 0 | AG49: ='DNSP Inputs O & M'!$F$136 -> 0 | AV49: ='DNSP Inputs O & M'!$G$136 -> 0 | BK49: ='DNSP Inputs O & M'!$H$136 -> 0
C50: =SUM(C46:C49) -> 195370.7483 | R50: =SUM(R46:R49) -> 195370.7483 | AG50: =SUM(AG46:AG49) -> 195370.7483 | AV50: =SUM(AV46:AV49) -> 195370.7483 | BK50: =SUM(BK46:BK49) -> 195370.7483
A52: ='DNSP Inputs General'!A75 -> Total Number of Lights | C52: ='DNSP Inputs General'!$K$75 -> 72043 | R52: ='DNSP Inputs General'!$L$75 -> 72717 | AG52: ='DNSP Inputs General'!$M$75 -> 73391 | AV52: ='DNSP Inputs General'!$N$75 -> 74065 | BK52: ='DNSP Inputs General'!$O$75 -> 74739
A58: Mercury Vapour 80 Watt Standard Light Type - Cost build-up
A60: Additional assumptions
A61: Proportion of lamps that will fail before bulk change | D61: ='DNSP Inputs O & M'!$D$27 -> 0.256 | S61: ='DNSP Inputs O & M'!$E$27 -> 0.256 | AH61: ='DNSP Inputs O & M'!$F$27 -> 0.256 | AW61: ='DNSP Inputs O & M'!$G$27 -> 0.256 | BL61: ='DNSP Inputs O & M'!$H$27 -> 0.256
A62: Proportion of lamps that will fail before bulk change (per year) | D62: =D61/'DNSP Inputs O & M'!$D$25 -> 0.064 | S62: =S61/'DNSP Inputs O & M'!$E$25 -> 0.064 | AH62: =AH61/'DNSP Inputs O & M'!$F$25 -> 0.064 | AW62: =AW61/'DNSP Inputs O & M'!$G$25 -> 0.064 | BL62: =BL61/'DNSP Inputs O & M'!$H$25 -> 0.064
A63: Overheads are applied to material and labour components
A64: All costs and charges are exclusive of GST
B66: Urban | I66: Rural | Q66: Urban | X66: Rural | AF66: Urban | AM66: Rural | AU66: Urban | BB66: Rural | BJ66: Urban | BQ66: Rural
B68: Unit rate | C68: Number | D68: Hours | E68: Cost | F68: Annualised | G68: Annualised | I68: Unit rate | J68: Number | K68: Hours | L68: Cost | M68: Annualised | N68: Annualised | Q68: Unit rate | R68: Number | S68: Hours | T68: Cost | U68: Annualised | V68: Annualised | X68: Unit rate | Y68: Number | Z68: Hours | AA68: Cost | AB68: Annualised | AC68: Annualised | AF68: Unit rate | AG68: Number | AH68: Hours | AI68: Cost | AJ68: Annualised | AK68: Annualised | AM68: Unit rate | AN68: Number | AO68: Hours | AP68: Cost | AQ68: Annualised | AR68: Annualised | AU68: Unit rate | AV68: Number | AW68: Hours | AX68: Cost | AY68: Annualised | AZ68: Annualised | BB68: Unit rate | BC68: Number | BD68: Hours | BE68: Cost | BF68: Annualised | BG68: Annualised | BJ68: Unit rate | BK68: Number | BL68: Hours | BM68: Cost | BN68: Annualised | BO68: Annualised | BQ68: Unit rate | BR68: Number | BS68: Hours | BT68: Cost | BU68: Annualised | BV68: Annualised
F69: cost | G69: unit cost | M69: cost | N69: unit cost | U69: cost | V69: unit cost | AB69: cost | AC69: unit cost | AJ69: cost | AK69: unit cost | AQ69: cost | AR69: unit cost | AY69: cost | AZ69: unit cost | BF69: cost | BG69: unit cost | BN69: cost | BO69: unit cost | BU69: cost | BV69: unit cost
A70: MV80
A71: Bulk change & repairs
A72: Materials - bulk lamp change
A73: Lamp | B73: ='DNSP Inputs O & M'!$D$29 -> 5.693358829 | C73: ='DNSP Inputs O & M'!$D$35 -> 85 | E73: =B73*C73 -> 483.9355005 | F73: =E73/'DNSP Inputs O & M'!$D$25*0.8 -> 96.78710009 | G73: =(F73+F74+F75)/C73 -> 4.260986988 | I73: ='DNSP Inputs O & M'!$D$29*(1+'DNSP Inputs O & M'!$D$11) -> 5.97802677 | J73: ='DNSP Inputs O & M'!$D$36 -> 70 | L73: =I73*J73 -> 418.4618739 | M73: =L73/'DNSP Inputs O & M'!$D$25*0.8 -> 83.69237479 | N73: =(M73+M74+M75)/J73 -> 4.474036337 | Q73: ='DNSP Inputs O & M'!$E$29 -> 5.910872079 | R73: ='DNSP Inputs O & M'!$E$35 -> 85 | T73: =Q73*R73 -> 502.4241267 | U73: =T73/'DNSP Inputs O & M'!$E$25*0.8 -> 100.4848253 | V73: =(U73+U74+U75)/R73 -> 4.423776855 | X73: ='DNSP Inputs O & M'!$E$29*(1+'DNSP Inputs O & M'!$E$11) -> 6.206415683 | Y73: ='DNSP Inputs O & M'!$E$36 -> 70 | AA73: =X73*Y73 -> 434.4490978 | AB73: =AA73/'DNSP Inputs O & M'!$E$25*0.8 -> 86.88981956 | AC73: =(AB73+AB74+AB75)/Y73 -> 4.644965698 | AF73: ='DNSP Inputs O & M'!$F$29 -> 5.994929995 | AG73: ='DNSP Inputs O & M'!$F$35 -> 85 | AI73: =AF73*AG73 -> 509.5690496 | AJ73: =AI73/'DNSP Inputs O & M'!$F$25*0.8 -> 101.9138099 | AK73: =(AJ73+AJ74+AJ75)/AG73 -> 4.48668694 | AM73: ='DNSP Inputs O & M'!$F$29*(1+'DNSP Inputs O & M'!$F$11) -> 6.294676494 | AN73: ='DNSP Inputs O & M'!$F$36 -> 70 | AP73: =AM73*AN73 -> 440.6273546 | AQ73: =AP73/'DNSP Inputs O & M'!$F$25*0.8 -> 88.12547092 | AR73: =(AQ73+AQ74+AQ75)/AN73 -> 4.711021287 | AU73: ='DNSP Inputs O & M'!$G$29 -> 5.6284787 | AV73: ='DNSP Inputs O & M'!$G$35 -> 85 | AX73: =AU73*AV73 -> 478.4206895 | AY73: =AX73/'DNSP Inputs O & M'!$G$25*0.8 -> 95.6841379 | AZ73: =(AY73+AY74+AY75)/AV73 -> 4.212429819 | BB73: ='DNSP Inputs O & M'!$G$29*(1+'DNSP Inputs O & M'!$G$11) -> 5.909902635 | BC73: ='DNSP Inputs O & M'!$G$36 -> 70 | BE73: =BB73*BC73 -> 413.6931844 | BF73: =BE73/'DNSP Inputs O & M'!$G$25*0.8 -> 82.73863689 | BG73: =(BF73+BF74+BF75)/BC73 -> 4.42305131 | BJ73: ='DNSP Inputs O & M'!$H$29 -> 5.493072062 | BK73: ='DNSP Inputs O & M'!$H$35 -> 85 | BM73: =BJ73*BK73 -> 466.9111253 | BN73: =BM73/'DNSP Inputs O & M'!$H$25*0.8 -> 93.38222506 | BO73: =(BN73+BN74+BN75)/BK73 -> 4.111089655 | BQ73: ='DNSP Inputs O & M'!$H$29*(1+'DNSP Inputs O & M'!$H$11) -> 5.767725665 | BR73: ='DNSP Inputs O & M'!$H$36 -> 70 | BT73: =BQ73*BR73 -> 403.7407966 | BU73: =BT73/'DNSP Inputs O & M'!$H$25*0.8 -> 80.74815932 | BV73: =(BU73+BU74+BU75)/BR73 -> 4.316644137
A74: PE cell | B74: ='DNSP Inputs O & M'!$D$30 -> 22.98522328 | C74: =C73*'DNSP Inputs O & M'!$D$25/'DNSP Inputs O & M'!$D$26 -> 42.5 | E74: =B74*C74 -> 976.8719894 | F74: =E74/'DNSP Inputs O & M'!$D$25 -> 244.2179974 | I74: ='DNSP Inputs O & M'!$D$30*(1+'DNSP Inputs O & M'!$D$11) -> 24.13448445 | J74: =J73*'DNSP Inputs O & M'!$D$25/'DNSP Inputs O & M'!$D$26 -> 35 | L74: =I74*J74 -> 844.7069556 | M74: =L74/'DNSP Inputs O & M'!$D$25 -> 211.1767389 | Q74: ='DNSP Inputs O & M'!$E$30 -> 23.86336758 | R74: =R73*'DNSP Inputs O & M'!$E$25/'DNSP Inputs O & M'!$E$26 -> 42.5 | T74: =Q74*R74 -> 1014.193122 | U74: =T74/'DNSP Inputs O & M'!$E$25 -> 253.5482806 | X74: ='DNSP Inputs O & M'!$E$30*(1+'DNSP Inputs O & M'!$E$11) -> 25.05653596 | Y74: =Y73*'DNSP Inputs O & M'!$E$25/'DNSP Inputs O & M'!$E$26 -> 35 | AA74: =X74*Y74 -> 876.9787587 | AB74: =AA74/'DNSP Inputs O & M'!$E$25 -> 219.2446897 | AF74: ='DNSP Inputs O & M'!$F$30 -> 24.20272613 | AG74: =AG73*'DNSP Inputs O & M'!$F$25/'DNSP Inputs O & M'!$F$26 -> 42.5 | AI74: =AF74*AG74 -> 1028.61586 | AJ74: =AI74/'DNSP Inputs O & M'!$F$25 -> 257.1539651 | AM74: ='DNSP Inputs O & M'!$F$30*(1+'DNSP Inputs O & M'!$F$11) -> 25.41286243 | AN74: =AN73*'DNSP Inputs O & M'!$F$25/'DNSP Inputs O & M'!$F$26 -> 35 | AP74: =AM74*AN74 -> 889.4501852 | AQ74: =AP74/'DNSP Inputs O & M'!$F$25 -> 222.3625463 | AU74: ='DNSP Inputs O & M'!$G$30 -> 22.72328928 | AV74: =AV73*'DNSP Inputs O & M'!$G$25/'DNSP Inputs O & M'!$G$26 -> 42.5 | AX74: =AU74*AV74 -> 965.7397944 | AY74: =AX74/'DNSP Inputs O & M'!$G$25 -> 241.4349486 | BB74: ='DNSP Inputs O & M'!$G$30*(1+'DNSP Inputs O & M'!$G$11) -> 23.85945375 | BC74: =BC73*'DNSP Inputs O & M'!$G$25/'DNSP Inputs O & M'!$G$26 -> 35 | BE74: =BB74*BC74 -> 835.0808811 | BF74: =BE74/'DNSP Inputs O & M'!$G$25 -> 208.7702203 | BJ74: ='DNSP Inputs O & M'!$H$30 -> 22.17662572 | BK74: =BK73*'DNSP Inputs O & M'!$H$25/'DNSP Inputs O & M'!$H$26 -> 42.5 | BM74: =BJ74*BK74 -> 942.5065932 | BN74: =BM74/'DNSP Inputs O & M'!$H$25 -> 235.6266483 | BQ74: ='DNSP Inputs O & M'!$H$30*(1+'DNSP Inputs O & M'!$H$11) -> 23.28545701 | BR74: =BR73*'DNSP Inputs O & M'!$H$25/'DNSP Inputs O & M'!$H$26 -> 35 | BT74: =BQ74*BR74 -> 814.9909953 | BU74: =BT74/'DNSP Inputs O & M'!$H$25 -> 203.7477488
A75: Miscellaneous | B75: ='DNSP Inputs O & M'!$D$32 -> 1.24581156 | C75: ='DNSP Inputs O & M'!$D$35 -> 85 | E75: =B75*C75 -> 105.8939826 | F75: =E75/'DNSP Inputs O & M'!$D$25*0.8 -> 21.17879652 | I75: ='DNSP Inputs O & M'!$D$32*(1+'DNSP Inputs O & M'!$D$11) -> 1.308102138 | J75: ='DNSP Inputs O & M'!$D$36 -> 70 | L75: =I75*J75 -> 91.56714966 | M75: =L75/'DNSP Inputs O & M'!$D$25*0.8 -> 18.31342993 | Q75: ='DNSP Inputs O & M'!$E$32 -> 1.293407457 | R75: ='DNSP Inputs O & M'!$E$35 -> 85 | T75: =Q75*R75 -> 109.9396338 | U75: =T75/'DNSP Inputs O & M'!$E$25*0.8 -> 21.98792677 | X75: ='DNSP Inputs O & M'!$E$32*(1+'DNSP Inputs O & M'!$E$11) -> 1.35807783 | Y75: ='DNSP Inputs O & M'!$E$36 -> 70 | AA75: =X75*Y75 -> 95.06544809 | AB75: =AA75/'DNSP Inputs O & M'!$E$25*0.8 -> 19.01308962 | AF75: ='DNSP Inputs O & M'!$F$32 -> 1.311800874 | AG75: ='DNSP Inputs O & M'!$F$35 -> 85 | AI75: =AF75*AG75 -> 111.5030743 | AJ75: =AI75/'DNSP Inputs O & M'!$F$25*0.8 -> 22.30061486 | AM75: ='DNSP Inputs O & M'!$F$32*(1+'DNSP Inputs O & M'!$F$11) -> 1.377390918 | AN75: ='DNSP Inputs O & M'!$F$36 -> 70 | AP75: =AM75*AN75 -> 96.41736425 | AQ75: =AP75/'DNSP Inputs O & M'!$F$25*0.8 -> 19.28347285 | AU75: ='DNSP Inputs O & M'!$G$32 -> 1.231614595 | AV75: ='DNSP Inputs O & M'!$G$35 -> 85 | AX75: =AU75*AV75 -> 104.6872406 | AY75: =AX75/'DNSP Inputs O & M'!$G$25*0.8 -> 20.93744812 | BB75: ='DNSP Inputs O & M'!$G$32*(1+'DNSP Inputs O & M'!$G$11) -> 1.293195325 | BC75: ='DNSP Inputs O & M'!$G$36 -> 70 | BE75: =BB75*BC75 -> 90.52367275 | BF75: =BE75/'DNSP Inputs O & M'!$G$25*0.8 -> 18.10473455 | BJ75: ='DNSP Inputs O & M'!$H$32 -> 1.201985134 | BK75: ='DNSP Inputs O & M'!$H$35 -> 85 | BM75: =BJ75*BK75 -> 102.1687364 | BN75: =BM75/'DNSP Inputs O & M'!$H$25*0.8 -> 20.43374728 | BQ75: ='DNSP Inputs O & M'!$H$32*(1+'DNSP Inputs O & M'!$H$11) -> 1.262084391 | BR75: ='DNSP Inputs O & M'!$H$36 -> 70 | BT75: =BQ75*BR75 -> 88.34590735 | BU75: =BT75/'DNSP Inputs O & M'!$H$25*0.8 -> 17.66918147
A76: Materials - repair of faults
A77: Lamp | B77: ='DNSP Inputs O & M'!$D$29 -> 5.693358829 | C77: ='DNSP Inputs O & M'!$D$37*'DNSP Inputs O & M'!$D$39 -> 9 | E77: =B77*C77 -> 51.24022946 | F77: =(E77+E78+E79+E80)/'DNSP Inputs O & M'!$D$37 -> 45.78295192 | G77: =F77*D62 -> 2.930108923 | I77: ='DNSP Inputs O & M'!$D$29*(1+'DNSP Inputs O & M'!$D$11) -> 5.97802677 | J77: ='DNSP Inputs O & M'!$D$38*'DNSP Inputs O & M'!$D$39 -> 7.2 | L77: =I77*J77 -> 43.04179275 | M77: =(L77+L78+L79+L80)/'DNSP Inputs O & M'!$D$38 -> 48.07209952 | N77: =M77*D62 -> 3.076614369 | Q77: ='DNSP Inputs O & M'!$E$29 -> 5.910872079 | R77: ='DNSP Inputs O & M'!$E$37*'DNSP Inputs O & M'!$E$39 -> 9 | T77: =Q77*R77 -> 53.19784871 | U77: =(T77+T78+T79+T80)/'DNSP Inputs O & M'!$E$37 -> 47.53207734 | V77: =U77*S62 -> 3.04205295 | X77: ='DNSP Inputs O & M'!$E$29*(1+'DNSP Inputs O & M'!$E$11) -> 6.206415683 | Y77: ='DNSP Inputs O & M'!$E$38*'DNSP Inputs O & M'!$E$39 -> 7.2 | AA77: =X77*Y77 -> 44.68619292 | AB77: =(AA77+AA78+AA79+AA80)/'DNSP Inputs O & M'!$E$38 -> 49.90868121 | AC77: =AB77*S62 -> 3.194155597 | AF77: ='DNSP Inputs O & M'!$F$29 -> 5.994929995 | AG77: ='DNSP Inputs O & M'!$F$37*'DNSP Inputs O & M'!$F$39 -> 9 | AI77: =AF77*AG77 -> 53.95436995 | AJ77: =(AI77+AI78+AI79+AI80)/'DNSP Inputs O & M'!$F$37 -> 48.20802622 | AK77: =AJ77*AH62 -> 3.085313678 | AM77: ='DNSP Inputs O & M'!$F$29*(1+'DNSP Inputs O & M'!$F$11) -> 6.294676494 | AN77: ='DNSP Inputs O & M'!$F$38*'DNSP Inputs O & M'!$F$39 -> 7.2 | AP77: =AM77*AN77 -> 45.32167076 | AQ77: =(AP77+AP78+AP79+AP80)/'DNSP Inputs O & M'!$F$38 -> 50.61842753 | AR77: =AQ77*AH62 -> 3.239579362 | AU77: ='DNSP Inputs O & M'!$G$29 -> 5.6284787 | AV77: ='DNSP Inputs O & M'!$G$37*'DNSP Inputs O & M'!$G$39 -> 9 | AX77: =AU77*AV77 -> 50.6563083 | AY77: =(AX77+AX78+AX79+AX80)/'DNSP Inputs O & M'!$G$37 -> 45.26122057 | AZ77: =AY77*AW62 -> 2.896718116 | BB77: ='DNSP Inputs O & M'!$G$29*(1+'DNSP Inputs O & M'!$G$11) -> 5.909902635 | BC77: ='DNSP Inputs O & M'!$G$38*'DNSP Inputs O & M'!$G$39 -> 7.2 | BE77: =BB77*BC77 -> 42.55129897 | BF77: =(BE77+BE78+BE79+BE80)/'DNSP Inputs O & M'!$G$38 -> 47.52428159 | BG77: =BF77*AW62 -> 3.041554022 | BJ77: ='DNSP Inputs O & M'!$H$29 -> 5.493072062 | BK77: ='DNSP Inputs O & M'!$H$37*'DNSP Inputs O & M'!$H$39 -> 9 | BM77: =BJ77*BK77 -> 49.43764856 | BN77: =(BM77+BM78+BM79+BM80)/'DNSP Inputs O & M'!$H$37 -> 44.17235268 | BO77: =BN77*BL62 -> 2.827030572 | BQ77: ='DNSP Inputs O & M'!$H$29*(1+'DNSP Inputs O & M'!$H$11) -> 5.767725665 | BR77: ='DNSP Inputs O & M'!$H$38*'DNSP Inputs O & M'!$H$39 -> 7.2 | BT77: =BQ77*BR77 -> 41.52762479 | BU77: =(BT77+BT78+BT79+BT80)/'DNSP Inputs O & M'!$H$38 -> 46.38097032 | BV77: =BU77*BL62 -> 2.9683821
A78: PE cell | B78: ='DNSP Inputs O & M'!$D$30 -> 22.98522328 | C78: ='DNSP Inputs O & M'!$D$37*'DNSP Inputs O & M'!$D$40 -> 7.5 | E78: =B78*C78 -> 172.3891746 | I78: ='DNSP Inputs O & M'!$D$30*(1+'DNSP Inputs O & M'!$D$11) -> 24.13448445 | J78: ='DNSP Inputs O & M'!$D$38*'DNSP Inputs O & M'!$D$40 -> 6 | L78: =I78*J78 -> 144.8069067 | Q78: ='DNSP Inputs O & M'!$E$30 -> 23.86336758 | R78: ='DNSP Inputs O & M'!$E$37*'DNSP Inputs O & M'!$E$40 -> 7.5 | T78: =Q78*R78 -> 178.9752569 | X78: ='DNSP Inputs O & M'!$E$30*(1+'DNSP Inputs O & M'!$E$11) -> 25.05653596 | Y78: ='DNSP Inputs O & M'!$E$38*'DNSP Inputs O & M'!$E$40 -> 6 | AA78: =X78*Y78 -> 150.3392158 | AF78: ='DNSP Inputs O & M'!$F$30 -> 24.20272613 | AG78: ='DNSP Inputs O & M'!$F$37*'DNSP Inputs O & M'!$F$40 -> 7.5 | AI78: =AF78*AG78 -> 181.520446 | AM78: ='DNSP Inputs O & M'!$F$30*(1+'DNSP Inputs O & M'!$F$11) -> 25.41286243 | AN78: ='DNSP Inputs O & M'!$F$38*'DNSP Inputs O & M'!$F$40 -> 6 | AP78: =AM78*AN78 -> 152.4771746 | AU78: ='DNSP Inputs O & M'!$G$30 -> 22.72328928 | AV78: ='DNSP Inputs O & M'!$G$37*'DNSP Inputs O & M'!$G$40 -> 7.5 | AX78: =AU78*AV78 -> 170.4246696 | BB78: ='DNSP Inputs O & M'!$G$30*(1+'DNSP Inputs O & M'!$G$11) -> 23.85945375 | BC78: ='DNSP Inputs O & M'!$G$38*'DNSP Inputs O & M'!$G$40 -> 6 | BE78: =BB78*BC78 -> 143.1567225 | BJ78: ='DNSP Inputs O & M'!$H$30 -> 22.17662572 | BK78: ='DNSP Inputs O & M'!$H$37*'DNSP Inputs O & M'!$H$40 -> 7.5 | BM78: =BJ78*BK78 -> 166.3246929 | BQ78: ='DNSP Inputs O & M'!$H$30*(1+'DNSP Inputs O & M'!$H$11) -> 23.28545701 | BR78: ='DNSP Inputs O & M'!$H$38*'DNSP Inputs O & M'!$H$40 -> 6 | BT78: =BQ78*BR78 -> 139.712742
A79: Luminaire | B79: ='DNSP Inputs O & M'!$D$31 -> 197.5234228 | C79: ='DNSP Inputs O & M'!$D$37*'DNSP Inputs O & M'!$D$41 -> 2.25 | E79: =B79*C79 -> 444.4277014 | I79: ='DNSP Inputs O & M'!$D$31*(1+'DNSP Inputs O & M'!$D$11) -> 207.399594 | J79: ='DNSP Inputs O & M'!$D$38*'DNSP Inputs O & M'!$D$41 -> 1.8 | L79: =I79*J79 -> 373.3192691 | Q79: ='DNSP Inputs O & M'!$E$31 -> 205.0697523 | R79: ='DNSP Inputs O & M'!$E$37*'DNSP Inputs O & M'!$E$41 -> 2.25 | T79: =Q79*R79 -> 461.4069427 | X79: ='DNSP Inputs O & M'!$E$31*(1+'DNSP Inputs O & M'!$E$11) -> 215.3232399 | Y79: ='DNSP Inputs O & M'!$E$38*'DNSP Inputs O & M'!$E$41 -> 1.8 | AA79: =X79*Y79 -> 387.5818319 | AF79: ='DNSP Inputs O & M'!$F$31 -> 207.9860286 | AG79: ='DNSP Inputs O & M'!$F$37*'DNSP Inputs O & M'!$F$41 -> 2.25 | AI79: =AF79*AG79 -> 467.9685643 | AM79: ='DNSP Inputs O & M'!$F$31*(1+'DNSP Inputs O & M'!$F$11) -> 218.38533 | AN79: ='DNSP Inputs O & M'!$F$38*'DNSP Inputs O & M'!$F$41 -> 1.8 | AP79: =AM79*AN79 -> 393.093594 | AU79: ='DNSP Inputs O & M'!$G$31 -> 195.2724941 | AV79: ='DNSP Inputs O & M'!$G$37*'DNSP Inputs O & M'!$G$41 -> 2.25 | AX79: =AU79*AV79 -> 439.3631116 | BB79: ='DNSP Inputs O & M'!$G$31*(1+'DNSP Inputs O & M'!$G$11) -> 205.0361188 | BC79: ='DNSP Inputs O & M'!$G$38*'DNSP Inputs O & M'!$G$41 -> 1.8 | BE79: =BB79*BC79 -> 369.0650138 | BJ79: ='DNSP Inputs O & M'!$H$31 -> 190.574743 | BK79: ='DNSP Inputs O & M'!$H$37*'DNSP Inputs O & M'!$H$41 -> 2.25 | BM79: =BJ79*BK79 -> 428.7931717 | BQ79: ='DNSP Inputs O & M'!$H$31*(1+'DNSP Inputs O & M'!$H$11) -> 200.1034801 | BR79: ='DNSP Inputs O & M'!$H$38*'DNSP Inputs O & M'!$H$41 -> 1.8 | BT79: =BQ79*BR79 -> 360.1862643
A80: Miscellaneous | B80: ='DNSP Inputs O & M'!$D$33 -> 12.4581156 | C80: ='DNSP Inputs O & M'!$D$37*'DNSP Inputs O & M'!$D$42 -> 1.5 | E80: =B80*C80 -> 18.6871734 | I80: ='DNSP Inputs O & M'!$D$33*(1+'DNSP Inputs O & M'!$D$11) -> 13.08102138 | J80: ='DNSP Inputs O & M'!$D$38*'DNSP Inputs O & M'!$D$42 -> 1.2 | L80: =I80*J80 -> 15.69722566 | Q80: ='DNSP Inputs O & M'!$E$33 -> 12.93407457 | R80: ='DNSP Inputs O & M'!$E$37*'DNSP Inputs O & M'!$E$42 -> 1.5 | T80: =Q80*R80 -> 19.40111186 | X80: ='DNSP Inputs O & M'!$E$33*(1+'DNSP Inputs O & M'!$E$11) -> 13.5807783 | Y80: ='DNSP Inputs O & M'!$E$38*'DNSP Inputs O & M'!$E$42 -> 1.2 | AA80: =X80*Y80 -> 16.29693396 | AF80: ='DNSP Inputs O & M'!$F$33 -> 13.11800874 | AG80: ='DNSP Inputs O & M'!$F$37*'DNSP Inputs O & M'!$F$42 -> 1.5 | AI80: =AF80*AG80 -> 19.67701311 | AM80: ='DNSP Inputs O & M'!$F$33*(1+'DNSP Inputs O & M'!$F$11) -> 13.77390918 | AN80: ='DNSP Inputs O & M'!$F$38*'DNSP Inputs O & M'!$F$42 -> 1.2 | AP80: =AM80*AN80 -> 16.52869101 | AU80: ='DNSP Inputs O & M'!$G$33 -> 12.31614595 | AV80: ='DNSP Inputs O & M'!$G$37*'DNSP Inputs O & M'!$G$42 -> 1.5 | AX80: =AU80*AV80 -> 18.47421893 | BB80: ='DNSP Inputs O & M'!$G$33*(1+'DNSP Inputs O & M'!$G$11) -> 12.93195325 | BC80: ='DNSP Inputs O & M'!$G$38*'DNSP Inputs O & M'!$G$42 -> 1.2 | BE80: =BB80*BC80 -> 15.5183439 | BJ80: ='DNSP Inputs O & M'!$H$33 -> 12.01985134 | BK80: ='DNSP Inputs O & M'!$H$37*'DNSP Inputs O & M'!$H$42 -> 1.5 | BM80: =BJ80*BK80 -> 18.02977701 | BQ80: ='DNSP Inputs O & M'!$H$33*(1+'DNSP Inputs O & M'!$H$11) -> 12.62084391 | BR80: ='DNSP Inputs O & M'!$H$38*'DNSP Inputs O & M'!$H$42 -> 1.2 | BT80: =BQ80*BR80 -> 15.14501269
A81: Labour - bulk lamp change
A82: Crew costs | B82: ='DNSP Inputs O & M'!$D$12 -> 90.43467502 | C82: ='DNSP Inputs O & M'!$D$34 -> 2 | D82: ='DNSP Inputs O & M'!$D$17 -> 8 | E82: =B82*C82*D82 -> 1446.9548 | F82: =E82/'DNSP Inputs O & M'!$D$25*(C73+C74)/C73*0.8 -> 434.0864401 | G82: =(F82+F83)/C73 -> 6.258353306 | I82: ='DNSP Inputs O & M'!$D$12 -> 90.43467502 | J82: ='DNSP Inputs O & M'!$D$34 -> 2 | K82: ='DNSP Inputs O & M'!$D$17 -> 8 | L82: =I82*J82*K82 -> 1446.9548 | M82: =L82/'DNSP Inputs O & M'!$D$25*(J73+J74)/J73*0.8 -> 434.0864401 | N82: =(M82+M83)/J73 -> 7.998913059 | Q82: ='DNSP Inputs O & M'!$E$12 -> 91.15815242 | R82: ='DNSP Inputs O & M'!$E$34 -> 2 | S82: ='DNSP Inputs O & M'!$E$17 -> 8 | T82: =Q82*R82*S82 -> 1458.530439 | U82: =T82/'DNSP Inputs O & M'!$E$25*(R73+R74)/R73*0.8 -> 437.5591316 | V82: =(U82+U83)/R73 -> 6.343199493 | X82: ='DNSP Inputs O & M'!$E$12 -> 91.15815242 | Y82: ='DNSP Inputs O & M'!$E$34 -> 2 | Z82: ='DNSP Inputs O & M'!$E$17 -> 8 | AA82: =X82*Y82*Z82 -> 1458.530439 | AB82: =AA82/'DNSP Inputs O & M'!$E$25*(Y73+Y74)/Y73*0.8 -> 437.5591316 | AC82: =(AB82+AB83)/Y73 -> 8.117202753 | AF82: ='DNSP Inputs O & M'!$F$12 -> 92.32497677 | AG82: ='DNSP Inputs O & M'!$F$34 -> 2 | AH82: ='DNSP Inputs O & M'!$F$17 -> 8 | AI82: =AF82*AG82*AH82 -> 1477.199628 | AJ82: =AI82/'DNSP Inputs O & M'!$F$25*(AG73+AG74)/AG73*0.8 -> 443.1598885 | AK82: =(AJ82+AJ83)/AG73 -> 6.426091053 | AM82: ='DNSP Inputs O & M'!$F$12 -> 92.32497677 | AN82: ='DNSP Inputs O & M'!$F$34 -> 2 | AO82: ='DNSP Inputs O & M'!$F$17 -> 8 | AP82: =AM82*AN82*AO82 -> 1477.199628 | AQ82: =AP82/'DNSP Inputs O & M'!$F$25*(AN73+AN74)/AN73*0.8 -> 443.1598885 | AR82: =(AQ82+AQ83)/AN73 -> 8.223754855 | AU82: ='DNSP Inputs O & M'!$G$12 -> 93.69138642 | AV82: ='DNSP Inputs O & M'!$G$34 -> 2 | AW82: ='DNSP Inputs O & M'!$G$17 -> 8 | AX82: =AU82*AV82*AW82 -> 1499.062183 | AY82: =AX82/'DNSP Inputs O & M'!$G$25*(AV73+AV74)/AV73*0.8 -> 449.7186548 | AZ82: =(AY82+AY83)/AV73 -> 6.429140026 | BB82: ='DNSP Inputs O & M'!$G$12 -> 93.69138642 | BC82: ='DNSP Inputs O & M'!$G$34 -> 2 | BD82: ='DNSP Inputs O & M'!$G$17 -> 8 | BE82: =BB82*BC82*BD82 -> 1499.062183 | BF82: =BE82/'DNSP Inputs O & M'!$G$25*(BC73+BC74)/BC73*0.8 -> 449.7186548 | BG82: =(BF82+BF83)/BC73 -> 8.201744511 | BJ82: ='DNSP Inputs O & M'!$H$12 -> 94.97495842 | BK82: ='DNSP Inputs O & M'!$H$34 -> 2 | BL82: ='DNSP Inputs O & M'!$H$17 -> 8 | BM82: =BJ82*BK82*BL82 -> 1519.599335 | BN82: =BM82/'DNSP Inputs O & M'!$H$25*(BK73+BK74)/BK73*0.8 -> 455.8798004 | BO82: =(BN82+BN83)/BK73 -> 6.474238761 | BQ82: ='DNSP Inputs O & M'!$H$12 -> 94.97495842 | BR82: ='DNSP Inputs O & M'!$H$34 -> 2 | BS82: ='DNSP Inputs O & M'!$H$17 -> 8 | BT82: =BQ82*BR82*BS82 -> 1519.599335 | BU82: =BT82/'DNSP Inputs O & M'!$H$25*(BR73+BR74)/BR73*0.8 -> 455.8798004 | BV82: =(BU82+BU83)/BR73 -> 8.247006226
A83: Elevated platform costs | B83: ='DNSP Inputs O & M'!$D$14 -> 40.7806629 | C83: 1 | D83: ='DNSP Inputs O & M'!$D$17 -> 8 | E83: =B83*C83*D83 -> 326.2453032 | F83: =E83/'DNSP Inputs O & M'!$D$25*(C73+C74)/C73*0.8 -> 97.87359095 | I83: ='DNSP Inputs O & M'!$D$15 -> 52.43228087 | J83: 1 | K83: ='DNSP Inputs O & M'!$D$17 -> 8 | L83: =I83*J83*K83 -> 419.4582469 | M83: =L83/'DNSP Inputs O & M'!$D$25*(J73+J74)/J73*0.8 -> 125.8374741 | Q83: ='DNSP Inputs O & M'!$E$14 -> 42.33867721 | R83: 1 | S83: ='DNSP Inputs O & M'!$E$17 -> 8 | T83: =Q83*R83*S83 -> 338.7094176 | U83: =T83/'DNSP Inputs O & M'!$E$25*(R73+R74)/R73*0.8 -> 101.6128253 | X83: ='DNSP Inputs O & M'!$E$15 -> 54.43544212 | Y83: 1 | Z83: ='DNSP Inputs O & M'!$E$17 -> 8 | AA83: =X83*Y83*Z83 -> 435.483537 | AB83: =AA83/'DNSP Inputs O & M'!$E$25*(Y73+Y74)/Y73*0.8 -> 130.6450611 | AF83: ='DNSP Inputs O & M'!$F$14 -> 42.94077127 | AG83: 1 | AH83: ='DNSP Inputs O & M'!$F$17 -> 8 | AI83: =AF83*AG83*AH83 -> 343.5261701 | AJ83: =AI83/'DNSP Inputs O & M'!$F$25*(AG73+AG74)/AG73*0.8 -> 103.057851 | AM83: ='DNSP Inputs O & M'!$F$15 -> 55.20956306 | AN83: 1 | AO83: ='DNSP Inputs O & M'!$F$17 -> 8 | AP83: =AM83*AN83*AO83 -> 441.6765044 | AQ83: =AP83/'DNSP Inputs O & M'!$F$25*(AN73+AN74)/AN73*0.8 -> 132.5029513 | AU83: ='DNSP Inputs O & M'!$G$14 -> 40.31593641 | AV83: 1 | AW83: ='DNSP Inputs O & M'!$G$17 -> 8 | AX83: =AU83*AV83*AW83 -> 322.5274913 | AY83: =AX83/'DNSP Inputs O & M'!$G$25*(AV73+AV74)/AV73*0.8 -> 96.75824738 | BB83: ='DNSP Inputs O & M'!$G$15 -> 51.83477538 | BC83: 1 | BD83: ='DNSP Inputs O & M'!$G$17 -> 8 | BE83: =BB83*BC83*BD83 -> 414.678203 | BF83: =BE83/'DNSP Inputs O & M'!$G$25*(BC73+BC74)/BC73*0.8 -> 124.4034609 | BJ83: ='DNSP Inputs O & M'!$H$14 -> 39.34603927 | BK83: 1 | BL83: ='DNSP Inputs O & M'!$H$17 -> 8 | BM83: =BJ83*BK83*BL83 -> 314.7683141 | BN83: =BM83/'DNSP Inputs O & M'!$H$25*(BK73+BK74)/BK73*0.8 -> 94.43049424 | BQ83: ='DNSP Inputs O & M'!$H$15 -> 50.58776477 | BR83: 1 | BS83: ='DNSP Inputs O & M'!$H$17 -> 8 | BT83: =BQ83*BR83*BS83 -> 404.7021182 | BU83: =BT83/'DNSP Inputs O & M'!$H$25*(BR73+BR74)/BR73*0.8 -> 121.4106355
A84: Labour - repair of faults
A85: Crew costs | B85: ='DNSP Inputs O & M'!$D$12 -> 90.43467502 | C85: ='DNSP Inputs O & M'!$D$34 -> 2 | D85: ='DNSP Inputs O & M'!$D$17 -> 8 | E85: =B85*C85*D85 -> 1446.9548 | F85: =(E85+E86)/'DNSP Inputs O & M'!$D$37 -> 118.2133402 | G85: =F85*D62 -> 7.565653775 | I85: ='DNSP Inputs O & M'!$D$12 -> 90.43467502 | J85: ='DNSP Inputs O & M'!$D$34 -> 2 | K85: ='DNSP Inputs O & M'!$D$17 -> 8 | L85: =I85*J85*K85 -> 1446.9548 | M85: =(L85+L86)/'DNSP Inputs O & M'!$D$38 -> 155.5344206 | N85: =M85*D62 -> 9.954202918 | Q85: ='DNSP Inputs O & M'!$E$12 -> 91.15815242 | R85: ='DNSP Inputs O & M'!$E$34 -> 2 | S85: ='DNSP Inputs O & M'!$E$17 -> 8 | T85: =Q85*R85*S85 -> 1458.530439 | U85: =(T85+T86)/'DNSP Inputs O & M'!$E$37 -> 119.8159904 | V85: =U85*S62 -> 7.668223387 | X85: ='DNSP Inputs O & M'!$E$12 -> 91.15815242 | Y85: ='DNSP Inputs O & M'!$E$34 -> 2 | Z85: ='DNSP Inputs O & M'!$E$17 -> 8 | AA85: =X85*Y85*Z85 -> 1458.530439 | AB85: =(AA85+AA86)/'DNSP Inputs O & M'!$E$38 -> 157.834498 | AC85: =AB85*S62 -> 10.10140787 | AF85: ='DNSP Inputs O & M'!$F$12 -> 92.32497677 | AG85: ='DNSP Inputs O & M'!$F$34 -> 2 | AH85: ='DNSP Inputs O & M'!$F$17 -> 8 | AI85: =AF85*AG85*AH85 -> 1477.199628 | AJ85: =(AI85+AI86)/'DNSP Inputs O & M'!$F$37 -> 121.3817199 | AK85: =AJ85*AH62 -> 7.768430073 | AM85: ='DNSP Inputs O & M'!$F$12 -> 92.32497677 | AN85: ='DNSP Inputs O & M'!$F$34 -> 2 | AO85: ='DNSP Inputs O & M'!$F$17 -> 8 | AP85: =AM85*AN85*AO85 -> 1477.199628 | AQ85: =(AP85+AP86)/'DNSP Inputs O & M'!$F$38 -> 159.9063444 | AR85: =AQ85*AH62 -> 10.23400604 | AU85: ='DNSP Inputs O & M'!$G$12 -> 93.69138642 | AV85: ='DNSP Inputs O & M'!$G$34 -> 2 | AW85: ='DNSP Inputs O & M'!$G$17 -> 8 | AX85: =AU85*AV85*AW85 -> 1499.062183 | AY85: =(AX85+AX86)/'DNSP Inputs O & M'!$G$37 -> 121.4393116 | AZ85: =AY85*AW62 -> 7.772115943 | BB85: ='DNSP Inputs O & M'!$G$12 -> 93.69138642 | BC85: ='DNSP Inputs O & M'!$G$34 -> 2 | BD85: ='DNSP Inputs O & M'!$G$17 -> 8 | BE85: =BB85*BC85*BD85 -> 1499.062183 | BF85: =(BE85+BE86)/'DNSP Inputs O & M'!$G$38 -> 159.4783655 | BG85: =BF85*AW62 -> 10.20661539 | BJ85: ='DNSP Inputs O & M'!$H$12 -> 94.97495842 | BK85: ='DNSP Inputs O & M'!$H$34 -> 2 | BL85: ='DNSP Inputs O & M'!$H$17 -> 8 | BM85: =BJ85*BK85*BL85 -> 1519.599335 | BN85: =(BM85+BM86)/'DNSP Inputs O & M'!$H$37 -> 122.2911766 | BO85: =BN85*BL62 -> 7.826635302 | BQ85: ='DNSP Inputs O & M'!$H$12 -> 94.97495842 | BR85: ='DNSP Inputs O & M'!$H$34 -> 2 | BS85: ='DNSP Inputs O & M'!$H$17 -> 8 | BT85: =BQ85*BR85*BS85 -> 1519.599335 | BU85: =(BT85+BT86)/'DNSP Inputs O & M'!$H$38 -> 160.3584544 | BV85: =BU85*BL62 -> 10.26294108
A86: Elevated platform costs | B86: ='DNSP Inputs O & M'!$D$14 -> 40.7806629 | C86: 1 | D86: ='DNSP Inputs O & M'!$D$17 -> 8 | E86: =B86*C86*D86 -> 326.2453032 | I86: ='DNSP Inputs O & M'!$D$15 -> 52.43228087 | J86: 1 | K86: ='DNSP Inputs O & M'!$D$17 -> 8 | L86: =I86*J86*K86 -> 419.4582469 | Q86: ='DNSP Inputs O & M'!$E$14 -> 42.33867721 | R86: 1 | S86: ='DNSP Inputs O & M'!$E$17 -> 8 | T86: =Q86*R86*S86 -> 338.7094176 | X86: ='DNSP Inputs O & M'!$E$15 -> 54.43544212 | Y86: 1 | Z86: ='DNSP Inputs O & M'!$E$17 -> 8 | AA86: =X86*Y86*Z86 -> 435.483537 | AF86: ='DNSP Inputs O & M'!$F$14 -> 42.94077127 | AG86: 1 | AH86: ='DNSP Inputs O & M'!$F$17 -> 8 | AI86: =AF86*AG86*AH86 -> 343.5261701 | AM86: ='DNSP Inputs O & M'!$F$15 -> 55.20956306 | AN86: 1 | AO86: ='DNSP Inputs O & M'!$F$17 -> 8 | AP86: =AM86*AN86*AO86 -> 441.6765044 | AU86: ='DNSP Inputs O & M'!$G$14 -> 40.31593641 | AV86: 1 | AW86: ='DNSP Inputs O & M'!$G$17 -> 8 | AX86: =AU86*AV86*AW86 -> 322.5274913 | BB86: ='DNSP Inputs O & M'!$G$15 -> 51.83477538 | BC86: 1 | BD86: ='DNSP Inputs O & M'!$G$17 -> 8 | BE86: =BB86*BC86*BD86 -> 414.678203 | BJ86: ='DNSP Inputs O & M'!$H$14 -> 39.34603927 | BK86: 1 | BL86: ='DNSP Inputs O & M'!$H$17 -> 8 | BM86: =BJ86*BK86*BL86 -> 314.7683141 | BQ86: ='DNSP Inputs O & M'!$H$15 -> 50.58776477 | BR86: 1 | BS86: ='DNSP Inputs O & M'!$H$17 -> 8 | BT86: =BQ86*BR86*BS86 -> 404.7021182
A87: Other Maintenance and Repair costs | G87: ='DNSP Inputs O & M'!$D$49 -> 0 | N87: ='DNSP Inputs O & M'!$D$49 -> 0 | V87: ='DNSP Inputs O & M'!$E$49 -> 0 | AC87: ='DNSP Inputs O & M'!$E$49 -> 0 | AK87: ='DNSP Inputs O & M'!$F$49 -> 0 | AR87: ='DNSP Inputs O & M'!$F$49 -> 0 | AZ87: ='DNSP Inputs O & M'!$G$49 -> 0 | BG87: ='DNSP Inputs O & M'!$G$49 -> 0 | BO87: ='DNSP Inputs O & M'!$H$49 -> 0 | BV87: ='DNSP Inputs O & M'!$H$49 -> 0
A89: Overheads | B89: ='DNSP Inputs O & M'!$D$18 -> 0.25 | G89: =B89*SUM(G73:G87) -> 5.253775748 | I89: ='DNSP Inputs O & M'!$D$18 -> 0.25 | N89: =I89*SUM(N73:N87) -> 6.375941671 | Q89: ='DNSP Inputs O & M'!$E$18 -> 0.25 | V89: =Q89*SUM(V73:V87) -> 5.369313171 | X89: ='DNSP Inputs O & M'!$E$18 -> 0.25 | AC89: =X89*SUM(AC73:AC87) -> 6.514432979 | AF89: ='DNSP Inputs O & M'!$F$18 -> 0.25 | AK89: =AF89*SUM(AK73:AK87) -> 5.441630436 | AM89: ='DNSP Inputs O & M'!$F$18 -> 0.25 | AR89: =AM89*SUM(AR73:AR87) -> 6.602090386 | AU89: ='DNSP Inputs O & M'!$G$18 -> 0.25 | AZ89: =AU89*SUM(AZ73:AZ87) -> 5.327600976 | BB89: ='DNSP Inputs O & M'!$G$18 -> 0.25 | BG89: =BB89*SUM(BG73:BG87) -> 6.468241308 | BJ89: ='DNSP Inputs O & M'!$H$18 -> 0.25 | BO89: =BJ89*SUM(BO73:BO87) -> 5.309748572 | BQ89: ='DNSP Inputs O & M'!$H$18 -> 0.25 | BV89: =BQ89*SUM(BV73:BV87) -> 6.448743386
G91: =SUM(G73,G77,G82,G85,G87,G89) -> 26.26887874 | N91: =SUM(N73,N77,N82,N85,N87,N89) -> 31.87970836 | V91: =SUM(V73,V77,V82,V85,V87,V89) -> 26.84656586 | AC91: =SUM(AC73,AC77,AC82,AC85,AC87,AC89) -> 32.5721649 | AK91: =SUM(AK73,AK77,AK82,AK85,AK87,AK89) -> 27.20815218 | AR91: =SUM(AR73,AR77,AR82,AR85,AR87,AR89) -> 33.01045193 | AZ91: =SUM(AZ73,AZ77,AZ82,AZ85,AZ87,AZ89) -> 26.63800488 | BG91: =SUM(BG73,BG77,BG82,BG85,BG87,BG89) -> 32.34120654 | BO91: =SUM(BO73,BO77,BO82,BO85,BO87,BO89) -> 26.54874286 | BV91: =SUM(BV73,BV77,BV82,BV85,BV87,BV89) -> 32.24371693
A93: Dedicated poles - inspection
A94: Crew costs | B94: ='DNSP Inputs O & M'!$D$12 -> 90.43467502 | C94: 1 | D94: ='DNSP Inputs O & M'!$D$17 -> 8 | E94: =B94*C94*D94 -> 723.4774001 | F94: =(E94+E95+E96)/'DNSP Inputs O & M'!$D$121 -> 204.172586 | G94: =F94/'DNSP Inputs O & M'!$D$122 -> 2.722301146 | I94: ='DNSP Inputs O & M'!$D$12 -> 90.43467502 | J94: 1 | K94: ='DNSP Inputs O & M'!$D$17 -> 8 | L94: =I94*J94*K94 -> 723.4774001 | M94: =(L94+L95+L96)/'DNSP Inputs O & M'!$D$121 -> 204.172586 | N94: =M94/'DNSP Inputs O & M'!$D$122 -> 2.722301146 | Q94: ='DNSP Inputs O & M'!$E$12 -> 91.15815242 | R94: 1 | S94: ='DNSP Inputs O & M'!$E$17 -> 8 | T94: =Q94*R94*S94 -> 729.2652193 | U94: =(T94+T95+T96)/'DNSP Inputs O & M'!$E$121 -> 206.5098347 | V94: =U94/'DNSP Inputs O & M'!$E$122 -> 2.753464462 | X94: ='DNSP Inputs O & M'!$E$12 -> 91.15815242 | Y94: 1 | Z94: ='DNSP Inputs O & M'!$E$17 -> 8 | AA94: =X94*Y94*Z94 -> 729.2652193 | AB94: =(AA94+AA95+AA96)/'DNSP Inputs O & M'!$E$121 -> 206.5098347 | AC94: =AB94/'DNSP Inputs O & M'!$E$122 -> 2.753464462 | AF94: ='DNSP Inputs O & M'!$F$12 -> 92.32497677 | AG94: 1 | AH94: ='DNSP Inputs O & M'!$F$17 -> 8 | AI94: =AF94*AG94*AH94 -> 738.5998141 | AJ94: =(AI94+AI95+AI96)/'DNSP Inputs O & M'!$F$121 -> 209.1875371 | AK94: =AJ94/'DNSP Inputs O & M'!$F$122 -> 2.789167162 | AM94: ='DNSP Inputs O & M'!$F$12 -> 92.32497677 | AN94: 1 | AO94: ='DNSP Inputs O & M'!$F$17 -> 8 | AP94: =AM94*AN94*AO94 -> 738.5998141 | AQ94: =(AP94+AP95+AP96)/'DNSP Inputs O & M'!$F$121 -> 209.1875371 | AR94: =AQ94/'DNSP Inputs O & M'!$F$122 -> 2.789167162 | AU94: ='DNSP Inputs O & M'!$G$12 -> 93.69138642 | AV94: 1 | AW94: ='DNSP Inputs O & M'!$G$17 -> 8 | AX94: =AU94*AV94*AW94 -> 749.5310914 | AY94: =(AX94+AX95+AX96)/'DNSP Inputs O & M'!$G$121 -> 210.4204508 | AZ94: =AY94/'DNSP Inputs O & M'!$G$122 -> 2.805606011 | BB94: ='DNSP Inputs O & M'!$G$12 -> 93.69138642 | BC94: 1 | BD94: ='DNSP Inputs O & M'!$G$17 -> 8 | BE94: =BB94*BC94*BD94 -> 749.5310914 | BF94: =(BE94+BE95+BE96)/'DNSP Inputs O & M'!$G$121 -> 210.4204508 | BG94: =BF94/'DNSP Inputs O & M'!$G$122 -> 2.805606011 | BJ94: ='DNSP Inputs O & M'!$H$12 -> 94.97495842 | BK94: 1 | BL94: ='DNSP Inputs O & M'!$H$17 -> 8 | BM94: =BJ94*BK94*BL94 -> 759.7996673 | BN94: =(BM94+BM95+BM96)/'DNSP Inputs O & M'!$H$121 -> 212.4333678 | BO94: =BN94/'DNSP Inputs O & M'!$H$122 -> 2.832444905 | BQ94: ='DNSP Inputs O & M'!$H$12 -> 94.97495842 | BR94: 1 | BS94: ='DNSP Inputs O & M'!$H$17 -> 8 | BT94: =BQ94*BR94*BS94 -> 759.7996673 | BU94: =(BT94+BT95+BT96)/'DNSP Inputs O & M'!$H$121 -> 212.4333678 | BV94: =BU94/'DNSP Inputs O & M'!$H$122 -> 2.832444905
A95: Vehicle costs | B95: ='DNSP Inputs O & M'!$D$16 -> 11.65161797 | C95: 1 | D95: ='DNSP Inputs O & M'!$D$17 -> 8 | E95: =B95*C95*D95 -> 93.21294377 | I95: ='DNSP Inputs O & M'!$D$16 -> 11.65161797 | J95: 1 | K95: ='DNSP Inputs O & M'!$D$17 -> 8 | L95: =I95*J95*K95 -> 93.21294377 | Q95: ='DNSP Inputs O & M'!$E$16 -> 12.09676492 | R95: 1 | S95: ='DNSP Inputs O & M'!$E$17 -> 8 | T95: =Q95*R95*S95 -> 96.77411933 | X95: ='DNSP Inputs O & M'!$E$16 -> 12.09676492 | Y95: 1 | Z95: ='DNSP Inputs O & M'!$E$17 -> 8 | AA95: =X95*Y95*Z95 -> 96.77411933 | AF95: ='DNSP Inputs O & M'!$F$16 -> 12.26879179 | AG95: 1 | AH95: ='DNSP Inputs O & M'!$F$17 -> 8 | AI95: =AF95*AG95*AH95 -> 98.15033432 | AM95: ='DNSP Inputs O & M'!$F$16 -> 12.26879179 | AN95: 1 | AO95: ='DNSP Inputs O & M'!$F$17 -> 8 | AP95: =AM95*AN95*AO95 -> 98.15033432 | AU95: ='DNSP Inputs O & M'!$G$16 -> 11.51883897 | AV95: 1 | AW95: ='DNSP Inputs O & M'!$G$17 -> 8 | AX95: =AU95*AV95*AW95 -> 92.15071179 | BB95: ='DNSP Inputs O & M'!$G$16 -> 11.51883897 | BC95: 1 | BD95: ='DNSP Inputs O & M'!$G$17 -> 8 | BE95: =BB95*BC95*BD95 -> 92.15071179 | BJ95: ='DNSP Inputs O & M'!$H$16 -> 11.2417255 | BK95: 1 | BL95: ='DNSP Inputs O & M'!$H$17 -> 8 | BM95: =BJ95*BK95*BL95 -> 89.93380404 | BQ95: ='DNSP Inputs O & M'!$H$16 -> 11.2417255 | BR95: 1 | BS95: ='DNSP Inputs O & M'!$H$17 -> 8 | BT95: =BQ95*BR95*BS95 -> 89.93380404
A96: Overheads | B96: ='DNSP Inputs O & M'!$D$18 -> 0.25 | E96: =B96*(E94+E95) -> 204.172586 | I96: ='DNSP Inputs O & M'!$D$18 -> 0.25 | L96: =I96*(L94+L95) -> 204.172586 | Q96: ='DNSP Inputs O & M'!$E$18 -> 0.25 | T96: =Q96*(T94+T95) -> 206.5098347 | X96: ='DNSP Inputs O & M'!$E$18 -> 0.25 | AA96: =X96*(AA94+AA95) -> 206.5098347 | AF96: ='DNSP Inputs O & M'!$F$18 -> 0.25 | AI96: =AF96*(AI94+AI95) -> 209.1875371 | AM96: ='DNSP Inputs O & M'!$F$18 -> 0.25 | AP96: =AM96*(AP94+AP95) -> 209.1875371 | AU96: ='DNSP Inputs O & M'!$G$18 -> 0.25 | AX96: =AU96*(AX94+AX95) -> 210.4204508 | BB96: ='DNSP Inputs O & M'!$G$18 -> 0.25 | BE96: =BB96*(BE94+BE95) -> 210.4204508 | BJ96: ='DNSP Inputs O & M'!$H$18 -> 0.25 | BM96: =BJ96*(BM94+BM95) -> 212.4333678 | BQ96: ='DNSP Inputs O & M'!$H$18 -> 0.25 | BT96: =BQ96*(BT94+BT95) -> 212.4333678
A101: Sodium High Pressure 150 Watt Standard Light Type - Cost build-up
A103: Additional assumptions
A104: Overheads are applied to material and labour components
A105: All costs and charges are exclusive of GST
B107: Urban | I107: Rural | Q107: Urban | X107: Rural | AF107: Urban | AM107: Rural | AU107: Urban | BB107: Rural | BJ107: Urban | BQ107: Rural
B109: Unit rate | C109: Number | D109: Hours | E109: Cost | F109: Annualised | G109: Annualised | I109: Unit rate | J109: Number | K109: Hours | L109: Cost | M109: Annualised | N109: Annualised | Q109: Unit rate | R109: Number | S109: Hours | T109: Cost | U109: Annualised | V109: Annualised | X109: Unit rate | Y109: Number | Z109: Hours | AA109: Cost | AB109: Annualised | AC109: Annualised | AF109: Unit rate | AG109: Number | AH109: Hours | AI109: Cost | AJ109: Annualised | AK109: Annualised | AM109: Unit rate | AN109: Number | AO109: Hours | AP109: Cost | AQ109: Annualised | AR109: Annualised | AU109: Unit rate | AV109: Number | AW109: Hours | AX109: Cost | AY109: Annualised | AZ109: Annualised | BB109: Unit rate | BC109: Number | BD109: Hours | BE109: Cost | BF109: Annualised | BG109: Annualised | BJ109: Unit rate | BK109: Number | BL109: Hours | BM109: Cost | BN109: Annualised | BO109: Annualised | BQ109: Unit rate | BR109: Number | BS109: Hours | BT109: Cost | BU109: Annualised | BV109: Annualised
F110: cost | G110: unit cost | M110: cost | N110: unit cost | U110: cost | V110: unit cost | AB110: cost | AC110: unit cost | AJ110: cost | AK110: unit cost | AQ110: cost | AR110: unit cost | AY110: cost | AZ110: unit cost | BF110: cost | BG110: unit cost | BN110: cost | BO110: unit cost | BU110: cost | BV110: unit cost
A111: S-HP 150
A112: Patrols and repairs
A113: Materials
A114: Lamp | B114: ='DNSP Inputs O & M'!$D$65 -> 41.17407206 | C114: ='DNSP Inputs O & M'!$D$72 -> 15 | E114: =B114*C114 -> 617.6110808 | F114: =(E114+E115+E116)/'DNSP Inputs O & M'!$D$72 -> 54.84685393 | G114: =F114/'DNSP Inputs O & M'!$D$61 -> 10.96937079 | I114: ='DNSP Inputs O & M'!$D$65*(1+'DNSP Inputs O & M'!$D$11) -> 43.23277566 | J114: ='DNSP Inputs O & M'!$D$73 -> 12 | L114: =I114*J114 -> 518.7933079 | M114: =(L114+L115+L116)/'DNSP Inputs O & M'!$D$73 -> 57.58919662 | N114: =M114/'DNSP Inputs O & M'!$D$61 -> 11.51783932 | Q114: ='DNSP Inputs O & M'!$E$65 -> 42.74711646 | R114: ='DNSP Inputs O & M'!$E$72 -> 15 | T114: =Q114*R114 -> 641.2067468 | U114: =(T114+T115+T116)/'DNSP Inputs O & M'!$E$72 -> 56.9422633 | V114: =U114/'DNSP Inputs O & M'!$E$61 -> 11.38845266 | X114: ='DNSP Inputs O & M'!$E$65*(1+'DNSP Inputs O & M'!$E$11) -> 44.88447228 | Y114: ='DNSP Inputs O & M'!$E$73 -> 12 | AA114: =X114*Y114 -> 538.6136673 | AB114: =(AA114+AA115+AA116)/'DNSP Inputs O & M'!$E$73 -> 59.78937646 | AC114: =AB114/'DNSP Inputs O & M'!$E$61 -> 11.95787529 | AF114: ='DNSP Inputs O & M'!$F$65 -> 43.35501889 | AG114: ='DNSP Inputs O & M'!$F$72 -> 15 | AI114: =AF114*AG114 -> 650.3252833 | AJ114: =(AI114+AI115+AI116)/'DNSP Inputs O & M'!$F$72 -> 57.75203348 | AK114: =AJ114/'DNSP Inputs O & M'!$F$61 -> 11.5504067 | AM114: ='DNSP Inputs O & M'!$F$65*(1+'DNSP Inputs O & M'!$F$11) -> 45.52276983 | AN114: ='DNSP Inputs O & M'!$F$73 -> 12 | AP114: =AM114*AN114 -> 546.273238 | AQ114: =(AP114+AP115+AP116)/'DNSP Inputs O & M'!$F$73 -> 60.63963516 | AR114: =AQ114/'DNSP Inputs O & M'!$F$61 -> 12.12792703 | AU114: ='DNSP Inputs O & M'!$G$65 -> 40.70486237 | AV114: ='DNSP Inputs O & M'!$G$72 -> 15 | AX114: =AU114*AV114 -> 610.5729356 | AY114: =(AX114+AX115+AX116)/'DNSP Inputs O & M'!$G$72 -> 54.22183255 | AZ114: =AY114/'DNSP Inputs O & M'!$G$61 -> 10.84436651 | BB114: ='DNSP Inputs O & M'!$G$65*(1+'DNSP Inputs O & M'!$G$11) -> 42.74010549 | BC114: ='DNSP Inputs O & M'!$G$73 -> 12 | BE114: =BB114*BC114 -> 512.8812659 | BF114: =(BE114+BE115+BE116)/'DNSP Inputs O & M'!$G$73 -> 56.93292418 | BG114: =BF114/'DNSP Inputs O & M'!$G$61 -> 11.38658484 | BJ114: ='DNSP Inputs O & M'!$H$65 -> 39.72560868 | BK114: ='DNSP Inputs O & M'!$H$72 -> 15 | BM114: =BJ114*BK114 -> 595.8841302 | BN114: =(BM114+BM115+BM116)/'DNSP Inputs O & M'!$H$72 -> 52.91739552 | BO114: =BN114/'DNSP Inputs O & M'!$H$61 -> 10.5834791 | BQ114: ='DNSP Inputs O & M'!$H$65*(1+'DNSP Inputs O & M'!$H$11) -> 41.71188911 | BR114: ='DNSP Inputs O & M'!$H$73 -> 12 | BT114: =BQ114*BR114 -> 500.5426693 | BU114: =(BT114+BT115+BT116)/'DNSP Inputs O & M'!$H$73 -> 55.5632653 | BV114: =BU114/'DNSP Inputs O & M'!$H$61 -> 11.11265306
A115: PE cell | B115: ='DNSP Inputs O & M'!$D$66 -> 22.3623175 | C115: =C114*'DNSP Inputs O & M'!$D$61/'DNSP Inputs O & M'!$D$62 -> 7.5 | E115: =B115*C115 -> 167.7173813 | I115: ='DNSP Inputs O & M'!$D$66*(1+'DNSP Inputs O & M'!$D$11) -> 23.48043338 | J115: =J114*'DNSP Inputs O & M'!$D$61/'DNSP Inputs O & M'!$D$62 -> 6 | L115: =I115*J115 -> 140.8826003 | Q115: ='DNSP Inputs O & M'!$E$66 -> 23.21666385 | R115: =R114*'DNSP Inputs O & M'!$E$61/'DNSP Inputs O & M'!$E$62 -> 7.5 | T115: =Q115*R115 -> 174.1249789 | X115: ='DNSP Inputs O & M'!$E$66*(1+'DNSP Inputs O & M'!$E$11) -> 24.37749705 | Y115: =Y114*'DNSP Inputs O & M'!$E$61/'DNSP Inputs O & M'!$E$62 -> 6 | AA115: =X115*Y115 -> 146.2649823 | AF115: ='DNSP Inputs O & M'!$F$66 -> 23.54682569 | AG115: =AG114*'DNSP Inputs O & M'!$F$61/'DNSP Inputs O & M'!$F$62 -> 7.5 | AI115: =AF115*AG115 -> 176.6011927 | AM115: ='DNSP Inputs O & M'!$F$66*(1+'DNSP Inputs O & M'!$F$11) -> 24.72416697 | AN115: =AN114*'DNSP Inputs O & M'!$F$61/'DNSP Inputs O & M'!$F$62 -> 6 | AP115: =AM115*AN115 -> 148.3450018 | AU115: ='DNSP Inputs O & M'!$G$66 -> 22.10748198 | AV115: =AV114*'DNSP Inputs O & M'!$G$61/'DNSP Inputs O & M'!$G$62 -> 7.5 | AX115: =AU115*AV115 -> 165.8061149 | BB115: ='DNSP Inputs O & M'!$G$66*(1+'DNSP Inputs O & M'!$G$11) -> 23.21285608 | BC115: =BC114*'DNSP Inputs O & M'!$G$61/'DNSP Inputs O & M'!$G$62 -> 6 | BE115: =BB115*BC115 -> 139.2771365 | BJ115: ='DNSP Inputs O & M'!$H$66 -> 21.57563315 | BK115: =BK114*'DNSP Inputs O & M'!$H$61/'DNSP Inputs O & M'!$H$62 -> 7.5 | BM115: =BJ115*BK115 -> 161.8172487 | BQ115: ='DNSP Inputs O & M'!$H$66*(1+'DNSP Inputs O & M'!$H$11) -> 22.65441481 | BR115: =BR114*'DNSP Inputs O & M'!$H$61/'DNSP Inputs O & M'!$H$62 -> 6 | BT115: =BQ115*BR115 -> 135.9264889
A116: Miscellaneous | B116: ='DNSP Inputs O & M'!$D$67 -> 2.49162312 | C116: ='DNSP Inputs O & M'!$D$72 -> 15 | E116: =B116*C116 -> 37.3743468 | I116: ='DNSP Inputs O & M'!$D$67*(1+'DNSP Inputs O & M'!$D$11) -> 2.616204276 | J116: ='DNSP Inputs O & M'!$D$73 -> 12 | L116: =I116*J116 -> 31.39445131 | Q116: ='DNSP Inputs O & M'!$E$67 -> 2.586814914 | R116: ='DNSP Inputs O & M'!$E$72 -> 15 | T116: =Q116*R116 -> 38.80222371 | X116: ='DNSP Inputs O & M'!$E$67*(1+'DNSP Inputs O & M'!$E$11) -> 2.71615566 | Y116: ='DNSP Inputs O & M'!$E$73 -> 12 | AA116: =X116*Y116 -> 32.59386792 | AF116: ='DNSP Inputs O & M'!$F$67 -> 2.623601748 | AG116: ='DNSP Inputs O & M'!$F$72 -> 15 | AI116: =AF116*AG116 -> 39.35402622 | AM116: ='DNSP Inputs O & M'!$F$67*(1+'DNSP Inputs O & M'!$F$11) -> 2.754781836 | AN116: ='DNSP Inputs O & M'!$F$73 -> 12 | AP116: =AM116*AN116 -> 33.05738203 | AU116: ='DNSP Inputs O & M'!$G$67 -> 2.46322919 | AV116: ='DNSP Inputs O & M'!$G$72 -> 15 | AX116: =AU116*AV116 -> 36.94843786 | BB116: ='DNSP Inputs O & M'!$G$67*(1+'DNSP Inputs O & M'!$G$11) -> 2.58639065 | BC116: ='DNSP Inputs O & M'!$G$73 -> 12 | BE116: =BB116*BC116 -> 31.0366878 | BJ116: ='DNSP Inputs O & M'!$H$67 -> 2.403970268 | BK116: ='DNSP Inputs O & M'!$H$72 -> 15 | BM116: =BJ116*BK116 -> 36.05955402 | BQ116: ='DNSP Inputs O & M'!$H$67*(1+'DNSP Inputs O & M'!$H$11) -> 2.524168781 | BR116: ='DNSP Inputs O & M'!$H$73 -> 12 | BT116: =BQ116*BR116 -> 30.29002538
A117: Labour - Patrol
A118: Crew costs | B118: ='DNSP Inputs O & M'!$D$13 -> 103.9998763 | C118: ='DNSP Inputs O & M'!$D$68 -> 2 | D118: ='DNSP Inputs O & M'!$D$17 -> 8 | E118: =B118*C118*D118 -> 1663.99802 | F118: =(E118+E119)/'DNSP Inputs O & M'!$D$70 -> 0.585736988 | G118: =F118*'DNSP Inputs O & M'!$D$60 -> 1.757210964 | I118: ='DNSP Inputs O & M'!$D$13 -> 103.9998763 | J118: ='DNSP Inputs O & M'!$D$68 -> 2 | K118: ='DNSP Inputs O & M'!$D$17 -> 8 | L118: =I118*J118*K118 -> 1663.99802 | M118: =(L118+L119)/'DNSP Inputs O & M'!$D$71 -> 0.878605482 | N118: =M118*'DNSP Inputs O & M'!$D$60 -> 2.635816446 | Q118: ='DNSP Inputs O & M'!$E$13 -> 104.8318753 | R118: ='DNSP Inputs O & M'!$E$68 -> 2 | S118: ='DNSP Inputs O & M'!$E$17 -> 8 | T118: =Q118*R118*S118 -> 1677.310004 | U118: =(T118+T119)/'DNSP Inputs O & M'!$E$70 -> 0.5913613746 | V118: =U118*'DNSP Inputs O & M'!$E$60 -> 1.774084124 | X118: ='DNSP Inputs O & M'!$E$13 -> 104.8318753 | Y118: ='DNSP Inputs O & M'!$E$68 -> 2 | Z118: ='DNSP Inputs O & M'!$E$17 -> 8 | AA118: =X118*Y118*Z118 -> 1677.310004 | AB118: =(AA118+AA119)/'DNSP Inputs O & M'!$E$71 -> 0.8870420619 | AC118: =AB118*'DNSP Inputs O & M'!$E$60 -> 2.661126186 | AF118: ='DNSP Inputs O & M'!$F$13 -> 106.1737233 | AG118: ='DNSP Inputs O & M'!$F$68 -> 2 | AH118: ='DNSP Inputs O & M'!$F$17 -> 8 | AI118: =AF118*AG118*AH118 -> 1698.779573 | AJ118: =(AI118+AI119)/'DNSP Inputs O & M'!$F$70 -> 0.5989766356 | AK118: =AJ118*'DNSP Inputs O & M'!$F$60 -> 1.796929907 | AM118: ='DNSP Inputs O & M'!$F$13 -> 106.1737233 | AN118: ='DNSP Inputs O & M'!$F$68 -> 2 | AO118: ='DNSP Inputs O & M'!$F$17 -> 8 | AP118: =AM118*AN118*AO118 -> 1698.779573 | AQ118: =(AP118+AP119)/'DNSP Inputs O & M'!$F$71 -> 0.8984649534 | AR118: =AQ118*'DNSP Inputs O & M'!$F$60 -> 2.69539486 | AU118: ='DNSP Inputs O & M'!$G$13 -> 107.7450944 | AV118: ='DNSP Inputs O & M'!$G$68 -> 2 | AW118: ='DNSP Inputs O & M'!$G$17 -> 8 | AX118: =AU118*AV118*AW118 -> 1723.92151 | AY118: =(AX118+AX119)/'DNSP Inputs O & M'!$G$70 -> 0.6053574073 | AZ118: =AY118*'DNSP Inputs O & M'!$G$60 -> 1.816072222 | BB118: ='DNSP Inputs O & M'!$G$13 -> 107.7450944 | BC118: ='DNSP Inputs O & M'!$G$68 -> 2 | BD118: ='DNSP Inputs O & M'!$G$17 -> 8 | BE118: =BB118*BC118*BD118 -> 1723.92151 | BF118: =(BE118+BE119)/'DNSP Inputs O & M'!$G$71 -> 0.908036111 | BG118: =BF118*'DNSP Inputs O & M'!$G$60 -> 2.724108333 | BJ118: ='DNSP Inputs O & M'!$H$13 -> 109.2212022 | BK118: ='DNSP Inputs O & M'!$H$68 -> 2 | BL118: ='DNSP Inputs O & M'!$H$17 -> 8 | BM118: =BJ118*BK118*BL118 -> 1747.539235 | BN118: =(BM118+BM119)/'DNSP Inputs O & M'!$H$70 -> 0.612491013 | BO118: =BN118*'DNSP Inputs O & M'!$H$60 -> 1.837473039 | BQ118: ='DNSP Inputs O & M'!$H$13 -> 109.2212022 | BR118: ='DNSP Inputs O & M'!$H$68 -> 2 | BS118: ='DNSP Inputs O & M'!$H$17 -> 8 | BT118: =BQ118*BR118*BS118 -> 1747.539235 | BU118: =(BT118+BT119)/'DNSP Inputs O & M'!$H$71 -> 0.9187365195 | BV118: =BU118*'DNSP Inputs O & M'!$H$60 -> 2.756209558
A119: Vehicle costs | B119: ='DNSP Inputs O & M'!$D$16 -> 11.65161797 | C119: 1 | D119: ='DNSP Inputs O & M'!$D$17 -> 8 | E119: =B119*C119*D119 -> 93.21294377 | I119: ='DNSP Inputs O & M'!$D$16 -> 11.65161797 | J119: 1 | K119: ='DNSP Inputs O & M'!$D$17 -> 8 | L119: =I119*J119*K119 -> 93.21294377 | Q119: ='DNSP Inputs O & M'!$E$16 -> 12.09676492 | R119: 1 | S119: ='DNSP Inputs O & M'!$E$17 -> 8 | T119: =Q119*R119*S119 -> 96.77411933 | X119: ='DNSP Inputs O & M'!$E$16 -> 12.09676492 | Y119: 1 | Z119: ='DNSP Inputs O & M'!$E$17 -> 8 | AA119: =X119*Y119*Z119 -> 96.77411933 | AF119: ='DNSP Inputs O & M'!$F$16 -> 12.26879179 | AG119: 1 | AH119: ='DNSP Inputs O & M'!$F$17 -> 8 | AI119: =AF119*AG119*AH119 -> 98.15033432 | AM119: ='DNSP Inputs O & M'!$F$16 -> 12.26879179 | AN119: 1 | AO119: ='DNSP Inputs O & M'!$F$17 -> 8 | AP119: =AM119*AN119*AO119 -> 98.15033432 | AU119: ='DNSP Inputs O & M'!$G$16 -> 11.51883897 | AV119: 1 | AW119: ='DNSP Inputs O & M'!$G$17 -> 8 | AX119: =AU119*AV119*AW119 -> 92.15071179 | BB119: ='DNSP Inputs O & M'!$G$16 -> 11.51883897 | BC119: 1 | BD119: ='DNSP Inputs O & M'!$G$17 -> 8 | BE119: =BB119*BC119*BD119 -> 92.15071179 | BJ119: ='DNSP Inputs O & M'!$H$16 -> 11.2417255 | BK119: 1 | BL119: ='DNSP Inputs O & M'!$H$17 -> 8 | BM119: =BJ119*BK119*BL119 -> 89.93380404 | BQ119: ='DNSP Inputs O & M'!$H$16 -> 11.2417255 | BR119: 1 | BS119: ='DNSP Inputs O & M'!$H$17 -> 8 | BT119: =BQ119*BR119*BS119 -> 89.93380404
A120: Labour - Repair of faults
